Workbook

Sheet Visor
A1: Resultados del Programa de apoyo al empleo joven-Estrategia Sacúdete
A2: Reporte por sector económico - consolidado postulaciones agosto y septiembre de 2021 y Errores Operativos
A4: Seleccione el sector económico | D4: Industrias manufactureras | N4: =IFERROR(VLOOKUP(D4,Hoja4!$C$2:$D$23,2,FALSE),"") -> C
E8: Total Empleadores beneficiados | I8: % | K8: Total Empleadores beneficiados | O8: % | Q8: Recursos asociados en Millones
B10: General | E10: =Hoja4!I24 -> 12684 | I10: =E10/$E$10 -> 1 | K10: =Hoja4!K24 -> 441726 | O10: =K10/$K$10 -> 1 | Q10: =Hoja4!M24/1000000 -> 107396.454
B11: ="Sección "&N4 -> Sección C | E11: =VLOOKUP(N4,Hoja4!$H$1:$M$24,2,FALSE) -> 2535 | I11: =E11/$E$10 -> 0.1998580889 | K11: =VLOOKUP(N4,Hoja4!$H$1:$M$24,4,FALSE) -> 127438 | O11: =K11/$K$10 -> 0.2885001109 | Q11: =VLOOKUP(N4,Hoja4!$H$1:$M$24,6,FALSE)/1000000 -> 28151.013
B30: Empleadores | E30: Natural | H30: Jurídica | L30: Recurso en millones | O30: Natural | R30: Jurídica
B31: ="Total sección "&N4 -> Total sección C | E31: =COUNTIFS(insumos2!$AN$1:$AN$399999,"Aprobado con subsidio",insumos2!$AK$1:$AK$399999,"Natural") -> 312 | H31: =COUNTIFS(insumos2!$AN$1:$AN$399999,"Aprobado con subsidio",insumos2!$AK$1:$AK$399999,"Jurídica") -> 2223 | L31: ="Total sección "&N4 -> Total sección C | O31: =SUMIFS(insumos1!$K$2:$K$372158,insumos1!$H$2:$H$372158,Visor!N4,insumos1!$I$2:$I$372158,"Natural")/1000000 -> 822.558 | R31: =SUMIFS(insumos1!$K$2:$K$372158,insumos1!$H$2:$H$372158,Visor!N4,insumos1!$I$2:$I$372158,"Jurídica")/1000000 -> 27328.455
B32: ="% sección "&N4 -> % sección C | E32: =E31/(E31+H31) -> 0.1230769231 | H32: =H31/(E31+H31) -> 0.8769230769 | L32: ="% sección "&N4 -> % sección C | O32: =O31/(O31+R31) -> 0.02921948137 | R32: =R31/(O31+R31) -> 0.9707805186
B33: ="% general" -> % general | E33: 0.1646 | H33: 0.8354 | L33: ="% general" -> % general | O33: 0.0563 | R33: 0.9437
C36: Tamaño | E36: Empleadores | H36: % | J36: Empleados | N36: % | P36: Recursos en millones
C37: Micro | E37: =COUNTIFS(insumos2!$AN$2:$AN$399999,"Aprobado con subsidio",insumos2!$AO$2:$AO$399999,"MICRO") -> 1023 | H37: =E37/$E$42 -> 0.4035502959 | J37: =SUMIFS(insumos2!$AI$2:$AI$399999,insumos2!$AN$2:$AN$399999,"Aprobado con subsidio",insumos2!$AO$2:$AO$399999,"MICRO") -> 4726 | N37: =J37/$J$42 -> 0.03708470001 | P37: =SUMIFS(insumos1!$K$2:$K$372158,insumos1!$H$2:$H$372158,Visor!N4,insumos1!$J$2:$J$372158,"MICRO")/1000000 -> 1340.922
C38: Pequeña | E38: =COUNTIFS(insumos2!$AN$2:$AN$399999,"Aprobado con subsidio",insumos2!$AO$2:$AO$399999,"PEQUEÑA") -> 913 | H38: 0.3601577909 | J38: =SUMIFS(insumos2!$AI$2:$AI$399999,insumos2!$AN$2:$AN$399999,"Aprobado con subsidio",insumos2!$AO$2:$AO$399999,"PEQUEÑA") -> 16097 | N38: 0.1263124029 | P38: =SUMIFS(insumos1!$K$2:$K$372158,insumos1!$H$2:$H$372158,Visor!N4,insumos1!$J$2:$J$372158,"PEQUEÑA")/1000000 -> 4126.7655
C39: Mediana | E39: =COUNTIFS(insumos2!$AN$2:$AN$399999,"Aprobado con subsidio",insumos2!$AO$2:$AO$399999,"MEDIANA") -> 421 | H39: 0.1660749507 | J39: =SUMIFS(insumos2!$AI$2:$AI$399999,insumos2!$AN$2:$AN$399999,"Aprobado con subsidio",insumos2!$AO$2:$AO$399999,"MEDIANA") -> 29099 | N39: 0.2283384862 | P39: =SUMIFS(insumos1!$K$2:$K$372158,insumos1!$H$2:$H$372158,Visor!N4,insumos1!$J$2:$J$372158,"MEDIANA")/1000000 -> 6880.665
C40: Grande | E40: =COUNTIFS(insumos2!$AN$2:$AN$399999,"Aprobado con subsidio",insumos2!$AO$2:$AO$399999,"GRANDE") -> 115 | H40: 0.04536489152 | J40: =SUMIFS(insumos2!$AI$2:$AI$399999,insumos2!$AN$2:$AN$399999,"Aprobado con subsidio",insumos2!$AO$2:$AO$399999,"GRANDE") -> 22432 | N40: 0.1760228503 | P40: =SUMIFS(insumos1!$K$2:$K$372158,insumos1!$H$2:$H$372158,Visor!N4,insumos1!$J$2:$J$372158,"GRANDE")/1000000 -> 4933.896
C41: Muy grande | E41: =COUNTIFS(insumos2!$AN$2:$AN$399999,"Aprobado con subsidio",insumos2!$AO$2:$AO$399999,"MUY GRANDE") -> 63 | H41: 0.02485207101 | J41: =SUMIFS(insumos2!$AI$2:$AI$399999,insumos2!$AN$2:$AN$399999,"Aprobado con subsidio",insumos2!$AO$2:$AO$399999,"MUY GRANDE") -> 55084 | N41: 0.4322415606 | P41: =SUMIFS(insumos1!$K$2:$K$372158,insumos1!$H$2:$H$372158,Visor!N4,insumos1!$J$2:$J$372158,"MUY GRANDE")/1000000 -> 10868.7645
C42: Total | E42: =COUNTIFS(insumos2!$AN$2:$AN$399999,"Aprobado con subsidio") -> 2535 | H42: 1 | J42: =SUMIFS(insumos2!$AI$2:$AI$399999,insumos2!$AN$2:$AN$399999,"Aprobado con subsidio") -> 127438 | N42: 1 | P42: =P41+P40+P39+P37+P38 -> 28151.013
B44: Tamaño | C44: ="Sección "&N4 -> Sección C | D44: general | E44: ="Sección "&N4 -> Sección C | F44: general
B45: Micro | C45: =H37 -> 0.4035502959 | D45: 0.6376801371 | E45: =N37 -> 0.03708470001 | F45: 0.104427293
B46: Pequeña | C46: =H38 -> 0.3601577909 | D46: 0.2743797922 | E46: =N38 -> 0.1263124029 | F46: 0.1894298344
B47: Mediana | C47: =H39 -> 0.1660749507 | D47: 0.06616490439 | E47: =N39 -> 0.2283384862 | F47: 0.1934365931
B48: Grande | C48: =H40 -> 0.04536489152 | D48: 0.01371264116 | E48: =N40 -> 0.1760228503 | F48: 0.1301781558
B49: Muy Grande | C49: =H41 -> 0.02485207101 | D49: 0.008062525129 | E49: =N41 -> 0.4322415606 | F49: 0.3835281237
G61: Actividad económica | J61: =D4 -> Industrias manufactureras | U61: =N4 -> C
A66: Distribución Departamental | K66: Distribución en los principales municipios del País
A67: Departamento | D67: Empleadores | F67: % | G67: Empleados | I67: % | K67: Departamento | M67: Municipio | P67: Empleadores | R67: % | S67: Empleados | U67: %
A68: =IFERROR(insumos2!BE2,"") -> Bogotá | D68: =insumos2!BF2 -> 740 | F68: =IFERROR(D68/$D$96,"") -> 0.291913215 | G68: =insumos2!BG2 -> 27605 | I68: =G68/$G$96 -> 0.2166151383 | K68: =IFERROR(insumos2!BN2,"") -> Bogotá | M68: =IFERROR(insumos2!BO2,"") -> Bogotá, d.c. | P68: =IF(K68<>"",insumos2!BP2,"") -> 740 | R68: =IFERROR(P68/$P$96,"") -> 0.291913215 | S68: =IF(K68<>"",insumos2!BQ2,"") -> 27605 | U68: =IFERROR(S68/$S$96,"") -> 0.2166151383
A69: =IFERROR(insumos2!BE3,"") -> Valle del cauca | D69: =insumos2!BF3 -> 667 | F69: =IFERROR(D69/$D$96,"") -> 0.2631163708 | G69: =insumos2!BG3 -> 39711 | I69: 0.3116103517 | K69: =IFERROR(insumos2!BN3,"") -> Valle del cauca | M69: =IFERROR(insumos2!BO3,"") -> Cali | P69: =IF(K69<>"",insumos2!BP3,"") -> 424 | R69: =IFERROR(P69/$P$96,"") -> 0.1672583826 | S69: =IF(K69<>"",insumos2!BQ3,"") -> 20122 | U69: =IFERROR(S69/$S$96,"") -> 0.1578963888
A70: =IFERROR(insumos2!BE4,"") -> Antioquia | D70: =insumos2!BF4 -> 472 | F70: 0.1861932939 | G70: =insumos2!BG4 -> 27676 | I70: 0.217172272 | K70: =IFERROR(insumos2!BN4,"") -> Antioquia | M70: =IFERROR(insumos2!BO4,"") -> Medellín | P70: =IF(K70<>"",insumos2!BP4,"") -> 258 | R70: 0.1017751479 | S70: =IF(K70<>"",insumos2!BQ4,"") -> 14312 | U70: 0.1123055917
A71: =IFERROR(insumos2!BE5,"") -> Cundinamarca | D71: =insumos2!BF5 -> 121 | F71: 0.04773175542 | G71: =insumos2!BG5 -> 8130 | I71: 0.06379572812 | K71: =IFERROR(insumos2!BN5,"") -> Valle del cauca | M71: =IFERROR(insumos2!BO5,"") -> Yumbo | P71: =IF(K71<>"",insumos2!BP5,"") -> 103 | R71: 0.04063116371 | S71: =IF(K71<>"",insumos2!BQ5,"") -> 14525 | U71: 0.1139769927
A72: =IFERROR(insumos2!BE6,"") -> Risaralda | D72: =insumos2!BF6 -> 110 | F72: 0.04339250493 | G72: =insumos2!BG6 -> 7396 | I72: 0.0580360646 | K72: =IFERROR(insumos2!BN6,"") -> Antioquia | M72: =IFERROR(insumos2!BO6,"") -> Itagüí | P72: =IF(K72<>"",insumos2!BP6,"") -> 59 | R72: 0.02327416174 | S72: =IF(K72<>"",insumos2!BQ6,"") -> 3813 | U72: 0.0299204319
A73: =IFERROR(insumos2!BE7,"") -> Santander | D73: =insumos2!BF7 -> 92 | F73: 0.03629191321 | G73: =insumos2!BG7 -> 2087 | I73: 0.01637659097 | K73: =IFERROR(insumos2!BN7,"") -> Santander | M73: =IFERROR(insumos2!BO7,"") -> Bucaramanga | P73: =IF(K73<>"",insumos2!BP7,"") -> 56 | R73: 0.02209072978 | S73: =IF(K73<>"",insumos2!BQ7,"") -> 1012 | U73: 0.007941116464
A74: =IFERROR(insumos2!BE8,"") -> Atlántico | D74: =insumos2!BF8 -> 44 | F74: 0.01735700197 | G74: =insumos2!BG8 -> 1085 | I74: 0.008513944036 | K74: =IFERROR(insumos2!BN8,"") -> Risaralda | M74: =IFERROR(insumos2!BO8,"") -> Pereira | P74: =IF(K74<>"",insumos2!BP8,"") -> 54 | R74: 0.02130177515 | S74: =IF(K74<>"",insumos2!BQ8,"") -> 5018 | U74: 0.0393760103
A75: =IFERROR(insumos2!BE9,"") -> Cauca | D75: =insumos2!BF9 -> 41 | F75: 0.01617357002 | G75: =insumos2!BG9 -> 5507 | I75: 0.04321317033 | K75: =IFERROR(insumos2!BN9,"") -> Valle del cauca | M75: =IFERROR(insumos2!BO9,"") -> Palmira | P75: =IF(K75<>"",insumos2!BP9,"") -> 51 | R75: 0.0201183432 | S75: =IF(K75<>"",insumos2!BQ9,"") -> 1756 | U75: 0.01377924952
A76: =IFERROR(insumos2!BE10,"") -> Quindío | D76: =insumos2!BF10 -> 36 | F76: 0.01420118343 | G76: =insumos2!BG10 -> 1961 | I76: 0.01538787489 | K76: =IFERROR(insumos2!BN10,"") -> Risaralda | M76: =IFERROR(insumos2!BO10,"") -> Dosquebradas | P76: =IF(K76<>"",insumos2!BP10,"") -> 49 | R76: 0.01932938856 | S76: =IF(K76<>"",insumos2!BQ10,"") -> 1846 | U76: 0.01448547529
A77: =IFERROR(insumos2!BE11,"") -> Caldas | D77: =insumos2!BF11 -> 32 | F77: 0.01262327416 | G77: =insumos2!BG11 -> 1987 | I77: 0.01559189567 | K77: =IFERROR(insumos2!BN11,"") -> Atlántico | M77: =IFERROR(insumos2!BO11,"") -> Barranquilla | P77: =IF(K77<>"",insumos2!BP11,"") -> 38 | R77: 0.01499013807 | S77: =IF(K77<>"",insumos2!BQ11,"") -> 913 | U77: 0.007164268115
A78: =IFERROR(insumos2!BE12,"") -> Huila | D78: =insumos2!BF12 -> 30 | F78: 0.01183431953 | G78: =insumos2!BG12 -> 387 | I78: 0.003036770822 | K78: =IFERROR(insumos2!BN12,"") -> Caldas | M78: =IFERROR(insumos2!BO12,"") -> Manizales | P78: =IF(K78<>"",insumos2!BP12,"") -> 27 | R78: 0.01065088757 | S78: =IF(K78<>"",insumos2!BQ12,"") -> 1287 | U78: 0.01009902855
A79: =IFERROR(insumos2!BE13,"") -> Norte de stder | D79: =insumos2!BF13 -> 25 | F79: 0.009861932939 | G79: =insumos2!BG13 -> 823 | I79: 0.006458042342 | K79: =IFERROR(insumos2!BN13,"") -> Cundinamarca | M79: =IFERROR(insumos2!BO13,"") -> Cota | P79: =IF(K79<>"",insumos2!BP13,"") -> 27 | R79: 0.01065088757 | S79: =IF(K79<>"",insumos2!BQ13,"") -> 1976 | U79: 0.01550557918
A80: =IFERROR(insumos2!BE14,"") -> Nariño | D80: =insumos2!BF14 -> 25 | F80: 0.009861932939 | G80: =insumos2!BG14 -> 473 | I80: 0.003711608782 | K80: =IFERROR(insumos2!BN14,"") -> Quindío | M80: =IFERROR(insumos2!BO14,"") -> Armenia | P80: =IF(K80<>"",insumos2!BP14,"") -> 26 | R80: 0.01025641026 | S80: =IF(K80<>"",insumos2!BQ14,"") -> 1806 | U80: 0.01417159717
A81: =IFERROR(insumos2!BE15,"") -> Boyacá | D81: =insumos2!BF15 -> 22 | F81: 0.008678500986 | G81: =insumos2!BG15 -> 391 | I81: 0.003068158634 | K81: =IFERROR(insumos2!BN15,"") -> Antioquia | M81: =IFERROR(insumos2!BO15,"") -> Sabaneta | P81: =IF(K81<>"",insumos2!BP15,"") -> 24 | R81: 0.009467455621 | S81: =IF(K81<>"",insumos2!BQ15,"") -> 3250 | U81: 0.02550259734
A82: =IFERROR(insumos2!BE16,"") -> Tolima | D82: =insumos2!BF16 -> 17 | F82: 0.006706114398 | G82: =insumos2!BG16 -> 813 | I82: 0.006379572812 | K82: =IFERROR(insumos2!BN16,"") -> Antioquia | M82: =IFERROR(insumos2!BO16,"") -> La estrella | P82: =IF(K82<>"",insumos2!BP16,"") -> 24 | R82: 0.009467455621 | S82: =IF(K82<>"",insumos2!BQ16,"") -> 1625 | U82: 0.01275129867
A83: =IFERROR(insumos2!BE17,"") -> Meta | D83: =insumos2!BF17 -> 12 | F83: 0.004733727811 | G83: =insumos2!BG17 -> 154 | I83: 0.001208430766 | K83: =IFERROR(insumos2!BN17,"") -> Antioquia | M83: =IFERROR(insumos2!BO17,"") -> Bello | P83: =IF(K83<>"",insumos2!BP17,"") -> 21 | R83: 0.008284023669 | S83: =IF(K83<>"",insumos2!BQ17,"") -> 286 | U83: 0.002244228566
A84: =IFERROR(insumos2!BE18,"") -> Bolívar | D84: =insumos2!BF18 -> 11 | F84: 0.004339250493 | G84: =insumos2!BG18 -> 509 | I84: 0.003994099091 | K84: =IFERROR(insumos2!BN18,"") -> Valle del cauca | M84: =IFERROR(insumos2!BO18,"") -> Candelaria | P84: =IF(K84<>"",insumos2!BP18,"") -> 21 | R84: 0.008284023669 | S84: =IF(K84<>"",insumos2!BQ18,"") -> 300 | U84: 0.002354085908
A85: =IFERROR(insumos2!BE19,"") -> Córdoba | D85: =insumos2!BF19 -> 10 | F85: 0.003944773176 | G85: =insumos2!BG19 -> 435 | I85: 0.003413424567 | K85: =IFERROR(insumos2!BN19,"") -> Cundinamarca | M85: =IFERROR(insumos2!BO19,"") -> Mosquera | P85: =IF(K85<>"",insumos2!BP19,"") -> 21 | R85: 0.008284023669 | S85: =IF(K85<>"",insumos2!BQ19,"") -> 597 | U85: 0.004684630958
A86: =IFERROR(insumos2!BE20,"") -> Magdalena | D86: =insumos2!BF20 -> 7 | F86: 0.002761341223 | G86: =insumos2!BG20 -> 140 | I86: 0.001098573424 | K86: =IFERROR(insumos2!BN20,"") -> Antioquia | M86: =IFERROR(insumos2!BO20,"") -> Envigado | P86: =IF(K86<>"",insumos2!BP20,"") -> 20 | R86: 0.007889546351 | S86: =IF(K86<>"",insumos2!BQ20,"") -> 466 | U86: 0.003656680111
A87: =IFERROR(insumos2!BE21,"") -> Cesar | D87: =insumos2!BF21 -> 5 | F87: 0.001972386588 | G87: =insumos2!BG21 -> 38 | I87: 0.0002981842151 | K87: =IFERROR(insumos2!BN21,"") -> Huila | M87: =IFERROR(insumos2!BO21,"") -> Neiva | P87: =IF(K87<>"",insumos2!BP21,"") -> 20 | R87: 0.007889546351 | S87: =IF(K87<>"",insumos2!BQ21,"") -> 248 | U87: 0.001946044351
A88: =IFERROR(insumos2!BE22,"") -> Casanare | D88: =insumos2!BF22 -> 4 | F88: 0.00157790927 | G88: =insumos2!BG22 -> 26 | I88: 0.0002040207787 | K88: =IFERROR(insumos2!BN22,"") -> Nariño | M88: =IFERROR(insumos2!BO22,"") -> Pasto | P88: =IF(K88<>"",insumos2!BP22,"") -> 18 | R88: 0.007100591716 | S88: =IF(K88<>"",insumos2!BQ22,"") -> 377 | U88: 0.002958301292
A89: =IFERROR(insumos2!BE23,"") -> Sucre | D89: =insumos2!BF23 -> 3 | F89: 0.001183431953 | G89: =insumos2!BG23 -> 21 | I89: 0.0001647860136 | K89: =IFERROR(insumos2!BN23,"") -> Norte de stder | M89: =IFERROR(insumos2!BO23,"") -> Cucuta | P89: =IF(K89<>"",insumos2!BP23,"") -> 17 | R89: 0.006706114398 | S89: =IF(K89<>"",insumos2!BQ23,"") -> 705 | U89: 0.005532101885
A90: =IFERROR(insumos2!BE24,"") -> Arauca | D90: =insumos2!BF24 -> 3 | F90: 0.001183431953 | G90: =insumos2!BG24 -> 46 | I90: 0.0003609598393 | K90: =IFERROR(insumos2!BN24,"") -> Cundinamarca | M90: =IFERROR(insumos2!BO24,"") -> Soacha | P90: =IF(K90<>"",insumos2!BP24,"") -> 17 | R90: 0.006706114398 | S90: =IF(K90<>"",insumos2!BQ24,"") -> 849 | U90: 0.006662063121
A91: =IFERROR(insumos2!BE25,"") -> Caquetá | D91: =insumos2!BF25 -> 3 | F91: 0.001183431953 | G91: =insumos2!BG25 -> 21 | I91: 0.0001647860136 | K91: =IFERROR(insumos2!BN25,"") -> Valle del cauca | M91: =IFERROR(insumos2!BO25,"") -> Tuluá | P91: =IF(K91<>"",insumos2!BP25,"") -> 16 | R91: 0.006311637081 | S91: =IF(K91<>"",insumos2!BQ25,"") -> 1412 | U91: 0.01107989768
A92: =IFERROR(insumos2!BE26,"") -> La guajira | D92: =insumos2!BF26 -> 1 | F92: =D92/$D$96 -> 0.0003944773176 | G92: =insumos2!BG26 -> 9 | I92: 7.062257725e-05 | K92: =IFERROR(insumos2!BN26,"") -> Tolima | M92: =IFERROR(insumos2!BO26,"") -> Ibagué | P92: =IF(K92<>"",insumos2!BP26,"") -> 15 | R92: 0.005917159763 | S92: =IF(K92<>"",insumos2!BQ26,"") -> 632 | U92: 0.004959274314
A93: =IFERROR(insumos2!BE27,"") -> Putumayo | D93: =insumos2!BF27 -> 1 | F93: 0.0003944773176 | G93: =insumos2!BG27 -> 2 | I93: 1.569390606e-05 | K93: =IFERROR(insumos2!BN27,"") -> Cauca | M93: =IFERROR(insumos2!BO27,"") -> Popayán | P93: =IF(K93<>"",insumos2!BP27,"") -> 15 | R93: 0.005917159763 | S93: =IF(K93<>"",insumos2!BQ27,"") -> 484 | U93: 0.003797925266
A94: =IFERROR(insumos2!BE28,"") -> Vichada | D94: =insumos2!BF28 -> 1 | F94: 0.0003944773176 | G94: =insumos2!BG28 -> 5 | I94: 3.923476514e-05 | K94: =IFERROR(insumos2!BN28,"") -> Cundinamarca | M94: =IFERROR(insumos2!BO28,"") -> Funza | P94: =IF(K94<>"",insumos2!BP28,"") -> 15 | R94: 0.005917159763 | S94: =IF(K94<>"",insumos2!BQ28,"") -> 1064 | U94: 0.008349158022
A95: =IFERROR(insumos2!BE29,"") -> Otros | D95: =insumos2!BF29 -> 0 | F95: 0 | G95: =insumos2!BG29 -> 0 | I95: 0 | K95: =IF(K94="","",IFERROR(insumos2!BN29,"")) -> Otros | M95: =IF(M94="","",IFERROR(insumos2!BO29,"")) -> Otros | P95: =IF(K95<>"",insumos2!BP29,"") -> 359 | R95: 0.141617357 | S95: =IF(K95<>"",insumos2!BQ29,"") -> 19152 | U95: 0.1502848444
A96: =insumos2!BE30 -> Total | D96: =insumos2!BF30 -> 2535 | F96: =D96/$D$96 -> 1 | G96: =insumos2!BG30 -> 127438 | I96: 1 | K96: =insumos2!BN30 -> Total | P96: =insumos2!BP30 -> 2535 | R96: =P96/$P$96 -> 1 | S96: =insumos2!BQ30 -> 127438 | U96: =S96/$S$96 -> 1
G127: Actividad económica | J127: =J61 -> Industrias manufactureras | U127: =U61 -> C
B131: Sexo | D131: ="Total empleadores sección "&N4 -> Total empleadores sección C | G131: %
B133: Hombres | D133: =VLOOKUP(N4,Hoja4!$H$2:$P$23,7,FALSE) -> 80730 | G133: =D133/$D$136 -> 0.633484518
B134: Mujeres | D134: =VLOOKUP(N4,Hoja4!$H$2:$P$23,8,FALSE) -> 46678 | G134: =D134/$D$136 -> 0.3662800734
B135: No disponible | D135: =VLOOKUP(N4,Hoja4!$H$2:$P$23,9,FALSE) -> 30 | G135: =D135/$D$136 -> 0.0002354085908
B136: Total | D136: =D135+D134+D133 -> 127438 | G136: =D136/$D$136 -> 1
B139: ="Para la Sección "&U127&" hay "&ROUND(VLOOKUP(U127,Hoja4!$H$2:$R$23,11,FALSE),0)&" mujeres por cada 100 hombres beneficiados del Programa." -> Para la Sección C hay 58 mujeres por cada 100 hombres beneficiados del Programa.
B152: ="Grupo o División de la sección "&U127 -> Grupo o División de la sección C | I152: Empleadores | M152: % | O152: Empleados | S152: %
B153: =IF(insumos2!BV2=0,"",insumos2!BV2) -> Elaboración de productos alimenticios | I153: =IF(insumos2!BV2=0,"",insumos2!BW2) -> 401 | M153: =IFERROR(I153/insumos2!$BT$28,"") -> 0.1581854043 | O153: =IF(insumos2!BX2=0,"",insumos2!BX2) -> 30759 | S153: =IFERROR(O153/insumos2!$BU$28,"") -> 0.2413644282
B154: =IF(insumos2!BV3=0,"",insumos2!BV3) -> Confección de prendas de vestir | I154: =IF(insumos2!BV3=0,"",insumos2!BW3) -> 333 | M154: =IFERROR(I154/insumos2!$BT$28,"") -> 0.1313609467 | O154: =IF(insumos2!BX3=0,"",insumos2!BX3) -> 16616 | S154: =IFERROR(O154/insumos2!$BU$28,"") -> 0.1303849715
B155: =IF(insumos2!BV4=0,"",insumos2!BV4) -> Fabricación de productos elaborados de metal, excepto maquinaria y equipo | I155: =IF(insumos2!BV4=0,"",insumos2!BW4) -> 237 | M155: =IFERROR(I155/insumos2!$BT$28,"") -> 0.09349112426 | O155: =IF(insumos2!BX4=0,"",insumos2!BX4) -> 7672 | S155: =IFERROR(O155/insumos2!$BU$28,"") -> 0.06020182363
B156: =IF(insumos2!BV5=0,"",insumos2!BV5) -> Instalación, mantenimiento y reparación especializado de maquinaria y equipo | I156: =IF(insumos2!BV5=0,"",insumos2!BW5) -> 193 | M156: =IFERROR(I156/insumos2!$BT$28,"") -> 0.07613412229 | O156: =IF(insumos2!BX5=0,"",insumos2!BX5) -> 2235 | S156: =IFERROR(O156/insumos2!$BU$28,"") -> 0.01753794002
B157: =IF(insumos2!BV6=0,"",insumos2!BV6) -> Fabricación de productos de caucho y de plástico | I157: =IF(insumos2!BV6=0,"",insumos2!BW6) -> 175 | M157: =IFERROR(I157/insumos2!$BT$28,"") -> 0.06903353057 | O157: =IF(insumos2!BX6=0,"",insumos2!BX6) -> 11129 | S157: =IFERROR(O157/insumos2!$BU$28,"") -> 0.08732874025
B158: =IF(insumos2!BV7=0,"",insumos2!BV7) -> Fabricación de muebles, colchones y somieres | I158: =IF(insumos2!BV7=0,"",insumos2!BW7) -> 144 | M158: =IFERROR(I158/insumos2!$BT$28,"") -> 0.05680473373 | O158: =IF(insumos2!BX7=0,"",insumos2!BX7) -> 4376 | S158: =IFERROR(O158/insumos2!$BU$28,"") -> 0.03433826645
B159: =IF(insumos2!BV8=0,"",insumos2!BV8) -> Fabricación de sustancias y productos químicos | I159: =IF(insumos2!BV8=0,"",insumos2!BW8) -> 127 | M159: =IFERROR(I159/insumos2!$BT$28,"") -> 0.05009861933 | O159: =IF(insumos2!BX8=0,"",insumos2!BX8) -> 8658 | S159: =IFERROR(O159/insumos2!$BU$28,"") -> 0.06793891932
B160: =IF(insumos2!BV9=0,"",insumos2!BV9) -> Actividades de impresión y de producción de copias a partir de grabaciones originales | I160: =IF(insumos2!BV9=0,"",insumos2!BW9) -> 123 | M160: =IFERROR(I160/insumos2!$BT$28,"") -> 0.04852071006 | O160: =IF(insumos2!BX9=0,"",insumos2!BX9) -> 3338 | S160: =IFERROR(O160/insumos2!$BU$28,"") -> 0.02619312921
B161: =IF(insumos2!BV10=0,"",insumos2!BV10) -> Curtido y recurtido de cueros; fabricación de calzado; fabricación de artículos de viaje, maletas, bolsos de mano y artículos similares, y fabricación de artículos de talabartería y guarnicionería; adobo y teñido de pieles | I161: =IF(insumos2!BV10=0,"",insumos2!BW10) -> 95 | M161: =IFERROR(I161/insumos2!$BT$28,"") -> 0.03747534517 | O161: =IF(insumos2!BX10=0,"",insumos2!BX10) -> 3820 | S161: =IFERROR(O161/insumos2!$BU$28,"") -> 0.02997536057
B162: =IF(insumos2!BV11=0,"",insumos2!BV11) -> Fabricación de productos textiles | I162: =IF(insumos2!BV11=0,"",insumos2!BW11) -> 89 | M162: =IFERROR(I162/insumos2!$BT$28,"") -> 0.03510848126 | O162: =IF(insumos2!BX11=0,"",insumos2!BX11) -> 4345 | S162: =IFERROR(O162/insumos2!$BU$28,"") -> 0.03409501091
B163: =IF(insumos2!BV12=0,"",insumos2!BV12) -> Fabricación de maquinaria y equipo n.c.p. | I163: =IF(insumos2!BV12=0,"",insumos2!BW12) -> 88 | M163: =IFERROR(I163/insumos2!$BT$28,"") -> 0.03471400394 | O163: =IF(insumos2!BX12=0,"",insumos2!BX12) -> 2929 | S163: =IFERROR(O163/insumos2!$BU$28,"") -> 0.02298372542
B164: =IF(insumos2!BV13=0,"",insumos2!BV13) -> Fabricación de otros productos minerales no metálicos | I164: =IF(insumos2!BV13=0,"",insumos2!BW13) -> 87 | M164: =IFERROR(I164/insumos2!$BT$28,"") -> 0.03431952663 | O164: =IF(insumos2!BX13=0,"",insumos2!BX13) -> 4865 | S164: =IFERROR(O164/insumos2!$BU$28,"") -> 0.03817542648
B165: =IF(insumos2!BV14=0,"",insumos2!BV14) -> Otras industrias manufactureras | I165: =IF(insumos2!BV14=0,"",insumos2!BW14) -> 81 | M165: =IFERROR(I165/insumos2!$BT$28,"") -> 0.03195266272 | O165: =IF(insumos2!BX14=0,"",insumos2!BX14) -> 1826 | S165: =IFERROR(O165/insumos2!$BU$28,"") -> 0.01432853623
B166: =IF(insumos2!BV15=0,"",insumos2!BV15) -> Fabricación de papel, cartón y productos de papel y cartón | I166: =IF(insumos2!BV15=0,"",insumos2!BW15) -> 73 | M166: =IFERROR(I166/insumos2!$BT$28,"") -> 0.02879684418 | O166: =IF(insumos2!BX15=0,"",insumos2!BX15) -> 8477 | S166: =IFERROR(O166/insumos2!$BU$28,"") -> 0.06651862082
B167: =IF(insumos2!BV16=0,"",insumos2!BV16) -> Transformación de la madera y fabricación de productos de madera y de corcho, excepto muebles; fabricación de artículos de cestería y espartería | I167: =IF(insumos2!BV16=0,"",insumos2!BW16) -> 70 | M167: =IFERROR(I167/insumos2!$BT$28,"") -> 0.02761341223 | O167: =IF(insumos2!BX16=0,"",insumos2!BX16) -> 918 | S167: =IFERROR(O167/insumos2!$BU$28,"") -> 0.00720350288
B168: =IF(insumos2!BV17=0,"",insumos2!BV17) -> Fabricación de vehículos automotores, remolques y semirremolques | I168: =IF(insumos2!BV17=0,"",insumos2!BW17) -> 59 | M168: =IFERROR(I168/insumos2!$BT$28,"") -> 0.02327416174 | O168: =IF(insumos2!BX17=0,"",insumos2!BX17) -> 3179 | S168: =IFERROR(O168/insumos2!$BU$28,"") -> 0.02494546368
B169: =IF(insumos2!BV18=0,"",insumos2!BV18) -> Fabricación de aparatos y equipo eléctrico | I169: =IF(insumos2!BV18=0,"",insumos2!BW18) -> 44 | M169: =IFERROR(I169/insumos2!$BT$28,"") -> 0.01735700197 | O169: =IF(insumos2!BX18=0,"",insumos2!BX18) -> 2463 | S169: =IFERROR(O169/insumos2!$BU$28,"") -> 0.01932704531
B170: =IF(insumos2!BV19=0,"",insumos2!BV19) -> Fabricación de productos metalúrgicos básicos | I170: =IF(insumos2!BV19=0,"",insumos2!BW19) -> 44 | M170: =IFERROR(I170/insumos2!$BT$28,"") -> 0.01735700197 | O170: =IF(insumos2!BX19=0,"",insumos2!BX19) -> 1269 | S170: =IFERROR(O170/insumos2!$BU$28,"") -> 0.009957783393
B171: =IF(insumos2!BV20=0,"",insumos2!BV20) -> Elaboración de bebidas | I171: =IF(insumos2!BV20=0,"",insumos2!BW20) -> 29 | M171: =IFERROR(I171/insumos2!$BT$28,"") -> 0.01143984221 | O171: =IF(insumos2!BX20=0,"",insumos2!BX20) -> 6416 | S171: =IFERROR(O171/insumos2!$BU$28,"") -> 0.05034605063
B172: =IF(insumos2!BV21=0,"",insumos2!BV21) -> Fabricación de productos farmacéuticos, sustancias químicas medicinales y productos botánicos de uso farmacéutico | I172: =IF(insumos2!BV21=0,"",insumos2!BW21) -> 20 | M172: =IFERROR(I172/insumos2!$BT$28,"") -> 0.007889546351 | O172: =IF(insumos2!BX21=0,"",insumos2!BX21) -> 1360 | S172: =IFERROR(O172/insumos2!$BU$28,"") -> 0.01067185612
B173: =IF(insumos2!BV22=0,"",insumos2!BV22) -> Coquización, fabricación de productos de la refinación del petróleo y actividad de mezcla de combustibles | I173: =IF(insumos2!BV22=0,"",insumos2!BW22) -> 12 | M173: =IFERROR(I173/insumos2!$BT$28,"") -> 0.004733727811 | O173: =IF(insumos2!BX22=0,"",insumos2!BX22) -> 439 | S173: =IFERROR(O173/insumos2!$BU$28,"") -> 0.003444812379
B174: =IF(insumos2!BV23=0,"",insumos2!BV23) -> Fabricación de productos informáticos, electrónicos y ópticos | I174: =IF(insumos2!BV23=0,"",insumos2!BW23) -> 7 | M174: =IFERROR(I174/insumos2!$BT$28,"") -> 0.002761341223 | O174: =IF(insumos2!BX23=0,"",insumos2!BX23) -> 253 | S174: =IFERROR(O174/insumos2!$BU$28,"") -> 0.001985279116
B175: =IF(insumos2!BV24=0,"",insumos2!BV24) -> Fabricación de otros tipos de equipo de transporte | I175: =IF(insumos2!BV24=0,"",insumos2!BW24) -> 4 | M175: =IFERROR(I175/insumos2!$BT$28,"") -> 0.00157790927 | O175: =IF(insumos2!BX24=0,"",insumos2!BX24) -> 96 | S175: =IFERROR(O175/insumos2!$BU$28,"") -> 0.0007533074907
B176: =IF(insumos2!BV25=0,"",insumos2!BV25) ->  | I176: =IF(insumos2!BV25=0,"",insumos2!BW25) ->  | M176: =IFERROR(I176/insumos2!$BT$28,"") ->  | O176: =IF(insumos2!BX25=0,"",insumos2!BX25) ->  | S176: =IFERROR(O176/insumos2!$BU$28,"") -> 
B177: =IF(insumos2!BV26=0,"",insumos2!BV26) ->  | I177: =IF(insumos2!BV26=0,"",insumos2!BW26) ->  | M177: =IFERROR(I177/insumos2!$BT$28,"") ->  | O177: =IF(insumos2!BX26=0,"",insumos2!BX26) ->  | S177: =IFERROR(O177/insumos2!$BU$28,"") -> 
B180: Postulaciones recibidas en la sección | F180: Cantidad | I180: % | L180: Empleados postulados en la sección | P180: Cantidad | S180: %
B181: Total solicitudes | F181: =COUNT(insumos2!$AI$2:$AI$399999) -> 2646 | I181: =F181/$F$181 -> 1 | L181: Total empleados | P181: =SUM(insumos2!$AI$2:$AJ$399999) -> 151808 | S181: =P181/$P$181 -> 1
B182: Empleadores con beneficiados | F182: =COUNTIFS(insumos2!$AN$2:$AN$399999,"Aprobado con subsidio") -> 2535 | I182: =F182/$F$181 -> 0.9580498866 | L182: Conformidad | P182: =SUMIFS(insumos2!$AI$2:$AI$399999,insumos2!$AN$2:$AN$399999,"Aprobado con subsidio") -> 127438 | S182: =P182/$P$181 -> 0.8394682757
B183: Empleadores sin beneficio | F183: =F181-F182 -> 111 | I183: =F183/$F$181 -> 0.04195011338 | L183: No conformidad | P183: =P181-P182 -> 24370 | S183: =P183/$P$181 -> 0.1605317243

Sheet insumos1 (hidden)
A1: Ciclo | B1: DIVIPOLA1 | C1: MpioNOM | D1: Depto | E1: DeptoNOM | F1: NOM_AECONOMICA1 | G1: SECTOR_ECONOMICO1 | H1: actividad | I1: TIPO_PERSONA1 | J1: SIZE1 | K1: Suma de RECURSOS1 | Q1: Suma de Suma de RECURSOS1 | R1: Etiquetas de columna
B2: 11001 | C2: BOGOTÁ, D.C. | D2: 11 | E2: =VLOOKUP(D2,'[1]DIVIPOLA MPIO'!$B$5:$C$1128,2,0) -> BOGOTÁ, D.C. | F2: COMERCIO AL POR MAYOR Y AL POR MENOR; REPARACIÓN DE VEHÍCULOS AUTOMOTORES Y MOTOCICLETAS | G2: 4729 | H2: G | I2: Natural | J2: MICRO | K2: 544500 | Q2: Etiquetas de fila | R2: (en blanco) | S2: Total general
B3: 63001 | C3: ARMENIA | D3: 63 | E3: =VLOOKUP(D3,'[1]DIVIPOLA MPIO'!$B$5:$C$1128,2,0) -> QUINDÍO | F3: COMERCIO AL POR MAYOR Y AL POR MENOR; REPARACIÓN DE VEHÍCULOS AUTOMOTORES Y MOTOCICLETAS | G3: 4774 | H3: G | I3: Jurídica | J3: PEQUEÑA | K3: 6897000 | Q3: ACTIVIDADES ARTÍSTICAS, DE ENTRETENIMIENTO Y RECREACIÓN | R3: 753769500 | S3: 753769500
B4: 66001 | C4: PEREIRA | D4: 66 | E4: =VLOOKUP(D4,'[1]DIVIPOLA MPIO'!$B$5:$C$1128,2,0) -> RISARALDA | F4: TRANSPORTE Y ALMACENAMIENTO | G4: 5320 | H4: H | I4: Natural | J4: MICRO | K4: 1633500 | Q4: ACTIVIDADES DE ATENCIÓN DE LA SALUD HUMANA Y DE ASISTENCIA SOCIAL | R4: 2381098500 | S4: 2381098500
B5: 50001 | C5: VILLAVICENCIO | D5: 50 | E5: =VLOOKUP(D5,'[1]DIVIPOLA MPIO'!$B$5:$C$1128,2,0) -> META | F5: COMERCIO AL POR MAYOR Y AL POR MENOR; REPARACIÓN DE VEHÍCULOS AUTOMOTORES Y MOTOCICLETAS | G5: 4541 | H5: G | I5: Natural | J5: PEQUEÑA | K5: 1089000 | Q5: ACTIVIDADES DE LOS HOGARES INDIVIDUALES EN CALIDAD DE EMPLEADORES; ACTIVIDADES NO DIFERENCIADAS DE LOS HOGARES INDIVIDUALES COMO PRODUCTORES DE BIENES Y SERVICIOS PARA USO PROPIO | R5: 17424000 | S5: 17424000
B6: 66001 | C6: PEREIRA | D6: 66 | E6: =VLOOKUP(D6,'[1]DIVIPOLA MPIO'!$B$5:$C$1128,2,0) -> RISARALDA | F6: COMERCIO AL POR MAYOR Y AL POR MENOR; REPARACIÓN DE VEHÍCULOS AUTOMOTORES Y MOTOCICLETAS | G6: 4719 | H6: G | I6: Natural | J6: PEQUEÑA | K6: 3993000 | Q6: ACTIVIDADES DE SERVICIOS ADMINISTRATIVOS Y DE APOYO | R6: 10798161000 | S6: 10798161000
B7: 76001 | C7: CALI | D7: 76 | E7: =VLOOKUP(D7,'[1]DIVIPOLA MPIO'!$B$5:$C$1128,2,0) -> VALLE DEL CAUCA | F7: COMERCIO AL POR MAYOR Y AL POR MENOR; REPARACIÓN DE VEHÍCULOS AUTOMOTORES Y MOTOCICLETAS | G7: 4649 | H7: G | I7: Natural | J7: MICRO | K7: 2541000 | Q7: ACTIVIDADES FINANCIERAS Y DE SEGUROS | R7: 617644500 | S7: 617644500
B8: 63130 | C8: CALARCA | D8: 63 | E8: =VLOOKUP(D8,'[1]DIVIPOLA MPIO'!$B$5:$C$1128,2,0) -> QUINDÍO | F8: INDUSTRIAS MANUFACTURERAS | G8: 1511 | H8: C | I8: Jurídica | J8: MICRO | K8: 1452000 | Q8: ACTIVIDADES INMOBILIARIAS | R8: 522357000 | S8: 522357000
B9: 50606 | C9: RESTREPO | D9: 50 | E9: =VLOOKUP(D9,'[1]DIVIPOLA MPIO'!$B$5:$C$1128,2,0) -> META | F9: TRANSPORTE Y ALMACENAMIENTO | G9: 4923 | H9: H | I9: Natural | J9: MICRO | K9: 726000 | Q9: ACTIVIDADES PROFESIONALES, CIENTÍFICAS Y TÉCNICAS | R9: 5504169000 | S9: 5504169000
B10: 66170 | C10: DOSQUEBRADAS | D10: 66 | E10: =VLOOKUP(D10,'[1]DIVIPOLA MPIO'!$B$5:$C$1128,2,0) -> RISARALDA | F10: CONSTRUCCIÓN | G10: 4330 | H10: F | I10: Natural | J10: PEQUEÑA | K10: 1452000 | Q10: ADMINISTRACIÓN PÚBLICA Y DEFENSA; PLANES DE SEGURIDAD SOCIAL DE AFILIACIÓN OBLIGATORIA | R10: 109263000 | S10: 109263000
B11: 63001 | C11: ARMENIA | D11: 63 | E11: =VLOOKUP(D11,'[1]DIVIPOLA MPIO'!$B$5:$C$1128,2,0) -> QUINDÍO | F11: COMERCIO AL POR MAYOR Y AL POR MENOR; REPARACIÓN DE VEHÍCULOS AUTOMOTORES Y MOTOCICLETAS | G11: 4752 | H11: G | I11: Natural | J11: MICRO | K11: 1089000 | Q11: AGRICULTURA, GANADERÍA, CAZA, SILVICULTURA Y PESCA | R11: 4285033500 | S11: 4285033500
B12: 66001 | C12: PEREIRA | D12: 66 | E12: =VLOOKUP(D12,'[1]DIVIPOLA MPIO'!$B$5:$C$1128,2,0) -> RISARALDA | F12: INDUSTRIAS MANUFACTURERAS | G12: 1521 | H12: C | I12: Natural | J12: MICRO | K12: 1815000 | Q12: ALOJAMIENTO Y SERVICIOS DE COMIDA | R12: 3928567500 | S12: 3928567500
B13: 25123 | C13: CACHIPAY | D13: 25 | E13: =VLOOKUP(D13,'[1]DIVIPOLA MPIO'!$B$5:$C$1128,2,0) -> CUNDINAMARCA | F13: INDUSTRIAS MANUFACTURERAS | G13: 1081 | H13: C | I13: Natural | J13: PEQUEÑA | K13: 1815000 | Q13: COMERCIO AL POR MAYOR Y AL POR MENOR; REPARACIÓN DE VEHÍCULOS AUTOMOTORES Y MOTOCICLETAS | R13: 21186495000 | S13: 21186495000
B14: 66170 | C14: DOSQUEBRADAS | D14: 66 | E14: =VLOOKUP(D14,'[1]DIVIPOLA MPIO'!$B$5:$C$1128,2,0) -> RISARALDA | F14: ALOJAMIENTO Y SERVICIOS DE COMIDA | G14: 5530 | H14: I | I14: Natural | J14: MICRO | K14: 2541000 | Q14: CONSTRUCCIÓN | R14: 9549078000 | S14: 9549078000
B15: 66682 | C15: SANTA ROSA DE CABAL | D15: 66 | E15: =VLOOKUP(D15,'[1]DIVIPOLA MPIO'!$B$5:$C$1128,2,0) -> RISARALDA | F15: INDUSTRIAS MANUFACTURERAS | G15: 2712 | H15: C | I15: Natural | J15: PEQUEÑA | K15: 3993000 | Q15: DISTRIBUCIÓN DE AGUA; EVACUACIÓN Y TRATAMIENTO DE AGUAS RESIDUALES, GESTIÓN DE DESECHOS Y ACTIVIDADES DE SANEAMIENTO AMBIENTAL | R15: 246477000 | S15: 246477000
B16: 11001 | C16: BOGOTÁ, D.C. | D16: 11 | E16: =VLOOKUP(D16,'[1]DIVIPOLA MPIO'!$B$5:$C$1128,2,0) -> BOGOTÁ, D.C. | F16: INDUSTRIAS MANUFACTURERAS | G16: 1081 | H16: C | I16: Natural | J16: MICRO | K16: 2541000 | Q16: EDUCACIÓN | R16: 1614442500 | S16: 1614442500
B17: 66001 | C17: PEREIRA | D17: 66 | E17: =VLOOKUP(D17,'[1]DIVIPOLA MPIO'!$B$5:$C$1128,2,0) -> RISARALDA | F17: CONSTRUCCIÓN | G17: 4390 | H17: F | I17: Natural | J17: MICRO | K17: 1633500 | Q17: EXPLOTACIÓN DE MINAS Y CANTERAS | R17: 571906500 | S17: 571906500
B18: 66170 | C18: DOSQUEBRADAS | D18: 66 | E18: =VLOOKUP(D18,'[1]DIVIPOLA MPIO'!$B$5:$C$1128,2,0) -> RISARALDA | F18: INDUSTRIAS MANUFACTURERAS | G18: 3092 | H18: C | I18: Natural | J18: MICRO | K18: 907500 | Q18: INDUSTRIAS MANUFACTURERAS | R18: 28151013000 | S18: 28151013000
B19: 76147 | C19: CARTAGO | D19: 76 | E19: =VLOOKUP(D19,'[1]DIVIPOLA MPIO'!$B$5:$C$1128,2,0) -> VALLE DEL CAUCA | F19: COMERCIO AL POR MAYOR Y AL POR MENOR; REPARACIÓN DE VEHÍCULOS AUTOMOTORES Y MOTOCICLETAS | G19: 4530 | H19: G | I19: Natural | J19: MICRO | K19: 1089000 | Q19: INFORMACIÓN Y COMUNICACIONES | R19: 1208790000 | S19: 1208790000
B20: 66001 | C20: PEREIRA | D20: 66 | E20: =VLOOKUP(D20,'[1]DIVIPOLA MPIO'!$B$5:$C$1128,2,0) -> RISARALDA | F20: CONSTRUCCIÓN | G20: 4290 | H20: F | I20: Natural | J20: PEQUEÑA | K20: 2359500 | Q20: OTRAS | R20: 676995000 | S20: 676995000
B21: 66001 | C21: PEREIRA | D21: 66 | E21: =VLOOKUP(D21,'[1]DIVIPOLA MPIO'!$B$5:$C$1128,2,0) -> RISARALDA | F21: COMERCIO AL POR MAYOR Y AL POR MENOR; REPARACIÓN DE VEHÍCULOS AUTOMOTORES Y MOTOCICLETAS | G21: 4773 | H21: G | I21: Natural | J21: MICRO | K21: 2178000 | Q21: OTRAS ACTIVIDADES DE SERVICIOS | R21: 965217000 | S21: 965217000
B22: 66001 | C22: PEREIRA | D22: 66 | E22: =VLOOKUP(D22,'[1]DIVIPOLA MPIO'!$B$5:$C$1128,2,0) -> RISARALDA | F22: COMERCIO AL POR MAYOR Y AL POR MENOR; REPARACIÓN DE VEHÍCULOS AUTOMOTORES Y MOTOCICLETAS | G22: 4530 | H22: G | I22: Natural | J22: MICRO | K22: 907500 | Q22: SUMINISTRO DE ELECTRICIDAD, GAS, VAPOR Y AIRE ACONDICIONADO | R22: 43015500 | S22: 43015500
B23: 11001 | C23: BOGOTÁ, D.C. | D23: 11 | E23: =VLOOKUP(D23,'[1]DIVIPOLA MPIO'!$B$5:$C$1128,2,0) -> BOGOTÁ, D.C. | F23: TRANSPORTE Y ALMACENAMIENTO | G23: 4923 | H23: H | I23: Natural | J23: MICRO | K23: 726000 | Q23: TRANSPORTE Y ALMACENAMIENTO | R23: 14265537000 | S23: 14265537000
B24: 66001 | C24: PEREIRA | D24: 66 | E24: =VLOOKUP(D24,'[1]DIVIPOLA MPIO'!$B$5:$C$1128,2,0) -> RISARALDA | F24: INDUSTRIAS MANUFACTURERAS | G24: 1020 | H24: C | I24: Natural | J24: PEQUEÑA | K24: 2178000 | Q24: (en blanco)
B25: 5001 | C25: MEDELLÍN | D25: 5 | E25: =VLOOKUP(D25,'[1]DIVIPOLA MPIO'!$B$5:$C$1128,2,0) -> ANTIOQUIA | F25: INDUSTRIAS MANUFACTURERAS | G25: 2511 | H25: C | I25: Natural | J25: MICRO | K25: 2541000 | Q25: Total general | R25: 107396454000 | S25: 107396454000
B26: 11001 | C26: BOGOTÁ, D.C. | D26: 11 | E26: =VLOOKUP(D26,'[1]DIVIPOLA MPIO'!$B$5:$C$1128,2,0) -> BOGOTÁ, D.C. | F26: INDUSTRIAS MANUFACTURERAS | G26: 1521 | H26: C | I26: Natural | J26: MICRO | K26: 1089000
B27: 5088 | C27: BELLO | D27: 5 | E27: =VLOOKUP(D27,'[1]DIVIPOLA MPIO'!$B$5:$C$1128,2,0) -> ANTIOQUIA | F27: ALOJAMIENTO Y SERVICIOS DE COMIDA | G27: 5613 | H27: I | I27: Natural | J27: PEQUEÑA | K27: 3630000
B28: 66001 | C28: PEREIRA | D28: 66 | E28: =VLOOKUP(D28,'[1]DIVIPOLA MPIO'!$B$5:$C$1128,2,0) -> RISARALDA | F28: COMERCIO AL POR MAYOR Y AL POR MENOR; REPARACIÓN DE VEHÍCULOS AUTOMOTORES Y MOTOCICLETAS | G28: 4741 | H28: G | I28: Natural | J28: MICRO | K28: 1089000
B29: 66001 | C29: PEREIRA | D29: 66 | E29: =VLOOKUP(D29,'[1]DIVIPOLA MPIO'!$B$5:$C$1128,2,0) -> RISARALDA | F29: COMERCIO AL POR MAYOR Y AL POR MENOR; REPARACIÓN DE VEHÍCULOS AUTOMOTORES Y MOTOCICLETAS | G29: 4752 | H29: G | I29: Natural | J29: MICRO | K29: 1452000
B30: 11001 | C30: BOGOTÁ, D.C. | D30: 11 | E30: =VLOOKUP(D30,'[1]DIVIPOLA MPIO'!$B$5:$C$1128,2,0) -> BOGOTÁ, D.C. | F30: INDUSTRIAS MANUFACTURERAS | G30: 1410 | H30: C | I30: Natural | J30: MICRO | K30: 1452000
B31: 73001 | C31: IBAGUÉ | D31: 73 | E31: =VLOOKUP(D31,'[1]DIVIPOLA MPIO'!$B$5:$C$1128,2,0) -> TOLIMA | F31: COMERCIO AL POR MAYOR Y AL POR MENOR; REPARACIÓN DE VEHÍCULOS AUTOMOTORES Y MOTOCICLETAS | G31: 4520 | H31: G | I31: Natural | J31: MICRO | K31: 363000
B32: 11001 | C32: BOGOTÁ, D.C. | D32: 11 | E32: =VLOOKUP(D32,'[1]DIVIPOLA MPIO'!$B$5:$C$1128,2,0) -> BOGOTÁ, D.C. | F32: ALOJAMIENTO Y SERVICIOS DE COMIDA | G32: 5611 | H32: I | I32: Natural | J32: MICRO | K32: 1815000
B33: 5001 | C33: MEDELLÍN | D33: 5 | E33: =VLOOKUP(D33,'[1]DIVIPOLA MPIO'!$B$5:$C$1128,2,0) -> ANTIOQUIA | F33: INFORMACIÓN Y COMUNICACIONES | G33: 6190 | H33: J | I33: Natural | J33: MICRO | K33: 363000
B34: 5001 | C34: MEDELLÍN | D34: 5 | E34: =VLOOKUP(D34,'[1]DIVIPOLA MPIO'!$B$5:$C$1128,2,0) -> ANTIOQUIA | F34: INDUSTRIAS MANUFACTURERAS | G34: 1084 | H34: C | I34: Natural | J34: MICRO | K34: 544500
B35: 5001 | C35: MEDELLÍN | D35: 5 | E35: =VLOOKUP(D35,'[1]DIVIPOLA MPIO'!$B$5:$C$1128,2,0) -> ANTIOQUIA | F35: AGRICULTURA, GANADERÍA, CAZA, SILVICULTURA Y PESCA | G35: 141 | H35: A | I35: Natural | J35: PEQUEÑA | K35: 3993000
B36: 5001 | C36: MEDELLÍN | D36: 5 | E36: =VLOOKUP(D36,'[1]DIVIPOLA MPIO'!$B$5:$C$1128,2,0) -> ANTIOQUIA | F36: ALOJAMIENTO Y SERVICIOS DE COMIDA | G36: 5611 | H36: I | I36: Natural | J36: MICRO | K36: 3267000
B37: 5001 | C37: MEDELLÍN | D37: 5 | E37: =VLOOKUP(D37,'[1]DIVIPOLA MPIO'!$B$5:$C$1128,2,0) -> ANTIOQUIA | F37: ALOJAMIENTO Y SERVICIOS DE COMIDA | G37: 5611 | H37: I | I37: Natural | J37: MICRO | K37: 544500
B38: 5001 | C38: MEDELLÍN | D38: 5 | E38: =VLOOKUP(D38,'[1]DIVIPOLA MPIO'!$B$5:$C$1128,2,0) -> ANTIOQUIA | F38: ALOJAMIENTO Y SERVICIOS DE COMIDA | G38: 5612 | H38: I | I38: Natural | J38: MICRO | K38: 1089000
B39: 5001 | C39: MEDELLÍN | D39: 5 | E39: =VLOOKUP(D39,'[1]DIVIPOLA MPIO'!$B$5:$C$1128,2,0) -> ANTIOQUIA | F39: COMERCIO AL POR MAYOR Y AL POR MENOR; REPARACIÓN DE VEHÍCULOS AUTOMOTORES Y MOTOCICLETAS | G39: 4773 | H39: G | I39: Natural | J39: MICRO | K39: 1089000
B40: 5001 | C40: MEDELLÍN | D40: 5 | E40: =VLOOKUP(D40,'[1]DIVIPOLA MPIO'!$B$5:$C$1128,2,0) -> ANTIOQUIA | F40: ALOJAMIENTO Y SERVICIOS DE COMIDA | G40: 5511 | H40: I | I40: Natural | J40: PEQUEÑA | K40: 5082000
B41: 5001 | C41: MEDELLÍN | D41: 5 | E41: =VLOOKUP(D41,'[1]DIVIPOLA MPIO'!$B$5:$C$1128,2,0) -> ANTIOQUIA | F41: ALOJAMIENTO Y SERVICIOS DE COMIDA | G41: 5619 | H41: I | I41: Natural | J41: MICRO | K41: 1452000
B42: 5088 | C42: BELLO | D42: 5 | E42: =VLOOKUP(D42,'[1]DIVIPOLA MPIO'!$B$5:$C$1128,2,0) -> ANTIOQUIA | F42: ALOJAMIENTO Y SERVICIOS DE COMIDA | G42: 5613 | H42: I | I42: Natural | J42: MICRO | K42: 1452000
B43: 17380 | C43: LA DORADA | D43: 17 | E43: =VLOOKUP(D43,'[1]DIVIPOLA MPIO'!$B$5:$C$1128,2,0) -> CALDAS | F43: COMERCIO AL POR MAYOR Y AL POR MENOR; REPARACIÓN DE VEHÍCULOS AUTOMOTORES Y MOTOCICLETAS | G43: 4541 | H43: G | I43: Natural | J43: MICRO | K43: 1270500
B44: 17380 | C44: LA DORADA | D44: 17 | E44: =VLOOKUP(D44,'[1]DIVIPOLA MPIO'!$B$5:$C$1128,2,0) -> CALDAS | F44: TRANSPORTE Y ALMACENAMIENTO | G44: 4923 | H44: H | I44: Natural | J44: MICRO | K44: 363000
B45: 52001 | C45: PASTO | D45: 52 | E45: =VLOOKUP(D45,'[1]DIVIPOLA MPIO'!$B$5:$C$1128,2,0) -> NARIÑO | F45: ALOJAMIENTO Y SERVICIOS DE COMIDA | G45: 5611 | H45: I | I45: Natural | J45: PEQUEÑA | K45: 4900500
B46: 11001 | C46: BOGOTÁ, D.C. | D46: 11 | E46: =VLOOKUP(D46,'[1]DIVIPOLA MPIO'!$B$5:$C$1128,2,0) -> BOGOTÁ, D.C. | F46: ALOJAMIENTO Y SERVICIOS DE COMIDA | G46: 5511 | H46: I | I46: Natural | J46: MICRO | K46: 1996500
B47: 41551 | C47: PITALITO | D47: 41 | E47: =VLOOKUP(D47,'[1]DIVIPOLA MPIO'!$B$5:$C$1128,2,0) -> HUILA | F47: COMERCIO AL POR MAYOR Y AL POR MENOR; REPARACIÓN DE VEHÍCULOS AUTOMOTORES Y MOTOCICLETAS | G47: 4771 | H47: G | I47: Natural | J47: MICRO | K47: 363000
B48: 11001 | C48: BOGOTÁ, D.C. | D48: 11 | E48: =VLOOKUP(D48,'[1]DIVIPOLA MPIO'!$B$5:$C$1128,2,0) -> BOGOTÁ, D.C. | F48: INDUSTRIAS MANUFACTURERAS | G48: 1523 | H48: C | I48: Natural | J48: MICRO | K48: 1089000
B49: 50573 | C49: PUERTO LÓPEZ | D49: 50 | E49: =VLOOKUP(D49,'[1]DIVIPOLA MPIO'!$B$5:$C$1128,2,0) -> META | F49: COMERCIO AL POR MAYOR Y AL POR MENOR; REPARACIÓN DE VEHÍCULOS AUTOMOTORES Y MOTOCICLETAS | G49: 4631 | H49: G | I49: Natural | J49: PEQUEÑA | K49: 4356000
B50: 66400 | C50: LA VIRGINIA | D50: 66 | E50: =VLOOKUP(D50,'[1]DIVIPOLA MPIO'!$B$5:$C$1128,2,0) -> RISARALDA | F50: INDUSTRIAS MANUFACTURERAS | G50: 1610 | H50: C | I50: Natural | J50: MICRO | K50: 1089000
B51: 5001 | C51: MEDELLÍN | D51: 5 | E51: =VLOOKUP(D51,'[1]DIVIPOLA MPIO'!$B$5:$C$1128,2,0) -> ANTIOQUIA | F51: COMERCIO AL POR MAYOR Y AL POR MENOR; REPARACIÓN DE VEHÍCULOS AUTOMOTORES Y MOTOCICLETAS | G51: 4759 | H51: G | I51: Natural | J51: MICRO | K51: 907500
B52: 5088 | C52: BELLO | D52: 5 | E52: =VLOOKUP(D52,'[1]DIVIPOLA MPIO'!$B$5:$C$1128,2,0) -> ANTIOQUIA | F52: ALOJAMIENTO Y SERVICIOS DE COMIDA | G52: 5511 | H52: I | I52: Natural | J52: MICRO | K52: 3993000
B53: 13001 | C53: CARTAGENA | D53: 13 | E53: =VLOOKUP(D53,'[1]DIVIPOLA MPIO'!$B$5:$C$1128,2,0) -> BOLÍVAR | F53: COMERCIO AL POR MAYOR Y AL POR MENOR; REPARACIÓN DE VEHÍCULOS AUTOMOTORES Y MOTOCICLETAS | G53: 4711 | H53: G | I53: Natural | J53: MICRO | K53: 2904000
B54: 5088 | C54: BELLO | D54: 5 | E54: =VLOOKUP(D54,'[1]DIVIPOLA MPIO'!$B$5:$C$1128,2,0) -> ANTIOQUIA | F54: COMERCIO AL POR MAYOR Y AL POR MENOR; REPARACIÓN DE VEHÍCULOS AUTOMOTORES Y MOTOCICLETAS | G54: 4719 | H54: G | I54: Natural | J54: MICRO | K54: 3267000
B55: 5266 | C55: ENVIGADO | D55: 5 | E55: =VLOOKUP(D55,'[1]DIVIPOLA MPIO'!$B$5:$C$1128,2,0) -> ANTIOQUIA | F55: COMERCIO AL POR MAYOR Y AL POR MENOR; REPARACIÓN DE VEHÍCULOS AUTOMOTORES Y MOTOCICLETAS | G55: 4520 | H55: G | I55: Natural | J55: MICRO | K55: 1452000
B56: 5001 | C56: MEDELLÍN | D56: 5 | E56: =VLOOKUP(D56,'[1]DIVIPOLA MPIO'!$B$5:$C$1128,2,0) -> ANTIOQUIA | F56: ALOJAMIENTO Y SERVICIOS DE COMIDA | G56: 5619 | H56: I | I56: Natural | J56: MICRO | K56: 1996500
B57: 5001 | C57: MEDELLÍN | D57: 5 | E57: =VLOOKUP(D57,'[1]DIVIPOLA MPIO'!$B$5:$C$1128,2,0) -> ANTIOQUIA | F57: CONSTRUCCIÓN | G57: 4330 | H57: F | I57: Natural | J57: PEQUEÑA | K57: 5808000
B58: 5088 | C58: BELLO | D58: 5 | E58: =VLOOKUP(D58,'[1]DIVIPOLA MPIO'!$B$5:$C$1128,2,0) -> ANTIOQUIA | F58: ACTIVIDADES DE SERVICIOS ADMINISTRATIVOS Y DE APOYO | G58: 8299 | H58: N | I58: Natural | J58: MEDIANA | K58: 22869000
B59: 5088 | C59: BELLO | D59: 5 | E59: =VLOOKUP(D59,'[1]DIVIPOLA MPIO'!$B$5:$C$1128,2,0) -> ANTIOQUIA | F59: CONSTRUCCIÓN | G59: 4312 | H59: F | I59: Natural | J59: MICRO | K59: 1452000
B60: 11001 | C60: BOGOTÁ, D.C. | D60: 11 | E60: =VLOOKUP(D60,'[1]DIVIPOLA MPIO'!$B$5:$C$1128,2,0) -> BOGOTÁ, D.C. | F60: OTRAS ACTIVIDADES DE SERVICIOS | G60: 9601 | H60: S | I60: Natural | J60: MICRO | K60: 907500
B61: 17001 | C61: MANIZALES | D61: 17 | E61: =VLOOKUP(D61,'[1]DIVIPOLA MPIO'!$B$5:$C$1128,2,0) -> CALDAS | F61: INDUSTRIAS MANUFACTURERAS | G61: 2396 | H61: C | I61: Natural | J61: MICRO | K61: 1815000
B62: 11001 | C62: BOGOTÁ, D.C. | D62: 11 | E62: =VLOOKUP(D62,'[1]DIVIPOLA MPIO'!$B$5:$C$1128,2,0) -> BOGOTÁ, D.C. | F62: COMERCIO AL POR MAYOR Y AL POR MENOR; REPARACIÓN DE VEHÍCULOS AUTOMOTORES Y MOTOCICLETAS | G62: 4751 | H62: G | I62: Natural | J62: MICRO | K62: 1815000
B63: 76001 | C63: CALI | D63: 76 | E63: =VLOOKUP(D63,'[1]DIVIPOLA MPIO'!$B$5:$C$1128,2,0) -> VALLE DEL CAUCA | F63: ACTIVIDADES PROFESIONALES, CIENTÍFICAS Y TÉCNICAS | G63: 7500 | H63: M | I63: Natural | J63: MICRO | K63: 2722500
B64: 15759 | C64: SOGAMOSO | D64: 15 | E64: =VLOOKUP(D64,'[1]DIVIPOLA MPIO'!$B$5:$C$1128,2,0) -> BOYACÁ | F64: INDUSTRIAS MANUFACTURERAS | G64: 1081 | H64: C | I64: Natural | J64: MICRO | K64: 3267000
B65: 11001 | C65: BOGOTÁ, D.C. | D65: 11 | E65: =VLOOKUP(D65,'[1]DIVIPOLA MPIO'!$B$5:$C$1128,2,0) -> BOGOTÁ, D.C. | F65: TRANSPORTE Y ALMACENAMIENTO | G65: 4923 | H65: H | I65: Natural | J65: MICRO | K65: 726000
B66: 66001 | C66: PEREIRA | D66: 66 | E66: =VLOOKUP(D66,'[1]DIVIPOLA MPIO'!$B$5:$C$1128,2,0) -> RISARALDA | F66: OTRAS ACTIVIDADES DE SERVICIOS | G66: 9602 | H66: S | I66: Natural | J66: MICRO | K66: 726000
B67: 11001 | C67: BOGOTÁ, D.C. | D67: 11 | E67: =VLOOKUP(D67,'[1]DIVIPOLA MPIO'!$B$5:$C$1128,2,0) -> BOGOTÁ, D.C. | F67: ALOJAMIENTO Y SERVICIOS DE COMIDA | G67: 5611 | H67: I | I67: Natural | J67: PEQUEÑA | K67: 3085500
B68: 17001 | C68: MANIZALES | D68: 17 | E68: =VLOOKUP(D68,'[1]DIVIPOLA MPIO'!$B$5:$C$1128,2,0) -> CALDAS | F68: ALOJAMIENTO Y SERVICIOS DE COMIDA | G68: 5613 | H68: I | I68: Natural | J68: MICRO | K68: 1452000
B69: 17001 | C69: MANIZALES | D69: 17 | E69: =VLOOKUP(D69,'[1]DIVIPOLA MPIO'!$B$5:$C$1128,2,0) -> CALDAS | F69: AGRICULTURA, GANADERÍA, CAZA, SILVICULTURA Y PESCA | G69: 150 | H69: A | I69: Natural | J69: MICRO | K69: 363000
B70: 17001 | C70: MANIZALES | D70: 17 | E70: =VLOOKUP(D70,'[1]DIVIPOLA MPIO'!$B$5:$C$1128,2,0) -> CALDAS | F70: INDUSTRIAS MANUFACTURERAS | G70: 1523 | H70: C | I70: Natural | J70: MEDIANA | K70: 5263500
B71: 17001 | C71: MANIZALES | D71: 17 | E71: =VLOOKUP(D71,'[1]DIVIPOLA MPIO'!$B$5:$C$1128,2,0) -> CALDAS | F71: COMERCIO AL POR MAYOR Y AL POR MENOR; REPARACIÓN DE VEHÍCULOS AUTOMOTORES Y MOTOCICLETAS | G71: 4719 | H71: G | I71: Natural | J71: MICRO | K71: 2359500
B72: 17001 | C72: MANIZALES | D72: 17 | E72: =VLOOKUP(D72,'[1]DIVIPOLA MPIO'!$B$5:$C$1128,2,0) -> CALDAS | F72: CONSTRUCCIÓN | G72: 4330 | H72: F | I72: Natural | J72: MICRO | K72: 726000
B73: 17001 | C73: MANIZALES | D73: 17 | E73: =VLOOKUP(D73,'[1]DIVIPOLA MPIO'!$B$5:$C$1128,2,0) -> CALDAS | F73: COMERCIO AL POR MAYOR Y AL POR MENOR; REPARACIÓN DE VEHÍCULOS AUTOMOTORES Y MOTOCICLETAS | G73: 4723 | H73: G | I73: Natural | J73: MICRO | K73: 1815000
B74: 19001 | C74: POPAYÁN | D74: 19 | E74: =VLOOKUP(D74,'[1]DIVIPOLA MPIO'!$B$5:$C$1128,2,0) -> CAUCA | F74: COMERCIO AL POR MAYOR Y AL POR MENOR; REPARACIÓN DE VEHÍCULOS AUTOMOTORES Y MOTOCICLETAS | G74: 4762 | H74: G | I74: Natural | J74: MICRO | K74: 544500
B75: 11001 | C75: BOGOTÁ, D.C. | D75: 11 | E75: =VLOOKUP(D75,'[1]DIVIPOLA MPIO'!$B$5:$C$1128,2,0) -> BOGOTÁ, D.C. | F75: INDUSTRIAS MANUFACTURERAS | G75: 1081 | H75: C | I75: Natural | J75: MICRO | K75: 1089000
B76: 68001 | C76: BUCARAMANGA | D76: 68 | E76: =VLOOKUP(D76,'[1]DIVIPOLA MPIO'!$B$5:$C$1128,2,0) -> SANTANDER | F76: INDUSTRIAS MANUFACTURERAS | G76: 2511 | H76: C | I76: Natural | J76: MICRO | K76: 726000
B77: 11001 | C77: BOGOTÁ, D.C. | D77: 11 | E77: =VLOOKUP(D77,'[1]DIVIPOLA MPIO'!$B$5:$C$1128,2,0) -> BOGOTÁ, D.C. | F77: ALOJAMIENTO Y SERVICIOS DE COMIDA | G77: 5613 | H77: I | I77: Natural | J77: MICRO | K77: 1633500
B78: 5001 | C78: MEDELLÍN | D78: 5 | E78: =VLOOKUP(D78,'[1]DIVIPOLA MPIO'!$B$5:$C$1128,2,0) -> ANTIOQUIA | F78: COMERCIO AL POR MAYOR Y AL POR MENOR; REPARACIÓN DE VEHÍCULOS AUTOMOTORES Y MOTOCICLETAS | G78: 4711 | H78: G | I78: Natural | J78: MICRO | K78: 1815000
B79: 50683 | C79: SAN JUAN DE ARAMA | D79: 50 | E79: =VLOOKUP(D79,'[1]DIVIPOLA MPIO'!$B$5:$C$1128,2,0) -> META | F79: COMERCIO AL POR MAYOR Y AL POR MENOR; REPARACIÓN DE VEHÍCULOS AUTOMOTORES Y MOTOCICLETAS | G79: 4731 | H79: G | I79: Natural | J79: MICRO | K79: 1633500
B80: 11001 | C80: BOGOTÁ, D.C. | D80: 11 | E80: =VLOOKUP(D80,'[1]DIVIPOLA MPIO'!$B$5:$C$1128,2,0) -> BOGOTÁ, D.C. | F80: COMERCIO AL POR MAYOR Y AL POR MENOR; REPARACIÓN DE VEHÍCULOS AUTOMOTORES Y MOTOCICLETAS | G80: 4774 | H80: G | I80: Natural | J80: MICRO | K80: 1633500
B81: 11001 | C81: BOGOTÁ, D.C. | D81: 11 | E81: =VLOOKUP(D81,'[1]DIVIPOLA MPIO'!$B$5:$C$1128,2,0) -> BOGOTÁ, D.C. | F81: COMERCIO AL POR MAYOR Y AL POR MENOR; REPARACIÓN DE VEHÍCULOS AUTOMOTORES Y MOTOCICLETAS | G81: 4774 | H81: G | I81: Natural | J81: MICRO | K81: 907500
B82: 5088 | C82: BELLO | D82: 5 | E82: =VLOOKUP(D82,'[1]DIVIPOLA MPIO'!$B$5:$C$1128,2,0) -> ANTIOQUIA | F82: ACTIVIDADES PROFESIONALES, CIENTÍFICAS Y TÉCNICAS | G82: 6920 | H82: M | I82: Natural | J82: MICRO | K82: 726000
B83: 25754 | C83: SOACHA | D83: 25 | E83: =VLOOKUP(D83,'[1]DIVIPOLA MPIO'!$B$5:$C$1128,2,0) -> CUNDINAMARCA | F83: TRANSPORTE Y ALMACENAMIENTO | G83: 4923 | H83: H | I83: Natural | J83: MICRO | K83: 363000
B84: 5101 | C84: CIUDAD BOLÍVAR | D84: 5 | E84: =VLOOKUP(D84,'[1]DIVIPOLA MPIO'!$B$5:$C$1128,2,0) -> ANTIOQUIA | F84: TRANSPORTE Y ALMACENAMIENTO | G84: 4923 | H84: H | I84: Natural | J84: MICRO | K84: 1089000
B85: 5001 | C85: MEDELLÍN | D85: 5 | E85: =VLOOKUP(D85,'[1]DIVIPOLA MPIO'!$B$5:$C$1128,2,0) -> ANTIOQUIA | F85: ALOJAMIENTO Y SERVICIOS DE COMIDA | G85: 5611 | H85: I | I85: Natural | J85: PEQUEÑA | K85: 3085500
B86: 5001 | C86: MEDELLÍN | D86: 5 | E86: =VLOOKUP(D86,'[1]DIVIPOLA MPIO'!$B$5:$C$1128,2,0) -> ANTIOQUIA | F86: ALOJAMIENTO Y SERVICIOS DE COMIDA | G86: 5611 | H86: I | I86: Natural | J86: PEQUEÑA | K86: 2178000
B87: 5001 | C87: MEDELLÍN | D87: 5 | E87: =VLOOKUP(D87,'[1]DIVIPOLA MPIO'!$B$5:$C$1128,2,0) -> ANTIOQUIA | F87: ALOJAMIENTO Y SERVICIOS DE COMIDA | G87: 5511 | H87: I | I87: Natural | J87: MICRO | K87: 2541000
B88: 5001 | C88: MEDELLÍN | D88: 5 | E88: =VLOOKUP(D88,'[1]DIVIPOLA MPIO'!$B$5:$C$1128,2,0) -> ANTIOQUIA | F88: ALOJAMIENTO Y SERVICIOS DE COMIDA | G88: 5611 | H88: I | I88: Natural | J88: MICRO | K88: 1452000
B89: 5615 | C89: RIONEGRO | D89: 5 | E89: =VLOOKUP(D89,'[1]DIVIPOLA MPIO'!$B$5:$C$1128,2,0) -> ANTIOQUIA | F89: COMERCIO AL POR MAYOR Y AL POR MENOR; REPARACIÓN DE VEHÍCULOS AUTOMOTORES Y MOTOCICLETAS | G89: 4620 | H89: G | I89: Natural | J89: MICRO | K89: 2178000
B90: 5364 | C90: JARDÍN | D90: 5 | E90: =VLOOKUP(D90,'[1]DIVIPOLA MPIO'!$B$5:$C$1128,2,0) -> ANTIOQUIA | F90: ALOJAMIENTO Y SERVICIOS DE COMIDA | G90: 5613 | H90: I | I90: Natural | J90: MICRO | K90: 3085500
B91: 5237 | C91: DON MATÍAS | D91: 5 | E91: =VLOOKUP(D91,'[1]DIVIPOLA MPIO'!$B$5:$C$1128,2,0) -> ANTIOQUIA | F91: ALOJAMIENTO Y SERVICIOS DE COMIDA | G91: 5619 | H91: I | I91: Natural | J91: MICRO | K91: 1633500
B92: 5266 | C92: ENVIGADO | D92: 5 | E92: =VLOOKUP(D92,'[1]DIVIPOLA MPIO'!$B$5:$C$1128,2,0) -> ANTIOQUIA | F92: INDUSTRIAS MANUFACTURERAS | G92: 1811 | H92: C | I92: Natural | J92: MICRO | K92: 1089000
B93: 5001 | C93: MEDELLÍN | D93: 5 | E93: =VLOOKUP(D93,'[1]DIVIPOLA MPIO'!$B$5:$C$1128,2,0) -> ANTIOQUIA | F93: INDUSTRIAS MANUFACTURERAS | G93: 3210 | H93: C | I93: Natural | J93: MICRO | K93: 2904000
B94: 5001 | C94: MEDELLÍN | D94: 5 | E94: =VLOOKUP(D94,'[1]DIVIPOLA MPIO'!$B$5:$C$1128,2,0) -> ANTIOQUIA | F94: ALOJAMIENTO Y SERVICIOS DE COMIDA | G94: 5511 | H94: I | I94: Natural | J94: MICRO | K94: 1089000
B95: 5045 | C95: APARTADÓ | D95: 5 | E95: =VLOOKUP(D95,'[1]DIVIPOLA MPIO'!$B$5:$C$1128,2,0) -> ANTIOQUIA | F95: COMERCIO AL POR MAYOR Y AL POR MENOR; REPARACIÓN DE VEHÍCULOS AUTOMOTORES Y MOTOCICLETAS | G95: 4530 | H95: G | I95: Natural | J95: MICRO | K95: 1815000
B96: 5001 | C96: MEDELLÍN | D96: 5 | E96: =VLOOKUP(D96,'[1]DIVIPOLA MPIO'!$B$5:$C$1128,2,0) -> ANTIOQUIA | F96: COMERCIO AL POR MAYOR Y AL POR MENOR; REPARACIÓN DE VEHÍCULOS AUTOMOTORES Y MOTOCICLETAS | G96: 4530 | H96: G | I96: Natural | J96: MICRO | K96: 1089000
B97: 5579 | C97: PUERTO BERRÍO | D97: 5 | E97: =VLOOKUP(D97,'[1]DIVIPOLA MPIO'!$B$5:$C$1128,2,0) -> ANTIOQUIA | F97: ACTIVIDADES INMOBILIARIAS | G97: 6810 | H97: L | I97: Natural | J97: MICRO | K97: 1089000
B98: 5380 | C98: LA ESTRELLA | D98: 5 | E98: =VLOOKUP(D98,'[1]DIVIPOLA MPIO'!$B$5:$C$1128,2,0) -> ANTIOQUIA | F98: ALOJAMIENTO Y SERVICIOS DE COMIDA | G98: 5613 | H98: I | I98: Natural | J98: MICRO | K98: 3267000
B99: 8001 | C99: BARRANQUILLA | D99: 8 | E99: =VLOOKUP(D99,'[1]DIVIPOLA MPIO'!$B$5:$C$1128,2,0) -> ATLÁNTICO | F99: COMERCIO AL POR MAYOR Y AL POR MENOR; REPARACIÓN DE VEHÍCULOS AUTOMOTORES Y MOTOCICLETAS | G99: 4530 | H99: G | I99: Natural | J99: MICRO | K99: 544500
B100: 5001 | C100: MEDELLÍN | D100: 5 | E100: =VLOOKUP(D100,'[1]DIVIPOLA MPIO'!$B$5:$C$1128,2,0) -> ANTIOQUIA | F100: COMERCIO AL POR MAYOR Y AL POR MENOR; REPARACIÓN DE VEHÍCULOS AUTOMOTORES Y MOTOCICLETAS | G100: 4771 | H100: G | I100: Natural | J100: MICRO | K100: 907500
B101: 5001 | C101: MEDELLÍN | D101: 5 | E101: =VLOOKUP(D101,'[1]DIVIPOLA MPIO'!$B$5:$C$1128,2,0) -> ANTIOQUIA | F101: COMERCIO AL POR MAYOR Y AL POR MENOR; REPARACIÓN DE VEHÍCULOS AUTOMOTORES Y MOTOCICLETAS | G101: 4631 | H101: G | I101: Natural | J101: MICRO | K101: 363000
B102: 8758 | C102: SOLEDAD | D102: 8 | E102: =VLOOKUP(D102,'[1]DIVIPOLA MPIO'!$B$5:$C$1128,2,0) -> ATLÁNTICO | F102: COMERCIO AL POR MAYOR Y AL POR MENOR; REPARACIÓN DE VEHÍCULOS AUTOMOTORES Y MOTOCICLETAS | G102: 4723 | H102: G | I102: Natural | J102: PEQUEÑA | K102: 5445000
B103: 13001 | C103: CARTAGENA | D103: 13 | E103: =VLOOKUP(D103,'[1]DIVIPOLA MPIO'!$B$5:$C$1128,2,0) -> BOLÍVAR | F103: COMERCIO AL POR MAYOR Y AL POR MENOR; REPARACIÓN DE VEHÍCULOS AUTOMOTORES Y MOTOCICLETAS | G103: 4774 | H103: G | I103: Natural | J103: MICRO | K103: 1089000
B104: 13001 | C104: CARTAGENA | D104: 13 | E104: =VLOOKUP(D104,'[1]DIVIPOLA MPIO'!$B$5:$C$1128,2,0) -> BOLÍVAR | F104: COMERCIO AL POR MAYOR Y AL POR MENOR; REPARACIÓN DE VEHÍCULOS AUTOMOTORES Y MOTOCICLETAS | G104: 4799 | H104: G | I104: Natural | J104: MICRO | K104: 726000
B105: 19698 | C105: SANTANDER DE QUILICHAO | D105: 19 | E105: =VLOOKUP(D105,'[1]DIVIPOLA MPIO'!$B$5:$C$1128,2,0) -> CAUCA | F105: COMERCIO AL POR MAYOR Y AL POR MENOR; REPARACIÓN DE VEHÍCULOS AUTOMOTORES Y MOTOCICLETAS | G105: 4541 | H105: G | I105: Natural | J105: MICRO | K105: 907500
B106: 19698 | C106: SANTANDER DE QUILICHAO | D106: 19 | E106: =VLOOKUP(D106,'[1]DIVIPOLA MPIO'!$B$5:$C$1128,2,0) -> CAUCA | F106: INDUSTRIAS MANUFACTURERAS | G106: 1052 | H106: C | I106: Natural | J106: MICRO | K106: 1089000
B107: 19001 | C107: POPAYÁN | D107: 19 | E107: =VLOOKUP(D107,'[1]DIVIPOLA MPIO'!$B$5:$C$1128,2,0) -> CAUCA | F107: ALOJAMIENTO Y SERVICIOS DE COMIDA | G107: 5511 | H107: I | I107: Natural | J107: PEQUEÑA | K107: 6534000
B108: 19001 | C108: POPAYÁN | D108: 19 | E108: =VLOOKUP(D108,'[1]DIVIPOLA MPIO'!$B$5:$C$1128,2,0) -> CAUCA | F108: COMERCIO AL POR MAYOR Y AL POR MENOR; REPARACIÓN DE VEHÍCULOS AUTOMOTORES Y MOTOCICLETAS | G108: 4731 | H108: G | I108: Natural | J108: MICRO | K108: 2178000
B109: 15759 | C109: SOGAMOSO | D109: 15 | E109: =VLOOKUP(D109,'[1]DIVIPOLA MPIO'!$B$5:$C$1128,2,0) -> BOYACÁ | F109: TRANSPORTE Y ALMACENAMIENTO | G109: 4923 | H109: H | I109: Natural | J109: MICRO | K109: 363000
B110: 19001 | C110: POPAYÁN | D110: 19 | E110: =VLOOKUP(D110,'[1]DIVIPOLA MPIO'!$B$5:$C$1128,2,0) -> CAUCA | F110: ACTIVIDADES DE SERVICIOS ADMINISTRATIVOS Y DE APOYO | G110: 8219 | H110: N | I110: Natural | J110: MICRO | K110: 1815000
B111: 19001 | C111: POPAYÁN | D111: 19 | E111: =VLOOKUP(D111,'[1]DIVIPOLA MPIO'!$B$5:$C$1128,2,0) -> CAUCA | F111: ACTIVIDADES DE SERVICIOS ADMINISTRATIVOS Y DE APOYO | G111: 8020 | H111: N | I111: Natural | J111: MICRO | K111: 1089000
B112: 15238 | C112: DUITAMA | D112: 15 | E112: =VLOOKUP(D112,'[1]DIVIPOLA MPIO'!$B$5:$C$1128,2,0) -> BOYACÁ | F112: COMERCIO AL POR MAYOR Y AL POR MENOR; REPARACIÓN DE VEHÍCULOS AUTOMOTORES Y MOTOCICLETAS | G112: 4530 | H112: G | I112: Natural | J112: MICRO | K112: 907500
B113: 70001 | C113: SINCELEJO | D113: 70 | E113: =VLOOKUP(D113,'[1]DIVIPOLA MPIO'!$B$5:$C$1128,2,0) -> SUCRE | F113: INDUSTRIAS MANUFACTURERAS | G113: 1081 | H113: C | I113: Natural | J113: PEQUEÑA | K113: 3267000
B114: 19001 | C114: POPAYÁN | D114: 19 | E114: =VLOOKUP(D114,'[1]DIVIPOLA MPIO'!$B$5:$C$1128,2,0) -> CAUCA | F114: ALOJAMIENTO Y SERVICIOS DE COMIDA | G114: 5611 | H114: I | I114: Jurídica | J114: MICRO | K114: 3267000
B115: 17001 | C115: MANIZALES | D115: 17 | E115: =VLOOKUP(D115,'[1]DIVIPOLA MPIO'!$B$5:$C$1128,2,0) -> CALDAS | F115: ALOJAMIENTO Y SERVICIOS DE COMIDA | G115: 5613 | H115: I | I115: Natural | J115: PEQUEÑA | K115: 2178000
B116: 17174 | C116: CHINCHINÁ | D116: 17 | E116: =VLOOKUP(D116,'[1]DIVIPOLA MPIO'!$B$5:$C$1128,2,0) -> CALDAS | F116: COMERCIO AL POR MAYOR Y AL POR MENOR; REPARACIÓN DE VEHÍCULOS AUTOMOTORES Y MOTOCICLETAS | G116: 4761 | H116: G | I116: Natural | J116: MICRO | K116: 363000
B117: 19001 | C117: POPAYÁN | D117: 19 | E117: =VLOOKUP(D117,'[1]DIVIPOLA MPIO'!$B$5:$C$1128,2,0) -> CAUCA | F117: CONSTRUCCIÓN | G117: 4321 | H117: F | I117: Natural | J117: MICRO | K117: 1996500
B118: 68001 | C118: BUCARAMANGA | D118: 68 | E118: =VLOOKUP(D118,'[1]DIVIPOLA MPIO'!$B$5:$C$1128,2,0) -> SANTANDER | F118: INDUSTRIAS MANUFACTURERAS | G118: 1921 | H118: C | I118: Natural | J118: MICRO | K118: 1452000
B119: 19001 | C119: POPAYÁN | D119: 19 | E119: =VLOOKUP(D119,'[1]DIVIPOLA MPIO'!$B$5:$C$1128,2,0) -> CAUCA | F119: COMERCIO AL POR MAYOR Y AL POR MENOR; REPARACIÓN DE VEHÍCULOS AUTOMOTORES Y MOTOCICLETAS | G119: 4752 | H119: G | I119: Natural | J119: MICRO | K119: 1089000
B120: 19001 | C120: POPAYÁN | D120: 19 | E120: =VLOOKUP(D120,'[1]DIVIPOLA MPIO'!$B$5:$C$1128,2,0) -> CAUCA | F120: COMERCIO AL POR MAYOR Y AL POR MENOR; REPARACIÓN DE VEHÍCULOS AUTOMOTORES Y MOTOCICLETAS | G120: 4663 | H120: G | I120: Natural | J120: MICRO | K120: 1815000
B121: 50001 | C121: VILLAVICENCIO | D121: 50 | E121: =VLOOKUP(D121,'[1]DIVIPOLA MPIO'!$B$5:$C$1128,2,0) -> META | F121: ACTIVIDADES PROFESIONALES, CIENTÍFICAS Y TÉCNICAS | G121: 7500 | H121: M | I121: Natural | J121: MICRO | K121: 3267000
B122: 76001 | C122: CALI | D122: 76 | E122: =VLOOKUP(D122,'[1]DIVIPOLA MPIO'!$B$5:$C$1128,2,0) -> VALLE DEL CAUCA | F122: CONSTRUCCIÓN | G122: 4111 | H122: F | I122: Natural | J122: MICRO | K122: 1452000
B123: 19001 | C123: POPAYÁN | D123: 19 | E123: =VLOOKUP(D123,'[1]DIVIPOLA MPIO'!$B$5:$C$1128,2,0) -> CAUCA | F123: COMERCIO AL POR MAYOR Y AL POR MENOR; REPARACIÓN DE VEHÍCULOS AUTOMOTORES Y MOTOCICLETAS | G123: 4620 | H123: G | I123: Natural | J123: MICRO | K123: 726000
B124: 19001 | C124: POPAYÁN | D124: 19 | E124: =VLOOKUP(D124,'[1]DIVIPOLA MPIO'!$B$5:$C$1128,2,0) -> CAUCA | F124: COMERCIO AL POR MAYOR Y AL POR MENOR; REPARACIÓN DE VEHÍCULOS AUTOMOTORES Y MOTOCICLETAS | G124: 4773 | H124: G | I124: Natural | J124: PEQUEÑA | K124: 1815000
B125: 19001 | C125: POPAYÁN | D125: 19 | E125: =VLOOKUP(D125,'[1]DIVIPOLA MPIO'!$B$5:$C$1128,2,0) -> CAUCA | F125: ALOJAMIENTO Y SERVICIOS DE COMIDA | G125: 5511 | H125: I | I125: Natural | J125: MICRO | K125: 726000
B126: 76001 | C126: CALI | D126: 76 | E126: =VLOOKUP(D126,'[1]DIVIPOLA MPIO'!$B$5:$C$1128,2,0) -> VALLE DEL CAUCA | F126: COMERCIO AL POR MAYOR Y AL POR MENOR; REPARACIÓN DE VEHÍCULOS AUTOMOTORES Y MOTOCICLETAS | G126: 4530 | H126: G | I126: Natural | J126: MICRO | K126: 1089000
B127: 23675 | C127: SAN BERNARDO DEL VIENTO | D127: 23 | E127: =VLOOKUP(D127,'[1]DIVIPOLA MPIO'!$B$5:$C$1128,2,0) -> CÓRDOBA | F127: COMERCIO AL POR MAYOR Y AL POR MENOR; REPARACIÓN DE VEHÍCULOS AUTOMOTORES Y MOTOCICLETAS | G127: 4711 | H127: G | I127: Natural | J127: PEQUEÑA | K127: 4356000
B128: 5001 | C128: MEDELLÍN | D128: 5 | E128: =VLOOKUP(D128,'[1]DIVIPOLA MPIO'!$B$5:$C$1128,2,0) -> ANTIOQUIA | F128: COMERCIO AL POR MAYOR Y AL POR MENOR; REPARACIÓN DE VEHÍCULOS AUTOMOTORES Y MOTOCICLETAS | G128: 4649 | H128: G | I128: Natural | J128: MICRO | K128: 1452000
B129: 23001 | C129: MONTERÍA | D129: 23 | E129: =VLOOKUP(D129,'[1]DIVIPOLA MPIO'!$B$5:$C$1128,2,0) -> CÓRDOBA | F129: ALOJAMIENTO Y SERVICIOS DE COMIDA | G129: 5619 | H129: I | I129: Jurídica | J129: MICRO | K129: 1452000
B130: 68001 | C130: BUCARAMANGA | D130: 68 | E130: =VLOOKUP(D130,'[1]DIVIPOLA MPIO'!$B$5:$C$1128,2,0) -> SANTANDER | F130: ALOJAMIENTO Y SERVICIOS DE COMIDA | G130: 5611 | H130: I | I130: Natural | J130: PEQUEÑA | K130: 3993000
B131: 5001 | C131: MEDELLÍN | D131: 5 | E131: =VLOOKUP(D131,'[1]DIVIPOLA MPIO'!$B$5:$C$1128,2,0) -> ANTIOQUIA | F131: CONSTRUCCIÓN | G131: 4111 | H131: F | I131: Natural | J131: MEDIANA | K131: 18876000
B132: 23417 | C132: LORICA | D132: 23 | E132: =VLOOKUP(D132,'[1]DIVIPOLA MPIO'!$B$5:$C$1128,2,0) -> CÓRDOBA | F132: COMERCIO AL POR MAYOR Y AL POR MENOR; REPARACIÓN DE VEHÍCULOS AUTOMOTORES Y MOTOCICLETAS | G132: 4751 | H132: G | I132: Natural | J132: MICRO | K132: 2178000
B133: 5266 | C133: ENVIGADO | D133: 5 | E133: =VLOOKUP(D133,'[1]DIVIPOLA MPIO'!$B$5:$C$1128,2,0) -> ANTIOQUIA | F133: COMERCIO AL POR MAYOR Y AL POR MENOR; REPARACIÓN DE VEHÍCULOS AUTOMOTORES Y MOTOCICLETAS | G133: 4741 | H133: G | I133: Natural | J133: MICRO | K133: 907500
B134: 25754 | C134: SOACHA | D134: 25 | E134: =VLOOKUP(D134,'[1]DIVIPOLA MPIO'!$B$5:$C$1128,2,0) -> CUNDINAMARCA | F134: COMERCIO AL POR MAYOR Y AL POR MENOR; REPARACIÓN DE VEHÍCULOS AUTOMOTORES Y MOTOCICLETAS | G134: 4774 | H134: G | I134: Natural | J134: MICRO | K134: 726000
B135: 19001 | C135: POPAYÁN | D135: 19 | E135: =VLOOKUP(D135,'[1]DIVIPOLA MPIO'!$B$5:$C$1128,2,0) -> CAUCA | F135: COMERCIO AL POR MAYOR Y AL POR MENOR; REPARACIÓN DE VEHÍCULOS AUTOMOTORES Y MOTOCICLETAS | G135: 4719 | H135: G | I135: Jurídica | J135: MICRO | K135: 907500
B136: 41001 | C136: NEIVA | D136: 41 | E136: =VLOOKUP(D136,'[1]DIVIPOLA MPIO'!$B$5:$C$1128,2,0) -> HUILA | F136: COMERCIO AL POR MAYOR Y AL POR MENOR; REPARACIÓN DE VEHÍCULOS AUTOMOTORES Y MOTOCICLETAS | G136: 4755 | H136: G | I136: Natural | J136: MICRO | K136: 363000
B137: 25307 | C137: GIRARDOT | D137: 25 | E137: =VLOOKUP(D137,'[1]DIVIPOLA MPIO'!$B$5:$C$1128,2,0) -> CUNDINAMARCA | F137: ALOJAMIENTO Y SERVICIOS DE COMIDA | G137: 5611 | H137: I | I137: Natural | J137: MICRO | K137: 907500
B138: 41001 | C138: NEIVA | D138: 41 | E138: =VLOOKUP(D138,'[1]DIVIPOLA MPIO'!$B$5:$C$1128,2,0) -> HUILA | F138: COMERCIO AL POR MAYOR Y AL POR MENOR; REPARACIÓN DE VEHÍCULOS AUTOMOTORES Y MOTOCICLETAS | G138: 4732 | H138: G | I138: Natural | J138: PEQUEÑA | K138: 1452000
B139: 41001 | C139: NEIVA | D139: 41 | E139: =VLOOKUP(D139,'[1]DIVIPOLA MPIO'!$B$5:$C$1128,2,0) -> HUILA | F139: TRANSPORTE Y ALMACENAMIENTO | G139: 4923 | H139: H | I139: Natural | J139: MICRO | K139: 363000
B140: 41001 | C140: NEIVA | D140: 41 | E140: =VLOOKUP(D140,'[1]DIVIPOLA MPIO'!$B$5:$C$1128,2,0) -> HUILA | F140: INDUSTRIAS MANUFACTURERAS | G140: 3120 | H140: C | I140: Natural | J140: MICRO | K140: 726000
B141: 66001 | C141: PEREIRA | D141: 66 | E141: =VLOOKUP(D141,'[1]DIVIPOLA MPIO'!$B$5:$C$1128,2,0) -> RISARALDA | F141: INDUSTRIAS MANUFACTURERAS | G141: 1410 | H141: C | I141: Natural | J141: MICRO | K141: 2904000
B142: 41396 | C142: LA PLATA | D142: 41 | E142: =VLOOKUP(D142,'[1]DIVIPOLA MPIO'!$B$5:$C$1128,2,0) -> HUILA | F142: ACTIVIDADES PROFESIONALES, CIENTÍFICAS Y TÉCNICAS | G142: 6920 | H142: M | I142: Natural | J142: MICRO | K142: 1089000
B143: 41001 | C143: NEIVA | D143: 41 | E143: =VLOOKUP(D143,'[1]DIVIPOLA MPIO'!$B$5:$C$1128,2,0) -> HUILA | F143: INDUSTRIAS MANUFACTURERAS | G143: 1081 | H143: C | I143: Natural | J143: MICRO | K143: 1815000
B144: 52001 | C144: PASTO | D144: 52 | E144: =VLOOKUP(D144,'[1]DIVIPOLA MPIO'!$B$5:$C$1128,2,0) -> NARIÑO | F144: COMERCIO AL POR MAYOR Y AL POR MENOR; REPARACIÓN DE VEHÍCULOS AUTOMOTORES Y MOTOCICLETAS | G144: 4799 | H144: G | I144: Natural | J144: MICRO | K144: 1089000
B145: 52001 | C145: PASTO | D145: 52 | E145: =VLOOKUP(D145,'[1]DIVIPOLA MPIO'!$B$5:$C$1128,2,0) -> NARIÑO | F145: COMERCIO AL POR MAYOR Y AL POR MENOR; REPARACIÓN DE VEHÍCULOS AUTOMOTORES Y MOTOCICLETAS | G145: 4729 | H145: G | I145: Natural | J145: MICRO | K145: 1815000
B146: 52399 | C146: LA UNIÓN | D146: 52 | E146: =VLOOKUP(D146,'[1]DIVIPOLA MPIO'!$B$5:$C$1128,2,0) -> NARIÑO | F146: EDUCACIÓN | G146: 8559 | H146: P | I146: Natural | J146: MICRO | K146: 1452000
B147: 52356 | C147: IPIALES | D147: 52 | E147: =VLOOKUP(D147,'[1]DIVIPOLA MPIO'!$B$5:$C$1128,2,0) -> NARIÑO | F147: COMERCIO AL POR MAYOR Y AL POR MENOR; REPARACIÓN DE VEHÍCULOS AUTOMOTORES Y MOTOCICLETAS | G147: 4771 | H147: G | I147: Natural | J147: MICRO | K147: 726000
B148: 52838 | C148: TÚQUERRES | D148: 52 | E148: =VLOOKUP(D148,'[1]DIVIPOLA MPIO'!$B$5:$C$1128,2,0) -> NARIÑO | F148: ALOJAMIENTO Y SERVICIOS DE COMIDA | G148: 5611 | H148: I | I148: Natural | J148: MICRO | K148: 1452000
B149: 76306 | C149: GINEBRA | D149: 76 | E149: =VLOOKUP(D149,'[1]DIVIPOLA MPIO'!$B$5:$C$1128,2,0) -> VALLE DEL CAUCA | F149: COMERCIO AL POR MAYOR Y AL POR MENOR; REPARACIÓN DE VEHÍCULOS AUTOMOTORES Y MOTOCICLETAS | G149: 4731 | H149: G | I149: Natural | J149: MICRO | K149: 1452000
B150: 76001 | C150: CALI | D150: 76 | E150: =VLOOKUP(D150,'[1]DIVIPOLA MPIO'!$B$5:$C$1128,2,0) -> VALLE DEL CAUCA | F150: TRANSPORTE Y ALMACENAMIENTO | G150: 4923 | H150: H | I150: Natural | J150: MICRO | K150: 726000
B151: 52838 | C151: TÚQUERRES | D151: 52 | E151: =VLOOKUP(D151,'[1]DIVIPOLA MPIO'!$B$5:$C$1128,2,0) -> NARIÑO | F151: COMERCIO AL POR MAYOR Y AL POR MENOR; REPARACIÓN DE VEHÍCULOS AUTOMOTORES Y MOTOCICLETAS | G151: 4664 | H151: G | I151: Natural | J151: MICRO | K151: 2178000
B152: 66170 | C152: DOSQUEBRADAS | D152: 66 | E152: =VLOOKUP(D152,'[1]DIVIPOLA MPIO'!$B$5:$C$1128,2,0) -> RISARALDA | F152: COMERCIO AL POR MAYOR Y AL POR MENOR; REPARACIÓN DE VEHÍCULOS AUTOMOTORES Y MOTOCICLETAS | G152: 4741 | H152: G | I152: Natural | J152: MICRO | K152: 726000
B153: 66170 | C153: DOSQUEBRADAS | D153: 66 | E153: =VLOOKUP(D153,'[1]DIVIPOLA MPIO'!$B$5:$C$1128,2,0) -> RISARALDA | F153: INDUSTRIAS MANUFACTURERAS | G153: 1410 | H153: C | I153: Natural | J153: MICRO | K153: 3267000
B154: 19001 | C154: POPAYÁN | D154: 19 | E154: =VLOOKUP(D154,'[1]DIVIPOLA MPIO'!$B$5:$C$1128,2,0) -> CAUCA | F154: ACTIVIDADES DE ATENCIÓN DE LA SALUD HUMANA Y DE ASISTENCIA SOCIAL | G154: 8692 | H154: Q | I154: Natural | J154: MICRO | K154: 544500
B155: 17001 | C155: MANIZALES | D155: 17 | E155: =VLOOKUP(D155,'[1]DIVIPOLA MPIO'!$B$5:$C$1128,2,0) -> CALDAS | F155: ALOJAMIENTO Y SERVICIOS DE COMIDA | G155: 5611 | H155: I | I155: Natural | J155: PEQUEÑA | K155: 8712000
B156: 19001 | C156: POPAYÁN | D156: 19 | E156: =VLOOKUP(D156,'[1]DIVIPOLA MPIO'!$B$5:$C$1128,2,0) -> CAUCA | F156: ALOJAMIENTO Y SERVICIOS DE COMIDA | G156: 5611 | H156: I | I156: Natural | J156: MICRO | K156: 363000
B157: 66001 | C157: PEREIRA | D157: 66 | E157: =VLOOKUP(D157,'[1]DIVIPOLA MPIO'!$B$5:$C$1128,2,0) -> RISARALDA | F157: ALOJAMIENTO Y SERVICIOS DE COMIDA | G157: 5511 | H157: I | I157: Natural | J157: MICRO | K157: 1089000
B158: 66001 | C158: PEREIRA | D158: 66 | E158: =VLOOKUP(D158,'[1]DIVIPOLA MPIO'!$B$5:$C$1128,2,0) -> RISARALDA | F158: ALOJAMIENTO Y SERVICIOS DE COMIDA | G158: 5611 | H158: I | I158: Natural | J158: MICRO | K158: 907500
B159: 66001 | C159: PEREIRA | D159: 66 | E159: =VLOOKUP(D159,'[1]DIVIPOLA MPIO'!$B$5:$C$1128,2,0) -> RISARALDA | F159: ALOJAMIENTO Y SERVICIOS DE COMIDA | G159: 5613 | H159: I | I159: Natural | J159: MICRO | K159: 1452000
B160: 54405 | C160: LOS PATIOS | D160: 54 | E160: =VLOOKUP(D160,'[1]DIVIPOLA MPIO'!$B$5:$C$1128,2,0) -> NORTE DE SANTANDER | F160: COMERCIO AL POR MAYOR Y AL POR MENOR; REPARACIÓN DE VEHÍCULOS AUTOMOTORES Y MOTOCICLETAS | G160: 4711 | H160: G | I160: Natural | J160: MICRO | K160: 726000
B161: 66170 | C161: DOSQUEBRADAS | D161: 66 | E161: =VLOOKUP(D161,'[1]DIVIPOLA MPIO'!$B$5:$C$1128,2,0) -> RISARALDA | F161: ALOJAMIENTO Y SERVICIOS DE COMIDA | G161: 5611 | H161: I | I161: Natural | J161: MICRO | K161: 726000
B162: 54405 | C162: LOS PATIOS | D162: 54 | E162: =VLOOKUP(D162,'[1]DIVIPOLA MPIO'!$B$5:$C$1128,2,0) -> NORTE DE SANTANDER | F162: INDUSTRIAS MANUFACTURERAS | G162: 1040 | H162: C | I162: Natural | J162: MICRO | K162: 1452000
B163: 63001 | C163: ARMENIA | D163: 63 | E163: =VLOOKUP(D163,'[1]DIVIPOLA MPIO'!$B$5:$C$1128,2,0) -> QUINDÍO | F163: ACTIVIDADES PROFESIONALES, CIENTÍFICAS Y TÉCNICAS | G163: 7020 | H163: M | I163: Natural | J163: MICRO | K163: 1815000
B164: 63001 | C164: ARMENIA | D164: 63 | E164: =VLOOKUP(D164,'[1]DIVIPOLA MPIO'!$B$5:$C$1128,2,0) -> QUINDÍO | F164: COMERCIO AL POR MAYOR Y AL POR MENOR; REPARACIÓN DE VEHÍCULOS AUTOMOTORES Y MOTOCICLETAS | G164: 4752 | H164: G | I164: Natural | J164: MICRO | K164: 726000
B165: 63401 | C165: LA TEBAIDA | D165: 63 | E165: =VLOOKUP(D165,'[1]DIVIPOLA MPIO'!$B$5:$C$1128,2,0) -> QUINDÍO | F165: ALOJAMIENTO Y SERVICIOS DE COMIDA | G165: 5611 | H165: I | I165: Natural | J165: MICRO | K165: 1089000
B166: 63001 | C166: ARMENIA | D166: 63 | E166: =VLOOKUP(D166,'[1]DIVIPOLA MPIO'!$B$5:$C$1128,2,0) -> QUINDÍO | F166: INDUSTRIAS MANUFACTURERAS | G166: 3110 | H166: C | I166: Natural | J166: MICRO | K166: 726000
B167: 11001 | C167: BOGOTÁ, D.C. | D167: 11 | E167: =VLOOKUP(D167,'[1]DIVIPOLA MPIO'!$B$5:$C$1128,2,0) -> BOGOTÁ, D.C. | F167: TRANSPORTE Y ALMACENAMIENTO | G167: 4923 | H167: H | I167: Natural | J167: MICRO | K167: 363000
B168: 68001 | C168: BUCARAMANGA | D168: 68 | E168: =VLOOKUP(D168,'[1]DIVIPOLA MPIO'!$B$5:$C$1128,2,0) -> SANTANDER | F168: INDUSTRIAS MANUFACTURERAS | G168: 2511 | H168: C | I168: Natural | J168: MICRO | K168: 726000
B169: 68081 | C169: BARRANCABERMEJA | D169: 68 | E169: =VLOOKUP(D169,'[1]DIVIPOLA MPIO'!$B$5:$C$1128,2,0) -> SANTANDER | F169: TRANSPORTE Y ALMACENAMIENTO | G169: 4923 | H169: H | I169: Natural | J169: MICRO | K169: 544500
B170: 68081 | C170: BARRANCABERMEJA | D170: 68 | E170: =VLOOKUP(D170,'[1]DIVIPOLA MPIO'!$B$5:$C$1128,2,0) -> SANTANDER | F170: COMERCIO AL POR MAYOR Y AL POR MENOR; REPARACIÓN DE VEHÍCULOS AUTOMOTORES Y MOTOCICLETAS | G170: 4520 | H170: G | I170: Natural | J170: MICRO | K170: 1452000
B171: 68001 | C171: BUCARAMANGA | D171: 68 | E171: =VLOOKUP(D171,'[1]DIVIPOLA MPIO'!$B$5:$C$1128,2,0) -> SANTANDER | F171: TRANSPORTE Y ALMACENAMIENTO | G171: 4922 | H171: H | I171: Natural | J171: MICRO | K171: 2178000
B172: 68001 | C172: BUCARAMANGA | D172: 68 | E172: =VLOOKUP(D172,'[1]DIVIPOLA MPIO'!$B$5:$C$1128,2,0) -> SANTANDER | F172: INDUSTRIAS MANUFACTURERAS | G172: 1410 | H172: C | I172: Natural | J172: PEQUEÑA | K172: 1089000
B173: 68001 | C173: BUCARAMANGA | D173: 68 | E173: =VLOOKUP(D173,'[1]DIVIPOLA MPIO'!$B$5:$C$1128,2,0) -> SANTANDER | F173: AGRICULTURA, GANADERÍA, CAZA, SILVICULTURA Y PESCA | G173: 126 | H173: A | I173: Natural | J173: MICRO | K173: 1089000
B174: 68001 | C174: BUCARAMANGA | D174: 68 | E174: =VLOOKUP(D174,'[1]DIVIPOLA MPIO'!$B$5:$C$1128,2,0) -> SANTANDER | F174: ALOJAMIENTO Y SERVICIOS DE COMIDA | G174: 5613 | H174: I | I174: Natural | J174: MICRO | K174: 1452000
B175: 68081 | C175: BARRANCABERMEJA | D175: 68 | E175: =VLOOKUP(D175,'[1]DIVIPOLA MPIO'!$B$5:$C$1128,2,0) -> SANTANDER | F175: INDUSTRIAS MANUFACTURERAS | G175: 1610 | H175: C | I175: Natural | J175: MICRO | K175: 2178000
B176: 11001 | C176: BOGOTÁ, D.C. | D176: 11 | E176: =VLOOKUP(D176,'[1]DIVIPOLA MPIO'!$B$5:$C$1128,2,0) -> BOGOTÁ, D.C. | F176: TRANSPORTE Y ALMACENAMIENTO | G176: 4923 | H176: H | I176: Natural | J176: MICRO | K176: 726000
B177: 68861 | C177: VÉLEZ | D177: 68 | E177: =VLOOKUP(D177,'[1]DIVIPOLA MPIO'!$B$5:$C$1128,2,0) -> SANTANDER | F177: INDUSTRIAS MANUFACTURERAS | G177: 1089 | H177: C | I177: Natural | J177: PEQUEÑA | K177: 3811500
B178: 70001 | C178: SINCELEJO | D178: 70 | E178: =VLOOKUP(D178,'[1]DIVIPOLA MPIO'!$B$5:$C$1128,2,0) -> SUCRE | F178: ACTIVIDADES PROFESIONALES, CIENTÍFICAS Y TÉCNICAS | G178: 6910 | H178: M | I178: Natural | J178: PEQUEÑA | K178: 9438000
B179: 73001 | C179: IBAGUÉ | D179: 73 | E179: =VLOOKUP(D179,'[1]DIVIPOLA MPIO'!$B$5:$C$1128,2,0) -> TOLIMA | F179: TRANSPORTE Y ALMACENAMIENTO | G179: 4923 | H179: H | I179: Natural | J179: MICRO | K179: 1089000
B180: 73001 | C180: IBAGUÉ | D180: 73 | E180: =VLOOKUP(D180,'[1]DIVIPOLA MPIO'!$B$5:$C$1128,2,0) -> TOLIMA | F180: ALOJAMIENTO Y SERVICIOS DE COMIDA | G180: 5530 | H180: I | I180: Natural | J180: PEQUEÑA | K180: 9801000
B181: 73001 | C181: IBAGUÉ | D181: 73 | E181: =VLOOKUP(D181,'[1]DIVIPOLA MPIO'!$B$5:$C$1128,2,0) -> TOLIMA | F181: ACTIVIDADES DE SERVICIOS ADMINISTRATIVOS Y DE APOYO | G181: 8121 | H181: N | I181: Natural | J181: PEQUEÑA | K181: 1452000
B182: 73001 | C182: IBAGUÉ | D182: 73 | E182: =VLOOKUP(D182,'[1]DIVIPOLA MPIO'!$B$5:$C$1128,2,0) -> TOLIMA | F182: INDUSTRIAS MANUFACTURERAS | G182: 3312 | H182: C | I182: Natural | J182: MICRO | K182: 544500
B183: 76109 | C183: BUENAVENTURA | D183: 76 | E183: =VLOOKUP(D183,'[1]DIVIPOLA MPIO'!$B$5:$C$1128,2,0) -> VALLE DEL CAUCA | F183: TRANSPORTE Y ALMACENAMIENTO | G183: 4923 | H183: H | I183: Natural | J183: MICRO | K183: 181500
B184: 76834 | C184: TULUÁ | D184: 76 | E184: =VLOOKUP(D184,'[1]DIVIPOLA MPIO'!$B$5:$C$1128,2,0) -> VALLE DEL CAUCA | F184: ACTIVIDADES DE SERVICIOS ADMINISTRATIVOS Y DE APOYO | G184: 8020 | H184: N | I184: Natural | J184: PEQUEÑA | K184: 11253000
B185: 76001 | C185: CALI | D185: 76 | E185: =VLOOKUP(D185,'[1]DIVIPOLA MPIO'!$B$5:$C$1128,2,0) -> VALLE DEL CAUCA | F185: ACTIVIDADES ARTÍSTICAS, DE ENTRETENIMIENTO Y RECREACIÓN | G185: 9329 | H185: R | I185: Natural | J185: MICRO | K185: 726000
B186: 76147 | C186: CARTAGO | D186: 76 | E186: =VLOOKUP(D186,'[1]DIVIPOLA MPIO'!$B$5:$C$1128,2,0) -> VALLE DEL CAUCA | F186: ACTIVIDADES DE ATENCIÓN DE LA SALUD HUMANA Y DE ASISTENCIA SOCIAL | G186: 8692 | H186: Q | I186: Natural | J186: MICRO | K186: 1815000
B187: 76130 | C187: CANDELARIA | D187: 76 | E187: =VLOOKUP(D187,'[1]DIVIPOLA MPIO'!$B$5:$C$1128,2,0) -> VALLE DEL CAUCA | F187: COMERCIO AL POR MAYOR Y AL POR MENOR; REPARACIÓN DE VEHÍCULOS AUTOMOTORES Y MOTOCICLETAS | G187: 4754 | H187: G | I187: Natural | J187: MICRO | K187: 726000
B188: 85001 | C188: YOPAL | D188: 85 | E188: =VLOOKUP(D188,'[1]DIVIPOLA MPIO'!$B$5:$C$1128,2,0) -> CASANARE | F188: COMERCIO AL POR MAYOR Y AL POR MENOR; REPARACIÓN DE VEHÍCULOS AUTOMOTORES Y MOTOCICLETAS | G188: 4530 | H188: G | I188: Natural | J188: MICRO | K188: 1089000
B189: 76834 | C189: TULUÁ | D189: 76 | E189: =VLOOKUP(D189,'[1]DIVIPOLA MPIO'!$B$5:$C$1128,2,0) -> VALLE DEL CAUCA | F189: ALOJAMIENTO Y SERVICIOS DE COMIDA | G189: 5611 | H189: I | I189: Natural | J189: MICRO | K189: 1089000
B190: 76834 | C190: TULUÁ | D190: 76 | E190: =VLOOKUP(D190,'[1]DIVIPOLA MPIO'!$B$5:$C$1128,2,0) -> VALLE DEL CAUCA | F190: COMERCIO AL POR MAYOR Y AL POR MENOR; REPARACIÓN DE VEHÍCULOS AUTOMOTORES Y MOTOCICLETAS | G190: 4741 | H190: G | I190: Natural | J190: MICRO | K190: 726000
B191: 76834 | C191: TULUÁ | D191: 76 | E191: =VLOOKUP(D191,'[1]DIVIPOLA MPIO'!$B$5:$C$1128,2,0) -> VALLE DEL CAUCA | F191: TRANSPORTE Y ALMACENAMIENTO | G191: 5320 | H191: H | I191: Natural | J191: MEDIANA | K191: 41745000
B192: 76834 | C192: TULUÁ | D192: 76 | E192: =VLOOKUP(D192,'[1]DIVIPOLA MPIO'!$B$5:$C$1128,2,0) -> VALLE DEL CAUCA | F192: COMERCIO AL POR MAYOR Y AL POR MENOR; REPARACIÓN DE VEHÍCULOS AUTOMOTORES Y MOTOCICLETAS | G192: 4752 | H192: G | I192: Natural | J192: MEDIANA | K192: 56991000
B193: 76834 | C193: TULUÁ | D193: 76 | E193: =VLOOKUP(D193,'[1]DIVIPOLA MPIO'!$B$5:$C$1128,2,0) -> VALLE DEL CAUCA | F193: ACTIVIDADES ARTÍSTICAS, DE ENTRETENIMIENTO Y RECREACIÓN | G193: 9007 | H193: R | I193: Natural | J193: GRANDE | K193: 8349000
B194: 18001 | C194: FLORENCIA | D194: 18 | E194: =VLOOKUP(D194,'[1]DIVIPOLA MPIO'!$B$5:$C$1128,2,0) -> CAQUETÁ | F194: TRANSPORTE Y ALMACENAMIENTO | G194: 4923 | H194: H | I194: Natural | J194: MICRO | K194: 1089000
B195: 18001 | C195: FLORENCIA | D195: 18 | E195: =VLOOKUP(D195,'[1]DIVIPOLA MPIO'!$B$5:$C$1128,2,0) -> CAQUETÁ | F195: TRANSPORTE Y ALMACENAMIENTO | G195: 5221 | H195: H | I195: Natural | J195: MICRO | K195: 1089000
B196: 5001 | C196: MEDELLÍN | D196: 5 | E196: =VLOOKUP(D196,'[1]DIVIPOLA MPIO'!$B$5:$C$1128,2,0) -> ANTIOQUIA | F196: ALOJAMIENTO Y SERVICIOS DE COMIDA | G196: 5611 | H196: I | I196: Natural | J196: MICRO | K196: 907500
B197: 76001 | C197: CALI | D197: 76 | E197: =VLOOKUP(D197,'[1]DIVIPOLA MPIO'!$B$5:$C$1128,2,0) -> VALLE DEL CAUCA | F197: COMERCIO AL POR MAYOR Y AL POR MENOR; REPARACIÓN DE VEHÍCULOS AUTOMOTORES Y MOTOCICLETAS | G197: 4512 | H197: G | I197: Natural | J197: MICRO | K197: 1089000
B198: 20013 | C198: AGUSTÍN CODAZZI | D198: 20 | E198: =VLOOKUP(D198,'[1]DIVIPOLA MPIO'!$B$5:$C$1128,2,0) -> CESAR | F198: COMERCIO AL POR MAYOR Y AL POR MENOR; REPARACIÓN DE VEHÍCULOS AUTOMOTORES Y MOTOCICLETAS | G198: 4719 | H198: G | I198: Natural | J198: MICRO | K198: 1633500
B199: 11001 | C199: BOGOTÁ, D.C. | D199: 11 | E199: =VLOOKUP(D199,'[1]DIVIPOLA MPIO'!$B$5:$C$1128,2,0) -> BOGOTÁ, D.C. | F199: OTRAS ACTIVIDADES DE SERVICIOS | G199: 9512 | H199: S | I199: Natural | J199: MICRO | K199: 1815000
B200: 50001 | C200: VILLAVICENCIO | D200: 50 | E200: =VLOOKUP(D200,'[1]DIVIPOLA MPIO'!$B$5:$C$1128,2,0) -> META | F200: TRANSPORTE Y ALMACENAMIENTO | G200: 4923 | H200: H | I200: Natural | J200: MICRO | K200: 726000
... 4300 more rows

Sheet insumos2 (hidden)
A1: TIPO DE IDENTIFICACION POSTULANTE | B1: NUMERO IDENTIFICACION EMPRESA | C1: CIUDAD - DIVIPOLA - R | D1: Municipio | E1: TOTAL COTIZANTES CON CONCEPTO DE CONFORMIDAD TOTAL A GIRAR | F1: TOTAL COTIZANTES CON CONCEPTO DE NO CONFORMIDAD | G1: TIPO DE PERSONA | H1: Departamento DIVIPOLA (P) | I1: Nombre dpto | J1: ESTADO_TOTAL A GIRAR | K1: Tamaño del Empleador | L1: STRCODPAR_CIIU_EMPRESA | M1: ACTIVIDAD ECONOMICA | N1: ACTIVIDAD ECONOMICA | O1: Division 3DC_TD 3D | P1: grupo especial 2DC_TD 3D | Q1: SEXO_F_ | R1: SEXO_M_ | S1: SEXO_ND_ | U1: Departamentos | V1: empleadores | W1: Departamentos | X1: empleadores | AE1: TIPO DE IDENTIFICACION POSTULANTE | AF1: NUMERO IDENTIFICACION EMPRESA | AG1: CIUDAD - DIVIPOLA - R | AH1: Municipio | AI1: TOTAL COTIZANTES CON CONCEPTO DE CONFORMIDAD TOTAL A GIRAR | AJ1: TOTAL COTIZANTES CON CONCEPTO DE NO CONFORMIDAD | AK1: TIPO DE PERSONA | AL1: Departamento DIVIPOLA (P) | AM1: Nombre dpto | AN1: ESTADO_TOTAL A GIRAR | AO1: Tamaño del Empleador | AP1: STRCODPAR_CIIU_EMPRESA | AQ1: ACTIVIDAD ECONOMICA | AR1: ACTIVIDAD ECONOMICA | AS1: Division | AT1: Grupo | AU1: SEXO_F_ | AV1: SEXO_M_ | AW1: SEXO_ND_ | AY1: Departamentos | AZ1: empleadores | BA1: Departamentos | BB1: empleadores | BC1: nomdpto | BE1: =BC1 -> nomdpto | BF1: empleadores | BG1: empleados | BI1: codmunicipio | BJ1: aportantes | BK1: codmunicipio | BL1: aportantes | BM1: cod_dpto | BN1: nom_dpto | BO1: nom_mpio | BP1: empleadores | BQ1: empleados | BS1: Grupo | BT1: empleadores | BU1: empleados | BV1: Grupo | BW1: empleadores | BX1: empleados
C2: 11001 | D2: BOGOTÁ, D.C. | E2: 3 | F2: 0 | G2: Natural | H2: 11 | I2: BOGOTÁ, D.C. | J2: Aprobado con subsidio | K2: MICRO | L2: 4729 | M2: COMERCIO AL POR MAYOR Y AL POR MENOR; REPARACIÓN DE VEHÍCULOS AUTOMOTORES Y MOTOCICLETAS | N2: G | O2: Comercio al por menor de alimentos (víveres en general), bebidas y tabaco, en establecimientos especializados | P2: Comercio al por menor de alimentos (víveres en general), bebidas y tabaco, en establecimientos especializados | Q2: 0 | R2: 3 | S2: 0 | U2: 68 | V2: =COUNTIFS($J$2:$J$399999,"Aprobado con subsidio",$H$2:$H$399999,U2) -> 470 | W2: =_xlfn._xlws.SORT($U$2:$V$34,2,-1) -> 11 | X2: 3848 | Y2: =VLOOKUP(W2,Hoja4!$A$29:$B$61,2,FALSE) -> Bogotá | AE2: =_xlfn._xlws.FILTER($A$2:$S$399999,$N$2:$N$399999=Visor!$N$4,"") -> 0 | AF2: 0 | AG2: 63130 | AH2: CALARCA | AI2: 4 | AJ2: 1 | AK2: Jurídica | AL2: 63 | AM2: QUINDÍO | AN2: Aprobado con subsidio | AO2: MICRO | AP2: 1511 | AQ2: INDUSTRIAS MANUFACTURERAS | AR2: C | AS2: Curtido y recurtido de cueros; fabricación de artículos de viaje, bolsos de mano y artículos similares, y fabricación de artículos de talabartería y guarnicionería; adobo y teñido de pieles | AT2: Curtido y recurtido de cueros; fabricación de calzado; fabricación de artículos de viaje, maletas, bolsos de mano y artículos similares, y fabricación de artículos de talabartería y guarnicionería; adobo y teñido de pieles | AU2: 0 | AV2: 4 | AW2: 0 | AY2: 68 | AZ2: =COUNTIFS($AN$2:$AN$399999,"Aprobado con subsidio",$AL$2:$AL$399999,AY2) -> 92 | BA2: =_xlfn._xlws.SORT($AY$2:$AZ$34,2,-1) -> 11 | BB2: 740 | BC2: =VLOOKUP(BA2,Hoja4!$A$29:$B$61,2,FALSE) -> Bogotá | BE2: =BC2 -> Bogotá | BF2: =BB2 -> 740 | BG2: =SUMIFS($AI$2:$AI$399999,$AN$2:$AN$399999,"Aprobado con subsidio",$AL$2:$AL$399999,BA2) -> 27605 | BI2: =_xlfn.UNIQUE($AG$2:$AG$399999) -> 63130 | BJ2: =COUNTIFS($AN$2:$AN$399999,"Aprobado con subsidio",$AG$2:$AG$399999,BI2) -> 8 | BK2: =_xlfn._xlws.SORT($BI$2:$BJ$1122,2,-1) -> 11001 | BL2: 740 | BM2: =IF(LEN(BK2)=5,MID(BK2,1,2),MID(BK2,1,1))*1 -> 11 | BN2: =VLOOKUP(BM2,Hoja4!$A$29:$B$61,2,FALSE) -> Bogotá | BO2: =VLOOKUP(BK2,Hoja4!$D$29:$E$1150,2,FALSE) -> Bogotá, d.c. | BP2: =BL2 -> 740 | BQ2: =SUMIFS($AI$2:$AI$399999,$AG$2:$AG$399999,BK2) -> 27605 | BS2: =_xlfn.UNIQUE($AT$2:$AT$399999) -> Curtido y recurtido de cueros; fabricación de calzado; fabricación de artículos de viaje, maletas, bolsos de mano y artículos similares, y fabricación de artículos de talabartería y guarnicionería; adobo y teñido de pieles | BT2: =COUNTIFS($AT$2:$AT$399999,BS2,$AN$2:$AN$399999,"Aprobado con subsidio") -> 95 | BU2: =SUMIFS($AI$2:$AI$399999,$AT$2:$AT$399999,BS2,$AN$2:$AN$399999,"Aprobado con subsidio") -> 3820 | BV2: =_xlfn._xlws.SORT(BS2:BU26,2,-1) -> Elaboración de productos alimenticios | BW2: 401 | BX2: 30759
C3: 63001 | D3: ARMENIA | E3: 19 | F3: 2 | G3: Jurídica | H3: 63 | I3: QUINDÍO | J3: Aprobado con subsidio | K3: PEQUEÑA | L3: 4774 | M3: COMERCIO AL POR MAYOR Y AL POR MENOR; REPARACIÓN DE VEHÍCULOS AUTOMOTORES Y MOTOCICLETAS | N3: G | O3: Comercio al por menor de otros productos en establecimientos especializados | P3: Comercio al por menor de otros productos en establecimientos especializados | Q3: 5 | R3: 14 | S3: 0 | U3: 13 | V3: =COUNTIFS($J$2:$J$399999,"Aprobado con subsidio",$H$2:$H$399999,U3) -> 169 | W3: 76 | X3: 3095 | Y3: =VLOOKUP(W3,Hoja4!$A$29:$B$61,2,FALSE) -> Valle del cauca | AE3: 0 | AF3: 0 | AG3: 66001 | AH3: PEREIRA | AI3: 5 | AJ3: 2 | AK3: Natural | AL3: 66 | AM3: RISARALDA | AN3: Aprobado con subsidio | AO3: MICRO | AP3: 1521 | AQ3: INDUSTRIAS MANUFACTURERAS | AR3: C | AS3: Fabricación de calzado | AT3: Curtido y recurtido de cueros; fabricación de calzado; fabricación de artículos de viaje, maletas, bolsos de mano y artículos similares, y fabricación de artículos de talabartería y guarnicionería; adobo y teñido de pieles | AU3: 2 | AV3: 3 | AW3: 0 | AY3: 13 | AZ3: 11 | BA3: 76 | BB3: 667 | BC3: =VLOOKUP(BA3,Hoja4!$A$29:$B$61,2,FALSE) -> Valle del cauca | BE3: =BC3 -> Valle del cauca | BF3: =BB3 -> 667 | BG3: 39711 | BI3: 66001 | BJ3: 54 | BK3: 76001 | BL3: 424 | BM3: =IF(LEN(BK3)=5,MID(BK3,1,2),MID(BK3,1,1))*1 -> 76 | BN3: =VLOOKUP(BM3,Hoja4!$A$29:$B$61,2,FALSE) -> Valle del cauca | BO3: =VLOOKUP(BK3,Hoja4!$D$29:$E$1150,2,FALSE) -> Cali | BP3: 424 | BQ3: 20122 | BS3: Elaboración de productos alimenticios | BT3: 401 | BU3: 30759 | BV3: Confección de prendas de vestir | BW3: 333 | BX3: 16616
C4: 66001 | D4: PEREIRA | E4: 5 | F4: 0 | G4: Natural | H4: 66 | I4: RISARALDA | J4: Aprobado con subsidio | K4: MICRO | L4: 5320 | M4: TRANSPORTE Y ALMACENAMIENTO | N4: H | O4: Actividades de mensajería | P4: Actividades de mensajería | Q4: 2 | R4: 3 | S4: 0 | U4: 15 | V4: 150 | W4: 5 | X4: 1816 | Y4: =VLOOKUP(W4,Hoja4!$A$29:$B$61,2,FALSE) -> Antioquia | AE4: 0 | AF4: 0 | AG4: 25123 | AH4: CACHIPAY | AI4: 6 | AJ4: 3 | AK4: Natural | AL4: 25 | AM4: CUNDINAMARCA | AN4: Aprobado con subsidio | AO4: PEQUEÑA | AP4: 1081 | AQ4: INDUSTRIAS MANUFACTURERAS | AR4: C | AS4: Elaboración de otros productos alimenticios | AT4: Elaboración de productos alimenticios | AU4: 3 | AV4: 3 | AW4: 0 | AY4: 15 | AZ4: 22 | BA4: 5 | BB4: 472 | BC4: =VLOOKUP(BA4,Hoja4!$A$29:$B$61,2,FALSE) -> Antioquia | BE4: Antioquia | BF4: 472 | BG4: 27676 | BI4: 25123 | BJ4: 1 | BK4: 5001 | BL4: 258 | BM4: 5 | BN4: =VLOOKUP(BM4,Hoja4!$A$29:$B$61,2,FALSE) -> Antioquia | BO4: =VLOOKUP(BK4,Hoja4!$D$29:$E$1150,2,FALSE) -> Medellín | BP4: 258 | BQ4: 14312 | BS4: Fabricación de aparatos y equipo eléctrico | BT4: 44 | BU4: 2463 | BV4: Fabricación de productos elaborados de metal, excepto maquinaria y equipo | BW4: 237 | BX4: 7672
C5: 50001 | D5: VILLAVICENCIO | E5: 6 | F5: 9 | G5: Natural | H5: 50 | I5: META | J5: Aprobado con subsidio | K5: PEQUEÑA | L5: 4541 | M5: COMERCIO AL POR MAYOR Y AL POR MENOR; REPARACIÓN DE VEHÍCULOS AUTOMOTORES Y MOTOCICLETAS | N5: G | O5: Comercio, mantenimiento y reparación de motocicletas y de sus partes, piezas y accesorios | P5: Comercio, mantenimiento y reparación de motocicletas y de sus partes, piezas y accesorios | Q5: 2 | R5: 4 | S5: 0 | U5: 5 | V5: 1816 | W5: 25 | X5: 486 | Y5: =VLOOKUP(W5,Hoja4!$A$29:$B$61,2,FALSE) -> Cundinamarca | AE5: 0 | AF5: 0 | AG5: 66682 | AH5: SANTA ROSA DE CABAL | AI5: 11 | AJ5: 1 | AK5: Natural | AL5: 66 | AM5: RISARALDA | AN5: Aprobado con subsidio | AO5: PEQUEÑA | AP5: 2712 | AQ5: INDUSTRIAS MANUFACTURERAS | AR5: C | AS5: Fabricación de motores, generadores y transformadores eléctricos y de aparatos de distribución y control de la energía eléctrica | AT5: Fabricación de aparatos y equipo eléctrico | AU5: 4 | AV5: 7 | AW5: 0 | AY5: 5 | AZ5: 472 | BA5: 25 | BB5: 121 | BC5: =VLOOKUP(BA5,Hoja4!$A$29:$B$61,2,FALSE) -> Cundinamarca | BE5: Cundinamarca | BF5: 121 | BG5: 8130 | BI5: 66682 | BJ5: 4 | BK5: 76892 | BL5: 103 | BM5: 76 | BN5: =VLOOKUP(BM5,Hoja4!$A$29:$B$61,2,FALSE) -> Valle del cauca | BO5: =VLOOKUP(BK5,Hoja4!$D$29:$E$1150,2,FALSE) -> Yumbo | BP5: 103 | BQ5: 14525 | BS5: Fabricación de otros tipos de equipo de transporte | BT5: 4 | BU5: 96 | BV5: Instalación, mantenimiento y reparación especializado de maquinaria y equipo | BW5: 193 | BX5: 2235
C6: 66001 | D6: PEREIRA | E6: 11 | F6: 1 | G6: Natural | H6: 66 | I6: RISARALDA | J6: Aprobado con subsidio | K6: PEQUEÑA | L6: 4719 | M6: COMERCIO AL POR MAYOR Y AL POR MENOR; REPARACIÓN DE VEHÍCULOS AUTOMOTORES Y MOTOCICLETAS | N6: G | O6: Comercio al por menor en establecimientos no especializados | P6: Comercio al por menor en establecimientos no especializados | Q6: 8 | R6: 3 | S6: 0 | U6: 76 | V6: 3095 | W6: 68 | X6: 470 | Y6: =VLOOKUP(W6,Hoja4!$A$29:$B$61,2,FALSE) -> Santander | AE6: 0 | AF6: 0 | AG6: 11001 | AH6: BOGOTÁ, D.C. | AI6: 7 | AJ6: 1 | AK6: Natural | AL6: 11 | AM6: BOGOTÁ, D.C. | AN6: Aprobado con subsidio | AO6: MICRO | AP6: 1081 | AQ6: INDUSTRIAS MANUFACTURERAS | AR6: C | AS6: Elaboración de otros productos alimenticios | AT6: Elaboración de productos alimenticios | AU6: 6 | AV6: 1 | AW6: 0 | AY6: 76 | AZ6: 667 | BA6: 66 | BB6: 110 | BC6: =VLOOKUP(BA6,Hoja4!$A$29:$B$61,2,FALSE) -> Risaralda | BE6: Risaralda | BF6: 110 | BG6: 7396 | BI6: 11001 | BJ6: 740 | BK6: 5360 | BL6: 59 | BM6: 5 | BN6: =VLOOKUP(BM6,Hoja4!$A$29:$B$61,2,FALSE) -> Antioquia | BO6: =VLOOKUP(BK6,Hoja4!$D$29:$E$1150,2,FALSE) -> Itagüí | BP6: 59 | BQ6: 3813 | BS6: Instalación, mantenimiento y reparación especializado de maquinaria y equipo | BT6: 193 | BU6: 2235 | BV6: Fabricación de productos de caucho y de plástico | BW6: 175 | BX6: 11129
C7: 76001 | D7: CALI | E7: 7 | F7: 0 | G7: Natural | H7: 76 | I7: VALLE DEL CAUCA | J7: Aprobado con subsidio | K7: MICRO | L7: 4649 | M7: COMERCIO AL POR MAYOR Y AL POR MENOR; REPARACIÓN DE VEHÍCULOS AUTOMOTORES Y MOTOCICLETAS | N7: G | O7: Comercio al por mayor de artículos y enseres domésticos (incluidas prendas de vestir) | P7: Comercio al por mayor de artículos y enseres domésticos (incluidas prendas de vestir) | Q7: 3 | R7: 4 | S7: 0 | U7: 54 | V7: 122 | W7: 66 | X7: 432 | Y7: =VLOOKUP(W7,Hoja4!$A$29:$B$61,2,FALSE) -> Risaralda | AE7: 0 | AF7: 0 | AG7: 66170 | AH7: DOSQUEBRADAS | AI7: 5 | AJ7: 1 | AK7: Natural | AL7: 66 | AM7: RISARALDA | AN7: Aprobado con subsidio | AO7: MICRO | AP7: 3092 | AQ7: INDUSTRIAS MANUFACTURERAS | AR7: C | AS7: Fabricación de otros tipos de equipo de transporte n.c.p. | AT7: Fabricación de otros tipos de equipo de transporte | AU7: 0 | AV7: 5 | AW7: 0 | AY7: 54 | AZ7: 25 | BA7: 68 | BB7: 92 | BC7: =VLOOKUP(BA7,Hoja4!$A$29:$B$61,2,FALSE) -> Santander | BE7: Santander | BF7: 92 | BG7: 2087 | BI7: 66170 | BJ7: 49 | BK7: 68001 | BL7: 56 | BM7: 68 | BN7: =VLOOKUP(BM7,Hoja4!$A$29:$B$61,2,FALSE) -> Santander | BO7: =VLOOKUP(BK7,Hoja4!$D$29:$E$1150,2,FALSE) -> Bucaramanga | BP7: 56 | BQ7: 1012 | BS7: Fabricación de productos elaborados de metal, excepto maquinaria y equipo | BT7: 237 | BU7: 7672 | BV7: Fabricación de muebles, colchones y somieres | BW7: 144 | BX7: 4376
C8: 63130 | D8: CALARCA | E8: 4 | F8: 1 | G8: Jurídica | H8: 63 | I8: QUINDÍO | J8: Aprobado con subsidio | K8: MICRO | L8: 1511 | M8: INDUSTRIAS MANUFACTURERAS | N8: C | O8: Curtido y recurtido de cueros; fabricación de artículos de viaje, bolsos de mano y artículos similares, y fabricación de artículos de talabartería y guarnicionería; adobo y teñido de pieles | P8: Curtido y recurtido de cueros; fabricación de calzado; fabricación de artículos de viaje, maletas, bolsos de mano y artículos similares, y fabricación de artículos de talabartería y guarnicionería; adobo y teñido de pieles | Q8: 0 | R8: 4 | S8: 0 | U8: 11 | V8: 3848 | W8: 8 | X8: 356 | Y8: =VLOOKUP(W8,Hoja4!$A$29:$B$61,2,FALSE) -> Atlántico | AE8: 0 | AF8: 0 | AG8: 11001 | AH8: BOGOTÁ, D.C. | AI8: 0 | AJ8: 0 | AK8: Natural | AL8: 11 | AM8: BOGOTÁ, D.C. | AN8: 0 | AO8: MICRO | AP8: 3311 | AQ8: INDUSTRIAS MANUFACTURERAS | AR8: C | AS8: Mantenimiento y reparación especializado de productos elaborados en metal y de maquinaria y equipo | AT8: Instalación, mantenimiento y reparación especializado de maquinaria y equipo | AU8: 0 | AV8: 0 | AW8: 0 | AY8: 11 | AZ8: 740 | BA8: 8 | BB8: 44 | BC8: =VLOOKUP(BA8,Hoja4!$A$29:$B$61,2,FALSE) -> Atlántico | BE8: Atlántico | BF8: 44 | BG8: 1085 | BI8: 5001 | BJ8: 258 | BK8: 66001 | BL8: 54 | BM8: 66 | BN8: =VLOOKUP(BM8,Hoja4!$A$29:$B$61,2,FALSE) -> Risaralda | BO8: =VLOOKUP(BK8,Hoja4!$D$29:$E$1150,2,FALSE) -> Pereira | BP8: 54 | BQ8: 5018 | BS8: Confección de prendas de vestir | BT8: 333 | BU8: 16616 | BV8: Fabricación de sustancias y productos químicos | BW8: 127 | BX8: 8658
C9: 50606 | D9: RESTREPO | E9: 2 | F9: 1 | G9: Natural | H9: 50 | I9: META | J9: Aprobado con subsidio | K9: MICRO | L9: 4923 | M9: TRANSPORTE Y ALMACENAMIENTO | N9: H | O9: Transporte terrestre publico automotor | P9: Transporte terrestre publico automotor | Q9: 0 | R9: 2 | S9: 0 | U9: 66 | V9: 432 | W9: 52 | X9: 288 | Y9: =VLOOKUP(W9,Hoja4!$A$29:$B$61,2,FALSE) -> Nariño | AE9: 0 | AF9: 0 | AG9: 66001 | AH9: PEREIRA | AI9: 12 | AJ9: 1 | AK9: Natural | AL9: 66 | AM9: RISARALDA | AN9: Aprobado con subsidio | AO9: PEQUEÑA | AP9: 1020 | AQ9: INDUSTRIAS MANUFACTURERAS | AR9: C | AS9: Procesamiento y conservación de frutas, legumbres, hortalizas y tubérculos | AT9: Elaboración de productos alimenticios | AU9: 1 | AV9: 11 | AW9: 0 | AY9: 66 | AZ9: 110 | BA9: 19 | BB9: 41 | BC9: =VLOOKUP(BA9,Hoja4!$A$29:$B$61,2,FALSE) -> Cauca | BE9: Cauca | BF9: 41 | BG9: 5507 | BI9: 66400 | BJ9: 3 | BK9: 76520 | BL9: 51 | BM9: 76 | BN9: =VLOOKUP(BM9,Hoja4!$A$29:$B$61,2,FALSE) -> Valle del cauca | BO9: =VLOOKUP(BK9,Hoja4!$D$29:$E$1150,2,FALSE) -> Palmira | BP9: 51 | BQ9: 1756 | BS9: Fabricación de productos textiles | BT9: 89 | BU9: 4345 | BV9: Actividades de impresión y de producción de copias a partir de grabaciones originales | BW9: 123 | BX9: 3338
C10: 41551 | D10: PITALITO | E10: 0 | F10: 0 | G10: Natural | H10: 41 | I10: HUILA | J10: 0 | K10: MICRO | L10: 4923 | M10: TRANSPORTE Y ALMACENAMIENTO | N10: H | O10: Transporte terrestre publico automotor | P10: Transporte terrestre publico automotor | Q10: 0 | R10: 0 | S10: 0 | U10: 52 | V10: 288 | W10: 19 | X10: 277 | Y10: =VLOOKUP(W10,Hoja4!$A$29:$B$61,2,FALSE) -> Cauca | AE10: 0 | AF10: 0 | AG10: 5001 | AH10: MEDELLÍN | AI10: 7 | AJ10: 1 | AK10: Natural | AL10: 5 | AM10: ANTIOQUIA | AN10: Aprobado con subsidio | AO10: MICRO | AP10: 2511 | AQ10: INDUSTRIAS MANUFACTURERAS | AR10: C | AS10: Fabricación de productos metálicos para uso estructural, tanques, depósitos y generadores de vapor. | AT10: Fabricación de productos elaborados de metal, excepto maquinaria y equipo | AU10: 0 | AV10: 7 | AW10: 0 | AY10: 52 | AZ10: 25 | BA10: 63 | BB10: 36 | BC10: =VLOOKUP(BA10,Hoja4!$A$29:$B$61,2,FALSE) -> Quindío | BE10: Quindío | BF10: 36 | BG10: 1961 | BI10: 17001 | BJ10: 27 | BK10: 66170 | BL10: 49 | BM10: 66 | BN10: =VLOOKUP(BM10,Hoja4!$A$29:$B$61,2,FALSE) -> Risaralda | BO10: =VLOOKUP(BK10,Hoja4!$D$29:$E$1150,2,FALSE) -> Dosquebradas | BP10: 49 | BQ10: 1846 | BS10: Transformación de la madera y fabricación de productos de madera y de corcho, excepto muebles; fabricación de artículos de cestería y espartería | BT10: 70 | BU10: 918 | BV10: Curtido y recurtido de cueros; fabricación de calzado; fabricación de artículos de viaje, maletas, bolsos de mano y artículos similares, y fabricación de artículos de talabartería y guarnicionería; adobo y teñido de pieles | BW10: 95 | BX10: 3820
C11: 66170 | D11: DOSQUEBRADAS | E11: 8 | F11: 2 | G11: Natural | H11: 66 | I11: RISARALDA | J11: Aprobado con subsidio | K11: PEQUEÑA | L11: 4330 | M11: CONSTRUCCIÓN | N11: F | O11: Terminación y acabado de edificios y obras de ingeniería civil | P11: Terminación y acabado de edificios y obras de ingeniería civil | Q11: 1 | R11: 7 | S11: 0 | U11: 19 | V11: 277 | W11: 41 | X11: 172 | Y11: =VLOOKUP(W11,Hoja4!$A$29:$B$61,2,FALSE) -> Huila | AE11: 0 | AF11: 0 | AG11: 11001 | AH11: BOGOTÁ, D.C. | AI11: 3 | AJ11: 0 | AK11: Natural | AL11: 11 | AM11: BOGOTÁ, D.C. | AN11: Aprobado con subsidio | AO11: MICRO | AP11: 1521 | AQ11: INDUSTRIAS MANUFACTURERAS | AR11: C | AS11: Fabricación de calzado | AT11: Curtido y recurtido de cueros; fabricación de calzado; fabricación de artículos de viaje, maletas, bolsos de mano y artículos similares, y fabricación de artículos de talabartería y guarnicionería; adobo y teñido de pieles | AU11: 2 | AV11: 1 | AW11: 0 | AY11: 19 | AZ11: 41 | BA11: 17 | BB11: 32 | BC11: =VLOOKUP(BA11,Hoja4!$A$29:$B$61,2,FALSE) -> Caldas | BE11: Caldas | BF11: 32 | BG11: 1987 | BI11: 15759 | BJ11: 3 | BK11: 8001 | BL11: 38 | BM11: 8 | BN11: =VLOOKUP(BM11,Hoja4!$A$29:$B$61,2,FALSE) -> Atlántico | BO11: =VLOOKUP(BK11,Hoja4!$D$29:$E$1150,2,FALSE) -> Barranquilla | BP11: 38 | BQ11: 913 | BS11: Fabricación de otros productos minerales no metálicos | BT11: 87 | BU11: 4865 | BV11: Fabricación de productos textiles | BW11: 89 | BX11: 4345
C12: 63001 | D12: ARMENIA | E12: 3 | F12: 1 | G12: Natural | H12: 63 | I12: QUINDÍO | J12: Aprobado con subsidio | K12: MICRO | L12: 4752 | M12: COMERCIO AL POR MAYOR Y AL POR MENOR; REPARACIÓN DE VEHÍCULOS AUTOMOTORES Y MOTOCICLETAS | N12: G | O12: Comercio al por menor de otros enseres domésticos en establecimientos especializados | P12: Comercio al por menor de otros enseres domésticos en establecimientos especializados | Q12: 0 | R12: 3 | S12: 0 | U12: 47 | V12: 87 | W12: 13 | X12: 169 | Y12: =VLOOKUP(W12,Hoja4!$A$29:$B$61,2,FALSE) -> Bolívar | AE12: 0 | AF12: 0 | AG12: 11001 | AH12: BOGOTÁ, D.C. | AI12: 4 | AJ12: 3 | AK12: Natural | AL12: 11 | AM12: BOGOTÁ, D.C. | AN12: Aprobado con subsidio | AO12: MICRO | AP12: 1410 | AQ12: INDUSTRIAS MANUFACTURERAS | AR12: C | AS12: Confección de prendas de vestir, excepto prendas de piel | AT12: Confección de prendas de vestir | AU12: 4 | AV12: 0 | AW12: 0 | AY12: 47 | AZ12: 7 | BA12: 41 | BB12: 30 | BC12: =VLOOKUP(BA12,Hoja4!$A$29:$B$61,2,FALSE) -> Huila | BE12: Huila | BF12: 30 | BG12: 387 | BI12: 68001 | BJ12: 56 | BK12: 17001 | BL12: 27 | BM12: 17 | BN12: =VLOOKUP(BM12,Hoja4!$A$29:$B$61,2,FALSE) -> Caldas | BO12: =VLOOKUP(BK12,Hoja4!$D$29:$E$1150,2,FALSE) -> Manizales | BP12: 27 | BQ12: 1287 | BS12: Actividades de impresión y de producción de copias a partir de grabaciones originales | BT12: 123 | BU12: 3338 | BV12: Fabricación de maquinaria y equipo n.c.p. | BW12: 88 | BX12: 2929
C13: 66001 | D13: PEREIRA | E13: 5 | F13: 2 | G13: Natural | H13: 66 | I13: RISARALDA | J13: Aprobado con subsidio | K13: MICRO | L13: 1521 | M13: INDUSTRIAS MANUFACTURERAS | N13: C | O13: Fabricación de calzado | P13: Curtido y recurtido de cueros; fabricación de calzado; fabricación de artículos de viaje, maletas, bolsos de mano y artículos similares, y fabricación de artículos de talabartería y guarnicionería; adobo y teñido de pieles | Q13: 2 | R13: 3 | S13: 0 | U13: 50 | V13: 131 | W13: 63 | X13: 159 | Y13: =VLOOKUP(W13,Hoja4!$A$29:$B$61,2,FALSE) -> Quindío | AE13: 0 | AF13: 0 | AG13: 5001 | AH13: MEDELLÍN | AI13: 2 | AJ13: 0 | AK13: Natural | AL13: 5 | AM13: ANTIOQUIA | AN13: Aprobado con subsidio | AO13: MICRO | AP13: 1084 | AQ13: INDUSTRIAS MANUFACTURERAS | AR13: C | AS13: Elaboración de otros productos alimenticios | AT13: Elaboración de productos alimenticios | AU13: 1 | AV13: 1 | AW13: 0 | AY13: 50 | AZ13: 12 | BA13: 54 | BB13: 25 | BC13: =VLOOKUP(BA13,Hoja4!$A$29:$B$61,2,FALSE) -> Norte de stder | BE13: Norte de stder | BF13: 25 | BG13: 823 | BI13: 5266 | BJ13: 20 | BK13: 25214 | BL13: 27 | BM13: 25 | BN13: =VLOOKUP(BM13,Hoja4!$A$29:$B$61,2,FALSE) -> Cundinamarca | BO13: =VLOOKUP(BK13,Hoja4!$D$29:$E$1150,2,FALSE) -> Cota | BP13: 27 | BQ13: 1976 | BS13: Otras industrias manufactureras | BT13: 81 | BU13: 1826 | BV13: Fabricación de otros productos minerales no metálicos | BW13: 87 | BX13: 4865
C14: 25123 | D14: CACHIPAY | E14: 6 | F14: 3 | G14: Natural | H14: 25 | I14: CUNDINAMARCA | J14: Aprobado con subsidio | K14: PEQUEÑA | L14: 1081 | M14: INDUSTRIAS MANUFACTURERAS | N14: C | O14: Elaboración de otros productos alimenticios | P14: Elaboración de productos alimenticios | Q14: 3 | R14: 3 | S14: 0 | U14: 63 | V14: 159 | W14: 15 | X14: 150 | Y14: =VLOOKUP(W14,Hoja4!$A$29:$B$61,2,FALSE) -> Boyacá | AE14: 0 | AF14: 0 | AG14: 5001 | AH14: MEDELLÍN | AI14: 0 | AJ14: 0 | AK14: Jurídica | AL14: 5 | AM14: ANTIOQUIA | AN14: 0 | AO14: 0 | AP14: 1313 | AQ14: INDUSTRIAS MANUFACTURERAS | AR14: C | AS14: Preparación, hilatura, tejeduría y acabado de productos textiles | AT14: Fabricación de productos textiles | AU14: 0 | AV14: 0 | AW14: 0 | AY14: 63 | AZ14: 36 | BA14: 52 | BB14: 25 | BC14: =VLOOKUP(BA14,Hoja4!$A$29:$B$61,2,FALSE) -> Nariño | BE14: Nariño | BF14: 25 | BG14: 473 | BI14: 19698 | BJ14: 6 | BK14: 63001 | BL14: 26 | BM14: 63 | BN14: =VLOOKUP(BM14,Hoja4!$A$29:$B$61,2,FALSE) -> Quindío | BO14: =VLOOKUP(BK14,Hoja4!$D$29:$E$1150,2,FALSE) -> Armenia | BP14: 26 | BQ14: 1806 | BS14: Coquización, fabricación de productos de la refinación del petróleo y actividad de mezcla de combustibles | BT14: 12 | BU14: 439 | BV14: Otras industrias manufactureras | BW14: 81 | BX14: 1826
C15: 66170 | D15: DOSQUEBRADAS | E15: 7 | F15: 1 | G15: Natural | H15: 66 | I15: RISARALDA | J15: Aprobado con subsidio | K15: MICRO | L15: 5530 | M15: ALOJAMIENTO Y SERVICIOS DE COMIDA | N15: I | O15: Servicios por horas | P15: Servicios por horas | Q15: 6 | R15: 1 | S15: 0 | U15: 70 | V15: 20 | W15: 73 | X15: 135 | Y15: =VLOOKUP(W15,Hoja4!$A$29:$B$61,2,FALSE) -> Tolima | AE15: 0 | AF15: 0 | AG15: 11001 | AH15: BOGOTÁ, D.C. | AI15: 6 | AJ15: 1 | AK15: Natural | AL15: 11 | AM15: BOGOTÁ, D.C. | AN15: Aprobado con subsidio | AO15: MICRO | AP15: 1523 | AQ15: INDUSTRIAS MANUFACTURERAS | AR15: C | AS15: Fabricación de calzado | AT15: Curtido y recurtido de cueros; fabricación de calzado; fabricación de artículos de viaje, maletas, bolsos de mano y artículos similares, y fabricación de artículos de talabartería y guarnicionería; adobo y teñido de pieles | AU15: 4 | AV15: 2 | AW15: 0 | AY15: 70 | AZ15: 3 | BA15: 15 | BB15: 22 | BC15: =VLOOKUP(BA15,Hoja4!$A$29:$B$61,2,FALSE) -> Boyacá | BE15: Boyacá | BF15: 22 | BG15: 391 | BI15: 70001 | BJ15: 2 | BK15: 5631 | BL15: 24 | BM15: 5 | BN15: =VLOOKUP(BM15,Hoja4!$A$29:$B$61,2,FALSE) -> Antioquia | BO15: =VLOOKUP(BK15,Hoja4!$D$29:$E$1150,2,FALSE) -> Sabaneta | BP15: 24 | BQ15: 3250 | BS15: Fabricación de muebles, colchones y somieres | BT15: 144 | BU15: 4376 | BV15: Fabricación de papel, cartón y productos de papel y cartón | BW15: 73 | BX15: 8477
C16: 66682 | D16: SANTA ROSA DE CABAL | E16: 11 | F16: 1 | G16: Natural | H16: 66 | I16: RISARALDA | J16: Aprobado con subsidio | K16: PEQUEÑA | L16: 2712 | M16: INDUSTRIAS MANUFACTURERAS | N16: C | O16: Fabricación de motores, generadores y transformadores eléctricos y de aparatos de distribución y control de la energía eléctrica | P16: Fabricación de aparatos y equipo eléctrico | Q16: 4 | R16: 7 | S16: 0 | U16: 41 | V16: 172 | W16: 17 | X16: 135 | Y16: =VLOOKUP(W16,Hoja4!$A$29:$B$61,2,FALSE) -> Caldas | AE16: 0 | AF16: 0 | AG16: 66400 | AH16: LA VIRGINIA | AI16: 3 | AJ16: 0 | AK16: Natural | AL16: 66 | AM16: RISARALDA | AN16: Aprobado con subsidio | AO16: MICRO | AP16: 1610 | AQ16: INDUSTRIAS MANUFACTURERAS | AR16: C | AS16: Aserrado, acepillado e impregnación de la madera | AT16: Transformación de la madera y fabricación de productos de madera y de corcho, excepto muebles; fabricación de artículos de cestería y espartería | AU16: 0 | AV16: 3 | AW16: 0 | AY16: 41 | AZ16: 30 | BA16: 73 | BB16: 17 | BC16: =VLOOKUP(BA16,Hoja4!$A$29:$B$61,2,FALSE) -> Tolima | BE16: Tolima | BF16: 17 | BG16: 813 | BI16: 41001 | BJ16: 20 | BK16: 5380 | BL16: 24 | BM16: 5 | BN16: =VLOOKUP(BM16,Hoja4!$A$29:$B$61,2,FALSE) -> Antioquia | BO16: =VLOOKUP(BK16,Hoja4!$D$29:$E$1150,2,FALSE) -> La estrella | BP16: 24 | BQ16: 1625 | BS16: Fabricación de productos de caucho y de plástico | BT16: 175 | BU16: 11129 | BV16: Transformación de la madera y fabricación de productos de madera y de corcho, excepto muebles; fabricación de artículos de cestería y espartería | BW16: 70 | BX16: 918
C17: 11001 | D17: BOGOTÁ, D.C. | E17: 7 | F17: 1 | G17: Natural | H17: 11 | I17: BOGOTÁ, D.C. | J17: Aprobado con subsidio | K17: MICRO | L17: 1081 | M17: INDUSTRIAS MANUFACTURERAS | N17: C | O17: Elaboración de otros productos alimenticios | P17: Elaboración de productos alimenticios | Q17: 6 | R17: 1 | S17: 0 | U17: 25 | V17: 486 | W17: 50 | X17: 131 | Y17: =VLOOKUP(W17,Hoja4!$A$29:$B$61,2,FALSE) -> Meta | AE17: 0 | AF17: 0 | AG17: 17001 | AH17: MANIZALES | AI17: 10 | AJ17: 0 | AK17: Natural | AL17: 17 | AM17: CALDAS | AN17: Aprobado con subsidio | AO17: MICRO | AP17: 2396 | AQ17: INDUSTRIAS MANUFACTURERAS | AR17: C | AS17: Fabricación de productos minerales no metálicos n.c.p. | AT17: Fabricación de otros productos minerales no metálicos | AU17: 3 | AV17: 7 | AW17: 0 | AY17: 25 | AZ17: 121 | BA17: 50 | BB17: 12 | BC17: =VLOOKUP(BA17,Hoja4!$A$29:$B$61,2,FALSE) -> Meta | BE17: Meta | BF17: 12 | BG17: 154 | BI17: 54405 | BJ17: 2 | BK17: 5088 | BL17: 21 | BM17: 5 | BN17: =VLOOKUP(BM17,Hoja4!$A$29:$B$61,2,FALSE) -> Antioquia | BO17: =VLOOKUP(BK17,Hoja4!$D$29:$E$1150,2,FALSE) -> Bello | BP17: 21 | BQ17: 286 | BS17: Fabricación de sustancias y productos químicos | BT17: 127 | BU17: 8658 | BV17: Fabricación de vehículos automotores, remolques y semirremolques | BW17: 59 | BX17: 3179
C18: 66001 | D18: PEREIRA | E18: 5 | F18: 8 | G18: Natural | H18: 66 | I18: RISARALDA | J18: Aprobado con subsidio | K18: MICRO | L18: 4390 | M18: CONSTRUCCIÓN | N18: F | O18: Otras actividades especializadas para la construcción de edificios y obras de ingeniería civil | P18: Otras actividades especializadas para la construcción de edificios y obras de ingeniería civil | Q18: 1 | R18: 4 | S18: 0 | U18: 8 | V18: 356 | W18: 54 | X18: 122 | Y18: =VLOOKUP(W18,Hoja4!$A$29:$B$61,2,FALSE) -> Norte de stder | AE18: 0 | AF18: 0 | AG18: 15759 | AH18: SOGAMOSO | AI18: 9 | AJ18: 3 | AK18: Natural | AL18: 15 | AM18: BOYACÁ | AN18: Aprobado con subsidio | AO18: MICRO | AP18: 1081 | AQ18: INDUSTRIAS MANUFACTURERAS | AR18: C | AS18: Elaboración de otros productos alimenticios | AT18: Elaboración de productos alimenticios | AU18: 6 | AV18: 3 | AW18: 0 | AY18: 8 | AZ18: 44 | BA18: 13 | BB18: 11 | BC18: =VLOOKUP(BA18,Hoja4!$A$29:$B$61,2,FALSE) -> Bolívar | BE18: Bolívar | BF18: 11 | BG18: 509 | BI18: 63001 | BJ18: 26 | BK18: 76130 | BL18: 21 | BM18: 76 | BN18: =VLOOKUP(BM18,Hoja4!$A$29:$B$61,2,FALSE) -> Valle del cauca | BO18: =VLOOKUP(BK18,Hoja4!$D$29:$E$1150,2,FALSE) -> Candelaria | BP18: 21 | BQ18: 300 | BS18: Fabricación de papel, cartón y productos de papel y cartón | BT18: 73 | BU18: 8477 | BV18: Fabricación de aparatos y equipo eléctrico | BW18: 44 | BX18: 2463
C19: 66170 | D19: DOSQUEBRADAS | E19: 5 | F19: 1 | G19: Natural | H19: 66 | I19: RISARALDA | J19: Aprobado con subsidio | K19: MICRO | L19: 3092 | M19: INDUSTRIAS MANUFACTURERAS | N19: C | O19: Fabricación de otros tipos de equipo de transporte n.c.p. | P19: Fabricación de otros tipos de equipo de transporte | Q19: 0 | R19: 5 | S19: 0 | U19: 85 | V19: 51 | W19: 47 | X19: 87 | Y19: =VLOOKUP(W19,Hoja4!$A$29:$B$61,2,FALSE) -> Magdalena | AE19: 0 | AF19: 0 | AG19: 17001 | AH19: MANIZALES | AI19: 29 | AJ19: 11 | AK19: Natural | AL19: 17 | AM19: CALDAS | AN19: Aprobado con subsidio | AO19: MEDIANA | AP19: 1523 | AQ19: INDUSTRIAS MANUFACTURERAS | AR19: C | AS19: Fabricación de calzado | AT19: Curtido y recurtido de cueros; fabricación de calzado; fabricación de artículos de viaje, maletas, bolsos de mano y artículos similares, y fabricación de artículos de talabartería y guarnicionería; adobo y teñido de pieles | AU19: 14 | AV19: 15 | AW19: 0 | AY19: 85 | AZ19: 4 | BA19: 23 | BB19: 10 | BC19: =VLOOKUP(BA19,Hoja4!$A$29:$B$61,2,FALSE) -> Córdoba | BE19: Córdoba | BF19: 10 | BG19: 435 | BI19: 68081 | BJ19: 8 | BK19: 25473 | BL19: 21 | BM19: 25 | BN19: =VLOOKUP(BM19,Hoja4!$A$29:$B$61,2,FALSE) -> Cundinamarca | BO19: =VLOOKUP(BK19,Hoja4!$D$29:$E$1150,2,FALSE) -> Mosquera | BP19: 21 | BQ19: 597 | BS19: Fabricación de productos metalúrgicos básicos | BT19: 44 | BU19: 1269 | BV19: Fabricación de productos metalúrgicos básicos | BW19: 44 | BX19: 1269
C20: 76147 | D20: CARTAGO | E20: 6 | F20: 0 | G20: Natural | H20: 76 | I20: VALLE DEL CAUCA | J20: Aprobado con subsidio | K20: MICRO | L20: 4530 | M20: COMERCIO AL POR MAYOR Y AL POR MENOR; REPARACIÓN DE VEHÍCULOS AUTOMOTORES Y MOTOCICLETAS | N20: G | O20: Comercio de partes, piezas (autopartes) y accesorios (lujos) para vehículos automotores | P20: Comercio de partes, piezas (autopartes) y accesorios (lujos) para vehículos automotores | Q20: 1 | R20: 5 | S20: 0 | U20: 73 | V20: 135 | W20: 23 | X20: 72 | Y20: =VLOOKUP(W20,Hoja4!$A$29:$B$61,2,FALSE) -> Córdoba | AE20: 0 | AF20: 0 | AG20: 11001 | AH20: BOGOTÁ, D.C. | AI20: 3 | AJ20: 2 | AK20: Natural | AL20: 11 | AM20: BOGOTÁ, D.C. | AN20: Aprobado con subsidio | AO20: MICRO | AP20: 1081 | AQ20: INDUSTRIAS MANUFACTURERAS | AR20: C | AS20: Elaboración de otros productos alimenticios | AT20: Elaboración de productos alimenticios | AU20: 2 | AV20: 1 | AW20: 0 | AY20: 73 | AZ20: 17 | BA20: 47 | BB20: 7 | BC20: =VLOOKUP(BA20,Hoja4!$A$29:$B$61,2,FALSE) -> Magdalena | BE20: Magdalena | BF20: 7 | BG20: 140 | BI20: 68861 | BJ20: 3 | BK20: 5266 | BL20: 20 | BM20: 5 | BN20: =VLOOKUP(BM20,Hoja4!$A$29:$B$61,2,FALSE) -> Antioquia | BO20: =VLOOKUP(BK20,Hoja4!$D$29:$E$1150,2,FALSE) -> Envigado | BP20: 20 | BQ20: 466 | BS20: Elaboración de bebidas | BT20: 29 | BU20: 6416 | BV20: Elaboración de bebidas | BW20: 29 | BX20: 6416
C21: 66001 | D21: PEREIRA | E21: 7 | F21: 5 | G21: Natural | H21: 66 | I21: RISARALDA | J21: Aprobado con subsidio | K21: PEQUEÑA | L21: 4290 | M21: CONSTRUCCIÓN | N21: F | O21: Construcción de otras obras de ingeniería civil | P21: Construcción de otras obras de ingeniería civil | Q21: 0 | R21: 7 | S21: 0 | U21: 20 | V21: 69 | W21: 20 | X21: 69 | Y21: =VLOOKUP(W21,Hoja4!$A$29:$B$61,2,FALSE) -> Cesar | AE21: 0 | AF21: 0 | AG21: 68001 | AH21: BUCARAMANGA | AI21: 3 | AJ21: 3 | AK21: Natural | AL21: 68 | AM21: SANTANDER | AN21: Aprobado con subsidio | AO21: MICRO | AP21: 2511 | AQ21: INDUSTRIAS MANUFACTURERAS | AR21: C | AS21: Fabricación de productos metálicos para uso estructural, tanques, depósitos y generadores de vapor. | AT21: Fabricación de productos elaborados de metal, excepto maquinaria y equipo | AU21: 0 | AV21: 3 | AW21: 0 | AY21: 20 | AZ21: 5 | BA21: 20 | BB21: 5 | BC21: =VLOOKUP(BA21,Hoja4!$A$29:$B$61,2,FALSE) -> Cesar | BE21: Cesar | BF21: 5 | BG21: 38 | BI21: 73001 | BJ21: 15 | BK21: 41001 | BL21: 20 | BM21: 41 | BN21: =VLOOKUP(BM21,Hoja4!$A$29:$B$61,2,FALSE) -> Huila | BO21: =VLOOKUP(BK21,Hoja4!$D$29:$E$1150,2,FALSE) -> Neiva | BP21: 20 | BQ21: 248 | BS21: Fabricación de maquinaria y equipo n.c.p. | BT21: 88 | BU21: 2929 | BV21: Fabricación de productos farmacéuticos, sustancias químicas medicinales y productos botánicos de uso farmacéutico | BW21: 20 | BX21: 1360
C22: 66001 | D22: PEREIRA | E22: 0 | F22: 0 | G22: Natural | H22: 66 | I22: RISARALDA | J22: 0 | K22: MICRO | L22: 4921 | M22: TRANSPORTE Y ALMACENAMIENTO | N22: H | O22: Transporte terrestre publico automotor | P22: Transporte terrestre publico automotor | Q22: 0 | R22: 0 | S22: 0 | U22: 97 | V22: 0 | W22: 18 | X22: 62 | Y22: =VLOOKUP(W22,Hoja4!$A$29:$B$61,2,FALSE) -> Caquetá | AE22: 0 | AF22: 0 | AG22: 5001 | AH22: MEDELLÍN | AI22: 0 | AJ22: 0 | AK22: Natural | AL22: 5 | AM22: ANTIOQUIA | AN22: 0 | AO22: MEDIANA | AP22: 1313 | AQ22: INDUSTRIAS MANUFACTURERAS | AR22: C | AS22: Preparación, hilatura, tejeduría y acabado de productos textiles | AT22: Fabricación de productos textiles | AU22: 0 | AV22: 0 | AW22: 0 | AY22: 97 | AZ22: 0 | BA22: 85 | BB22: 4 | BC22: =VLOOKUP(BA22,Hoja4!$A$29:$B$61,2,FALSE) -> Casanare | BE22: Casanare | BF22: 4 | BG22: 26 | BI22: 76670 | BJ22: 1 | BK22: 52001 | BL22: 18 | BM22: 52 | BN22: =VLOOKUP(BM22,Hoja4!$A$29:$B$61,2,FALSE) -> Nariño | BO22: =VLOOKUP(BK22,Hoja4!$D$29:$E$1150,2,FALSE) -> Pasto | BP22: 18 | BQ22: 377 | BS22: Fabricación de vehículos automotores, remolques y semirremolques | BT22: 59 | BU22: 3179 | BV22: Coquización, fabricación de productos de la refinación del petróleo y actividad de mezcla de combustibles | BW22: 12 | BX22: 439
C23: 66001 | D23: PEREIRA | E23: 6 | F23: 0 | G23: Natural | H23: 66 | I23: RISARALDA | J23: Aprobado con subsidio | K23: MICRO | L23: 4773 | M23: COMERCIO AL POR MAYOR Y AL POR MENOR; REPARACIÓN DE VEHÍCULOS AUTOMOTORES Y MOTOCICLETAS | N23: G | O23: Comercio al por menor de otros productos en establecimientos especializados | P23: Comercio al por menor de otros productos en establecimientos especializados | Q23: 5 | R23: 1 | S23: 0 | U23: 81 | V23: 11 | W23: 85 | X23: 51 | Y23: =VLOOKUP(W23,Hoja4!$A$29:$B$61,2,FALSE) -> Casanare | AE23: 0 | AF23: 0 | AG23: 5266 | AH23: ENVIGADO | AI23: 3 | AJ23: 1 | AK23: Natural | AL23: 5 | AM23: ANTIOQUIA | AN23: Aprobado con subsidio | AO23: MICRO | AP23: 1811 | AQ23: INDUSTRIAS MANUFACTURERAS | AR23: C | AS23: Actividades de impresión y actividades de servicios relacionados con la impresión | AT23: Actividades de impresión y de producción de copias a partir de grabaciones originales | AU23: 2 | AV23: 1 | AW23: 0 | AY23: 81 | AZ23: 3 | BA23: 70 | BB23: 3 | BC23: =VLOOKUP(BA23,Hoja4!$A$29:$B$61,2,FALSE) -> Sucre | BE23: Sucre | BF23: 3 | BG23: 21 | BI23: 25290 | BJ23: 2 | BK23: 54001 | BL23: 17 | BM23: 54 | BN23: =VLOOKUP(BM23,Hoja4!$A$29:$B$61,2,FALSE) -> Norte de stder | BO23: =VLOOKUP(BK23,Hoja4!$D$29:$E$1150,2,FALSE) -> Cucuta | BP23: 17 | BQ23: 705 | BS23: Fabricación de productos farmacéuticos, sustancias químicas medicinales y productos botánicos de uso farmacéutico | BT23: 20 | BU23: 1360 | BV23: Fabricación de productos informáticos, electrónicos y ópticos | BW23: 7 | BX23: 253
C24: 66001 | D24: PEREIRA | E24: 5 | F24: 0 | G24: Natural | H24: 66 | I24: RISARALDA | J24: Aprobado con subsidio | K24: MICRO | L24: 4530 | M24: COMERCIO AL POR MAYOR Y AL POR MENOR; REPARACIÓN DE VEHÍCULOS AUTOMOTORES Y MOTOCICLETAS | N24: G | O24: Comercio de partes, piezas (autopartes) y accesorios (lujos) para vehículos automotores | P24: Comercio de partes, piezas (autopartes) y accesorios (lujos) para vehículos automotores | Q24: 1 | R24: 4 | S24: 0 | U24: 44 | V24: 23 | W24: 44 | X24: 23 | Y24: =VLOOKUP(W24,Hoja4!$A$29:$B$61,2,FALSE) -> La guajira | AE24: 0 | AF24: 0 | AG24: 5001 | AH24: MEDELLÍN | AI24: 8 | AJ24: 0 | AK24: Natural | AL24: 5 | AM24: ANTIOQUIA | AN24: Aprobado con subsidio | AO24: MICRO | AP24: 3210 | AQ24: INDUSTRIAS MANUFACTURERAS | AR24: C | AS24: Fabricación de joyas, bisutería y artículos conexos | AT24: Otras industrias manufactureras | AU24: 7 | AV24: 1 | AW24: 0 | AY24: 44 | AZ24: 1 | BA24: 81 | BB24: 3 | BC24: =VLOOKUP(BA24,Hoja4!$A$29:$B$61,2,FALSE) -> Arauca | BE24: Arauca | BF24: 3 | BG24: 46 | BI24: 76001 | BJ24: 424 | BK24: 25754 | BL24: 17 | BM24: 25 | BN24: =VLOOKUP(BM24,Hoja4!$A$29:$B$61,2,FALSE) -> Cundinamarca | BO24: =VLOOKUP(BK24,Hoja4!$D$29:$E$1150,2,FALSE) -> Soacha | BP24: 17 | BQ24: 849 | BS24: Fabricación de productos informáticos, electrónicos y ópticos | BT24: 7 | BU24: 253 | BV24: Fabricación de otros tipos de equipo de transporte | BW24: 4 | BX24: 96
C25: 11001 | D25: BOGOTÁ, D.C. | E25: 4 | F25: 0 | G25: Natural | H25: 11 | I25: BOGOTÁ, D.C. | J25: Aprobado con subsidio | K25: MICRO | L25: 4923 | M25: TRANSPORTE Y ALMACENAMIENTO | N25: H | O25: Transporte terrestre publico automotor | P25: Transporte terrestre publico automotor | Q25: 0 | R25: 4 | S25: 0 | U25: 17 | V25: 135 | W25: 86 | X25: 22 | Y25: =VLOOKUP(W25,Hoja4!$A$29:$B$61,2,FALSE) -> Putumayo | AE25: 0 | AF25: 0 | AG25: 19698 | AH25: SANTANDER DE QUILICHAO | AI25: 6 | AJ25: 1 | AK25: Natural | AL25: 19 | AM25: CAUCA | AN25: Aprobado con subsidio | AO25: MICRO | AP25: 1052 | AQ25: INDUSTRIAS MANUFACTURERAS | AR25: C | AS25: Elaboración de productos de molinería, almidones y productos derivados del almidón | AT25: Elaboración de productos alimenticios | AU25: 0 | AV25: 6 | AW25: 0 | AY25: 17 | AZ25: 32 | BA25: 18 | BB25: 3 | BC25: =VLOOKUP(BA25,Hoja4!$A$29:$B$61,2,FALSE) -> Caquetá | BE25: =BC25 -> Caquetá | BF25: =BB25 -> 3 | BG25: 21 | BI25: 41524 | BJ25: 5 | BK25: 76834 | BL25: 16 | BM25: 76 | BN25: =VLOOKUP(BM25,Hoja4!$A$29:$B$61,2,FALSE) -> Valle del cauca | BO25: =VLOOKUP(BK25,Hoja4!$D$29:$E$1150,2,FALSE) -> Tuluá | BP25: 16 | BQ25: 1412 | BS25: 0 | BT25: 0 | BU25: 0 | BV25: 0 | BW25: 0 | BX25: 0
C26: 11001 | D26: BOGOTÁ, D.C. | E26: 0 | F26: 0 | G26: Natural | H26: 11 | I26: BOGOTÁ, D.C. | J26: 0 | K26: MICRO | L26: 3311 | M26: INDUSTRIAS MANUFACTURERAS | N26: C | O26: Mantenimiento y reparación especializado de productos elaborados en metal y de maquinaria y equipo | P26: Instalación, mantenimiento y reparación especializado de maquinaria y equipo | Q26: 0 | R26: 0 | S26: 0 | U26: 18 | V26: 62 | W26: 70 | X26: 20 | Y26: =VLOOKUP(W26,Hoja4!$A$29:$B$61,2,FALSE) -> Sucre | AE26: 0 | AF26: 0 | AG26: 70001 | AH26: SINCELEJO | AI26: 9 | AJ26: 6 | AK26: Natural | AL26: 70 | AM26: SUCRE | AN26: Aprobado con subsidio | AO26: PEQUEÑA | AP26: 1081 | AQ26: INDUSTRIAS MANUFACTURERAS | AR26: C | AS26: Elaboración de otros productos alimenticios | AT26: Elaboración de productos alimenticios | AU26: 4 | AV26: 5 | AW26: 0 | AY26: 18 | AZ26: 3 | BA26: 44 | BB26: 1 | BC26: =VLOOKUP(BA26,Hoja4!$A$29:$B$61,2,FALSE) -> La guajira | BE26: La guajira | BF26: =BB26 -> 1 | BG26: 9 | BI26: 41551 | BJ26: 4 | BK26: 73001 | BL26: 15 | BM26: 73 | BN26: =VLOOKUP(BM26,Hoja4!$A$29:$B$61,2,FALSE) -> Tolima | BO26: =VLOOKUP(BK26,Hoja4!$D$29:$E$1150,2,FALSE) -> Ibagué | BP26: 15 | BQ26: 632 | BT26: 0 | BU26: 0 | BV26: 0 | BW26: 0 | BX26: 0
C27: 66001 | D27: PEREIRA | E27: 12 | F27: 1 | G27: Natural | H27: 66 | I27: RISARALDA | J27: Aprobado con subsidio | K27: PEQUEÑA | L27: 1020 | M27: INDUSTRIAS MANUFACTURERAS | N27: C | O27: Procesamiento y conservación de frutas, legumbres, hortalizas y tubérculos | P27: Elaboración de productos alimenticios | Q27: 1 | R27: 11 | S27: 0 | U27: 23 | V27: 72 | W27: 81 | X27: 11 | Y27: =VLOOKUP(W27,Hoja4!$A$29:$B$61,2,FALSE) -> Arauca | AE27: 0 | AF27: 0 | AG27: 68001 | AH27: BUCARAMANGA | AI27: 4 | AJ27: 0 | AK27: Natural | AL27: 68 | AM27: SANTANDER | AN27: Aprobado con subsidio | AO27: MICRO | AP27: 1921 | AQ27: INDUSTRIAS MANUFACTURERAS | AR27: C | AS27: Fabricación de productos de la refinación del petróleo | AT27: Coquización, fabricación de productos de la refinación del petróleo y actividad de mezcla de combustibles | AU27: 3 | AV27: 1 | AW27: 0 | AY27: 23 | AZ27: 10 | BA27: 86 | BB27: 1 | BC27: =VLOOKUP(BA27,Hoja4!$A$29:$B$61,2,FALSE) -> Putumayo | BE27: Putumayo | BF27: =BB27 -> 1 | BG27: 2 | BI27: 52001 | BJ27: 18 | BK27: 19001 | BL27: 15 | BM27: 19 | BN27: =VLOOKUP(BM27,Hoja4!$A$29:$B$61,2,FALSE) -> Cauca | BO27: =VLOOKUP(BK27,Hoja4!$D$29:$E$1150,2,FALSE) -> Popayán | BP27: 15 | BQ27: 484 | BT27: 0 | BU27: 0
C28: 5001 | D28: MEDELLÍN | E28: 7 | F28: 1 | G28: Natural | H28: 5 | I28: ANTIOQUIA | J28: Aprobado con subsidio | K28: MICRO | L28: 2511 | M28: INDUSTRIAS MANUFACTURERAS | N28: C | O28: Fabricación de productos metálicos para uso estructural, tanques, depósitos y generadores de vapor. | P28: Fabricación de productos elaborados de metal, excepto maquinaria y equipo | Q28: 0 | R28: 7 | S28: 0 | U28: 88 | V28: 11 | W28: 88 | X28: 11 | Y28: =VLOOKUP(W28,Hoja4!$A$29:$B$61,2,FALSE) -> San Andrés | AE28: 0 | AF28: 0 | AG28: 41001 | AH28: NEIVA | AI28: 2 | AJ28: 1 | AK28: Natural | AL28: 41 | AM28: HUILA | AN28: Aprobado con subsidio | AO28: MICRO | AP28: 3120 | AQ28: INDUSTRIAS MANUFACTURERAS | AR28: C | AS28: Fabricación de colchones y somieres | AT28: Fabricación de muebles, colchones y somieres | AU28: 2 | AV28: 0 | AW28: 0 | AY28: 88 | AZ28: 0 | BA28: 99 | BB28: 1 | BC28: =VLOOKUP(BA28,Hoja4!$A$29:$B$61,2,FALSE) -> Vichada | BE28: Vichada | BF28: =BB28 -> 1 | BG28: 5 | BI28: 54673 | BJ28: 1 | BK28: 25286 | BL28: 15 | BM28: 25 | BN28: =VLOOKUP(BM28,Hoja4!$A$29:$B$61,2,FALSE) -> Cundinamarca | BO28: =VLOOKUP(BK28,Hoja4!$D$29:$E$1150,2,FALSE) -> Funza | BP28: 15 | BQ28: 1064 | BT28: =SUM(BT2:BT27) -> 2535 | BU28: =SUM(BU2:BU27) -> 127438
C29: 76248 | D29: EL CERRITO | E29: 0 | F29: 0 | G29: Natural | H29: 76 | I29: VALLE DEL CAUCA | J29: 0 | K29: MICRO | L29: 4923 | M29: TRANSPORTE Y ALMACENAMIENTO | N29: H | O29: Transporte terrestre publico automotor | P29: Transporte terrestre publico automotor | Q29: 0 | R29: 0 | S29: 0 | U29: 91 | V29: 1 | W29: 95 | X29: 6 | Y29: =VLOOKUP(W29,Hoja4!$A$29:$B$61,2,FALSE) -> Guaviare | AE29: 0 | AF29: 0 | AG29: 66001 | AH29: PEREIRA | AI29: 8 | AJ29: 0 | AK29: Natural | AL29: 66 | AM29: RISARALDA | AN29: Aprobado con subsidio | AO29: MICRO | AP29: 1410 | AQ29: INDUSTRIAS MANUFACTURERAS | AR29: C | AS29: Confección de prendas de vestir, excepto prendas de piel | AT29: Confección de prendas de vestir | AU29: 7 | AV29: 1 | AW29: 0 | AY29: 91 | AZ29: 0 | BA29: 97 | BB29: 0 | BC29: =VLOOKUP(BA29,Hoja4!$A$29:$B$61,2,FALSE) -> Vaupés | BE29: Otros | BF29: =SUM(BB29:BB34) -> 0 | BG29: =SUMIFS($AI$2:$AI$399999,$AN$2:$AN$399999,"Aprobado con subsidio")-SUM(BG2:BG28) -> 0 | BI29: 54001 | BJ29: 17 | BK29: 68307 | BL29: 14 | BN29: Otros | BO29: Otros | BP29: =SUM(BL29:BL1000) -> 359 | BQ29: =SUMIFS($AI$2:$AI$399999,$AN$2:$AN$399999,"Aprobado con subsidio")-SUM(BQ2:BQ28) -> 19152
C30: 11001 | D30: BOGOTÁ, D.C. | E30: 3 | F30: 0 | G30: Natural | H30: 11 | I30: BOGOTÁ, D.C. | J30: Aprobado con subsidio | K30: MICRO | L30: 1521 | M30: INDUSTRIAS MANUFACTURERAS | N30: C | O30: Fabricación de calzado | P30: Curtido y recurtido de cueros; fabricación de calzado; fabricación de artículos de viaje, maletas, bolsos de mano y artículos similares, y fabricación de artículos de talabartería y guarnicionería; adobo y teñido de pieles | Q30: 2 | R30: 1 | S30: 0 | U30: 95 | V30: 6 | W30: 27 | X30: 5 | Y30: =VLOOKUP(W30,Hoja4!$A$29:$B$61,2,FALSE) -> Chocó | AE30: 0 | AF30: 0 | AG30: 41001 | AH30: NEIVA | AI30: 5 | AJ30: 2 | AK30: Natural | AL30: 41 | AM30: HUILA | AN30: Aprobado con subsidio | AO30: MICRO | AP30: 1081 | AQ30: INDUSTRIAS MANUFACTURERAS | AR30: C | AS30: Elaboración de otros productos alimenticios | AT30: Elaboración de productos alimenticios | AU30: 3 | AV30: 2 | AW30: 0 | AY30: 95 | AZ30: 0 | BA30: 88 | BB30: 0 | BC30: =VLOOKUP(BA30,Hoja4!$A$29:$B$61,2,FALSE) -> San Andrés | BE30: Total | BF30: =SUM(BF2:BF29) -> 2535 | BG30: =SUM(BG2:BG29) -> 127438 | BI30: 50001 | BJ30: 11 | BK30: 76147 | BL30: 13 | BN30: Total | BP30: =SUM(BP2:BP29) -> 2535 | BQ30: =SUM(BQ2:BQ29) -> 127438
C31: 5088 | D31: BELLO | E31: 10 | F31: 2 | G31: Natural | H31: 5 | I31: ANTIOQUIA | J31: Aprobado con subsidio | K31: PEQUEÑA | L31: 5613 | M31: ALOJAMIENTO Y SERVICIOS DE COMIDA | N31: I | O31: Actividades de restaurantes, cafeterías y servicio móvil de comidas | P31: Actividades de restaurantes, cafeterías y servicio móvil de comidas | Q31: 5 | R31: 5 | S31: 0 | U31: 86 | V31: 22 | W31: 99 | X31: 2 | Y31: =VLOOKUP(W31,Hoja4!$A$29:$B$61,2,FALSE) -> Vichada | AE31: 0 | AF31: 0 | AG31: 66170 | AH31: DOSQUEBRADAS | AI31: 9 | AJ31: 0 | AK31: Natural | AL31: 66 | AM31: RISARALDA | AN31: Aprobado con subsidio | AO31: MICRO | AP31: 1410 | AQ31: INDUSTRIAS MANUFACTURERAS | AR31: C | AS31: Confección de prendas de vestir, excepto prendas de piel | AT31: Confección de prendas de vestir | AU31: 9 | AV31: 0 | AW31: 0 | AY31: 86 | AZ31: 1 | BA31: 91 | BB31: 0 | BC31: =VLOOKUP(BA31,Hoja4!$A$29:$B$61,2,FALSE) -> Amazonas | BI31: 76147 | BJ31: 13 | BK31: 50001 | BL31: 11
C32: 66001 | D32: PEREIRA | E32: 6 | F32: 0 | G32: Natural | H32: 66 | I32: RISARALDA | J32: Aprobado con subsidio | K32: MICRO | L32: 4741 | M32: COMERCIO AL POR MAYOR Y AL POR MENOR; REPARACIÓN DE VEHÍCULOS AUTOMOTORES Y MOTOCICLETAS | N32: G | O32: Comercio al por menor de equipos de informática y de comunicaciones, en establecimientos especializados | P32: Comercio al por menor de equipos de informática y de comunicaciones, en establecimientos especializados | Q32: 1 | R32: 5 | S32: 0 | U32: 27 | V32: 5 | W32: 91 | X32: 1 | Y32: =VLOOKUP(W32,Hoja4!$A$29:$B$61,2,FALSE) -> Amazonas | AE32: 0 | AF32: 0 | AG32: 54405 | AH32: LOS PATIOS | AI32: 4 | AJ32: 6 | AK32: Natural | AL32: 54 | AM32: NORTE DE SANTANDER | AN32: Aprobado con subsidio | AO32: MICRO | AP32: 1040 | AQ32: INDUSTRIAS MANUFACTURERAS | AR32: C | AS32: Elaboración de productos lácteos | AT32: Elaboración de productos alimenticios | AU32: 2 | AV32: 2 | AW32: 0 | AY32: 27 | AZ32: 0 | BA32: 95 | BB32: 0 | BC32: =VLOOKUP(BA32,Hoja4!$A$29:$B$61,2,FALSE) -> Guaviare | BI32: 5360 | BJ32: 59 | BK32: 76111 | BL32: 11
C33: 66001 | D33: PEREIRA | E33: 4 | F33: 4 | G33: Natural | H33: 66 | I33: RISARALDA | J33: Aprobado con subsidio | K33: MICRO | L33: 4752 | M33: COMERCIO AL POR MAYOR Y AL POR MENOR; REPARACIÓN DE VEHÍCULOS AUTOMOTORES Y MOTOCICLETAS | N33: G | O33: Comercio al por menor de otros enseres domésticos en establecimientos especializados | P33: Comercio al por menor de otros enseres domésticos en establecimientos especializados | Q33: 0 | R33: 4 | S33: 0 | U33: 94 | V33: 1 | W33: 94 | X33: 1 | Y33: =VLOOKUP(W33,Hoja4!$A$29:$B$61,2,FALSE) -> Guainía | AE33: 0 | AF33: 0 | AG33: 63001 | AH33: ARMENIA | AI33: 2 | AJ33: 0 | AK33: Natural | AL33: 63 | AM33: QUINDÍO | AN33: Aprobado con subsidio | AO33: MICRO | AP33: 3110 | AQ33: INDUSTRIAS MANUFACTURERAS | AR33: C | AS33: Fabricación de muebles | AT33: Fabricación de muebles, colchones y somieres | AU33: 1 | AV33: 1 | AW33: 0 | AY33: 94 | AZ33: 0 | BA33: 27 | BB33: 0 | BC33: =VLOOKUP(BA33,Hoja4!$A$29:$B$61,2,FALSE) -> Chocó | BI33: 5148 | BJ33: 6 | BK33: 13001 | BL33: 10
C34: 11001 | D34: BOGOTÁ, D.C. | E34: 4 | F34: 3 | G34: Natural | H34: 11 | I34: BOGOTÁ, D.C. | J34: Aprobado con subsidio | K34: MICRO | L34: 1410 | M34: INDUSTRIAS MANUFACTURERAS | N34: C | O34: Confección de prendas de vestir, excepto prendas de piel | P34: Confección de prendas de vestir | Q34: 4 | R34: 0 | S34: 0 | U34: 99 | V34: 2 | W34: 97 | X34: 0 | Y34: =VLOOKUP(W34,Hoja4!$A$29:$B$61,2,FALSE) -> Vaupés | AE34: 0 | AF34: 0 | AG34: 68001 | AH34: BUCARAMANGA | AI34: 3 | AJ34: 0 | AK34: Natural | AL34: 68 | AM34: SANTANDER | AN34: Aprobado con subsidio | AO34: MICRO | AP34: 2511 | AQ34: INDUSTRIAS MANUFACTURERAS | AR34: C | AS34: Fabricación de productos metálicos para uso estructural, tanques, depósitos y generadores de vapor. | AT34: Fabricación de productos elaborados de metal, excepto maquinaria y equipo | AU34: 0 | AV34: 3 | AW34: 0 | AY34: 99 | AZ34: 1 | BA34: 94 | BB34: 0 | BC34: =VLOOKUP(BA34,Hoja4!$A$29:$B$61,2,FALSE) -> Guainía | BI34: 76520 | BJ34: 51 | BK34: 15238 | BL34: 9
C35: 73001 | D35: IBAGUÉ | E35: 2 | F35: 2 | G35: Natural | H35: 73 | I35: TOLIMA | J35: Aprobado con subsidio | K35: MICRO | L35: 4520 | M35: COMERCIO AL POR MAYOR Y AL POR MENOR; REPARACIÓN DE VEHÍCULOS AUTOMOTORES Y MOTOCICLETAS | N35: G | O35: Mantenimiento y reparación de vehículos automotores | P35: Mantenimiento y reparación de vehículos automotores | Q35: 0 | R35: 2 | S35: 0 | AE35: 0 | AF35: 0 | AG35: 68001 | AH35: BUCARAMANGA | AI35: 6 | AJ35: 7 | AK35: Natural | AL35: 68 | AM35: SANTANDER | AN35: Aprobado con subsidio | AO35: PEQUEÑA | AP35: 1410 | AQ35: INDUSTRIAS MANUFACTURERAS | AR35: C | AS35: Confección de prendas de vestir, excepto prendas de piel | AT35: Confección de prendas de vestir | AU35: 4 | AV35: 2 | AW35: 0 | BI35: 76834 | BJ35: 16 | BK35: 63130 | BL35: 8
C36: 11001 | D36: BOGOTÁ, D.C. | E36: 5 | F36: 1 | G36: Natural | H36: 11 | I36: BOGOTÁ, D.C. | J36: Aprobado con subsidio | K36: MICRO | L36: 5611 | M36: ALOJAMIENTO Y SERVICIOS DE COMIDA | N36: I | O36: Actividades de restaurantes, cafeterías y servicio móvil de comidas | P36: Actividades de restaurantes, cafeterías y servicio móvil de comidas | Q36: 1 | R36: 4 | S36: 0 | AE36: 0 | AF36: 0 | AG36: 68081 | AH36: BARRANCABERMEJA | AI36: 6 | AJ36: 0 | AK36: Natural | AL36: 68 | AM36: SANTANDER | AN36: Aprobado con subsidio | AO36: MICRO | AP36: 1610 | AQ36: INDUSTRIAS MANUFACTURERAS | AR36: C | AS36: Aserrado, acepillado e impregnación de la madera | AT36: Transformación de la madera y fabricación de productos de madera y de corcho, excepto muebles; fabricación de artículos de cestería y espartería | AU36: 2 | AV36: 4 | AW36: 0 | BI36: 76869 | BJ36: 4 | BK36: 68081 | BL36: 8
C37: 5001 | D37: MEDELLÍN | E37: 2 | F37: 3 | G37: Natural | H37: 5 | I37: ANTIOQUIA | J37: Aprobado con subsidio | K37: MICRO | L37: 6190 | M37: INFORMACIÓN Y COMUNICACIONES | N37: J | O37: Otras actividades de telecomunicaciones | P37: Otras actividades de telecomunicaciones | Q37: 2 | R37: 0 | S37: 0 | AE37: 0 | AF37: 0 | AG37: 68861 | AH37: VÉLEZ | AI37: 12 | AJ37: 1 | AK37: Natural | AL37: 68 | AM37: SANTANDER | AN37: Aprobado con subsidio | AO37: PEQUEÑA | AP37: 1089 | AQ37: INDUSTRIAS MANUFACTURERAS | AR37: C | AS37: Elaboración de otros productos alimenticios | AT37: Elaboración de productos alimenticios | AU37: 7 | AV37: 5 | AW37: 0 | BI37: 25799 | BJ37: 6 | BK37: 5440 | BL37: 8
C38: 5001 | D38: MEDELLÍN | E38: 2 | F38: 0 | G38: Natural | H38: 5 | I38: ANTIOQUIA | J38: Aprobado con subsidio | K38: MICRO | L38: 1084 | M38: INDUSTRIAS MANUFACTURERAS | N38: C | O38: Elaboración de otros productos alimenticios | P38: Elaboración de productos alimenticios | Q38: 1 | R38: 1 | S38: 0 | AE38: 0 | AF38: 0 | AG38: 73001 | AH38: IBAGUÉ | AI38: 3 | AJ38: 1 | AK38: Natural | AL38: 73 | AM38: TOLIMA | AN38: Aprobado con subsidio | AO38: MICRO | AP38: 3312 | AQ38: INDUSTRIAS MANUFACTURERAS | AR38: C | AS38: Mantenimiento y reparación especializado de productos elaborados en metal y de maquinaria y equipo | AT38: Instalación, mantenimiento y reparación especializado de maquinaria y equipo | AU38: 0 | AV38: 3 | AW38: 0 | BI38: 18001 | BJ38: 1 | BK38: 5237 | BL38: 7
C39: 5001 | D39: MEDELLÍN | E39: 22 | F39: 1 | G39: Natural | H39: 5 | I39: ANTIOQUIA | J39: Aprobado con subsidio | K39: PEQUEÑA | L39: 141 | M39: AGRICULTURA, GANADERÍA, CAZA, SILVICULTURA Y PESCA | N39: A | O39: Ganadería | P39: Ganadería | Q39: 0 | R39: 22 | S39: 0 | AE39: 0 | AF39: 0 | AG39: 76670 | AH39: SAN PEDRO | AI39: 0 | AJ39: 0 | AK39: Natural | AL39: 76 | AM39: VALLE DEL CAUCA | AN39: 0 | AO39: MICRO | AP39: 3110 | AQ39: INDUSTRIAS MANUFACTURERAS | AR39: C | AS39: Fabricación de muebles | AT39: Fabricación de muebles, colchones y somieres | AU39: 0 | AV39: 0 | AW39: 0 | BI39: 18753 | BJ39: 2 | BK39: 47001 | BL39: 7
C40: 5001 | D40: MEDELLÍN | E40: 9 | F40: 0 | G40: Natural | H40: 5 | I40: ANTIOQUIA | J40: Aprobado con subsidio | K40: MICRO | L40: 5611 | M40: ALOJAMIENTO Y SERVICIOS DE COMIDA | N40: I | O40: Actividades de restaurantes, cafeterías y servicio móvil de comidas | P40: Actividades de restaurantes, cafeterías y servicio móvil de comidas | Q40: 3 | R40: 6 | S40: 0 | AE40: 0 | AF40: 0 | AG40: 25290 | AH40: FUSAGASUGÁ | AI40: 3 | AJ40: 0 | AK40: Natural | AL40: 25 | AM40: CUNDINAMARCA | AN40: Aprobado con subsidio | AO40: MICRO | AP40: 1081 | AQ40: INDUSTRIAS MANUFACTURERAS | AR40: C | AS40: Elaboración de otros productos alimenticios | AT40: Elaboración de productos alimenticios | AU40: 3 | AV40: 0 | AW40: 0 | BI40: 15238 | BJ40: 9 | BK40: 5318 | BL40: 7
C41: 5001 | D41: MEDELLÍN | E41: 3 | F41: 0 | G41: Natural | H41: 5 | I41: ANTIOQUIA | J41: Aprobado con subsidio | K41: MICRO | L41: 5611 | M41: ALOJAMIENTO Y SERVICIOS DE COMIDA | N41: I | O41: Actividades de restaurantes, cafeterías y servicio móvil de comidas | P41: Actividades de restaurantes, cafeterías y servicio móvil de comidas | Q41: 2 | R41: 1 | S41: 0 | AE41: 0 | AF41: 0 | AG41: 76001 | AH41: CALI | AI41: 3 | AJ41: 0 | AK41: Natural | AL41: 76 | AM41: VALLE DEL CAUCA | AN41: Aprobado con subsidio | AO41: MICRO | AP41: 1089 | AQ41: INDUSTRIAS MANUFACTURERAS | AR41: C | AS41: Elaboración de otros productos alimenticios | AT41: Elaboración de productos alimenticios | AU41: 0 | AV41: 3 | AW41: 0 | BI41: 5045 | BJ41: 2 | BK41: 19698 | BL41: 6
C42: 5001 | D42: MEDELLÍN | E42: 3 | F42: 1 | G42: Natural | H42: 5 | I42: ANTIOQUIA | J42: Aprobado con subsidio | K42: MICRO | L42: 5612 | M42: ALOJAMIENTO Y SERVICIOS DE COMIDA | N42: I | O42: Actividades de restaurantes, cafeterías y servicio móvil de comidas | P42: Actividades de restaurantes, cafeterías y servicio móvil de comidas | Q42: 2 | R42: 1 | S42: 0 | AE42: 0 | AF42: 0 | AG42: 76001 | AH42: CALI | AI42: 2 | AJ42: 1 | AK42: Natural | AL42: 76 | AM42: VALLE DEL CAUCA | AN42: Aprobado con subsidio | AO42: MICRO | AP42: 1081 | AQ42: INDUSTRIAS MANUFACTURERAS | AR42: C | AS42: Elaboración de otros productos alimenticios | AT42: Elaboración de productos alimenticios | AU42: 1 | AV42: 1 | AW42: 0 | BI42: 5631 | BJ42: 24 | BK42: 5148 | BL42: 6
C43: 5001 | D43: MEDELLÍN | E43: 3 | F43: 1 | G43: Natural | H43: 5 | I43: ANTIOQUIA | J43: Aprobado con subsidio | K43: MICRO | L43: 4773 | M43: COMERCIO AL POR MAYOR Y AL POR MENOR; REPARACIÓN DE VEHÍCULOS AUTOMOTORES Y MOTOCICLETAS | N43: G | O43: Comercio al por menor de otros productos en establecimientos especializados | P43: Comercio al por menor de otros productos en establecimientos especializados | Q43: 1 | R43: 2 | S43: 0 | AE43: 0 | AF43: 0 | AG43: 76001 | AH43: CALI | AI43: 3 | AJ43: 0 | AK43: Natural | AL43: 76 | AM43: VALLE DEL CAUCA | AN43: Aprobado con subsidio | AO43: MICRO | AP43: 1610 | AQ43: INDUSTRIAS MANUFACTURERAS | AR43: C | AS43: Aserrado, acepillado e impregnación de la madera | AT43: Transformación de la madera y fabricación de productos de madera y de corcho, excepto muebles; fabricación de artículos de cestería y espartería | AU43: 0 | AV43: 3 | AW43: 0 | BI43: 15516 | BJ43: 1 | BK43: 25799 | BL43: 6
C44: 5001 | D44: MEDELLÍN | E44: 28 | F44: 14 | G44: Natural | H44: 5 | I44: ANTIOQUIA | J44: Aprobado con subsidio | K44: PEQUEÑA | L44: 5511 | M44: ALOJAMIENTO Y SERVICIOS DE COMIDA | N44: I | O44: Actividades de alojamiento de estancias cortas | P44: Actividades de alojamiento de estancias cortas | Q44: 22 | R44: 6 | S44: 0 | AE44: 0 | AF44: 0 | AG44: 76001 | AH44: CALI | AI44: 4 | AJ44: 2 | AK44: Natural | AL44: 76 | AM44: VALLE DEL CAUCA | AN44: Aprobado con subsidio | AO44: MICRO | AP44: 1081 | AQ44: INDUSTRIAS MANUFACTURERAS | AR44: C | AS44: Elaboración de otros productos alimenticios | AT44: Elaboración de productos alimenticios | AU44: 1 | AV44: 3 | AW44: 0 | BI44: 8638 | BJ44: 1 | BK44: 5212 | BL44: 6
C45: 5001 | D45: MEDELLÍN | E45: 4 | F45: 2 | G45: Natural | H45: 5 | I45: ANTIOQUIA | J45: Aprobado con subsidio | K45: MICRO | L45: 5619 | M45: ALOJAMIENTO Y SERVICIOS DE COMIDA | N45: I | O45: Actividades de restaurantes, cafeterías y servicio móvil de comidas | P45: Actividades de restaurantes, cafeterías y servicio móvil de comidas | Q45: 3 | R45: 1 | S45: 0 | AE45: 0 | AF45: 0 | AG45: 76001 | AH45: CALI | AI45: 11 | AJ45: 4 | AK45: Natural | AL45: 76 | AM45: VALLE DEL CAUCA | AN45: Aprobado con subsidio | AO45: PEQUEÑA | AP45: 2229 | AQ45: INDUSTRIAS MANUFACTURERAS | AR45: C | AS45: Fabricación de productos de plástico | AT45: Fabricación de productos de caucho y de plástico | AU45: 5 | AV45: 6 | AW45: 0 | BI45: 13052 | BJ45: 1 | BK45: 19573 | BL45: 6
C46: 5001 | D46: MEDELLÍN | E46: 0 | F46: 0 | G46: Jurídica | H46: 5 | I46: ANTIOQUIA | J46: 0 | K46: 0 | L46: 1313 | M46: INDUSTRIAS MANUFACTURERAS | N46: C | O46: Preparación, hilatura, tejeduría y acabado de productos textiles | P46: Fabricación de productos textiles | Q46: 0 | R46: 0 | S46: 0 | AE46: 0 | AF46: 0 | AG46: 76001 | AH46: CALI | AI46: 10 | AJ46: 5 | AK46: Natural | AL46: 76 | AM46: VALLE DEL CAUCA | AN46: Aprobado con subsidio | AO46: PEQUEÑA | AP46: 1081 | AQ46: INDUSTRIAS MANUFACTURERAS | AR46: C | AS46: Elaboración de otros productos alimenticios | AT46: Elaboración de productos alimenticios | AU46: 6 | AV46: 4 | AW46: 0 | BI46: 68547 | BJ46: 4 | BK46: 5308 | BL46: 6
C47: 5088 | D47: BELLO | E47: 4 | F47: 3 | G47: Natural | H47: 5 | I47: ANTIOQUIA | J47: Aprobado con subsidio | K47: MICRO | L47: 5613 | M47: ALOJAMIENTO Y SERVICIOS DE COMIDA | N47: I | O47: Actividades de restaurantes, cafeterías y servicio móvil de comidas | P47: Actividades de restaurantes, cafeterías y servicio móvil de comidas | Q47: 3 | R47: 1 | S47: 0 | AE47: 0 | AF47: 0 | AG47: 76001 | AH47: CALI | AI47: 4 | AJ47: 0 | AK47: Natural | AL47: 76 | AM47: VALLE DEL CAUCA | AN47: Aprobado con subsidio | AO47: MICRO | AP47: 1081 | AQ47: INDUSTRIAS MANUFACTURERAS | AR47: C | AS47: Elaboración de otros productos alimenticios | AT47: Elaboración de productos alimenticios | AU47: 3 | AV47: 1 | AW47: 0 | BI47: 68307 | BJ47: 14 | BK47: 41524 | BL47: 5
C48: 17380 | D48: LA DORADA | E48: 4 | F48: 0 | G48: Natural | H48: 17 | I48: CALDAS | J48: Aprobado con subsidio | K48: MICRO | L48: 4541 | M48: COMERCIO AL POR MAYOR Y AL POR MENOR; REPARACIÓN DE VEHÍCULOS AUTOMOTORES Y MOTOCICLETAS | N48: G | O48: Comercio, mantenimiento y reparación de motocicletas y de sus partes, piezas y accesorios | P48: Comercio, mantenimiento y reparación de motocicletas y de sus partes, piezas y accesorios | Q48: 1 | R48: 3 | S48: 0 | AE48: 0 | AF48: 0 | AG48: 5001 | AH48: MEDELLÍN | AI48: 8 | AJ48: 1 | AK48: Natural | AL48: 5 | AM48: ANTIOQUIA | AN48: Aprobado con subsidio | AO48: MICRO | AP48: 1410 | AQ48: INDUSTRIAS MANUFACTURERAS | AR48: C | AS48: Confección de prendas de vestir, excepto prendas de piel | AT48: Confección de prendas de vestir | AU48: 4 | AV48: 4 | AW48: 0 | BI48: 15001 | BJ48: 4 | BK48: 76248 | BL48: 5
C49: 17380 | D49: LA DORADA | E49: 1 | F49: 0 | G49: Natural | H49: 17 | I49: CALDAS | J49: Aprobado con subsidio | K49: MICRO | L49: 4923 | M49: TRANSPORTE Y ALMACENAMIENTO | N49: H | O49: Transporte terrestre publico automotor | P49: Transporte terrestre publico automotor | Q49: 0 | R49: 1 | S49: 0 | AE49: 0 | AF49: 0 | AG49: 76001 | AH49: CALI | AI49: 97 | AJ49: 0 | AK49: Natural | AL49: 76 | AM49: VALLE DEL CAUCA | AN49: Aprobado con subsidio | AO49: MEDIANA | AP49: 1089 | AQ49: INDUSTRIAS MANUFACTURERAS | AR49: C | AS49: Elaboración de otros productos alimenticios | AT49: Elaboración de productos alimenticios | AU49: 47 | AV49: 50 | AW49: 0 | BI49: 8001 | BJ49: 38 | BK49: 68276 | BL49: 5
C50: 52001 | D50: PASTO | E50: 14 | F50: 2 | G50: Natural | H50: 52 | I50: NARIÑO | J50: Aprobado con subsidio | K50: PEQUEÑA | L50: 5611 | M50: ALOJAMIENTO Y SERVICIOS DE COMIDA | N50: I | O50: Actividades de restaurantes, cafeterías y servicio móvil de comidas | P50: Actividades de restaurantes, cafeterías y servicio móvil de comidas | Q50: 7 | R50: 7 | S50: 0 | AE50: 0 | AF50: 0 | AG50: 63001 | AH50: ARMENIA | AI50: 4 | AJ50: 1 | AK50: Natural | AL50: 63 | AM50: QUINDÍO | AN50: Aprobado con subsidio | AO50: MICRO | AP50: 1084 | AQ50: INDUSTRIAS MANUFACTURERAS | AR50: C | AS50: Elaboración de otros productos alimenticios | AT50: Elaboración de productos alimenticios | AU50: 4 | AV50: 0 | AW50: 0 | BI50: 52356 | BJ50: 3 | BK50: 23001 | BL50: 5
C51: 11001 | D51: BOGOTÁ, D.C. | E51: 6 | F51: 0 | G51: Natural | H51: 11 | I51: BOGOTÁ, D.C. | J51: Aprobado con subsidio | K51: MICRO | L51: 5511 | M51: ALOJAMIENTO Y SERVICIOS DE COMIDA | N51: I | O51: Actividades de alojamiento de estancias cortas | P51: Actividades de alojamiento de estancias cortas | Q51: 2 | R51: 4 | S51: 0 | AE51: 0 | AF51: 0 | AG51: 41524 | AH51: PALERMO | AI51: 36 | AJ51: 1 | AK51: Natural | AL51: 41 | AM51: HUILA | AN51: Aprobado con subsidio | AO51: PEQUEÑA | AP51: 2399 | AQ51: INDUSTRIAS MANUFACTURERAS | AR51: C | AS51: Fabricación de productos minerales no metálicos n.c.p. | AT51: Fabricación de otros productos minerales no metálicos | AU51: 4 | AV51: 32 | AW51: 0 | BI51: 5237 | BJ51: 7 | BK51: 5376 | BL51: 5
C52: 41551 | D52: PITALITO | E52: 2 | F52: 1 | G52: Natural | H52: 41 | I52: HUILA | J52: Aprobado con subsidio | K52: MICRO | L52: 4771 | M52: COMERCIO AL POR MAYOR Y AL POR MENOR; REPARACIÓN DE VEHÍCULOS AUTOMOTORES Y MOTOCICLETAS | N52: G | O52: Comercio al por menor de otros productos en establecimientos especializados | P52: Comercio al por menor de otros productos en establecimientos especializados | Q52: 2 | R52: 0 | S52: 0 | AE52: 0 | AF52: 0 | AG52: 41551 | AH52: PITALITO | AI52: 3 | AJ52: 33 | AK52: Natural | AL52: 41 | AM52: HUILA | AN52: Aprobado con subsidio | AO52: PEQUEÑA | AP52: 2392 | AQ52: INDUSTRIAS MANUFACTURERAS | AR52: C | AS52: Fabricación de productos minerales no metálicos n.c.p. | AT52: Fabricación de otros productos minerales no metálicos | AU52: 0 | AV52: 3 | AW52: 0 | BI52: 5154 | BJ52: 1 | BK52: 19300 | BL52: 5
C53: 11001 | D53: BOGOTÁ, D.C. | E53: 6 | F53: 1 | G53: Natural | H53: 11 | I53: BOGOTÁ, D.C. | J53: Aprobado con subsidio | K53: MICRO | L53: 1523 | M53: INDUSTRIAS MANUFACTURERAS | N53: C | O53: Fabricación de calzado | P53: Curtido y recurtido de cueros; fabricación de calzado; fabricación de artículos de viaje, maletas, bolsos de mano y artículos similares, y fabricación de artículos de talabartería y guarnicionería; adobo y teñido de pieles | Q53: 4 | R53: 2 | S53: 0 | AE53: 0 | AF53: 0 | AG53: 11001 | AH53: BOGOTÁ, D.C. | AI53: 10 | AJ53: 0 | AK53: Natural | AL53: 11 | AM53: BOGOTÁ, D.C. | AN53: Aprobado con subsidio | AO53: PEQUEÑA | AP53: 2394 | AQ53: INDUSTRIAS MANUFACTURERAS | AR53: C | AS53: Fabricación de productos minerales no metálicos n.c.p. | AT53: Fabricación de otros productos minerales no metálicos | AU53: 2 | AV53: 8 | AW53: 0 | BI53: 19001 | BJ53: 15 | BK53: 25126 | BL53: 5
C54: 50573 | D54: PUERTO LÓPEZ | E54: 12 | F54: 12 | G54: Natural | H54: 50 | I54: META | J54: Aprobado con subsidio | K54: PEQUEÑA | L54: 4631 | M54: COMERCIO AL POR MAYOR Y AL POR MENOR; REPARACIÓN DE VEHÍCULOS AUTOMOTORES Y MOTOCICLETAS | N54: G | O54: Comercio al por mayor de alimentos, bebidas y tabaco | P54: Comercio al por mayor de alimentos, bebidas y tabaco | Q54: 6 | R54: 6 | S54: 0 | AE54: 0 | AF54: 0 | AG54: 52001 | AH54: PASTO | AI54: 3 | AJ54: 0 | AK54: Natural | AL54: 52 | AM54: NARIÑO | AN54: Aprobado con subsidio | AO54: MICRO | AP54: 1089 | AQ54: INDUSTRIAS MANUFACTURERAS | AR54: C | AS54: Elaboración de otros productos alimenticios | AT54: Elaboración de productos alimenticios | AU54: 2 | AV54: 1 | AW54: 0 | BI54: 15806 | BJ54: 1 | BK54: 5615 | BL54: 5
C55: 85001 | D55: YOPAL | E55: 0 | F55: 0 | G55: Natural | H55: 85 | I55: CASANARE | J55: 0 | K55: 0 | L55: 8430 | M55: ADMINISTRACIÓN PÚBLICA Y DEFENSA; PLANES DE SEGURIDAD SOCIAL DE AFILIACIÓN OBLIGATORIA | N55: O | O55: Actividades de planes de seguridad social de afiliación obligatoria | P55: Actividades de planes de seguridad social de afiliación obligatoria | Q55: 0 | R55: 0 | S55: 0 | AE55: 0 | AF55: 0 | AG55: 76001 | AH55: CALI | AI55: 43 | AJ55: 2 | AK55: Natural | AL55: 76 | AM55: VALLE DEL CAUCA | AN55: Aprobado con subsidio | AO55: PEQUEÑA | AP55: 2599 | AQ55: INDUSTRIAS MANUFACTURERAS | AR55: C | AS55: Fabricación de otros productos elaborados de metal y actividades de servicios relacionadas con el trabajo de metales | AT55: Fabricación de productos elaborados de metal, excepto maquinaria y equipo | AU55: 5 | AV55: 38 | AW55: 0 | BI55: 41791 | BJ55: 1 | BK55: 66682 | BL55: 4
C56: 66400 | D56: LA VIRGINIA | E56: 3 | F56: 0 | G56: Natural | H56: 66 | I56: RISARALDA | J56: Aprobado con subsidio | K56: MICRO | L56: 1610 | M56: INDUSTRIAS MANUFACTURERAS | N56: C | O56: Aserrado, acepillado e impregnación de la madera | P56: Transformación de la madera y fabricación de productos de madera y de corcho, excepto muebles; fabricación de artículos de cestería y espartería | Q56: 0 | R56: 3 | S56: 0 | AE56: 0 | AF56: 0 | AG56: 52001 | AH56: PASTO | AI56: 6 | AJ56: 4 | AK56: Natural | AL56: 52 | AM56: NARIÑO | AN56: Aprobado con subsidio | AO56: MICRO | AP56: 1020 | AQ56: INDUSTRIAS MANUFACTURERAS | AR56: C | AS56: Procesamiento y conservación de frutas, legumbres, hortalizas y tubérculos | AT56: Elaboración de productos alimenticios | AU56: 3 | AV56: 3 | AW56: 0 | BI56: 25513 | BJ56: 1 | BK56: 41551 | BL56: 4
C57: 5001 | D57: MEDELLÍN | E57: 5 | F57: 1 | G57: Natural | H57: 5 | I57: ANTIOQUIA | J57: Aprobado con subsidio | K57: MICRO | L57: 4759 | M57: COMERCIO AL POR MAYOR Y AL POR MENOR; REPARACIÓN DE VEHÍCULOS AUTOMOTORES Y MOTOCICLETAS | N57: G | O57: Comercio al por menor de otros enseres domésticos en establecimientos especializados | P57: Comercio al por menor de otros enseres domésticos en establecimientos especializados | Q57: 3 | R57: 2 | S57: 0 | AE57: 0 | AF57: 0 | AG57: 54673 | AH57: SAN CAYETANO | AI57: 6 | AJ57: 6 | AK57: Natural | AL57: 54 | AM57: NORTE DE SANTANDER | AN57: Aprobado con subsidio | AO57: PEQUEÑA | AP57: 2012 | AQ57: INDUSTRIAS MANUFACTURERAS | AR57: C | AS57: Fabricación de sustancias químicas básicas, abonos y compuestos inorgánicos nitrogenados, plásticos y caucho sintético en formas primarias | AT57: Fabricación de sustancias y productos químicos | AU57: 1 | AV57: 5 | AW57: 0 | BI57: 25430 | BJ57: 4 | BK57: 76869 | BL57: 4
C58: 5088 | D58: BELLO | E58: 11 | F58: 0 | G58: Natural | H58: 5 | I58: ANTIOQUIA | J58: Aprobado con subsidio | K58: MICRO | L58: 5511 | M58: ALOJAMIENTO Y SERVICIOS DE COMIDA | N58: I | O58: Actividades de alojamiento de estancias cortas | P58: Actividades de alojamiento de estancias cortas | Q58: 8 | R58: 3 | S58: 0 | AE58: 0 | AF58: 0 | AG58: 54405 | AH58: LOS PATIOS | AI58: 5 | AJ58: 0 | AK58: Natural | AL58: 54 | AM58: NORTE DE SANTANDER | AN58: Aprobado con subsidio | AO58: MICRO | AP58: 1081 | AQ58: INDUSTRIAS MANUFACTURERAS | AR58: C | AS58: Elaboración de otros productos alimenticios | AT58: Elaboración de productos alimenticios | AU58: 1 | AV58: 4 | AW58: 0 | BI58: 15542 | BJ58: 1 | BK58: 68547 | BL58: 4
C59: 13001 | D59: CARTAGENA | E59: 8 | F59: 2 | G59: Natural | H59: 13 | I59: BOLÍVAR | J59: Aprobado con subsidio | K59: MICRO | L59: 4711 | M59: COMERCIO AL POR MAYOR Y AL POR MENOR; REPARACIÓN DE VEHÍCULOS AUTOMOTORES Y MOTOCICLETAS | N59: G | O59: Comercio al por menor en establecimientos no especializados | P59: Comercio al por menor en establecimientos no especializados | Q59: 2 | R59: 6 | S59: 0 | AE59: 0 | AF59: 0 | AG59: 54001 | AH59: CÚCUTA | AI59: 7 | AJ59: 0 | AK59: Natural | AL59: 54 | AM59: NORTE DE SANTANDER | AN59: Aprobado con subsidio | AO59: MICRO | AP59: 1081 | AQ59: INDUSTRIAS MANUFACTURERAS | AR59: C | AS59: Elaboración de otros productos alimenticios | AT59: Elaboración de productos alimenticios | AU59: 4 | AV59: 3 | AW59: 0 | BI59: 5088 | BJ59: 21 | BK59: 15001 | BL59: 4
C60: 5088 | D60: BELLO | E60: 9 | F60: 1 | G60: Natural | H60: 5 | I60: ANTIOQUIA | J60: Aprobado con subsidio | K60: MICRO | L60: 4719 | M60: COMERCIO AL POR MAYOR Y AL POR MENOR; REPARACIÓN DE VEHÍCULOS AUTOMOTORES Y MOTOCICLETAS | N60: G | O60: Comercio al por menor en establecimientos no especializados | P60: Comercio al por menor en establecimientos no especializados | Q60: 9 | R60: 0 | S60: 0 | AE60: 0 | AF60: 0 | AG60: 54001 | AH60: CÚCUTA | AI60: 24 | AJ60: 25 | AK60: Natural | AL60: 54 | AM60: NORTE DE SANTANDER | AN60: Aprobado con subsidio | AO60: MEDIANA | AP60: 1709 | AQ60: INDUSTRIAS MANUFACTURERAS | AR60: C | AS60: Fabricación de papel, cartón y productos de papel y cartón | AT60: Fabricación de papel, cartón y productos de papel y cartón | AU60: 3 | AV60: 21 | AW60: 0 | BI60: 47001 | BJ60: 7 | BK60: 25430 | BL60: 4
C61: 5266 | D61: ENVIGADO | E61: 4 | F61: 0 | G61: Natural | H61: 5 | I61: ANTIOQUIA | J61: Aprobado con subsidio | K61: MICRO | L61: 4520 | M61: COMERCIO AL POR MAYOR Y AL POR MENOR; REPARACIÓN DE VEHÍCULOS AUTOMOTORES Y MOTOCICLETAS | N61: G | O61: Mantenimiento y reparación de vehículos automotores | P61: Mantenimiento y reparación de vehículos automotores | Q61: 0 | R61: 4 | S61: 0 | AE61: 0 | AF61: 0 | AG61: 68001 | AH61: BUCARAMANGA | AI61: 0 | AJ61: 0 | AK61: Natural | AL61: 68 | AM61: SANTANDER | AN61: 0 | AO61: MICRO | AP61: 1410 | AQ61: INDUSTRIAS MANUFACTURERAS | AR61: C | AS61: Confección de prendas de vestir, excepto prendas de piel | AT61: Confección de prendas de vestir | AU61: 0 | AV61: 0 | AW61: 0 | BI61: 52835 | BJ61: 3 | BK61: 25817 | BL61: 4
C62: 5001 | D62: MEDELLÍN | E62: 6 | F62: 0 | G62: Natural | H62: 5 | I62: ANTIOQUIA | J62: Aprobado con subsidio | K62: MICRO | L62: 5619 | M62: ALOJAMIENTO Y SERVICIOS DE COMIDA | N62: I | O62: Actividades de restaurantes, cafeterías y servicio móvil de comidas | P62: Actividades de restaurantes, cafeterías y servicio móvil de comidas | Q62: 4 | R62: 2 | S62: 0 | AE62: 0 | AF62: 0 | AG62: 68001 | AH62: BUCARAMANGA | AI62: 2 | AJ62: 2 | AK62: Natural | AL62: 68 | AM62: SANTANDER | AN62: Aprobado con subsidio | AO62: MICRO | AP62: 1521 | AQ62: INDUSTRIAS MANUFACTURERAS | AR62: C | AS62: Fabricación de calzado | AT62: Curtido y recurtido de cueros; fabricación de calzado; fabricación de artículos de viaje, maletas, bolsos de mano y artículos similares, y fabricación de artículos de talabartería y guarnicionería; adobo y teñido de pieles | AU62: 2 | AV62: 0 | AW62: 0 | BI62: 76109 | BJ62: 2 | BK62: 19845 | BL62: 4
C63: 5088 | D63: BELLO | E63: 0 | F63: 0 | G63: Natural | H63: 5 | I63: ANTIOQUIA | J63: 0 | K63: MICRO | L63: 5619 | M63: ALOJAMIENTO Y SERVICIOS DE COMIDA | N63: I | O63: Actividades de restaurantes, cafeterías y servicio móvil de comidas | P63: Actividades de restaurantes, cafeterías y servicio móvil de comidas | Q63: 0 | R63: 0 | S63: 0 | AE63: 0 | AF63: 0 | AG63: 68001 | AH63: BUCARAMANGA | AI63: 11 | AJ63: 1 | AK63: Natural | AL63: 68 | AM63: SANTANDER | AN63: Aprobado con subsidio | AO63: PEQUEÑA | AP63: 1011 | AQ63: INDUSTRIAS MANUFACTURERAS | AR63: C | AS63: Procesamiento y conservación de carne, pescado, crustáceos y moluscos | AT63: Elaboración de productos alimenticios | AU63: 3 | AV63: 8 | AW63: 0 | BI63: 76130 | BJ63: 21 | BK63: 66400 | BL63: 3
C64: 5001 | D64: MEDELLÍN | E64: 17 | F64: 31 | G64: Natural | H64: 5 | I64: ANTIOQUIA | J64: Aprobado con subsidio | K64: PEQUEÑA | L64: 4330 | M64: CONSTRUCCIÓN | N64: F | O64: Terminación y acabado de edificios y obras de ingeniería civil | P64: Terminación y acabado de edificios y obras de ingeniería civil | Q64: 1 | R64: 16 | S64: 0 | AE64: 0 | AF64: 0 | AG64: 68001 | AH64: BUCARAMANGA | AI64: 0 | AJ64: 4 | AK64: Natural | AL64: 68 | AM64: SANTANDER | AN64: 0 | AO64: MICRO | AP64: 1410 | AQ64: INDUSTRIAS MANUFACTURERAS | AR64: C | AS64: Confección de prendas de vestir, excepto prendas de piel | AT64: Confección de prendas de vestir | AU64: 0 | AV64: 0 | AW64: 0 | BI64: 76248 | BJ64: 5 | BK64: 15759 | BL64: 3
C65: 5088 | D65: BELLO | E65: 68 | F65: 87 | G65: Natural | H65: 5 | I65: ANTIOQUIA | J65: Aprobado con subsidio | K65: MEDIANA | L65: 8299 | M65: ACTIVIDADES DE SERVICIOS ADMINISTRATIVOS Y DE APOYO | N65: N | O65: Actividades de servicios de apoyo a las empresas n.c.p. | P65: Actividades de servicios de apoyo a las empresas n.c.p. | Q65: 27 | R65: 41 | S65: 0 | AE65: 0 | AF65: 0 | AG65: 50001 | AH65: VILLAVICENCIO | AI65: 10 | AJ65: 2 | AK65: Natural | AL65: 50 | AM65: META | AN65: Aprobado con subsidio | AO65: PEQUEÑA | AP65: 3110 | AQ65: INDUSTRIAS MANUFACTURERAS | AR65: C | AS65: Fabricación de muebles | AT65: Fabricación de muebles, colchones y somieres | AU65: 3 | AV65: 7 | AW65: 0 | BI65: 81736 | BJ65: 2 | BK65: 68861 | BL65: 3
C66: 5088 | D66: BELLO | E66: 4 | F66: 0 | G66: Natural | H66: 5 | I66: ANTIOQUIA | J66: Aprobado con subsidio | K66: MICRO | L66: 4312 | M66: CONSTRUCCIÓN | N66: F | O66: Demolición y preparación del terreno | P66: Demolición y preparación del terreno | Q66: 1 | R66: 3 | S66: 0 | AE66: 0 | AF66: 0 | AG66: 11001 | AH66: BOGOTÁ, D.C. | AI66: 1 | AJ66: 0 | AK66: Natural | AL66: 11 | AM66: BOGOTÁ, D.C. | AN66: Aprobado con subsidio | AO66: MICRO | AP66: 2410 | AQ66: INDUSTRIAS MANUFACTURERAS | AR66: C | AS66: Industrias básicas de hierro y de acero | AT66: Fabricación de productos metalúrgicos básicos | AU66: 0 | AV66: 1 | AW66: 0 | BI66: 68276 | BJ66: =COUNTIFS($AN$2:$AN$399999,"Aprobado con subsidio",$AG$2:$AG$399999,BI66) -> 5 | BK66: 52356 | BL66: 3
C67: 11001 | D67: BOGOTÁ, D.C. | E67: 3 | F67: 0 | G67: Natural | H67: 11 | I67: BOGOTÁ, D.C. | J67: Aprobado con subsidio | K67: MICRO | L67: 9601 | M67: OTRAS ACTIVIDADES DE SERVICIOS | N67: S | O67: Otras actividades de servicios personales | P67: Otras actividades de servicios personales | Q67: 1 | R67: 2 | S67: 0 | AE67: 0 | AF67: 0 | AG67: 68001 | AH67: BUCARAMANGA | AI67: 3 | AJ67: 1 | AK67: Natural | AL67: 68 | AM67: SANTANDER | AN67: Aprobado con subsidio | AO67: MICRO | AP67: 3110 | AQ67: INDUSTRIAS MANUFACTURERAS | AR67: C | AS67: Fabricación de muebles | AT67: Fabricación de muebles, colchones y somieres | AU67: 1 | AV67: 2 | AW67: 0 | BI67: 76563 | BJ67: 3 | BK67: 52835 | BL67: 3
C68: 17001 | D68: MANIZALES | E68: 10 | F68: 0 | G68: Natural | H68: 17 | I68: CALDAS | J68: Aprobado con subsidio | K68: MICRO | L68: 2396 | M68: INDUSTRIAS MANUFACTURERAS | N68: C | O68: Fabricación de productos minerales no metálicos n.c.p. | P68: Fabricación de otros productos minerales no metálicos | Q68: 3 | R68: 7 | S68: 0 | AE68: 0 | AF68: 0 | AG68: 76147 | AH68: CARTAGO | AI68: 3 | AJ68: 1 | AK68: Natural | AL68: 76 | AM68: VALLE DEL CAUCA | AN68: Aprobado con subsidio | AO68: MICRO | AP68: 3110 | AQ68: INDUSTRIAS MANUFACTURERAS | AR68: C | AS68: Fabricación de muebles | AT68: Fabricación de muebles, colchones y somieres | AU68: 1 | AV68: 2 | AW68: 0 | BI68: 23466 | BJ68: 1 | BK68: 76563 | BL68: 3
C69: 11001 | D69: BOGOTÁ, D.C. | E69: 5 | F69: 0 | G69: Natural | H69: 11 | I69: BOGOTÁ, D.C. | J69: Aprobado con subsidio | K69: MICRO | L69: 4751 | M69: COMERCIO AL POR MAYOR Y AL POR MENOR; REPARACIÓN DE VEHÍCULOS AUTOMOTORES Y MOTOCICLETAS | N69: G | O69: Comercio al por menor de otros enseres domésticos en establecimientos especializados | P69: Comercio al por menor de otros enseres domésticos en establecimientos especializados | Q69: 2 | R69: 3 | S69: 0 | AE69: 0 | AF69: 0 | AG69: 11001 | AH69: BOGOTÁ, D.C. | AI69: 36 | AJ69: 1 | AK69: Natural | AL69: 11 | AM69: BOGOTÁ, D.C. | AN69: Aprobado con subsidio | AO69: PEQUEÑA | AP69: 1523 | AQ69: INDUSTRIAS MANUFACTURERAS | AR69: C | AS69: Fabricación de calzado | AT69: Curtido y recurtido de cueros; fabricación de calzado; fabricación de artículos de viaje, maletas, bolsos de mano y artículos similares, y fabricación de artículos de talabartería y guarnicionería; adobo y teñido de pieles | AU69: 15 | AV69: 21 | AW69: 0 | BI69: 86568 | BJ69: 1 | BK69: 25175 | BL69: 3
C70: 76001 | D70: CALI | E70: 8 | F70: 1 | G70: Natural | H70: 76 | I70: VALLE DEL CAUCA | J70: Aprobado con subsidio | K70: MICRO | L70: 7500 | M70: ACTIVIDADES PROFESIONALES, CIENTÍFICAS Y TÉCNICAS | N70: M | O70: Actividades veterinarias | P70: Actividades veterinarias | Q70: 6 | R70: 2 | S70: 0 | AE70: 0 | AF70: 0 | AG70: 76001 | AH70: CALI | AI70: 0 | AJ70: 6 | AK70: Natural | AL70: 76 | AM70: VALLE DEL CAUCA | AN70: 0 | AO70: MICRO | AP70: 2221 | AQ70: INDUSTRIAS MANUFACTURERAS | AR70: C | AS70: Fabricación de productos de plástico | AT70: Fabricación de productos de caucho y de plástico | AU70: 0 | AV70: 0 | AW70: 0 | BI70: 13001 | BJ70: 10 | BK70: 5079 | BL70: 3
C71: 15759 | D71: SOGAMOSO | E71: 9 | F71: 3 | G71: Natural | H71: 15 | I71: BOYACÁ | J71: Aprobado con subsidio | K71: MICRO | L71: 1081 | M71: INDUSTRIAS MANUFACTURERAS | N71: C | O71: Elaboración de otros productos alimenticios | P71: Elaboración de productos alimenticios | Q71: 6 | R71: 3 | S71: 0 | AE71: 0 | AF71: 0 | AG71: 5001 | AH71: MEDELLÍN | AI71: 0 | AJ71: 0 | AK71: Natural | AL71: 5 | AM71: ANTIOQUIA | AN71: 0 | AO71: 0 | AP71: 1410 | AQ71: INDUSTRIAS MANUFACTURERAS | AR71: C | AS71: Confección de prendas de vestir, excepto prendas de piel | AT71: Confección de prendas de vestir | AU71: 0 | AV71: 0 | AW71: 0 | BI71: 23001 | BJ71: 5 | BK71: 17174 | BL71: 3
C72: 11001 | D72: BOGOTÁ, D.C. | E72: 4 | F72: 0 | G72: Natural | H72: 11 | I72: BOGOTÁ, D.C. | J72: Aprobado con subsidio | K72: MICRO | L72: 4923 | M72: TRANSPORTE Y ALMACENAMIENTO | N72: H | O72: Transporte terrestre publico automotor | P72: Transporte terrestre publico automotor | Q72: 0 | R72: 4 | S72: 0 | AE72: 0 | AF72: 0 | AG72: 5001 | AH72: MEDELLÍN | AI72: 29 | AJ72: 5 | AK72: Natural | AL72: 5 | AM72: ANTIOQUIA | AN72: Aprobado con subsidio | AO72: PEQUEÑA | AP72: 1709 | AQ72: INDUSTRIAS MANUFACTURERAS | AR72: C | AS72: Fabricación de papel, cartón y productos de papel y cartón | AT72: Fabricación de papel, cartón y productos de papel y cartón | AU72: 15 | AV72: 14 | AW72: 0 | BI72: 25754 | BJ72: 17 | BK72: 25899 | BL72: 3
C73: 66001 | D73: PEREIRA | E73: 0 | F73: 2 | G73: Natural | H73: 66 | I73: RISARALDA | J73: 0 | K73: MICRO | L73: 8621 | M73: ACTIVIDADES DE ATENCIÓN DE LA SALUD HUMANA Y DE ASISTENCIA SOCIAL | N73: Q | O73: Actividades de práctica médica y odontológica, sin internación | P73: Actividades de práctica médica y odontológica, sin internación | Q73: 0 | R73: 0 | S73: 0 | AE73: 0 | AF73: 0 | AG73: 5360 | AH73: ITAGUI | AI73: 53 | AJ73: 19 | AK73: Natural | AL73: 5 | AM73: ANTIOQUIA | AN73: Aprobado con subsidio | AO73: MEDIANA | AP73: 1011 | AQ73: INDUSTRIAS MANUFACTURERAS | AR73: C | AS73: Procesamiento y conservación de carne, pescado, crustáceos y moluscos | AT73: Elaboración de productos alimenticios | AU73: 14 | AV73: 39 | AW73: 0 | BI73: 5380 | BJ73: 24 | BK73: 54261 | BL73: 3
C74: 66001 | D74: PEREIRA | E74: 2 | F74: 0 | G74: Natural | H74: 66 | I74: RISARALDA | J74: Aprobado con subsidio | K74: MICRO | L74: 9602 | M74: OTRAS ACTIVIDADES DE SERVICIOS | N74: S | O74: Otras actividades de servicios personales | P74: Otras actividades de servicios personales | Q74: 1 | R74: 1 | S74: 0 | AE74: 0 | AF74: 0 | AG74: 5360 | AH74: ITAGUI | AI74: 4 | AJ74: 0 | AK74: Natural | AL74: 5 | AM74: ANTIOQUIA | AN74: Aprobado con subsidio | AO74: MICRO | AP74: 1394 | AQ74: INDUSTRIAS MANUFACTURERAS | AR74: C | AS74: Fabricación de otros productos textiles | AT74: Fabricación de productos textiles | AU74: 1 | AV74: 3 | AW74: 0 | BI74: 76111 | BJ74: 11 | BK74: 76364 | BL74: 3
C75: 11001 | D75: BOGOTÁ, D.C. | E75: 0 | F75: 0 | G75: Natural | H75: 11 | I75: BOGOTÁ, D.C. | J75: 0 | K75: MICRO | L75: 4773 | M75: COMERCIO AL POR MAYOR Y AL POR MENOR; REPARACIÓN DE VEHÍCULOS AUTOMOTORES Y MOTOCICLETAS | N75: G | O75: Comercio al por menor de otros productos en establecimientos especializados | P75: Comercio al por menor de otros productos en establecimientos especializados | Q75: 0 | R75: 0 | S75: 0 | AE75: 0 | AF75: 0 | AG75: 5148 | AH75: EL CARMEN DE VIBORAL | AI75: 2 | AJ75: 6 | AK75: Natural | AL75: 5 | AM75: ANTIOQUIA | AN75: Aprobado con subsidio | AO75: MICRO | AP75: 1630 | AQ75: INDUSTRIAS MANUFACTURERAS | AR75: C | AS75: Fabricación de partes y piezas de madera, de carpintería y ebanistería para la construcción | AT75: Transformación de la madera y fabricación de productos de madera y de corcho, excepto muebles; fabricación de artículos de cestería y espartería | AU75: 0 | AV75: 2 | AW75: 0 | BI75: 25473 | BJ75: 21 | BK75: 70001 | BL75: 2
C76: 11001 | D76: BOGOTÁ, D.C. | E76: 9 | F76: 0 | G76: Natural | H76: 11 | I76: BOGOTÁ, D.C. | J76: Aprobado con subsidio | K76: PEQUEÑA | L76: 5611 | M76: ALOJAMIENTO Y SERVICIOS DE COMIDA | N76: I | O76: Actividades de restaurantes, cafeterías y servicio móvil de comidas | P76: Actividades de restaurantes, cafeterías y servicio móvil de comidas | Q76: 6 | R76: 3 | S76: 0 | AE76: 0 | AF76: 0 | AG76: 5001 | AH76: MEDELLÍN | AI76: 7 | AJ76: 0 | AK76: Natural | AL76: 5 | AM76: ANTIOQUIA | AN76: Aprobado con subsidio | AO76: MICRO | AP76: 1089 | AQ76: INDUSTRIAS MANUFACTURERAS | AR76: C | AS76: Elaboración de otros productos alimenticios | AT76: Elaboración de productos alimenticios | AU76: 4 | AV76: 3 | AW76: 0 | BI76: 76892 | BJ76: 103 | BK76: 54405 | BL76: 2
C77: 17001 | D77: MANIZALES | E77: 4 | F77: 0 | G77: Natural | H77: 17 | I77: CALDAS | J77: Aprobado con subsidio | K77: MICRO | L77: 5613 | M77: ALOJAMIENTO Y SERVICIOS DE COMIDA | N77: I | O77: Actividades de restaurantes, cafeterías y servicio móvil de comidas | P77: Actividades de restaurantes, cafeterías y servicio móvil de comidas | Q77: 0 | R77: 4 | S77: 0 | AE77: 0 | AF77: 0 | AG77: 5001 | AH77: MEDELLÍN | AI77: 0 | AJ77: 0 | AK77: Natural | AL77: 5 | AM77: ANTIOQUIA | AN77: 0 | AO77: MICRO | AP77: 1081 | AQ77: INDUSTRIAS MANUFACTURERAS | AR77: C | AS77: Elaboración de otros productos alimenticios | AT77: Elaboración de productos alimenticios | AU77: 0 | AV77: 0 | AW77: 0 | BI77: 25286 | BJ77: 15 | BK77: 25290 | BL77: 2
C78: 17001 | D78: MANIZALES | E78: 2 | F78: 2 | G78: Natural | H78: 17 | I78: CALDAS | J78: Aprobado con subsidio | K78: MICRO | L78: 150 | M78: AGRICULTURA, GANADERÍA, CAZA, SILVICULTURA Y PESCA | N78: A | O78: Explotación mixta (agrícola y pecuaria) | P78: Explotación mixta (agrícola y pecuaria) | Q78: 0 | R78: 2 | S78: 0 | AE78: 0 | AF78: 0 | AG78: 76147 | AH78: CARTAGO | AI78: 3 | AJ78: 0 | AK78: Natural | AL78: 76 | AM78: VALLE DEL CAUCA | AN78: Aprobado con subsidio | AO78: MICRO | AP78: 2599 | AQ78: INDUSTRIAS MANUFACTURERAS | AR78: C | AS78: Fabricación de otros productos elaborados de metal y actividades de servicios relacionadas con el trabajo de metales | AT78: Fabricación de productos elaborados de metal, excepto maquinaria y equipo | AU78: 1 | AV78: 2 | AW78: 0 | BI78: 20001 | BJ78: 2 | BK78: 18753 | BL78: 2
C79: 17001 | D79: MANIZALES | E79: 29 | F79: 11 | G79: Natural | H79: 17 | I79: CALDAS | J79: Aprobado con subsidio | K79: MEDIANA | L79: 1523 | M79: INDUSTRIAS MANUFACTURERAS | N79: C | O79: Fabricación de calzado | P79: Curtido y recurtido de cueros; fabricación de calzado; fabricación de artículos de viaje, maletas, bolsos de mano y artículos similares, y fabricación de artículos de talabartería y guarnicionería; adobo y teñido de pieles | Q79: 14 | R79: 15 | S79: 0 | AE79: 0 | AF79: 0 | AG79: 76520 | AH79: PALMIRA | AI79: 4 | AJ79: 0 | AK79: Natural | AL79: 76 | AM79: VALLE DEL CAUCA | AN79: Aprobado con subsidio | AO79: MICRO | AP79: 2221 | AQ79: INDUSTRIAS MANUFACTURERAS | AR79: C | AS79: Fabricación de productos de plástico | AT79: Fabricación de productos de caucho y de plástico | AU79: 1 | AV79: 3 | AW79: 0 | BI79: 5376 | BJ79: 5 | BK79: 5045 | BL79: 2
C80: 17001 | D80: MANIZALES | E80: 7 | F80: 0 | G80: Natural | H80: 17 | I80: CALDAS | J80: Aprobado con subsidio | K80: MICRO | L80: 4719 | M80: COMERCIO AL POR MAYOR Y AL POR MENOR; REPARACIÓN DE VEHÍCULOS AUTOMOTORES Y MOTOCICLETAS | N80: G | O80: Comercio al por menor en establecimientos no especializados | P80: Comercio al por menor en establecimientos no especializados | Q80: 1 | R80: 6 | S80: 0 | AE80: 0 | AF80: 0 | AG80: 76001 | AH80: CALI | AI80: 5 | AJ80: 0 | AK80: Natural | AL80: 76 | AM80: VALLE DEL CAUCA | AN80: Aprobado con subsidio | AO80: MICRO | AP80: 2229 | AQ80: INDUSTRIAS MANUFACTURERAS | AR80: C | AS80: Fabricación de productos de plástico | AT80: Fabricación de productos de caucho y de plástico | AU80: 3 | AV80: 2 | AW80: 0 | BI80: 76736 | BJ80: 1 | BK80: 76109 | BL80: 2
C81: 17001 | D81: MANIZALES | E81: 2 | F81: 1 | G81: Natural | H81: 17 | I81: CALDAS | J81: Aprobado con subsidio | K81: MICRO | L81: 4330 | M81: CONSTRUCCIÓN | N81: F | O81: Terminación y acabado de edificios y obras de ingeniería civil | P81: Terminación y acabado de edificios y obras de ingeniería civil | Q81: 2 | R81: 0 | S81: 0 | AE81: 0 | AF81: 0 | AG81: 76834 | AH81: TULUÁ | AI81: 80 | AJ81: 20 | AK81: Jurídica | AL81: 76 | AM81: VALLE DEL CAUCA | AN81: Aprobado con subsidio | AO81: MEDIANA | AP81: 1072 | AQ81: INDUSTRIAS MANUFACTURERAS | AR81: C | AS81: Elaboración de azúcar y panela | AT81: Elaboración de productos alimenticios | AU81: 11 | AV81: 69 | AW81: 0 | BI81: 25214 | BJ81: 27 | BK81: 81736 | BL81: 2
C82: 17001 | D82: MANIZALES | E82: 5 | F82: 2 | G82: Natural | H82: 17 | I82: CALDAS | J82: Aprobado con subsidio | K82: MICRO | L82: 4723 | M82: COMERCIO AL POR MAYOR Y AL POR MENOR; REPARACIÓN DE VEHÍCULOS AUTOMOTORES Y MOTOCICLETAS | N82: G | O82: Comercio al por menor de alimentos (víveres en general), bebidas y tabaco, en establecimientos especializados | P82: Comercio al por menor de alimentos (víveres en general), bebidas y tabaco, en establecimientos especializados | Q82: 0 | R82: 5 | S82: 0 | AE82: 0 | AF82: 0 | AG82: 76834 | AH82: TULUÁ | AI82: 5 | AJ82: 6 | AK82: Natural | AL82: 76 | AM82: VALLE DEL CAUCA | AN82: Aprobado con subsidio | AO82: PEQUEÑA | AP82: 3110 | AQ82: INDUSTRIAS MANUFACTURERAS | AR82: C | AS82: Fabricación de muebles | AT82: Fabricación de muebles, colchones y somieres | AU82: 0 | AV82: 5 | AW82: 0 | BI82: 25175 | BJ82: 3 | BK82: 20001 | BL82: 2
C83: 19001 | D83: POPAYÁN | E83: 3 | F83: 0 | G83: Natural | H83: 19 | I83: CAUCA | J83: Aprobado con subsidio | K83: MICRO | L83: 4762 | M83: COMERCIO AL POR MAYOR Y AL POR MENOR; REPARACIÓN DE VEHÍCULOS AUTOMOTORES Y MOTOCICLETAS | N83: G | O83: Comercio al por menor de artículos culturales y de entretenimiento, en establecimientos especializados | P83: Comercio al por menor de artículos culturales y de entretenimiento, en establecimientos especializados | Q83: 1 | R83: 2 | S83: 0 | AE83: 0 | AF83: 0 | AG83: 76001 | AH83: CALI | AI83: 0 | AJ83: 2 | AK83: Natural | AL83: 76 | AM83: VALLE DEL CAUCA | AN83: 0 | AO83: MICRO | AP83: 3312 | AQ83: INDUSTRIAS MANUFACTURERAS | AR83: C | AS83: Mantenimiento y reparación especializado de productos elaborados en metal y de maquinaria y equipo | AT83: Instalación, mantenimiento y reparación especializado de maquinaria y equipo | AU83: 0 | AV83: 0 | AW83: 0 | BI83: 76100 | BJ83: 1 | BK83: 8296 | BL83: 2
C84: 11001 | D84: BOGOTÁ, D.C. | E84: 3 | F84: 2 | G84: Natural | H84: 11 | I84: BOGOTÁ, D.C. | J84: Aprobado con subsidio | K84: MICRO | L84: 1081 | M84: INDUSTRIAS MANUFACTURERAS | N84: C | O84: Elaboración de otros productos alimenticios | P84: Elaboración de productos alimenticios | Q84: 2 | R84: 1 | S84: 0 | AE84: 0 | AF84: 0 | AG84: 76001 | AH84: CALI | AI84: 26 | AJ84: 2 | AK84: Natural | AL84: 76 | AM84: VALLE DEL CAUCA | AN84: Aprobado con subsidio | AO84: PEQUEÑA | AP84: 3311 | AQ84: INDUSTRIAS MANUFACTURERAS | AR84: C | AS84: Mantenimiento y reparación especializado de productos elaborados en metal y de maquinaria y equipo | AT84: Instalación, mantenimiento y reparación especializado de maquinaria y equipo | AU84: 3 | AV84: 23 | AW84: 0 | BI84: 68406 | BJ84: 1 | BK84: 17873 | BL84: 2
C85: 68001 | D85: BUCARAMANGA | E85: 3 | F85: 3 | G85: Natural | H85: 68 | I85: SANTANDER | J85: Aprobado con subsidio | K85: MICRO | L85: 2511 | M85: INDUSTRIAS MANUFACTURERAS | N85: C | O85: Fabricación de productos metálicos para uso estructural, tanques, depósitos y generadores de vapor. | P85: Fabricación de productos elaborados de metal, excepto maquinaria y equipo | Q85: 0 | R85: 3 | S85: 0 | AE85: 0 | AF85: 0 | AG85: 76001 | AH85: CALI | AI85: 2 | AJ85: 2 | AK85: Natural | AL85: 76 | AM85: VALLE DEL CAUCA | AN85: Aprobado con subsidio | AO85: MICRO | AP85: 1811 | AQ85: INDUSTRIAS MANUFACTURERAS | AR85: C | AS85: Actividades de impresión y actividades de servicios relacionados con la impresión | AT85: Actividades de impresión y de producción de copias a partir de grabaciones originales | AU85: 1 | AV85: 1 | AW85: 0 | BI85: 25817 | BJ85: 4 | BK85: 19142 | BL85: 2
C86: 11001 | D86: BOGOTÁ, D.C. | E86: 5 | F86: 1 | G86: Natural | H86: 11 | I86: BOGOTÁ, D.C. | J86: Aprobado con subsidio | K86: MICRO | L86: 5613 | M86: ALOJAMIENTO Y SERVICIOS DE COMIDA | N86: I | O86: Actividades de restaurantes, cafeterías y servicio móvil de comidas | P86: Actividades de restaurantes, cafeterías y servicio móvil de comidas | Q86: 3 | R86: 2 | S86: 0 | AE86: 0 | AF86: 0 | AG86: 76001 | AH86: CALI | AI86: 3 | AJ86: 0 | AK86: Natural | AL86: 76 | AM86: VALLE DEL CAUCA | AN86: Aprobado con subsidio | AO86: MICRO | AP86: 1811 | AQ86: INDUSTRIAS MANUFACTURERAS | AR86: C | AS86: Actividades de impresión y actividades de servicios relacionados con la impresión | AT86: Actividades de impresión y de producción de copias a partir de grabaciones originales | AU86: 2 | AV86: 1 | AW86: 0 | BI86: 8296 | BJ86: 2 | BK86: 76113 | BL86: 2
C87: 5001 | D87: MEDELLÍN | E87: 5 | F87: 1 | G87: Natural | H87: 5 | I87: ANTIOQUIA | J87: Aprobado con subsidio | K87: MICRO | L87: 4711 | M87: COMERCIO AL POR MAYOR Y AL POR MENOR; REPARACIÓN DE VEHÍCULOS AUTOMOTORES Y MOTOCICLETAS | N87: G | O87: Comercio al por menor en establecimientos no especializados | P87: Comercio al por menor en establecimientos no especializados | Q87: 3 | R87: 2 | S87: 0 | AE87: 0 | AF87: 0 | AG87: 76001 | AH87: CALI | AI87: 7 | AJ87: 1 | AK87: Natural | AL87: 76 | AM87: VALLE DEL CAUCA | AN87: Aprobado con subsidio | AO87: MICRO | AP87: 3250 | AQ87: INDUSTRIAS MANUFACTURERAS | AR87: C | AS87: Fabricación de instrumentos, aparatos y materiales médicos y odontológicos (incluido mobiliario) | AT87: Otras industrias manufactureras | AU87: 4 | AV87: 3 | AW87: 0 | BI87: 63594 | BJ87: 1 | BK87: 5129 | BL87: 2
C88: 50683 | D88: SAN JUAN DE ARAMA | E88: 5 | F88: 0 | G88: Natural | H88: 50 | I88: META | J88: Aprobado con subsidio | K88: MICRO | L88: 4731 | M88: COMERCIO AL POR MAYOR Y AL POR MENOR; REPARACIÓN DE VEHÍCULOS AUTOMOTORES Y MOTOCICLETAS | N88: G | O88: Comercio al por menor de combustible, lubricantes, aditivos y productos de limpieza para automotores, en establecimientos especializados | P88: Comercio al por menor de combustible, lubricantes, aditivos y productos de limpieza para automotores, en establecimientos especializados | Q88: 3 | R88: 2 | S88: 0 | AE88: 0 | AF88: 0 | AG88: 76001 | AH88: CALI | AI88: 6 | AJ88: 2 | AK88: Natural | AL88: 76 | AM88: VALLE DEL CAUCA | AN88: Aprobado con subsidio | AO88: MICRO | AP88: 1081 | AQ88: INDUSTRIAS MANUFACTURERAS | AR88: C | AS88: Elaboración de otros productos alimenticios | AT88: Elaboración de productos alimenticios | AU88: 4 | AV88: 2 | AW88: 0 | BI88: 68679 | BJ88: 1 | BK88: 85001 | BL88: 2
C89: 11001 | D89: BOGOTÁ, D.C. | E89: 5 | F89: 2 | G89: Natural | H89: 11 | I89: BOGOTÁ, D.C. | J89: Aprobado con subsidio | K89: MICRO | L89: 4774 | M89: COMERCIO AL POR MAYOR Y AL POR MENOR; REPARACIÓN DE VEHÍCULOS AUTOMOTORES Y MOTOCICLETAS | N89: G | O89: Comercio al por menor de otros productos en establecimientos especializados | P89: Comercio al por menor de otros productos en establecimientos especializados | Q89: 0 | R89: 5 | S89: 0 | AE89: 0 | AF89: 0 | AG89: 76001 | AH89: CALI | AI89: 6 | AJ89: 0 | AK89: Natural | AL89: 76 | AM89: VALLE DEL CAUCA | AN89: Aprobado con subsidio | AO89: MICRO | AP89: 2511 | AQ89: INDUSTRIAS MANUFACTURERAS | AR89: C | AS89: Fabricación de productos metálicos para uso estructural, tanques, depósitos y generadores de vapor. | AT89: Fabricación de productos elaborados de metal, excepto maquinaria y equipo | AU89: 2 | AV89: 4 | AW89: 0 | BI89: 73443 | BJ89: 1 | BK89: 25740 | BL89: 2
C90: 11001 | D90: BOGOTÁ, D.C. | E90: 4 | F90: 1 | G90: Natural | H90: 11 | I90: BOGOTÁ, D.C. | J90: Aprobado con subsidio | K90: MICRO | L90: 4774 | M90: COMERCIO AL POR MAYOR Y AL POR MENOR; REPARACIÓN DE VEHÍCULOS AUTOMOTORES Y MOTOCICLETAS | N90: G | O90: Comercio al por menor de otros productos en establecimientos especializados | P90: Comercio al por menor de otros productos en establecimientos especializados | Q90: 1 | R90: 3 | S90: 0 | AE90: 0 | AF90: 0 | AG90: 76001 | AH90: CALI | AI90: 7 | AJ90: 2 | AK90: Natural | AL90: 76 | AM90: VALLE DEL CAUCA | AN90: Aprobado con subsidio | AO90: PEQUEÑA | AP90: 1410 | AQ90: INDUSTRIAS MANUFACTURERAS | AR90: C | AS90: Confección de prendas de vestir, excepto prendas de piel | AT90: Confección de prendas de vestir | AU90: 5 | AV90: 2 | AW90: 0 | BI90: 17873 | BJ90: 2 | BK90: 25873 | BL90: 2
C91: 5088 | D91: BELLO | E91: 2 | F91: 0 | G91: Natural | H91: 5 | I91: ANTIOQUIA | J91: Aprobado con subsidio | K91: MICRO | L91: 6920 | M91: ACTIVIDADES PROFESIONALES, CIENTÍFICAS Y TÉCNICAS | N91: M | O91: Actividades de contabilidad, teneduría de libros, auditoria financiera y asesoría tributaria | P91: Actividades de contabilidad, teneduría de libros, auditoria financiera y asesoría tributaria | Q91: 2 | R91: 0 | S91: 0 | AE91: 0 | AF91: 0 | AG91: 76869 | AH91: VIJES | AI91: 0 | AJ91: 4 | AK91: Jurídica | AL91: 76 | AM91: VALLE DEL CAUCA | AN91: 0 | AO91: MICRO | AP91: 2394 | AQ91: INDUSTRIAS MANUFACTURERAS | AR91: C | AS91: Fabricación de productos minerales no metálicos n.c.p. | AT91: Fabricación de otros productos minerales no metálicos | AU91: 0 | AV91: 0 | AW91: 0 | BI91: 5440 | BJ91: 8 | BK91: 54874 | BL91: 2
C92: 25754 | D92: SOACHA | E92: 2 | F92: 1 | G92: Natural | H92: 25 | I92: CUNDINAMARCA | J92: Aprobado con subsidio | K92: MICRO | L92: 4923 | M92: TRANSPORTE Y ALMACENAMIENTO | N92: H | O92: Transporte terrestre publico automotor | P92: Transporte terrestre publico automotor | Q92: 0 | R92: 2 | S92: 0 | AE92: 0 | AF92: 0 | AG92: 76001 | AH92: CALI | AI92: 6 | AJ92: 1 | AK92: Natural | AL92: 76 | AM92: VALLE DEL CAUCA | AN92: Aprobado con subsidio | AO92: MICRO | AP92: 1081 | AQ92: INDUSTRIAS MANUFACTURERAS | AR92: C | AS92: Elaboración de otros productos alimenticios | AT92: Elaboración de productos alimenticios | AU92: 2 | AV92: 4 | AW92: 0 | BI92: 5212 | BJ92: 6 | BK92: 85010 | BL92: 2
C93: 5101 | D93: CIUDAD BOLÍVAR | E93: 3 | F93: 6 | G93: Natural | H93: 5 | I93: ANTIOQUIA | J93: Aprobado con subsidio | K93: MICRO | L93: 4923 | M93: TRANSPORTE Y ALMACENAMIENTO | N93: H | O93: Transporte terrestre publico automotor | P93: Transporte terrestre publico automotor | Q93: 2 | R93: 1 | S93: 0 | AE93: 0 | AF93: 0 | AG93: 25799 | AH93: TENJO | AI93: 10 | AJ93: 2 | AK93: Natural | AL93: 25 | AM93: CUNDINAMARCA | AN93: Aprobado con subsidio | AO93: PEQUEÑA | AP93: 1312 | AQ93: INDUSTRIAS MANUFACTURERAS | AR93: C | AS93: Preparación, hilatura, tejeduría y acabado de productos textiles | AT93: Fabricación de productos textiles | AU93: 8 | AV93: 2 | AW93: 0 | BI93: 5579 | BJ93: 1 | BK93: 76622 | BL93: 2
C94: 5001 | D94: MEDELLÍN | E94: 9 | F94: 3 | G94: Natural | H94: 5 | I94: ANTIOQUIA | J94: Aprobado con subsidio | K94: PEQUEÑA | L94: 5611 | M94: ALOJAMIENTO Y SERVICIOS DE COMIDA | N94: I | O94: Actividades de restaurantes, cafeterías y servicio móvil de comidas | P94: Actividades de restaurantes, cafeterías y servicio móvil de comidas | Q94: 3 | R94: 6 | S94: 0 | AE94: 0 | AF94: 0 | AG94: 50001 | AH94: VILLAVICENCIO | AI94: 0 | AJ94: 0 | AK94: Natural | AL94: 50 | AM94: META | AN94: 0 | AO94: 0 | AP94: 1081 | AQ94: INDUSTRIAS MANUFACTURERAS | AR94: C | AS94: Elaboración de otros productos alimenticios | AT94: Elaboración de productos alimenticios | AU94: 0 | AV94: 0 | AW94: 0 | BI94: 23417 | BJ94: 1 | BK94: 25758 | BL94: 2
C95: 5001 | D95: MEDELLÍN | E95: 12 | F95: 0 | G95: Natural | H95: 5 | I95: ANTIOQUIA | J95: Aprobado con subsidio | K95: PEQUEÑA | L95: 5611 | M95: ALOJAMIENTO Y SERVICIOS DE COMIDA | N95: I | O95: Actividades de restaurantes, cafeterías y servicio móvil de comidas | P95: Actividades de restaurantes, cafeterías y servicio móvil de comidas | Q95: 6 | R95: 6 | S95: 0 | AE95: 0 | AF95: 0 | AG95: 18001 | AH95: FLORENCIA | AI95: 4 | AJ95: 0 | AK95: Natural | AL95: 18 | AM95: CAQUETÁ | AN95: Aprobado con subsidio | AO95: MICRO | AP95: 1081 | AQ95: INDUSTRIAS MANUFACTURERAS | AR95: C | AS95: Elaboración de otros productos alimenticios | AT95: Elaboración de productos alimenticios | AU95: 3 | AV95: 1 | AW95: 0 | BI95: 19573 | BJ95: 6 | BK95: 8758 | BL95: 2
C96: 5001 | D96: MEDELLÍN | E96: 8 | F96: 0 | G96: Natural | H96: 5 | I96: ANTIOQUIA | J96: Aprobado con subsidio | K96: MICRO | L96: 5511 | M96: ALOJAMIENTO Y SERVICIOS DE COMIDA | N96: I | O96: Actividades de alojamiento de estancias cortas | P96: Actividades de alojamiento de estancias cortas | Q96: 8 | R96: 0 | S96: 0 | AE96: 0 | AF96: 0 | AG96: 18001 | AH96: FLORENCIA | AI96: 0 | AJ96: 0 | AK96: Natural | AL96: 18 | AM96: CAQUETÁ | AN96: 0 | AO96: MICRO | AP96: 3110 | AQ96: INDUSTRIAS MANUFACTURERAS | AR96: C | AS96: Fabricación de muebles | AT96: Fabricación de muebles, colchones y somieres | AU96: 0 | AV96: 0 | AW96: 0 | BI96: 19300 | BJ96: 5 | BK96: 25269 | BL96: 2
C97: 5001 | D97: MEDELLÍN | E97: 0 | F97: 0 | G97: Natural | H97: 5 | I97: ANTIOQUIA | J97: 0 | K97: MEDIANA | L97: 1313 | M97: INDUSTRIAS MANUFACTURERAS | N97: C | O97: Preparación, hilatura, tejeduría y acabado de productos textiles | P97: Fabricación de productos textiles | Q97: 0 | R97: 0 | S97: 0 | AE97: 0 | AF97: 0 | AG97: 18753 | AH97: SAN VICENTE DEL CAGUÁN | AI97: 3 | AJ97: 0 | AK97: Natural | AL97: 18 | AM97: CAQUETÁ | AN97: Aprobado con subsidio | AO97: MICRO | AP97: 1104 | AQ97: INDUSTRIAS MANUFACTURERAS | AR97: C | AS97: Elaboración de bebidas | AT97: Elaboración de bebidas | AU97: 0 | AV97: 3 | AW97: 0 | BI97: 19142 | BJ97: 2 | BK97: 25123 | BL97: 1
C98: 5001 | D98: MEDELLÍN | E98: 4 | F98: 0 | G98: Natural | H98: 5 | I98: ANTIOQUIA | J98: Aprobado con subsidio | K98: MICRO | L98: 5611 | M98: ALOJAMIENTO Y SERVICIOS DE COMIDA | N98: I | O98: Actividades de restaurantes, cafeterías y servicio móvil de comidas | P98: Actividades de restaurantes, cafeterías y servicio móvil de comidas | Q98: 2 | R98: 2 | S98: 0 | AE98: 0 | AF98: 0 | AG98: 66400 | AH98: LA VIRGINIA | AI98: 5 | AJ98: 1 | AK98: Natural | AL98: 66 | AM98: RISARALDA | AN98: Aprobado con subsidio | AO98: MICRO | AP98: 2511 | AQ98: INDUSTRIAS MANUFACTURERAS | AR98: C | AS98: Fabricación de productos metálicos para uso estructural, tanques, depósitos y generadores de vapor. | AT98: Fabricación de productos elaborados de metal, excepto maquinaria y equipo | AU98: 1 | AV98: 4 | AW98: 0 | BI98: 19845 | BJ98: 4 | BK98: 76670 | BL98: 1
C99: 5615 | D99: RIONEGRO | E99: 6 | F99: 1 | G99: Natural | H99: 5 | I99: ANTIOQUIA | J99: Aprobado con subsidio | K99: MICRO | L99: 4620 | M99: COMERCIO AL POR MAYOR Y AL POR MENOR; REPARACIÓN DE VEHÍCULOS AUTOMOTORES Y MOTOCICLETAS | N99: G | O99: Comercio al por mayor de materias primas agropecuarias; animales vivos | P99: Comercio al por mayor de materias primas agropecuarias; animales vivos | Q99: 2 | R99: 4 | S99: 0 | AE99: 0 | AF99: 0 | AG99: 11001 | AH99: BOGOTÁ, D.C. | AI99: 26 | AJ99: 1 | AK99: Natural | AL99: 11 | AM99: BOGOTÁ, D.C. | AN99: Aprobado con subsidio | AO99: PEQUEÑA | AP99: 2392 | AQ99: INDUSTRIAS MANUFACTURERAS | AR99: C | AS99: Fabricación de productos minerales no metálicos n.c.p. | AT99: Fabricación de otros productos minerales no metálicos | AU99: 2 | AV99: 24 | AW99: 0 | BI99: 76113 | BJ99: 2 | BK99: 54673 | BL99: 1
C100: 5615 | D100: RIONEGRO | E100: 0 | F100: 0 | G100: Natural | H100: 5 | I100: ANTIOQUIA | J100: 0 | K100: PEQUEÑA | L100: 4220 | M100: CONSTRUCCIÓN | N100: F | O100: Construcción de proyectos de servicio público | P100: Construcción de proyectos de servicio público | Q100: 0 | R100: 0 | S100: 0 | AE100: 0 | AF100: 0 | AG100: 11001 | AH100: BOGOTÁ, D.C. | AI100: 4 | AJ100: 0 | AK100: Natural | AL100: 11 | AM100: BOGOTÁ, D.C. | AN100: Aprobado con subsidio | AO100: MICRO | AP100: 2825 | AQ100: INDUSTRIAS MANUFACTURERAS | AR100: C | AS100: Fabricación de maquinaria y equipo de uso especial | AT100: Fabricación de maquinaria y equipo n.c.p. | AU100: 1 | AV100: 3 | AW100: 0 | BI100: 15491 | BJ100: 1 | BK100: 18001 | BL100: 1
C101: 5364 | D101: JARDÍN | E101: 9 | F101: 0 | G101: Natural | H101: 5 | I101: ANTIOQUIA | J101: Aprobado con subsidio | K101: MICRO | L101: 5613 | M101: ALOJAMIENTO Y SERVICIOS DE COMIDA | N101: I | O101: Actividades de restaurantes, cafeterías y servicio móvil de comidas | P101: Actividades de restaurantes, cafeterías y servicio móvil de comidas | Q101: 8 | R101: 1 | S101: 0 | AE101: 0 | AF101: 0 | AG101: 11001 | AH101: BOGOTÁ, D.C. | AI101: 3 | AJ101: 0 | AK101: Natural | AL101: 11 | AM101: BOGOTÁ, D.C. | AN101: Aprobado con subsidio | AO101: MICRO | AP101: 1811 | AQ101: INDUSTRIAS MANUFACTURERAS | AR101: C | AS101: Actividades de impresión y actividades de servicios relacionados con la impresión | AT101: Actividades de impresión y de producción de copias a partir de grabaciones originales | AU101: 3 | AV101: 0 | AW101: 0 | BI101: 5129 | BJ101: 2 | BK101: 15516 | BL101: 1
C102: 5237 | D102: DON MATÍAS | E102: 5 | F102: 6 | G102: Natural | H102: 5 | I102: ANTIOQUIA | J102: Aprobado con subsidio | K102: MICRO | L102: 5619 | M102: ALOJAMIENTO Y SERVICIOS DE COMIDA | N102: I | O102: Actividades de restaurantes, cafeterías y servicio móvil de comidas | P102: Actividades de restaurantes, cafeterías y servicio móvil de comidas | Q102: 2 | R102: 3 | S102: 0 | AE102: 0 | AF102: 0 | AG102: 11001 | AH102: BOGOTÁ, D.C. | AI102: 12 | AJ102: 0 | AK102: Natural | AL102: 11 | AM102: BOGOTÁ, D.C. | AN102: Aprobado con subsidio | AO102: PEQUEÑA | AP102: 1081 | AQ102: INDUSTRIAS MANUFACTURERAS | AR102: C | AS102: Elaboración de otros productos alimenticios | AT102: Elaboración de productos alimenticios | AU102: 9 | AV102: 3 | AW102: 0 | BI102: 25200 | BJ102: 1 | BK102: 8638 | BL102: 1
C103: 5266 | D103: ENVIGADO | E103: 3 | F103: 1 | G103: Natural | H103: 5 | I103: ANTIOQUIA | J103: Aprobado con subsidio | K103: MICRO | L103: 1811 | M103: INDUSTRIAS MANUFACTURERAS | N103: C | O103: Actividades de impresión y actividades de servicios relacionados con la impresión | P103: Actividades de impresión y de producción de copias a partir de grabaciones originales | Q103: 2 | R103: 1 | S103: 0 | AE103: 0 | AF103: 0 | AG103: 11001 | AH103: BOGOTÁ, D.C. | AI103: 3 | AJ103: 3 | AK103: Natural | AL103: 11 | AM103: BOGOTÁ, D.C. | AN103: Aprobado con subsidio | AO103: MICRO | AP103: 1081 | AQ103: INDUSTRIAS MANUFACTURERAS | AR103: C | AS103: Elaboración de otros productos alimenticios | AT103: Elaboración de productos alimenticios | AU103: 2 | AV103: 1 | AW103: 0 | BI103: 85001 | BJ103: 2 | BK103: 13052 | BL103: 1
C104: 5266 | D104: ENVIGADO | E104: 0 | F104: 1 | G104: Natural | H104: 5 | I104: ANTIOQUIA | J104: 0 | K104: MICRO | L104: 9609 | M104: OTRAS ACTIVIDADES DE SERVICIOS | N104: S | O104: Otras actividades de servicios personales | P104: Otras actividades de servicios personales | Q104: 0 | R104: 0 | S104: 0 | AE104: 0 | AF104: 0 | AG104: 11001 | AH104: BOGOTÁ, D.C. | AI104: 5 | AJ104: 1 | AK104: Natural | AL104: 11 | AM104: BOGOTÁ, D.C. | AN104: Aprobado con subsidio | AO104: MICRO | AP104: 2392 | AQ104: INDUSTRIAS MANUFACTURERAS | AR104: C | AS104: Fabricación de productos minerales no metálicos n.c.p. | AT104: Fabricación de otros productos minerales no metálicos | AU104: 2 | AV104: 3 | AW104: 0 | BI104: 25740 | BJ104: 2 | BK104: 5154 | BL104: 1
C105: 5001 | D105: MEDELLÍN | E105: 8 | F105: 0 | G105: Natural | H105: 5 | I105: ANTIOQUIA | J105: Aprobado con subsidio | K105: MICRO | L105: 3210 | M105: INDUSTRIAS MANUFACTURERAS | N105: C | O105: Fabricación de joyas, bisutería y artículos conexos | P105: Otras industrias manufactureras | Q105: 7 | R105: 1 | S105: 0 | AE105: 0 | AF105: 0 | AG105: 15238 | AH105: DUITAMA | AI105: 7 | AJ105: 5 | AK105: Natural | AL105: 15 | AM105: BOYACÁ | AN105: Aprobado con subsidio | AO105: MICRO | AP105: 1610 | AQ105: INDUSTRIAS MANUFACTURERAS | AR105: C | AS105: Aserrado, acepillado e impregnación de la madera | AT105: Transformación de la madera y fabricación de productos de madera y de corcho, excepto muebles; fabricación de artículos de cestería y espartería | AU105: 2 | AV105: 5 | AW105: 0 | BI105: 5079 | BJ105: 3 | BK105: 15806 | BL105: 1
C106: 5001 | D106: MEDELLÍN | E106: 3 | F106: 0 | G106: Natural | H106: 5 | I106: ANTIOQUIA | J106: Aprobado con subsidio | K106: MICRO | L106: 5511 | M106: ALOJAMIENTO Y SERVICIOS DE COMIDA | N106: I | O106: Actividades de alojamiento de estancias cortas | P106: Actividades de alojamiento de estancias cortas | Q106: 2 | R106: 1 | S106: 0 | AE106: 0 | AF106: 0 | AG106: 11001 | AH106: BOGOTÁ, D.C. | AI106: 4 | AJ106: 1 | AK106: Natural | AL106: 11 | AM106: BOGOTÁ, D.C. | AN106: Aprobado con subsidio | AO106: MICRO | AP106: 2593 | AQ106: INDUSTRIAS MANUFACTURERAS | AR106: C | AS106: Fabricación de otros productos elaborados de metal y actividades de servicios relacionadas con el trabajo de metales | AT106: Fabricación de productos elaborados de metal, excepto maquinaria y equipo | AU106: 2 | AV106: 2 | AW106: 0 | BI106: 25126 | BJ106: 5 | BK106: 41791 | BL106: 1
C107: 5045 | D107: APARTADÓ | E107: 6 | F107: 1 | G107: Natural | H107: 5 | I107: ANTIOQUIA | J107: Aprobado con subsidio | K107: MICRO | L107: 4530 | M107: COMERCIO AL POR MAYOR Y AL POR MENOR; REPARACIÓN DE VEHÍCULOS AUTOMOTORES Y MOTOCICLETAS | N107: G | O107: Comercio de partes, piezas (autopartes) y accesorios (lujos) para vehículos automotores | P107: Comercio de partes, piezas (autopartes) y accesorios (lujos) para vehículos automotores | Q107: 3 | R107: 3 | S107: 0 | AE107: 0 | AF107: 0 | AG107: 11001 | AH107: BOGOTÁ, D.C. | AI107: 7 | AJ107: 1 | AK107: Natural | AL107: 11 | AM107: BOGOTÁ, D.C. | AN107: Aprobado con subsidio | AO107: MICRO | AP107: 3110 | AQ107: INDUSTRIAS MANUFACTURERAS | AR107: C | AS107: Fabricación de muebles | AT107: Fabricación de muebles, colchones y somieres | AU107: 1 | AV107: 6 | AW107: 0 | BI107: 25288 | BJ107: 1 | BK107: 25513 | BL107: 1
C108: 5001 | D108: MEDELLÍN | E108: 3 | F108: 1 | G108: Natural | H108: 5 | I108: ANTIOQUIA | J108: Aprobado con subsidio | K108: MICRO | L108: 4530 | M108: COMERCIO AL POR MAYOR Y AL POR MENOR; REPARACIÓN DE VEHÍCULOS AUTOMOTORES Y MOTOCICLETAS | N108: G | O108: Comercio de partes, piezas (autopartes) y accesorios (lujos) para vehículos automotores | P108: Comercio de partes, piezas (autopartes) y accesorios (lujos) para vehículos automotores | Q108: 1 | R108: 2 | S108: 0 | AE108: 0 | AF108: 0 | AG108: 11001 | AH108: BOGOTÁ, D.C. | AI108: 4 | AJ108: 1 | AK108: Natural | AL108: 11 | AM108: BOGOTÁ, D.C. | AN108: Aprobado con subsidio | AO108: MICRO | AP108: 1410 | AQ108: INDUSTRIAS MANUFACTURERAS | AR108: C | AS108: Confección de prendas de vestir, excepto prendas de piel | AT108: Confección de prendas de vestir | AU108: 3 | AV108: 1 | AW108: 0 | BI108: 5308 | BJ108: 6 | BK108: 15542 | BL108: 1
C109: 5579 | D109: PUERTO BERRÍO | E109: 3 | F109: 0 | G109: Natural | H109: 5 | I109: ANTIOQUIA | J109: Aprobado con subsidio | K109: MICRO | L109: 6810 | M109: ACTIVIDADES INMOBILIARIAS | N109: L | O109: Actividades inmobiliarias realizadas con bienes propios o arrendados | P109: Actividades inmobiliarias realizadas con bienes propios o arrendados | Q109: 3 | R109: 0 | S109: 0 | AE109: 0 | AF109: 0 | AG109: 11001 | AH109: BOGOTÁ, D.C. | AI109: 4 | AJ109: 1 | AK109: Natural | AL109: 11 | AM109: BOGOTÁ, D.C. | AN109: Aprobado con subsidio | AO109: MICRO | AP109: 1811 | AQ109: INDUSTRIAS MANUFACTURERAS | AR109: C | AS109: Actividades de impresión y actividades de servicios relacionados con la impresión | AT109: Actividades de impresión y de producción de copias a partir de grabaciones originales | AU109: 4 | AV109: 0 | AW109: 0 | BI109: 25873 | BJ109: 2 | BK109: 23466 | BL109: 1
C110: 5380 | D110: LA ESTRELLA | E110: 9 | F110: 0 | G110: Natural | H110: 5 | I110: ANTIOQUIA | J110: Aprobado con subsidio | K110: MICRO | L110: 5613 | M110: ALOJAMIENTO Y SERVICIOS DE COMIDA | N110: I | O110: Actividades de restaurantes, cafeterías y servicio móvil de comidas | P110: Actividades de restaurantes, cafeterías y servicio móvil de comidas | Q110: 6 | R110: 3 | S110: 0 | AE110: 0 | AF110: 0 | AG110: 11001 | AH110: BOGOTÁ, D.C. | AI110: 7 | AJ110: 0 | AK110: Natural | AL110: 11 | AM110: BOGOTÁ, D.C. | AN110: Aprobado con subsidio | AO110: MICRO | AP110: 1410 | AQ110: INDUSTRIAS MANUFACTURERAS | AR110: C | AS110: Confección de prendas de vestir, excepto prendas de piel | AT110: Confección de prendas de vestir | AU110: 4 | AV110: 3 | AW110: 0 | BI110: 99001 | BJ110: 1 | BK110: 86568 | BL110: 1
C111: 8001 | D111: BARRANQUILLA | E111: 2 | F111: 3 | G111: Natural | H111: 8 | I111: ATLÁNTICO | J111: Aprobado con subsidio | K111: MICRO | L111: 4530 | M111: COMERCIO AL POR MAYOR Y AL POR MENOR; REPARACIÓN DE VEHÍCULOS AUTOMOTORES Y MOTOCICLETAS | N111: G | O111: Comercio de partes, piezas (autopartes) y accesorios (lujos) para vehículos automotores | P111: Comercio de partes, piezas (autopartes) y accesorios (lujos) para vehículos automotores | Q111: 2 | R111: 0 | S111: 0 | AE111: 0 | AF111: 0 | AG111: 11001 | AH111: BOGOTÁ, D.C. | AI111: 4 | AJ111: 0 | AK111: Natural | AL111: 11 | AM111: BOGOTÁ, D.C. | AN111: Aprobado con subsidio | AO111: MICRO | AP111: 1610 | AQ111: INDUSTRIAS MANUFACTURERAS | AR111: C | AS111: Aserrado, acepillado e impregnación de la madera | AT111: Transformación de la madera y fabricación de productos de madera y de corcho, excepto muebles; fabricación de artículos de cestería y espartería | AU111: 0 | AV111: 4 | AW111: 0 | BI111: 8634 | BJ111: 1 | BK111: 76736 | BL111: 1
C112: 5001 | D112: MEDELLÍN | E112: 5 | F112: 0 | G112: Natural | H112: 5 | I112: ANTIOQUIA | J112: Aprobado con subsidio | K112: MICRO | L112: 4771 | M112: COMERCIO AL POR MAYOR Y AL POR MENOR; REPARACIÓN DE VEHÍCULOS AUTOMOTORES Y MOTOCICLETAS | N112: G | O112: Comercio al por menor de otros productos en establecimientos especializados | P112: Comercio al por menor de otros productos en establecimientos especializados | Q112: 4 | R112: 1 | S112: 0 | AE112: 0 | AF112: 0 | AG112: 50001 | AH112: VILLAVICENCIO | AI112: 9 | AJ112: 0 | AK112: Natural | AL112: 50 | AM112: META | AN112: Aprobado con subsidio | AO112: PEQUEÑA | AP112: 2013 | AQ112: INDUSTRIAS MANUFACTURERAS | AR112: C | AS112: Fabricación de sustancias químicas básicas, abonos y compuestos inorgánicos nitrogenados, plásticos y caucho sintético en formas primarias | AT112: Fabricación de sustancias y productos químicos | AU112: 2 | AV112: 7 | AW112: 0 | BI112: 17174 | BJ112: 3 | BK112: 76100 | BL112: 1
C113: 5001 | D113: MEDELLÍN | E113: 2 | F113: 2 | G113: Natural | H113: 5 | I113: ANTIOQUIA | J113: Aprobado con subsidio | K113: MICRO | L113: 4631 | M113: COMERCIO AL POR MAYOR Y AL POR MENOR; REPARACIÓN DE VEHÍCULOS AUTOMOTORES Y MOTOCICLETAS | N113: G | O113: Comercio al por mayor de alimentos, bebidas y tabaco | P113: Comercio al por mayor de alimentos, bebidas y tabaco | Q113: 0 | R113: 2 | S113: 0 | AE113: 0 | AF113: 0 | AG113: 11001 | AH113: BOGOTÁ, D.C. | AI113: 90 | AJ113: 21 | AK113: Natural | AL113: 11 | AM113: BOGOTÁ, D.C. | AN113: Aprobado con subsidio | AO113: MEDIANA | AP113: 1081 | AQ113: INDUSTRIAS MANUFACTURERAS | AR113: C | AS113: Elaboración de otros productos alimenticios | AT113: Elaboración de productos alimenticios | AU113: 32 | AV113: 58 | AW113: 0 | BI113: 5318 | BJ113: 7 | BK113: 68406 | BL113: 1
C114: 8758 | D114: SOLEDAD | E114: 16 | F114: 4 | G114: Natural | H114: 8 | I114: ATLÁNTICO | J114: Aprobado con subsidio | K114: PEQUEÑA | L114: 4723 | M114: COMERCIO AL POR MAYOR Y AL POR MENOR; REPARACIÓN DE VEHÍCULOS AUTOMOTORES Y MOTOCICLETAS | N114: G | O114: Comercio al por menor de alimentos (víveres en general), bebidas y tabaco, en establecimientos especializados | P114: Comercio al por menor de alimentos (víveres en general), bebidas y tabaco, en establecimientos especializados | Q114: 9 | R114: 7 | S114: 0 | AE114: 0 | AF114: 0 | AG114: 11001 | AH114: BOGOTÁ, D.C. | AI114: 4 | AJ114: 0 | AK114: Natural | AL114: 11 | AM114: BOGOTÁ, D.C. | AN114: Aprobado con subsidio | AO114: MICRO | AP114: 2816 | AQ114: INDUSTRIAS MANUFACTURERAS | AR114: C | AS114: Fabricación de maquinaria y equipo de uso general | AT114: Fabricación de maquinaria y equipo n.c.p. | AU114: 0 | AV114: 4 | AW114: 0 | BI114: 52788 | BJ114: 1 | BK114: 63594 | BL114: 1
C115: 13001 | D115: CARTAGENA | E115: 3 | F115: 0 | G115: Natural | H115: 13 | I115: BOLÍVAR | J115: Aprobado con subsidio | K115: MICRO | L115: 4774 | M115: COMERCIO AL POR MAYOR Y AL POR MENOR; REPARACIÓN DE VEHÍCULOS AUTOMOTORES Y MOTOCICLETAS | N115: G | O115: Comercio al por menor de otros productos en establecimientos especializados | P115: Comercio al por menor de otros productos en establecimientos especializados | Q115: 3 | R115: 0 | S115: 0 | AE115: 0 | AF115: 0 | AG115: 11001 | AH115: BOGOTÁ, D.C. | AI115: 71 | AJ115: 4 | AK115: Natural | AL115: 11 | AM115: BOGOTÁ, D.C. | AN115: Aprobado con subsidio | AO115: MEDIANA | AP115: 1011 | AQ115: INDUSTRIAS MANUFACTURERAS | AR115: C | AS115: Procesamiento y conservación de carne, pescado, crustáceos y moluscos | AT115: Elaboración de productos alimenticios | AU115: 21 | AV115: 50 | AW115: 0 | BI115: 19455 | BJ115: 1 | BK115: 68679 | BL115: 1
C116: 13001 | D116: CARTAGENA | E116: 2 | F116: 0 | G116: Natural | H116: 13 | I116: BOLÍVAR | J116: Aprobado con subsidio | K116: MICRO | L116: 4799 | M116: COMERCIO AL POR MAYOR Y AL POR MENOR; REPARACIÓN DE VEHÍCULOS AUTOMOTORES Y MOTOCICLETAS | N116: G | O116: Comercio al por menor no realizado en establecimientos, puestos de venta o mercados | P116: Comercio al por menor no realizado en establecimientos, puestos de venta o mercados | Q116: 1 | R116: 1 | S116: 0 | AE116: 0 | AF116: 0 | AG116: 5045 | AH116: APARTADÓ | AI116: 37 | AJ116: 3 | AK116: Natural | AL116: 5 | AM116: ANTIOQUIA | AN116: Aprobado con subsidio | AO116: PEQUEÑA | AP116: 1089 | AQ116: INDUSTRIAS MANUFACTURERAS | AR116: C | AS116: Elaboración de otros productos alimenticios | AT116: Elaboración de productos alimenticios | AU116: 31 | AV116: 6 | AW116: 0 | BI116: 73168 | BJ116: 1 | BK116: 73443 | BL116: 1
C117: 19698 | D117: SANTANDER DE QUILICHAO | E117: 5 | F117: 0 | G117: Natural | H117: 19 | I117: CAUCA | J117: Aprobado con subsidio | K117: MICRO | L117: 4541 | M117: COMERCIO AL POR MAYOR Y AL POR MENOR; REPARACIÓN DE VEHÍCULOS AUTOMOTORES Y MOTOCICLETAS | N117: G | O117: Comercio, mantenimiento y reparación de motocicletas y de sus partes, piezas y accesorios | P117: Comercio, mantenimiento y reparación de motocicletas y de sus partes, piezas y accesorios | Q117: 3 | R117: 2 | S117: 0 | AE117: 0 | AF117: 0 | AG117: 66001 | AH117: PEREIRA | AI117: 3 | AJ117: 0 | AK117: Natural | AL117: 66 | AM117: RISARALDA | AN117: Aprobado con subsidio | AO117: MICRO | AP117: 1521 | AQ117: INDUSTRIAS MANUFACTURERAS | AR117: C | AS117: Fabricación de calzado | AT117: Curtido y recurtido de cueros; fabricación de calzado; fabricación de artículos de viaje, maletas, bolsos de mano y artículos similares, y fabricación de artículos de talabartería y guarnicionería; adobo y teñido de pieles | AU117: 0 | AV117: 3 | AW117: 0 | BI117: 5615 | BJ117: 5 | BK117: 5579 | BL117: 1
C118: 19698 | D118: SANTANDER DE QUILICHAO | E118: 6 | F118: 1 | G118: Natural | H118: 19 | I118: CAUCA | J118: Aprobado con subsidio | K118: MICRO | L118: 1052 | M118: INDUSTRIAS MANUFACTURERAS | N118: C | O118: Elaboración de productos de molinería, almidones y productos derivados del almidón | P118: Elaboración de productos alimenticios | Q118: 0 | R118: 6 | S118: 0 | AE118: 0 | AF118: 0 | AG118: 5631 | AH118: SABANETA | AI118: 3 | AJ118: 0 | AK118: Natural | AL118: 5 | AM118: ANTIOQUIA | AN118: Aprobado con subsidio | AO118: MICRO | AP118: 1081 | AQ118: INDUSTRIAS MANUFACTURERAS | AR118: C | AS118: Elaboración de otros productos alimenticios | AT118: Elaboración de productos alimenticios | AU118: 2 | AV118: 1 | AW118: 0 | BI118: 81001 | BJ118: 1 | BK118: 23417 | BL118: 1
C119: 76001 | D119: CALI | E119: 0 | F119: 2 | G119: Natural | H119: 76 | I119: VALLE DEL CAUCA | J119: 0 | K119: MICRO | L119: 4520 | M119: COMERCIO AL POR MAYOR Y AL POR MENOR; REPARACIÓN DE VEHÍCULOS AUTOMOTORES Y MOTOCICLETAS | N119: G | O119: Mantenimiento y reparación de vehículos automotores | P119: Mantenimiento y reparación de vehículos automotores | Q119: 0 | R119: 0 | S119: 0 | AE119: 0 | AF119: 0 | AG119: 5001 | AH119: MEDELLÍN | AI119: 2 | AJ119: 0 | AK119: Natural | AL119: 5 | AM119: ANTIOQUIA | AN119: Aprobado con subsidio | AO119: MICRO | AP119: 1410 | AQ119: INDUSTRIAS MANUFACTURERAS | AR119: C | AS119: Confección de prendas de vestir, excepto prendas de piel | AT119: Confección de prendas de vestir | AU119: 1 | AV119: 1 | AW119: 0 | BI119: 5051 | BJ119: 1 | BK119: 15491 | BL119: 1
C120: 19001 | D120: POPAYÁN | E120: 18 | F120: 1 | G120: Natural | H120: 19 | I120: CAUCA | J120: Aprobado con subsidio | K120: PEQUEÑA | L120: 5511 | M120: ALOJAMIENTO Y SERVICIOS DE COMIDA | N120: I | O120: Actividades de alojamiento de estancias cortas | P120: Actividades de alojamiento de estancias cortas | Q120: 8 | R120: 10 | S120: 0 | AE120: 0 | AF120: 0 | AG120: 76001 | AH120: CALI | AI120: 2 | AJ120: 5 | AK120: Natural | AL120: 76 | AM120: VALLE DEL CAUCA | AN120: Aprobado con subsidio | AO120: MICRO | AP120: 1081 | AQ120: INDUSTRIAS MANUFACTURERAS | AR120: C | AS120: Elaboración de otros productos alimenticios | AT120: Elaboración de productos alimenticios | AU120: 1 | AV120: 1 | AW120: 0 | BI120: 25899 | BJ120: 3 | BK120: 25200 | BL120: 1
C121: 19001 | D121: POPAYÁN | E121: 6 | F121: 1 | G121: Natural | H121: 19 | I121: CAUCA | J121: Aprobado con subsidio | K121: MICRO | L121: 4731 | M121: COMERCIO AL POR MAYOR Y AL POR MENOR; REPARACIÓN DE VEHÍCULOS AUTOMOTORES Y MOTOCICLETAS | N121: G | O121: Comercio al por menor de combustible, lubricantes, aditivos y productos de limpieza para automotores, en establecimientos especializados | P121: Comercio al por menor de combustible, lubricantes, aditivos y productos de limpieza para automotores, en establecimientos especializados | Q121: 1 | R121: 5 | S121: 0 | AE121: 0 | AF121: 0 | AG121: 5001 | AH121: MEDELLÍN | AI121: 5 | AJ121: 2 | AK121: Natural | AL121: 5 | AM121: ANTIOQUIA | AN121: Aprobado con subsidio | AO121: MICRO | AP121: 1410 | AQ121: INDUSTRIAS MANUFACTURERAS | AR121: C | AS121: Confección de prendas de vestir, excepto prendas de piel | AT121: Confección de prendas de vestir | AU121: 3 | AV121: 2 | AW121: 0 | BI121: 54874 | BJ121: 2 | BK121: 25288 | BL121: 1
C122: 15759 | D122: SOGAMOSO | E122: 2 | F122: 1 | G122: Natural | H122: 15 | I122: BOYACÁ | J122: Aprobado con subsidio | K122: MICRO | L122: 4923 | M122: TRANSPORTE Y ALMACENAMIENTO | N122: H | O122: Transporte terrestre publico automotor | P122: Transporte terrestre publico automotor | Q122: 0 | R122: 2 | S122: 0 | AE122: 0 | AF122: 0 | AG122: 5360 | AH122: ITAGUI | AI122: 6 | AJ122: 4 | AK122: Natural | AL122: 5 | AM122: ANTIOQUIA | AN122: Aprobado con subsidio | AO122: PEQUEÑA | AP122: 1020 | AQ122: INDUSTRIAS MANUFACTURERAS | AR122: C | AS122: Procesamiento y conservación de frutas, legumbres, hortalizas y tubérculos | AT122: Elaboración de productos alimenticios | AU122: 1 | AV122: 5 | AW122: 0 | BI122: 76275 | BJ122: 1 | BK122: 99001 | BL122: 1
C123: 19001 | D123: POPAYÁN | E123: 5 | F123: 0 | G123: Natural | H123: 19 | I123: CAUCA | J123: Aprobado con subsidio | K123: MICRO | L123: 8219 | M123: ACTIVIDADES DE SERVICIOS ADMINISTRATIVOS Y DE APOYO | N123: N | O123: Actividades administrativas y de apoyo de oficina | P123: Actividades administrativas y de apoyo de oficina | Q123: 4 | R123: 1 | S123: 0 | AE123: 0 | AF123: 0 | AG123: 11001 | AH123: BOGOTÁ, D.C. | AI123: 3 | AJ123: 1 | AK123: Natural | AL123: 11 | AM123: BOGOTÁ, D.C. | AN123: Aprobado con subsidio | AO123: MICRO | AP123: 1081 | AQ123: INDUSTRIAS MANUFACTURERAS | AR123: C | AS123: Elaboración de otros productos alimenticios | AT123: Elaboración de productos alimenticios | AU123: 1 | AV123: 2 | AW123: 0 | BI123: 85010 | BJ123: 2 | BK123: 8634 | BL123: 1
C124: 19001 | D124: POPAYÁN | E124: 6 | F124: 0 | G124: Natural | H124: 19 | I124: CAUCA | J124: Aprobado con subsidio | K124: MICRO | L124: 8020 | M124: ACTIVIDADES DE SERVICIOS ADMINISTRATIVOS Y DE APOYO | N124: N | O124: Actividades de servicios de sistemas de seguridad | P124: Actividades de servicios de sistemas de seguridad | Q124: 3 | R124: 3 | S124: 0 | AE124: 0 | AF124: 0 | AG124: 76001 | AH124: CALI | AI124: 7 | AJ124: 1 | AK124: Natural | AL124: 76 | AM124: VALLE DEL CAUCA | AN124: Aprobado con subsidio | AO124: MICRO | AP124: 1089 | AQ124: INDUSTRIAS MANUFACTURERAS | AR124: C | AS124: Elaboración de otros productos alimenticios | AT124: Elaboración de productos alimenticios | AU124: 4 | AV124: 3 | AW124: 0 | BI124: 20178 | BJ124: 1 | BK124: 52788 | BL124: 1
C125: 15238 | D125: DUITAMA | E125: 5 | F125: 4 | G125: Natural | H125: 15 | I125: BOYACÁ | J125: Aprobado con subsidio | K125: MICRO | L125: 4530 | M125: COMERCIO AL POR MAYOR Y AL POR MENOR; REPARACIÓN DE VEHÍCULOS AUTOMOTORES Y MOTOCICLETAS | N125: G | O125: Comercio de partes, piezas (autopartes) y accesorios (lujos) para vehículos automotores | P125: Comercio de partes, piezas (autopartes) y accesorios (lujos) para vehículos automotores | Q125: 3 | R125: 2 | S125: 0 | AE125: 0 | AF125: 0 | AG125: 76147 | AH125: CARTAGO | AI125: 5 | AJ125: 1 | AK125: Natural | AL125: 76 | AM125: VALLE DEL CAUCA | AN125: Aprobado con subsidio | AO125: MICRO | AP125: 3319 | AQ125: INDUSTRIAS MANUFACTURERAS | AR125: C | AS125: Mantenimiento y reparación especializado de productos elaborados en metal y de maquinaria y equipo | AT125: Instalación, mantenimiento y reparación especializado de maquinaria y equipo | AU125: 0 | AV125: 5 | AW125: 0 | BI125: 5607 | BJ125: 1 | BK125: 19455 | BL125: 1
C126: 15238 | D126: DUITAMA | E126: 0 | F126: 0 | G126: Natural | H126: 15 | I126: BOYACÁ | J126: 0 | K126: MICRO | L126: 4923 | M126: TRANSPORTE Y ALMACENAMIENTO | N126: H | O126: Transporte terrestre publico automotor | P126: Transporte terrestre publico automotor | Q126: 0 | R126: 0 | S126: 0 | AE126: 0 | AF126: 0 | AG126: 66170 | AH126: DOSQUEBRADAS | AI126: 10 | AJ126: 1 | AK126: Natural | AL126: 66 | AM126: RISARALDA | AN126: Aprobado con subsidio | AO126: MICRO | AP126: 1410 | AQ126: INDUSTRIAS MANUFACTURERAS | AR126: C | AS126: Confección de prendas de vestir, excepto prendas de piel | AT126: Confección de prendas de vestir | AU126: 9 | AV126: 1 | AW126: 0 | BI126: 25377 | BJ126: 1 | BK126: 73168 | BL126: 1
C127: 15238 | D127: DUITAMA | E127: 0 | F127: 0 | G127: Natural | H127: 15 | I127: BOYACÁ | J127: 0 | K127: 0 | L127: 4111 | M127: CONSTRUCCIÓN | N127: F | O127: Construcción de edificios | P127: Construcción de edificios | Q127: 0 | R127: 0 | S127: 0 | AE127: 0 | AF127: 0 | AG127: 66170 | AH127: DOSQUEBRADAS | AI127: 5 | AJ127: 1 | AK127: Natural | AL127: 66 | AM127: RISARALDA | AN127: Aprobado con subsidio | AO127: MICRO | AP127: 1410 | AQ127: INDUSTRIAS MANUFACTURERAS | AR127: C | AS127: Confección de prendas de vestir, excepto prendas de piel | AT127: Confección de prendas de vestir | AU127: 3 | AV127: 2 | AW127: 0 | BI127: 63401 | BJ127: 1 | BK127: 81001 | BL127: 1
C128: 70001 | D128: SINCELEJO | E128: 9 | F128: 6 | G128: Natural | H128: 70 | I128: SUCRE | J128: Aprobado con subsidio | K128: PEQUEÑA | L128: 1081 | M128: INDUSTRIAS MANUFACTURERAS | N128: C | O128: Elaboración de otros productos alimenticios | P128: Elaboración de productos alimenticios | Q128: 4 | R128: 5 | S128: 0 | AE128: 0 | AF128: 0 | AG128: 76001 | AH128: CALI | AI128: 3 | AJ128: 65 | AK128: Natural | AL128: 76 | AM128: VALLE DEL CAUCA | AN128: Aprobado con subsidio | AO128: MEDIANA | AP128: 1089 | AQ128: INDUSTRIAS MANUFACTURERAS | AR128: C | AS128: Elaboración de otros productos alimenticios | AT128: Elaboración de productos alimenticios | AU128: 2 | AV128: 1 | AW128: 0 | BI128: 25260 | BJ128: 1 | BK128: 5051 | BL128: 1
C129: 19001 | D129: POPAYÁN | E129: 9 | F129: 1 | G129: Jurídica | H129: 19 | I129: CAUCA | J129: Aprobado con subsidio | K129: MICRO | L129: 5611 | M129: ALOJAMIENTO Y SERVICIOS DE COMIDA | N129: I | O129: Actividades de restaurantes, cafeterías y servicio móvil de comidas | P129: Actividades de restaurantes, cafeterías y servicio móvil de comidas | Q129: 6 | R129: 3 | S129: 0 | AE129: 0 | AF129: 0 | AG129: 68861 | AH129: VÉLEZ | AI129: 25 | AJ129: 1 | AK129: Natural | AL129: 68 | AM129: SANTANDER | AN129: Aprobado con subsidio | AO129: PEQUEÑA | AP129: 1089 | AQ129: INDUSTRIAS MANUFACTURERAS | AR129: C | AS129: Elaboración de otros productos alimenticios | AT129: Elaboración de productos alimenticios | AU129: 14 | AV129: 11 | AW129: 0 | BI129: 76622 | BJ129: 2 | BK129: 76275 | BL129: 1
C130: 17001 | D130: MANIZALES | E130: 12 | F130: 0 | G130: Natural | H130: 17 | I130: CALDAS | J130: Aprobado con subsidio | K130: PEQUEÑA | L130: 5613 | M130: ALOJAMIENTO Y SERVICIOS DE COMIDA | N130: I | O130: Actividades de restaurantes, cafeterías y servicio móvil de comidas | P130: Actividades de restaurantes, cafeterías y servicio móvil de comidas | Q130: 12 | R130: 0 | S130: 0 | AE130: 0 | AF130: 0 | AG130: 76001 | AH130: CALI | AI130: 138 | AJ130: 25 | AK130: Natural | AL130: 76 | AM130: VALLE DEL CAUCA | AN130: Aprobado con subsidio | AO130: MEDIANA | AP130: 1410 | AQ130: INDUSTRIAS MANUFACTURERAS | AR130: C | AS130: Confección de prendas de vestir, excepto prendas de piel | AT130: Confección de prendas de vestir | AU130: 75 | AV130: 63 | AW130: 0 | BI130: 50006 | BJ130: =COUNTIFS($AN$2:$AN$399999,"Aprobado con subsidio",$AG$2:$AG$399999,BI130) -> 1 | BK130: 20178 | BL130: 1
C131: 17174 | D131: CHINCHINÁ | E131: 2 | F131: 0 | G131: Natural | H131: 17 | I131: CALDAS | J131: Aprobado con subsidio | K131: MICRO | L131: 4761 | M131: COMERCIO AL POR MAYOR Y AL POR MENOR; REPARACIÓN DE VEHÍCULOS AUTOMOTORES Y MOTOCICLETAS | N131: G | O131: Comercio al por menor de artículos culturales y de entretenimiento, en establecimientos especializados | P131: Comercio al por menor de artículos culturales y de entretenimiento, en establecimientos especializados | Q131: 2 | R131: 0 | S131: 0 | AE131: 0 | AF131: 0 | AG131: 68001 | AH131: BUCARAMANGA | AI131: 8 | AJ131: 2 | AK131: Natural | AL131: 68 | AM131: SANTANDER | AN131: Aprobado con subsidio | AO131: MICRO | AP131: 2229 | AQ131: INDUSTRIAS MANUFACTURERAS | AR131: C | AS131: Fabricación de productos de plástico | AT131: Fabricación de productos de caucho y de plástico | AU131: 1 | AV131: 7 | AW131: 0 | BI131: 23182 | BJ131: 1 | BK131: 5607 | BL131: 1
C132: 19001 | D132: POPAYÁN | E132: 0 | F132: 0 | G132: Natural | H132: 19 | I132: CAUCA | J132: 0 | K132: 0 | L132: 4752 | M132: COMERCIO AL POR MAYOR Y AL POR MENOR; REPARACIÓN DE VEHÍCULOS AUTOMOTORES Y MOTOCICLETAS | N132: G | O132: Comercio al por menor de otros enseres domésticos en establecimientos especializados | P132: Comercio al por menor de otros enseres domésticos en establecimientos especializados | Q132: 0 | R132: 0 | S132: 0 | AE132: 0 | AF132: 0 | AG132: 76001 | AH132: CALI | AI132: 6 | AJ132: 0 | AK132: Natural | AL132: 76 | AM132: VALLE DEL CAUCA | AN132: Aprobado con subsidio | AO132: MICRO | AP132: 1081 | AQ132: INDUSTRIAS MANUFACTURERAS | AR132: C | AS132: Elaboración de otros productos alimenticios | AT132: Elaboración de productos alimenticios | AU132: 2 | AV132: 4 | AW132: 0 | BI132: 54261 | BJ132: 3 | BK132: 25377 | BL132: 1
C133: 19001 | D133: POPAYÁN | E133: 6 | F133: 1 | G133: Natural | H133: 19 | I133: CAUCA | J133: Aprobado con subsidio | K133: MICRO | L133: 4321 | M133: CONSTRUCCIÓN | N133: F | O133: Instalaciones eléctricas, de fontanería y otras instalaciones especializadas | P133: Instalaciones eléctricas, de fontanería y otras instalaciones especializadas | Q133: 4 | R133: 2 | S133: 0 | AE133: 0 | AF133: 0 | AG133: 15516 | AH133: PAIPA | AI133: 5 | AJ133: 2 | AK133: Natural | AL133: 15 | AM133: BOYACÁ | AN133: Aprobado con subsidio | AO133: MICRO | AP133: 1081 | AQ133: INDUSTRIAS MANUFACTURERAS | AR133: C | AS133: Elaboración de otros productos alimenticios | AT133: Elaboración de productos alimenticios | AU133: 3 | AV133: 2 | AW133: 0 | BI133: 44001 | BJ133: 1 | BK133: 63401 | BL133: 1
C134: 68001 | D134: BUCARAMANGA | E134: 4 | F134: 0 | G134: Natural | H134: 68 | I134: SANTANDER | J134: Aprobado con subsidio | K134: MICRO | L134: 1921 | M134: INDUSTRIAS MANUFACTURERAS | N134: C | O134: Fabricación de productos de la refinación del petróleo | P134: Coquización, fabricación de productos de la refinación del petróleo y actividad de mezcla de combustibles | Q134: 3 | R134: 1 | S134: 0 | AE134: 0 | AF134: 0 | AG134: 11001 | AH134: BOGOTÁ, D.C. | AI134: 3 | AJ134: 0 | AK134: Natural | AL134: 11 | AM134: BOGOTÁ, D.C. | AN134: Aprobado con subsidio | AO134: MICRO | AP134: 1811 | AQ134: INDUSTRIAS MANUFACTURERAS | AR134: C | AS134: Actividades de impresión y actividades de servicios relacionados con la impresión | AT134: Actividades de impresión y de producción de copias a partir de grabaciones originales | AU134: 1 | AV134: 2 | AW134: 0 | BI134: 76364 | BJ134: 3 | BK134: 25260 | BL134: 1
C135: 19001 | D135: POPAYÁN | E135: 6 | F135: 1 | G135: Natural | H135: 19 | I135: CAUCA | J135: Aprobado con subsidio | K135: MICRO | L135: 4752 | M135: COMERCIO AL POR MAYOR Y AL POR MENOR; REPARACIÓN DE VEHÍCULOS AUTOMOTORES Y MOTOCICLETAS | N135: G | O135: Comercio al por menor de otros enseres domésticos en establecimientos especializados | P135: Comercio al por menor de otros enseres domésticos en establecimientos especializados | Q135: 0 | R135: 6 | S135: 0 | AE135: 0 | AF135: 0 | AG135: 17001 | AH135: MANIZALES | AI135: 7 | AJ135: 3 | AK135: Natural | AL135: 17 | AM135: CALDAS | AN135: Aprobado con subsidio | AO135: MICRO | AP135: 1410 | AQ135: INDUSTRIAS MANUFACTURERAS | AR135: C | AS135: Confección de prendas de vestir, excepto prendas de piel | AT135: Confección de prendas de vestir | AU135: 6 | AV135: 1 | AW135: 0 | BI135: 5306 | BJ135: 1 | BK135: 50006 | BL135: 1
C136: 19001 | D136: POPAYÁN | E136: 5 | F136: 2 | G136: Natural | H136: 19 | I136: CAUCA | J136: Aprobado con subsidio | K136: MICRO | L136: 4663 | M136: COMERCIO AL POR MAYOR Y AL POR MENOR; REPARACIÓN DE VEHÍCULOS AUTOMOTORES Y MOTOCICLETAS | N136: G | O136: Comercio al por mayor especializado de otros productos | P136: Comercio al por mayor especializado de otros productos | Q136: 3 | R136: 2 | S136: 0 | AE136: 0 | AF136: 0 | AG136: 17001 | AH136: MANIZALES | AI136: 28 | AJ136: 14 | AK136: Natural | AL136: 17 | AM136: CALDAS | AN136: Aprobado con subsidio | AO136: PEQUEÑA | AP136: 1521 | AQ136: INDUSTRIAS MANUFACTURERAS | AR136: C | AS136: Fabricación de calzado | AT136: Curtido y recurtido de cueros; fabricación de calzado; fabricación de artículos de viaje, maletas, bolsos de mano y artículos similares, y fabricación de artículos de talabartería y guarnicionería; adobo y teñido de pieles | AU136: 23 | AV136: 5 | AW136: 0 | BI136: 19548 | BJ136: 1 | BK136: 23182 | BL136: 1
C137: 50001 | D137: VILLAVICENCIO | E137: 9 | F137: 1 | G137: Natural | H137: 50 | I137: META | J137: Aprobado con subsidio | K137: MICRO | L137: 7500 | M137: ACTIVIDADES PROFESIONALES, CIENTÍFICAS Y TÉCNICAS | N137: M | O137: Actividades veterinarias | P137: Actividades veterinarias | Q137: 3 | R137: 6 | S137: 0 | AE137: 0 | AF137: 0 | AG137: 76520 | AH137: PALMIRA | AI137: 13 | AJ137: 1 | AK137: Natural | AL137: 76 | AM137: VALLE DEL CAUCA | AN137: Aprobado con subsidio | AO137: PEQUEÑA | AP137: 2720 | AQ137: INDUSTRIAS MANUFACTURERAS | AR137: C | AS137: Fabricación de pilas, baterías y acumuladores eléctricos | AT137: Fabricación de aparatos y equipo eléctrico | AU137: 2 | AV137: 11 | AW137: 0 | BI137: 5664 | BJ137: 1 | BK137: 44001 | BL137: 1
C138: 76001 | D138: CALI | E138: 4 | F138: 7 | G138: Natural | H138: 76 | I138: VALLE DEL CAUCA | J138: Aprobado con subsidio | K138: MICRO | L138: 4111 | M138: CONSTRUCCIÓN | N138: F | O138: Construcción de edificios | P138: Construcción de edificios | Q138: 0 | R138: 4 | S138: 0 | AE138: 0 | AF138: 0 | AG138: 76001 | AH138: CALI | AI138: 7 | AJ138: 0 | AK138: Natural | AL138: 76 | AM138: VALLE DEL CAUCA | AN138: Aprobado con subsidio | AO138: MICRO | AP138: 1082 | AQ138: INDUSTRIAS MANUFACTURERAS | AR138: C | AS138: Elaboración de otros productos alimenticios | AT138: Elaboración de productos alimenticios | AU138: 6 | AV138: 1 | AW138: 0 | BI138: 25758 | BJ138: 2 | BK138: 5306 | BL138: 1
C139: 19001 | D139: POPAYÁN | E139: 4 | F139: 1 | G139: Natural | H139: 19 | I139: CAUCA | J139: Aprobado con subsidio | K139: MICRO | L139: 4620 | M139: COMERCIO AL POR MAYOR Y AL POR MENOR; REPARACIÓN DE VEHÍCULOS AUTOMOTORES Y MOTOCICLETAS | N139: G | O139: Comercio al por mayor de materias primas agropecuarias; animales vivos | P139: Comercio al por mayor de materias primas agropecuarias; animales vivos | Q139: 1 | R139: 3 | S139: 0 | AE139: 0 | AF139: 0 | AG139: 76001 | AH139: CALI | AI139: 24 | AJ139: 0 | AK139: Jurídica | AL139: 76 | AM139: VALLE DEL CAUCA | AN139: Aprobado con subsidio | AO139: PEQUEÑA | AP139: 1410 | AQ139: INDUSTRIAS MANUFACTURERAS | AR139: C | AS139: Confección de prendas de vestir, excepto prendas de piel | AT139: Confección de prendas de vestir | AU139: 16 | AV139: 8 | AW139: 0 | BI139: 5887 | BJ139: 1 | BK139: 19548 | BL139: 1
C140: 19001 | D140: POPAYÁN | E140: 10 | F140: 2 | G140: Natural | H140: 19 | I140: CAUCA | J140: Aprobado con subsidio | K140: PEQUEÑA | L140: 4773 | M140: COMERCIO AL POR MAYOR Y AL POR MENOR; REPARACIÓN DE VEHÍCULOS AUTOMOTORES Y MOTOCICLETAS | N140: G | O140: Comercio al por menor de otros productos en establecimientos especializados | P140: Comercio al por menor de otros productos en establecimientos especializados | Q140: 7 | R140: 3 | S140: 0 | AE140: 0 | AF140: 0 | AG140: 76869 | AH140: VIJES | AI140: 2 | AJ140: 4 | AK140: Natural | AL140: 76 | AM140: VALLE DEL CAUCA | AN140: Aprobado con subsidio | AO140: MICRO | AP140: 2394 | AQ140: INDUSTRIAS MANUFACTURERAS | AR140: C | AS140: Fabricación de productos minerales no metálicos n.c.p. | AT140: Fabricación de otros productos minerales no metálicos | AU140: 1 | AV140: 1 | AW140: 0 | BI140: 70215 | BJ140: 1 | BK140: 5664 | BL140: 1
C141: 19001 | D141: POPAYÁN | E141: 2 | F141: 0 | G141: Natural | H141: 19 | I141: CAUCA | J141: Aprobado con subsidio | K141: MICRO | L141: 5511 | M141: ALOJAMIENTO Y SERVICIOS DE COMIDA | N141: I | O141: Actividades de alojamiento de estancias cortas | P141: Actividades de alojamiento de estancias cortas | Q141: 2 | R141: 0 | S141: 0 | AE141: 0 | AF141: 0 | AG141: 76001 | AH141: CALI | AI141: 4 | AJ141: 1 | AK141: Natural | AL141: 76 | AM141: VALLE DEL CAUCA | AN141: Aprobado con subsidio | AO141: MICRO | AP141: 3110 | AQ141: INDUSTRIAS MANUFACTURERAS | AR141: C | AS141: Fabricación de muebles | AT141: Fabricación de muebles, colchones y somieres | AU141: 1 | AV141: 3 | AW141: 0 | BI141: 15572 | BJ141: 1 | BK141: 5887 | BL141: 1
C142: 19001 | D142: POPAYÁN | E142: 0 | F142: 0 | G142: Natural | H142: 19 | I142: CAUCA | J142: 0 | K142: MICRO | L142: 7500 | M142: ACTIVIDADES PROFESIONALES, CIENTÍFICAS Y TÉCNICAS | N142: M | O142: Actividades veterinarias | P142: Actividades veterinarias | Q142: 0 | R142: 0 | S142: 0 | AE142: 0 | AF142: 0 | AG142: 76001 | AH142: CALI | AI142: 8 | AJ142: 3 | AK142: Natural | AL142: 76 | AM142: VALLE DEL CAUCA | AN142: Aprobado con subsidio | AO142: PEQUEÑA | AP142: 1089 | AQ142: INDUSTRIAS MANUFACTURERAS | AR142: C | AS142: Elaboración de otros productos alimenticios | AT142: Elaboración de productos alimenticios | AU142: 2 | AV142: 6 | AW142: 0 | BI142: 8758 | BJ142: 2 | BK142: 70215 | BL142: 1
C143: 76001 | D143: CALI | E143: 0 | F143: 7 | G143: Natural | H143: 76 | I143: VALLE DEL CAUCA | J143: 0 | K143: MICRO | L143: 5611 | M143: ALOJAMIENTO Y SERVICIOS DE COMIDA | N143: I | O143: Actividades de restaurantes, cafeterías y servicio móvil de comidas | P143: Actividades de restaurantes, cafeterías y servicio móvil de comidas | Q143: 0 | R143: 0 | S143: 0 | AE143: 0 | AF143: 0 | AG143: 76001 | AH143: CALI | AI143: 3 | AJ143: 0 | AK143: Natural | AL143: 76 | AM143: VALLE DEL CAUCA | AN143: Aprobado con subsidio | AO143: MICRO | AP143: 2219 | AQ143: INDUSTRIAS MANUFACTURERAS | AR143: C | AS143: Fabricación de productos de caucho | AT143: Fabricación de productos de caucho y de plástico | AU143: 1 | AV143: 2 | AW143: 0 | BI143: 23162 | BJ143: 1 | BK143: 15572 | BL143: 1
C144: 76001 | D144: CALI | E144: 6 | F144: 0 | G144: Natural | H144: 76 | I144: VALLE DEL CAUCA | J144: Aprobado con subsidio | K144: MICRO | L144: 4530 | M144: COMERCIO AL POR MAYOR Y AL POR MENOR; REPARACIÓN DE VEHÍCULOS AUTOMOTORES Y MOTOCICLETAS | N144: G | O144: Comercio de partes, piezas (autopartes) y accesorios (lujos) para vehículos automotores | P144: Comercio de partes, piezas (autopartes) y accesorios (lujos) para vehículos automotores | Q144: 4 | R144: 2 | S144: 0 | AE144: 0 | AF144: 0 | AG144: 11001 | AH144: BOGOTÁ, D.C. | AI144: 4 | AJ144: 1 | AK144: Natural | AL144: 11 | AM144: BOGOTÁ, D.C. | AN144: Aprobado con subsidio | AO144: MICRO | AP144: 2013 | AQ144: INDUSTRIAS MANUFACTURERAS | AR144: C | AS144: Fabricación de sustancias químicas básicas, abonos y compuestos inorgánicos nitrogenados, plásticos y caucho sintético en formas primarias | AT144: Fabricación de sustancias y productos químicos | AU144: 1 | AV144: 3 | AW144: 0 | BI144: 76306 | BJ144: 1 | BK144: 23162 | BL144: 1
C145: 23675 | D145: SAN BERNARDO DEL VIENTO | E145: 14 | F145: 16 | G145: Natural | H145: 23 | I145: CÓRDOBA | J145: Aprobado con subsidio | K145: PEQUEÑA | L145: 4711 | M145: COMERCIO AL POR MAYOR Y AL POR MENOR; REPARACIÓN DE VEHÍCULOS AUTOMOTORES Y MOTOCICLETAS | N145: G | O145: Comercio al por menor en establecimientos no especializados | P145: Comercio al por menor en establecimientos no especializados | Q145: 6 | R145: 8 | S145: 0 | AE145: 0 | AF145: 0 | AG145: 76001 | AH145: CALI | AI145: 5 | AJ145: 1 | AK145: Natural | AL145: 76 | AM145: VALLE DEL CAUCA | AN145: Aprobado con subsidio | AO145: MICRO | AP145: 3110 | AQ145: INDUSTRIAS MANUFACTURERAS | AR145: C | AS145: Fabricación de muebles | AT145: Fabricación de muebles, colchones y somieres | AU145: 4 | AV145: 1 | AW145: 0 | BI145: 25269 | BJ145: 2 | BK145: 76306 | BL145: 1
C146: 5001 | D146: MEDELLÍN | E146: 4 | F146: 0 | G146: Natural | H146: 5 | I146: ANTIOQUIA | J146: Aprobado con subsidio | K146: MICRO | L146: 4649 | M146: COMERCIO AL POR MAYOR Y AL POR MENOR; REPARACIÓN DE VEHÍCULOS AUTOMOTORES Y MOTOCICLETAS | N146: G | O146: Comercio al por mayor de artículos y enseres domésticos (incluidas prendas de vestir) | P146: Comercio al por mayor de artículos y enseres domésticos (incluidas prendas de vestir) | Q146: 1 | R146: 3 | S146: 0 | AE146: 0 | AF146: 0 | AG146: 76001 | AH146: CALI | AI146: 11 | AJ146: 1 | AK146: Natural | AL146: 76 | AM146: VALLE DEL CAUCA | AN146: Aprobado con subsidio | AO146: PEQUEÑA | AP146: 1089 | AQ146: INDUSTRIAS MANUFACTURERAS | AR146: C | AS146: Elaboración de otros productos alimenticios | AT146: Elaboración de productos alimenticios | AU146: 9 | AV146: 2 | AW146: 0 | BI146: 76126 | BJ146: 1 | BK146: 76126 | BL146: 1
C147: 23001 | D147: MONTERÍA | E147: 4 | F147: 3 | G147: Jurídica | H147: 23 | I147: CÓRDOBA | J147: Aprobado con subsidio | K147: MICRO | L147: 5619 | M147: ALOJAMIENTO Y SERVICIOS DE COMIDA | N147: I | O147: Actividades de restaurantes, cafeterías y servicio móvil de comidas | P147: Actividades de restaurantes, cafeterías y servicio móvil de comidas | Q147: 2 | R147: 2 | S147: 0 | AE147: 0 | AF147: 0 | AG147: 76001 | AH147: CALI | AI147: 4 | AJ147: 1 | AK147: Natural | AL147: 76 | AM147: VALLE DEL CAUCA | AN147: Aprobado con subsidio | AO147: MICRO | AP147: 2221 | AQ147: INDUSTRIAS MANUFACTURERAS | AR147: C | AS147: Fabricación de productos de plástico | AT147: Fabricación de productos de caucho y de plástico | AU147: 1 | AV147: 3 | AW147: 0 | BI147: 23555 | BJ147: 1 | BK147: 23555 | BL147: 1
C148: 68001 | D148: BUCARAMANGA | E148: 11 | F148: 3 | G148: Natural | H148: 68 | I148: SANTANDER | J148: Aprobado con subsidio | K148: PEQUEÑA | L148: 5611 | M148: ALOJAMIENTO Y SERVICIOS DE COMIDA | N148: I | O148: Actividades de restaurantes, cafeterías y servicio móvil de comidas | P148: Actividades de restaurantes, cafeterías y servicio móvil de comidas | Q148: 1 | R148: 10 | S148: 0 | AE148: 0 | AF148: 0 | AG148: 76834 | AH148: TULUÁ | AI148: 87 | AJ148: 69 | AK148: Natural | AL148: 76 | AM148: VALLE DEL CAUCA | AN148: Aprobado con subsidio | AO148: GRANDE | AP148: 1072 | AQ148: INDUSTRIAS MANUFACTURERAS | AR148: C | AS148: Elaboración de azúcar y panela | AT148: Elaboración de productos alimenticios | AU148: 15 | AV148: 72 | AW148: 0 | BI148: 20750 | BJ148: 1 | BK148: 20750 | BL148: 1
C149: 5001 | D149: MEDELLÍN | E149: 54 | F149: 9 | G149: Natural | H149: 5 | I149: ANTIOQUIA | J149: Aprobado con subsidio | K149: MEDIANA | L149: 4111 | M149: CONSTRUCCIÓN | N149: F | O149: Construcción de edificios | P149: Construcción de edificios | Q149: 18 | R149: 36 | S149: 0 | AE149: 0 | AF149: 0 | AG149: 5360 | AH149: ITAGUI | AI149: 11 | AJ149: 1 | AK149: Natural | AL149: 5 | AM149: ANTIOQUIA | AN149: Aprobado con subsidio | AO149: PEQUEÑA | AP149: 2229 | AQ149: INDUSTRIAS MANUFACTURERAS | AR149: C | AS149: Fabricación de productos de plástico | AT149: Fabricación de productos de caucho y de plástico | AU149: 3 | AV149: 8 | AW149: 0 | BI149: 19130 | BJ149: 1 | BK149: 19130 | BL149: 1
C150: 23417 | D150: LORICA | E150: 6 | F150: 1 | G150: Natural | H150: 23 | I150: CÓRDOBA | J150: Aprobado con subsidio | K150: MICRO | L150: 4751 | M150: COMERCIO AL POR MAYOR Y AL POR MENOR; REPARACIÓN DE VEHÍCULOS AUTOMOTORES Y MOTOCICLETAS | N150: G | O150: Comercio al por menor de otros enseres domésticos en establecimientos especializados | P150: Comercio al por menor de otros enseres domésticos en establecimientos especializados | Q150: 5 | R150: 1 | S150: 0 | AE150: 0 | AF150: 0 | AG150: 8638 | AH150: SABANALARGA | AI150: 9 | AJ150: 2 | AK150: Natural | AL150: 8 | AM150: ATLÁNTICO | AN150: Aprobado con subsidio | AO150: PEQUEÑA | AP150: 1081 | AQ150: INDUSTRIAS MANUFACTURERAS | AR150: C | AS150: Elaboración de otros productos alimenticios | AT150: Elaboración de productos alimenticios | AU150: 3 | AV150: 6 | AW150: 0 | BI150: 5686 | BJ150: 1 | BK150: 5686 | BL150: 1
C151: 5266 | D151: ENVIGADO | E151: 3 | F151: 0 | G151: Natural | H151: 5 | I151: ANTIOQUIA | J151: Aprobado con subsidio | K151: MICRO | L151: 4741 | M151: COMERCIO AL POR MAYOR Y AL POR MENOR; REPARACIÓN DE VEHÍCULOS AUTOMOTORES Y MOTOCICLETAS | N151: G | O151: Comercio al por menor de equipos de informática y de comunicaciones, en establecimientos especializados | P151: Comercio al por menor de equipos de informática y de comunicaciones, en establecimientos especializados | Q151: 1 | R151: 2 | S151: 0 | AE151: 0 | AF151: 0 | AG151: 13052 | AH151: ARJONA | AI151: 5 | AJ151: 1 | AK151: Natural | AL151: 13 | AM151: BOLÍVAR | AN151: Aprobado con subsidio | AO151: MICRO | AP151: 1610 | AQ151: INDUSTRIAS MANUFACTURERAS | AR151: C | AS151: Aserrado, acepillado e impregnación de la madera | AT151: Transformación de la madera y fabricación de productos de madera y de corcho, excepto muebles; fabricación de artículos de cestería y espartería | AU151: 2 | AV151: 3 | AW151: 0 | BI151: 5264 | BJ151: 1 | BK151: 5264 | BL151: 1
C152: 5001 | D152: MEDELLÍN | E152: 0 | F152: 0 | G152: Natural | H152: 5 | I152: ANTIOQUIA | J152: 0 | K152: MEDIANA | L152: 8299 | M152: ACTIVIDADES DE SERVICIOS ADMINISTRATIVOS Y DE APOYO | N152: N | O152: Actividades de servicios de apoyo a las empresas n.c.p. | P152: Actividades de servicios de apoyo a las empresas n.c.p. | Q152: 0 | R152: 0 | S152: 0 | AE152: 0 | AF152: 0 | AG152: 66170 | AH152: DOSQUEBRADAS | AI152: 3 | AJ152: 0 | AK152: Natural | AL152: 66 | AM152: RISARALDA | AN152: Aprobado con subsidio | AO152: MICRO | AP152: 2920 | AQ152: INDUSTRIAS MANUFACTURERAS | AR152: C | AS152: Fabricación de carrocerías para vehículos automotores; fabricación de remolques y semirremolques | AT152: Fabricación de vehículos automotores, remolques y semirremolques | AU152: 0 | AV152: 3 | AW152: 0 | BI152: 76036 | BJ152: 0 | BK152: 15861 | BL152: 1
C153: 25269 | D153: FACATATIVÁ | E153: 0 | F153: 0 | G153: Natural | H153: 25 | I153: CUNDINAMARCA | J153: 0 | K153: MICRO | L153: 4923 | M153: TRANSPORTE Y ALMACENAMIENTO | N153: H | O153: Transporte terrestre publico automotor | P153: Transporte terrestre publico automotor | Q153: 0 | R153: 0 | S153: 0 | AE153: 0 | AF153: 0 | AG153: 50001 | AH153: VILLAVICENCIO | AI153: 8 | AJ153: 0 | AK153: Natural | AL153: 50 | AM153: META | AN153: Aprobado con subsidio | AO153: MICRO | AP153: 1392 | AQ153: INDUSTRIAS MANUFACTURERAS | AR153: C | AS153: Fabricación de otros productos textiles | AT153: Fabricación de productos textiles | AU153: 5 | AV153: 3 | AW153: 0 | BI153: 15861 | BJ153: 1 | BK153: 76318 | BL153: 1
C154: 25754 | D154: SOACHA | E154: 4 | F154: 0 | G154: Natural | H154: 25 | I154: CUNDINAMARCA | J154: Aprobado con subsidio | K154: MICRO | L154: 4774 | M154: COMERCIO AL POR MAYOR Y AL POR MENOR; REPARACIÓN DE VEHÍCULOS AUTOMOTORES Y MOTOCICLETAS | N154: G | O154: Comercio al por menor de otros productos en establecimientos especializados | P154: Comercio al por menor de otros productos en establecimientos especializados | Q154: 2 | R154: 2 | S154: 0 | AE154: 0 | AF154: 0 | AG154: 41001 | AH154: NEIVA | AI154: 4 | AJ154: 0 | AK154: Natural | AL154: 41 | AM154: HUILA | AN154: Aprobado con subsidio | AO154: MICRO | AP154: 1081 | AQ154: INDUSTRIAS MANUFACTURERAS | AR154: C | AS154: Elaboración de otros productos alimenticios | AT154: Elaboración de productos alimenticios | AU154: 2 | AV154: 2 | AW154: 0 | BI154: 76318 | BJ154: 1 | BK154: 20013 | BL154: 1
C155: 19001 | D155: POPAYÁN | E155: 5 | F155: 0 | G155: Jurídica | H155: 19 | I155: CAUCA | J155: Aprobado con subsidio | K155: MICRO | L155: 4719 | M155: COMERCIO AL POR MAYOR Y AL POR MENOR; REPARACIÓN DE VEHÍCULOS AUTOMOTORES Y MOTOCICLETAS | N155: G | O155: Comercio al por menor en establecimientos no especializados | P155: Comercio al por menor en establecimientos no especializados | Q155: 1 | R155: 4 | S155: 0 | AE155: 0 | AF155: 0 | AG155: 41001 | AH155: NEIVA | AI155: 3 | AJ155: 0 | AK155: Jurídica | AL155: 41 | AM155: HUILA | AN155: Aprobado con subsidio | AO155: MICRO | AP155: 1081 | AQ155: INDUSTRIAS MANUFACTURERAS | AR155: C | AS155: Elaboración de otros productos alimenticios | AT155: Elaboración de productos alimenticios | AU155: 2 | AV155: 1 | AW155: 0 | BI155: 20013 | BJ155: 1 | BK155: 76036 | BL155: 0
C156: 41001 | D156: NEIVA | E156: 2 | F156: 0 | G156: Natural | H156: 41 | I156: HUILA | J156: Aprobado con subsidio | K156: MICRO | L156: 4755 | M156: COMERCIO AL POR MAYOR Y AL POR MENOR; REPARACIÓN DE VEHÍCULOS AUTOMOTORES Y MOTOCICLETAS | N156: G | O156: Comercio al por menor de otros enseres domésticos en establecimientos especializados | P156: Comercio al por menor de otros enseres domésticos en establecimientos especializados | Q156: 1 | R156: 1 | S156: 0 | AE156: 0 | AF156: 0 | AG156: 41551 | AH156: PITALITO | AI156: 2 | AJ156: 6 | AK156: Natural | AL156: 41 | AM156: HUILA | AN156: Aprobado con subsidio | AO156: MICRO | AP156: 2395 | AQ156: INDUSTRIAS MANUFACTURERAS | AR156: C | AS156: Fabricación de productos minerales no metálicos n.c.p. | AT156: Fabricación de otros productos minerales no metálicos | AU156: 0 | AV156: 2 | AW156: 0 | BI156: 0 | BJ156: 0 | BK156: 0 | BL156: 0
C157: 25307 | D157: GIRARDOT | E157: 5 | F157: 0 | G157: Natural | H157: 25 | I157: CUNDINAMARCA | J157: Aprobado con subsidio | K157: MICRO | L157: 5611 | M157: ALOJAMIENTO Y SERVICIOS DE COMIDA | N157: I | O157: Actividades de restaurantes, cafeterías y servicio móvil de comidas | P157: Actividades de restaurantes, cafeterías y servicio móvil de comidas | Q157: 4 | R157: 1 | S157: 0 | AE157: 0 | AF157: 0 | AG157: 52001 | AH157: PASTO | AI157: 8 | AJ157: 0 | AK157: Natural | AL157: 52 | AM157: NARIÑO | AN157: Aprobado con subsidio | AO157: MICRO | AP157: 1081 | AQ157: INDUSTRIAS MANUFACTURERAS | AR157: C | AS157: Elaboración de otros productos alimenticios | AT157: Elaboración de productos alimenticios | AU157: 4 | AV157: 4 | AW157: 0 | BJ157: 0 | BK157: 0 | BL157: 0
C158: 41001 | D158: NEIVA | E158: 8 | F158: 4 | G158: Natural | H158: 41 | I158: HUILA | J158: Aprobado con subsidio | K158: PEQUEÑA | L158: 4732 | M158: COMERCIO AL POR MAYOR Y AL POR MENOR; REPARACIÓN DE VEHÍCULOS AUTOMOTORES Y MOTOCICLETAS | N158: G | O158: Comercio al por menor de combustible, lubricantes, aditivos y productos de limpieza para automotores, en establecimientos especializados | P158: Comercio al por menor de combustible, lubricantes, aditivos y productos de limpieza para automotores, en establecimientos especializados | Q158: 3 | R158: 5 | S158: 0 | AE158: 0 | AF158: 0 | AG158: 68547 | AH158: PIEDECUESTA | AI158: 6 | AJ158: 2 | AK158: Natural | AL158: 68 | AM158: SANTANDER | AN158: Aprobado con subsidio | AO158: MICRO | AP158: 1081 | AQ158: INDUSTRIAS MANUFACTURERAS | AR158: C | AS158: Elaboración de otros productos alimenticios | AT158: Elaboración de productos alimenticios | AU158: 6 | AV158: 0 | AW158: 0 | BJ158: 0 | BK158: 0 | BL158: 0
C159: 41001 | D159: NEIVA | E159: 2 | F159: 1 | G159: Natural | H159: 41 | I159: HUILA | J159: Aprobado con subsidio | K159: MICRO | L159: 4923 | M159: TRANSPORTE Y ALMACENAMIENTO | N159: H | O159: Transporte terrestre publico automotor | P159: Transporte terrestre publico automotor | Q159: 0 | R159: 2 | S159: 0 | AE159: 0 | AF159: 0 | AG159: 68307 | AH159: GIRÓN | AI159: 16 | AJ159: 2 | AK159: Natural | AL159: 68 | AM159: SANTANDER | AN159: Aprobado con subsidio | AO159: PEQUEÑA | AP159: 3120 | AQ159: INDUSTRIAS MANUFACTURERAS | AR159: C | AS159: Fabricación de colchones y somieres | AT159: Fabricación de muebles, colchones y somieres | AU159: 4 | AV159: 12 | AW159: 0 | BJ159: 0 | BK159: 0 | BL159: 0
C160: 41001 | D160: NEIVA | E160: 2 | F160: 1 | G160: Natural | H160: 41 | I160: HUILA | J160: Aprobado con subsidio | K160: MICRO | L160: 3120 | M160: INDUSTRIAS MANUFACTURERAS | N160: C | O160: Fabricación de colchones y somieres | P160: Fabricación de muebles, colchones y somieres | Q160: 2 | R160: 0 | S160: 0 | AE160: 0 | AF160: 0 | AG160: 73001 | AH160: IBAGUÉ | AI160: 4 | AJ160: 2 | AK160: Natural | AL160: 73 | AM160: TOLIMA | AN160: Aprobado con subsidio | AO160: MICRO | AP160: 3110 | AQ160: INDUSTRIAS MANUFACTURERAS | AR160: C | AS160: Fabricación de muebles | AT160: Fabricación de muebles, colchones y somieres | AU160: 1 | AV160: 3 | AW160: 0 | BJ160: 0 | BK160: 0 | BL160: 0
C161: 66001 | D161: PEREIRA | E161: 8 | F161: 0 | G161: Natural | H161: 66 | I161: RISARALDA | J161: Aprobado con subsidio | K161: MICRO | L161: 1410 | M161: INDUSTRIAS MANUFACTURERAS | N161: C | O161: Confección de prendas de vestir, excepto prendas de piel | P161: Confección de prendas de vestir | Q161: 7 | R161: 1 | S161: 0 | AE161: 0 | AF161: 0 | AG161: 76001 | AH161: CALI | AI161: 5 | AJ161: 55 | AK161: Natural | AL161: 76 | AM161: VALLE DEL CAUCA | AN161: Aprobado con subsidio | AO161: MEDIANA | AP161: 2100 | AQ161: INDUSTRIAS MANUFACTURERAS | AR161: C | AS161: Fabricación de productos farmacéuticos, sustancias químicas medicinales y productos botánicos de uso farmacéutico | AT161: Fabricación de productos farmacéuticos, sustancias químicas medicinales y productos botánicos de uso farmacéutico | AU161: 2 | AV161: 3 | AW161: 0 | BJ161: 0 | BK161: 0 | BL161: 0
C162: 76111 | D162: GUADALAJARA DE BUGA | E162: 0 | F162: 0 | G162: Natural | H162: 76 | I162: VALLE DEL CAUCA | J162: 0 | K162: MICRO | L162: 4923 | M162: TRANSPORTE Y ALMACENAMIENTO | N162: H | O162: Transporte terrestre publico automotor | P162: Transporte terrestre publico automotor | Q162: 0 | R162: 0 | S162: 0 | AE162: 0 | AF162: 0 | AG162: 66001 | AH162: PEREIRA | AI162: 0 | AJ162: 0 | AK162: Natural | AL162: 66 | AM162: RISARALDA | AN162: 0 | AO162: MICRO | AP162: 1089 | AQ162: INDUSTRIAS MANUFACTURERAS | AR162: C | AS162: Elaboración de otros productos alimenticios | AT162: Elaboración de productos alimenticios | AU162: 0 | AV162: 0 | AW162: 0 | BJ162: 0 | BK162: 0 | BL162: 0
C163: 18001 | D163: FLORENCIA | E163: 0 | F163: 0 | G163: Natural | H163: 18 | I163: CAQUETÁ | J163: 0 | K163: MICRO | L163: 4923 | M163: TRANSPORTE Y ALMACENAMIENTO | N163: H | O163: Transporte terrestre publico automotor | P163: Transporte terrestre publico automotor | Q163: 0 | R163: 0 | S163: 0 | AE163: 0 | AF163: 0 | AG163: 63001 | AH163: ARMENIA | AI163: 0 | AJ163: 0 | AK163: Natural | AL163: 63 | AM163: QUINDÍO | AN163: 0 | AO163: MICRO | AP163: 1020 | AQ163: INDUSTRIAS MANUFACTURERAS | AR163: C | AS163: Procesamiento y conservación de frutas, legumbres, hortalizas y tubérculos | AT163: Elaboración de productos alimenticios | AU163: 0 | AV163: 0 | AW163: 0 | BJ163: 0 | BK163: 0 | BL163: 0
C164: 41396 | D164: LA PLATA | E164: 3 | F164: 0 | G164: Natural | H164: 41 | I164: HUILA | J164: Aprobado con subsidio | K164: MICRO | L164: 6920 | M164: ACTIVIDADES PROFESIONALES, CIENTÍFICAS Y TÉCNICAS | N164: M | O164: Actividades de contabilidad, teneduría de libros, auditoria financiera y asesoría tributaria | P164: Actividades de contabilidad, teneduría de libros, auditoria financiera y asesoría tributaria | Q164: 1 | R164: 2 | S164: 0 | AE164: 0 | AF164: 0 | AG164: 5001 | AH164: MEDELLÍN | AI164: 5 | AJ164: 2 | AK164: Natural | AL164: 5 | AM164: ANTIOQUIA | AN164: Aprobado con subsidio | AO164: MICRO | AP164: 1011 | AQ164: INDUSTRIAS MANUFACTURERAS | AR164: C | AS164: Procesamiento y conservación de carne, pescado, crustáceos y moluscos | AT164: Elaboración de productos alimenticios | AU164: 2 | AV164: 3 | AW164: 0 | BJ164: 0 | BK164: 0 | BL164: 0
C165: 41001 | D165: NEIVA | E165: 5 | F165: 2 | G165: Natural | H165: 41 | I165: HUILA | J165: Aprobado con subsidio | K165: MICRO | L165: 1081 | M165: INDUSTRIAS MANUFACTURERAS | N165: C | O165: Elaboración de otros productos alimenticios | P165: Elaboración de productos alimenticios | Q165: 3 | R165: 2 | S165: 0 | AE165: 0 | AF165: 0 | AG165: 5001 | AH165: MEDELLÍN | AI165: 4 | AJ165: 2 | AK165: Natural | AL165: 5 | AM165: ANTIOQUIA | AN165: Aprobado con subsidio | AO165: MICRO | AP165: 1610 | AQ165: INDUSTRIAS MANUFACTURERAS | AR165: C | AS165: Aserrado, acepillado e impregnación de la madera | AT165: Transformación de la madera y fabricación de productos de madera y de corcho, excepto muebles; fabricación de artículos de cestería y espartería | AU165: 0 | AV165: 4 | AW165: 0 | BJ165: 0 | BK165: 0 | BL165: 0
C166: 52001 | D166: PASTO | E166: 6 | F166: 0 | G166: Natural | H166: 52 | I166: NARIÑO | J166: Aprobado con subsidio | K166: MICRO | L166: 4799 | M166: COMERCIO AL POR MAYOR Y AL POR MENOR; REPARACIÓN DE VEHÍCULOS AUTOMOTORES Y MOTOCICLETAS | N166: G | O166: Comercio al por menor no realizado en establecimientos, puestos de venta o mercados | P166: Comercio al por menor no realizado en establecimientos, puestos de venta o mercados | Q166: 5 | R166: 1 | S166: 0 | AE166: 0 | AF166: 0 | AG166: 41551 | AH166: PITALITO | AI166: 4 | AJ166: 1 | AK166: Natural | AL166: 41 | AM166: HUILA | AN166: Aprobado con subsidio | AO166: MICRO | AP166: 1081 | AQ166: INDUSTRIAS MANUFACTURERAS | AR166: C | AS166: Elaboración de otros productos alimenticios | AT166: Elaboración de productos alimenticios | AU166: 3 | AV166: 1 | AW166: 0 | BJ166: 0 | BK166: 0 | BL166: 0
C167: 52001 | D167: PASTO | E167: 5 | F167: 0 | G167: Natural | H167: 52 | I167: NARIÑO | J167: Aprobado con subsidio | K167: MICRO | L167: 4729 | M167: COMERCIO AL POR MAYOR Y AL POR MENOR; REPARACIÓN DE VEHÍCULOS AUTOMOTORES Y MOTOCICLETAS | N167: G | O167: Comercio al por menor de alimentos (víveres en general), bebidas y tabaco, en establecimientos especializados | P167: Comercio al por menor de alimentos (víveres en general), bebidas y tabaco, en establecimientos especializados | Q167: 2 | R167: 3 | S167: 0 | AE167: 0 | AF167: 0 | AG167: 11001 | AH167: BOGOTÁ, D.C. | AI167: 7 | AJ167: 0 | AK167: Natural | AL167: 11 | AM167: BOGOTÁ, D.C. | AN167: Aprobado con subsidio | AO167: MICRO | AP167: 3110 | AQ167: INDUSTRIAS MANUFACTURERAS | AR167: C | AS167: Fabricación de muebles | AT167: Fabricación de muebles, colchones y somieres | AU167: 3 | AV167: 4 | AW167: 0 | BJ167: 0 | BK167: 0 | BL167: 0
C168: 52399 | D168: LA UNIÓN | E168: 8 | F168: 1 | G168: Natural | H168: 52 | I168: NARIÑO | J168: Aprobado con subsidio | K168: MICRO | L168: 8559 | M168: EDUCACIÓN | N168: P | O168: Otros tipos de educación | P168: Otros tipos de educación | Q168: 4 | R168: 4 | S168: 0 | AE168: 0 | AF168: 0 | AG168: 15001 | AH168: TUNJA | AI168: 4 | AJ168: 0 | AK168: Natural | AL168: 15 | AM168: BOYACÁ | AN168: Aprobado con subsidio | AO168: MICRO | AP168: 1081 | AQ168: INDUSTRIAS MANUFACTURERAS | AR168: C | AS168: Elaboración de otros productos alimenticios | AT168: Elaboración de productos alimenticios | AU168: 2 | AV168: 2 | AW168: 0 | BJ168: 0 | BK168: 0 | BL168: 0
C169: 52356 | D169: IPIALES | E169: 4 | F169: 0 | G169: Natural | H169: 52 | I169: NARIÑO | J169: Aprobado con subsidio | K169: MICRO | L169: 4771 | M169: COMERCIO AL POR MAYOR Y AL POR MENOR; REPARACIÓN DE VEHÍCULOS AUTOMOTORES Y MOTOCICLETAS | N169: G | O169: Comercio al por menor de otros productos en establecimientos especializados | P169: Comercio al por menor de otros productos en establecimientos especializados | Q169: 3 | R169: 1 | S169: 0 | AE169: 0 | AF169: 0 | AG169: 50001 | AH169: VILLAVICENCIO | AI169: 0 | AJ169: 0 | AK169: Natural | AL169: 50 | AM169: META | AN169: 0 | AO169: MICRO | AP169: 1081 | AQ169: INDUSTRIAS MANUFACTURERAS | AR169: C | AS169: Elaboración de otros productos alimenticios | AT169: Elaboración de productos alimenticios | AU169: 0 | AV169: 0 | AW169: 0 | BJ169: 0 | BK169: 0 | BL169: 0
C170: 52838 | D170: TÚQUERRES | E170: 4 | F170: 1 | G170: Natural | H170: 52 | I170: NARIÑO | J170: Aprobado con subsidio | K170: MICRO | L170: 5611 | M170: ALOJAMIENTO Y SERVICIOS DE COMIDA | N170: I | O170: Actividades de restaurantes, cafeterías y servicio móvil de comidas | P170: Actividades de restaurantes, cafeterías y servicio móvil de comidas | Q170: 2 | R170: 2 | S170: 0 | AE170: 0 | AF170: 0 | AG170: 11001 | AH170: BOGOTÁ, D.C. | AI170: 8 | AJ170: 0 | AK170: Natural | AL170: 11 | AM170: BOGOTÁ, D.C. | AN170: Aprobado con subsidio | AO170: MICRO | AP170: 1523 | AQ170: INDUSTRIAS MANUFACTURERAS | AR170: C | AS170: Fabricación de calzado | AT170: Curtido y recurtido de cueros; fabricación de calzado; fabricación de artículos de viaje, maletas, bolsos de mano y artículos similares, y fabricación de artículos de talabartería y guarnicionería; adobo y teñido de pieles | AU170: 0 | AV170: 8 | AW170: 0 | BJ170: 0 | BK170: 0 | BL170: 0
C171: 76306 | D171: GINEBRA | E171: 4 | F171: 0 | G171: Natural | H171: 76 | I171: VALLE DEL CAUCA | J171: Aprobado con subsidio | K171: MICRO | L171: 4731 | M171: COMERCIO AL POR MAYOR Y AL POR MENOR; REPARACIÓN DE VEHÍCULOS AUTOMOTORES Y MOTOCICLETAS | N171: G | O171: Comercio al por menor de combustible, lubricantes, aditivos y productos de limpieza para automotores, en establecimientos especializados | P171: Comercio al por menor de combustible, lubricantes, aditivos y productos de limpieza para automotores, en establecimientos especializados | Q171: 0 | R171: 4 | S171: 0 | AE171: 0 | AF171: 0 | AG171: 8001 | AH171: BARRANQUILLA | AI171: 3 | AJ171: 1 | AK171: Natural | AL171: 8 | AM171: ATLÁNTICO | AN171: Aprobado con subsidio | AO171: MICRO | AP171: 3290 | AQ171: INDUSTRIAS MANUFACTURERAS | AR171: C | AS171: Otras industrias manufactureras n.c.p. | AT171: Otras industrias manufactureras | AU171: 1 | AV171: 2 | AW171: 0 | BJ171: 0 | BK171: 0 | BL171: 0
C172: 76001 | D172: CALI | E172: 4 | F172: 0 | G172: Natural | H172: 76 | I172: VALLE DEL CAUCA | J172: Aprobado con subsidio | K172: MICRO | L172: 4923 | M172: TRANSPORTE Y ALMACENAMIENTO | N172: H | O172: Transporte terrestre publico automotor | P172: Transporte terrestre publico automotor | Q172: 0 | R172: 4 | S172: 0 | AE172: 0 | AF172: 0 | AG172: 11001 | AH172: BOGOTÁ, D.C. | AI172: 5 | AJ172: 0 | AK172: Natural | AL172: 11 | AM172: BOGOTÁ, D.C. | AN172: Aprobado con subsidio | AO172: MICRO | AP172: 1811 | AQ172: INDUSTRIAS MANUFACTURERAS | AR172: C | AS172: Actividades de impresión y actividades de servicios relacionados con la impresión | AT172: Actividades de impresión y de producción de copias a partir de grabaciones originales | AU172: 3 | AV172: 2 | AW172: 0 | BJ172: 0 | BK172: 0 | BL172: 0
C173: 52001 | D173: PASTO | E173: 0 | F173: 0 | G173: Natural | H173: 52 | I173: NARIÑO | J173: 0 | K173: MICRO | L173: 4774 | M173: COMERCIO AL POR MAYOR Y AL POR MENOR; REPARACIÓN DE VEHÍCULOS AUTOMOTORES Y MOTOCICLETAS | N173: G | O173: Comercio al por menor de otros productos en establecimientos especializados | P173: Comercio al por menor de otros productos en establecimientos especializados | Q173: 0 | R173: 0 | S173: 0 | AE173: 0 | AF173: 0 | AG173: 52356 | AH173: IPIALES | AI173: 12 | AJ173: 0 | AK173: Natural | AL173: 52 | AM173: NARIÑO | AN173: Aprobado con subsidio | AO173: PEQUEÑA | AP173: 1081 | AQ173: INDUSTRIAS MANUFACTURERAS | AR173: C | AS173: Elaboración de otros productos alimenticios | AT173: Elaboración de productos alimenticios | AU173: 7 | AV173: 5 | AW173: 0 | BJ173: 0 | BK173: 0 | BL173: 0
C174: 52001 | D174: PASTO | E174: 0 | F174: 0 | G174: Natural | H174: 52 | I174: NARIÑO | J174: 0 | K174: MICRO | L174: 4923 | M174: TRANSPORTE Y ALMACENAMIENTO | N174: H | O174: Transporte terrestre publico automotor | P174: Transporte terrestre publico automotor | Q174: 0 | R174: 0 | S174: 0 | AE174: 0 | AF174: 0 | AG174: 63001 | AH174: ARMENIA | AI174: 6 | AJ174: 0 | AK174: Natural | AL174: 63 | AM174: QUINDÍO | AN174: Aprobado con subsidio | AO174: MICRO | AP174: 3110 | AQ174: INDUSTRIAS MANUFACTURERAS | AR174: C | AS174: Fabricación de muebles | AT174: Fabricación de muebles, colchones y somieres | AU174: 2 | AV174: 4 | AW174: 0 | BJ174: 0 | BK174: 0 | BL174: 0
C175: 52838 | D175: TÚQUERRES | E175: 6 | F175: 1 | G175: Natural | H175: 52 | I175: NARIÑO | J175: Aprobado con subsidio | K175: MICRO | L175: 4664 | M175: COMERCIO AL POR MAYOR Y AL POR MENOR; REPARACIÓN DE VEHÍCULOS AUTOMOTORES Y MOTOCICLETAS | N175: G | O175: Comercio al por mayor especializado de otros productos | P175: Comercio al por mayor especializado de otros productos | Q175: 3 | R175: 3 | S175: 0 | AE175: 0 | AF175: 0 | AG175: 11001 | AH175: BOGOTÁ, D.C. | AI175: 5 | AJ175: 2 | AK175: Natural | AL175: 11 | AM175: BOGOTÁ, D.C. | AN175: Aprobado con subsidio | AO175: MICRO | AP175: 1081 | AQ175: INDUSTRIAS MANUFACTURERAS | AR175: C | AS175: Elaboración de otros productos alimenticios | AT175: Elaboración de productos alimenticios | AU175: 2 | AV175: 3 | AW175: 0 | BJ175: 0 | BK175: 0 | BL175: 0
C176: 66170 | D176: DOSQUEBRADAS | E176: 2 | F176: 0 | G176: Natural | H176: 66 | I176: RISARALDA | J176: Aprobado con subsidio | K176: MICRO | L176: 4741 | M176: COMERCIO AL POR MAYOR Y AL POR MENOR; REPARACIÓN DE VEHÍCULOS AUTOMOTORES Y MOTOCICLETAS | N176: G | O176: Comercio al por menor de equipos de informática y de comunicaciones, en establecimientos especializados | P176: Comercio al por menor de equipos de informática y de comunicaciones, en establecimientos especializados | Q176: 0 | R176: 2 | S176: 0 | AE176: 0 | AF176: 0 | AG176: 11001 | AH176: BOGOTÁ, D.C. | AI176: 3 | AJ176: 0 | AK176: Natural | AL176: 11 | AM176: BOGOTÁ, D.C. | AN176: Aprobado con subsidio | AO176: MICRO | AP176: 1084 | AQ176: INDUSTRIAS MANUFACTURERAS | AR176: C | AS176: Elaboración de otros productos alimenticios | AT176: Elaboración de productos alimenticios | AU176: 1 | AV176: 2 | AW176: 0 | BJ176: 0 | BK176: 0 | BL176: 0
C177: 66170 | D177: DOSQUEBRADAS | E177: 9 | F177: 0 | G177: Natural | H177: 66 | I177: RISARALDA | J177: Aprobado con subsidio | K177: MICRO | L177: 1410 | M177: INDUSTRIAS MANUFACTURERAS | N177: C | O177: Confección de prendas de vestir, excepto prendas de piel | P177: Confección de prendas de vestir | Q177: 9 | R177: 0 | S177: 0 | AE177: 0 | AF177: 0 | AG177: 66170 | AH177: DOSQUEBRADAS | AI177: 3 | AJ177: 0 | AK177: Natural | AL177: 66 | AM177: RISARALDA | AN177: Aprobado con subsidio | AO177: MICRO | AP177: 1811 | AQ177: INDUSTRIAS MANUFACTURERAS | AR177: C | AS177: Actividades de impresión y actividades de servicios relacionados con la impresión | AT177: Actividades de impresión y de producción de copias a partir de grabaciones originales | AU177: 1 | AV177: 2 | AW177: 0 | BJ177: 0 | BK177: 0 | BL177: 0
C178: 19001 | D178: POPAYÁN | E178: 3 | F178: 2 | G178: Natural | H178: 19 | I178: CAUCA | J178: Aprobado con subsidio | K178: MICRO | L178: 8692 | M178: ACTIVIDADES DE ATENCIÓN DE LA SALUD HUMANA Y DE ASISTENCIA SOCIAL | N178: Q | O178: Otras actividades de atención relacionadas con la salud humana | P178: Otras actividades de atención relacionadas con la salud humana | Q178: 3 | R178: 0 | S178: 0 | AE178: 0 | AF178: 0 | AG178: 5001 | AH178: MEDELLÍN | AI178: 8 | AJ178: 2 | AK178: Natural | AL178: 5 | AM178: ANTIOQUIA | AN178: Aprobado con subsidio | AO178: MICRO | AP178: 1410 | AQ178: INDUSTRIAS MANUFACTURERAS | AR178: C | AS178: Confección de prendas de vestir, excepto prendas de piel | AT178: Confección de prendas de vestir | AU178: 4 | AV178: 4 | AW178: 0 | BJ178: 0 | BK178: 0 | BL178: 0
C179: 17001 | D179: MANIZALES | E179: 25 | F179: 4 | G179: Natural | H179: 17 | I179: CALDAS | J179: Aprobado con subsidio | K179: PEQUEÑA | L179: 5611 | M179: ALOJAMIENTO Y SERVICIOS DE COMIDA | N179: I | O179: Actividades de restaurantes, cafeterías y servicio móvil de comidas | P179: Actividades de restaurantes, cafeterías y servicio móvil de comidas | Q179: 13 | R179: 12 | S179: 0 | AE179: 0 | AF179: 0 | AG179: 11001 | AH179: BOGOTÁ, D.C. | AI179: 10 | AJ179: 0 | AK179: Natural | AL179: 11 | AM179: BOGOTÁ, D.C. | AN179: Aprobado con subsidio | AO179: MICRO | AP179: 2592 | AQ179: INDUSTRIAS MANUFACTURERAS | AR179: C | AS179: Fabricación de otros productos elaborados de metal y actividades de servicios relacionadas con el trabajo de metales | AT179: Fabricación de productos elaborados de metal, excepto maquinaria y equipo | AU179: 1 | AV179: 9 | AW179: 0 | BJ179: 0 | BK179: 0 | BL179: 0
C180: 19001 | D180: POPAYÁN | E180: 2 | F180: 2 | G180: Natural | H180: 19 | I180: CAUCA | J180: Aprobado con subsidio | K180: MICRO | L180: 5611 | M180: ALOJAMIENTO Y SERVICIOS DE COMIDA | N180: I | O180: Actividades de restaurantes, cafeterías y servicio móvil de comidas | P180: Actividades de restaurantes, cafeterías y servicio móvil de comidas | Q180: 1 | R180: 1 | S180: 0 | AE180: 0 | AF180: 0 | AG180: 68001 | AH180: BUCARAMANGA | AI180: 6 | AJ180: 2 | AK180: Natural | AL180: 68 | AM180: SANTANDER | AN180: Aprobado con subsidio | AO180: MICRO | AP180: 1690 | AQ180: INDUSTRIAS MANUFACTURERAS | AR180: C | AS180: Fabricación de otros productos de madera; fabricación de artículos de corcho, cestería y espartería | AT180: Transformación de la madera y fabricación de productos de madera y de corcho, excepto muebles; fabricación de artículos de cestería y espartería | AU180: 2 | AV180: 4 | AW180: 0 | BJ180: 0 | BK180: 0 | BL180: 0
C181: 52356 | D181: IPIALES | E181: 0 | F181: 0 | G181: Natural | H181: 52 | I181: NARIÑO | J181: 0 | K181: MICRO | L181: 4664 | M181: COMERCIO AL POR MAYOR Y AL POR MENOR; REPARACIÓN DE VEHÍCULOS AUTOMOTORES Y MOTOCICLETAS | N181: G | O181: Comercio al por mayor especializado de otros productos | P181: Comercio al por mayor especializado de otros productos | Q181: 0 | R181: 0 | S181: 0 | AE181: 0 | AF181: 0 | AG181: 5237 | AH181: DON MATÍAS | AI181: 5 | AJ181: 6 | AK181: Natural | AL181: 5 | AM181: ANTIOQUIA | AN181: Aprobado con subsidio | AO181: PEQUEÑA | AP181: 1410 | AQ181: INDUSTRIAS MANUFACTURERAS | AR181: C | AS181: Confección de prendas de vestir, excepto prendas de piel | AT181: Confección de prendas de vestir | AU181: 3 | AV181: 2 | AW181: 0 | BJ181: 0 | BK181: 0 | BL181: 0
C182: 66001 | D182: PEREIRA | E182: 3 | F182: 0 | G182: Natural | H182: 66 | I182: RISARALDA | J182: Aprobado con subsidio | K182: MICRO | L182: 5511 | M182: ALOJAMIENTO Y SERVICIOS DE COMIDA | N182: I | O182: Actividades de alojamiento de estancias cortas | P182: Actividades de alojamiento de estancias cortas | Q182: 2 | R182: 1 | S182: 0 | AE182: 0 | AF182: 0 | AG182: 5001 | AH182: MEDELLÍN | AI182: 4 | AJ182: 0 | AK182: Natural | AL182: 5 | AM182: ANTIOQUIA | AN182: Aprobado con subsidio | AO182: MICRO | AP182: 1081 | AQ182: INDUSTRIAS MANUFACTURERAS | AR182: C | AS182: Elaboración de otros productos alimenticios | AT182: Elaboración de productos alimenticios | AU182: 1 | AV182: 3 | AW182: 0 | BJ182: 0 | BK182: 0 | BL182: 0
C183: 66001 | D183: PEREIRA | E183: 5 | F183: 0 | G183: Natural | H183: 66 | I183: RISARALDA | J183: Aprobado con subsidio | K183: MICRO | L183: 5611 | M183: ALOJAMIENTO Y SERVICIOS DE COMIDA | N183: I | O183: Actividades de restaurantes, cafeterías y servicio móvil de comidas | P183: Actividades de restaurantes, cafeterías y servicio móvil de comidas | Q183: 5 | R183: 0 | S183: 0 | AE183: 0 | AF183: 0 | AG183: 5001 | AH183: MEDELLÍN | AI183: 5 | AJ183: 0 | AK183: Natural | AL183: 5 | AM183: ANTIOQUIA | AN183: Aprobado con subsidio | AO183: MICRO | AP183: 1410 | AQ183: INDUSTRIAS MANUFACTURERAS | AR183: C | AS183: Confección de prendas de vestir, excepto prendas de piel | AT183: Confección de prendas de vestir | AU183: 2 | AV183: 3 | AW183: 0 | BJ183: 0 | BK183: 0 | BL183: 0
C184: 66001 | D184: PEREIRA | E184: 4 | F184: 0 | G184: Natural | H184: 66 | I184: RISARALDA | J184: Aprobado con subsidio | K184: MICRO | L184: 5613 | M184: ALOJAMIENTO Y SERVICIOS DE COMIDA | N184: I | O184: Actividades de restaurantes, cafeterías y servicio móvil de comidas | P184: Actividades de restaurantes, cafeterías y servicio móvil de comidas | Q184: 2 | R184: 2 | S184: 0 | AE184: 0 | AF184: 0 | AG184: 5001 | AH184: MEDELLÍN | AI184: 3 | AJ184: 0 | AK184: Natural | AL184: 5 | AM184: ANTIOQUIA | AN184: Aprobado con subsidio | AO184: MICRO | AP184: 1392 | AQ184: INDUSTRIAS MANUFACTURERAS | AR184: C | AS184: Fabricación de otros productos textiles | AT184: Fabricación de productos textiles | AU184: 1 | AV184: 2 | AW184: 0 | BJ184: 0 | BK184: 0 | BL184: 0
C185: 54405 | D185: LOS PATIOS | E185: 2 | F185: 6 | G185: Natural | H185: 54 | I185: NORTE DE SANTANDER | J185: Aprobado con subsidio | K185: MICRO | L185: 4711 | M185: COMERCIO AL POR MAYOR Y AL POR MENOR; REPARACIÓN DE VEHÍCULOS AUTOMOTORES Y MOTOCICLETAS | N185: G | O185: Comercio al por menor en establecimientos no especializados | P185: Comercio al por menor en establecimientos no especializados | Q185: 0 | R185: 2 | S185: 0 | AE185: 0 | AF185: 0 | AG185: 5360 | AH185: ITAGUI | AI185: 4 | AJ185: 0 | AK185: Natural | AL185: 5 | AM185: ANTIOQUIA | AN185: Aprobado con subsidio | AO185: MICRO | AP185: 1410 | AQ185: INDUSTRIAS MANUFACTURERAS | AR185: C | AS185: Confección de prendas de vestir, excepto prendas de piel | AT185: Confección de prendas de vestir | AU185: 2 | AV185: 2 | AW185: 0 | BJ185: 0 | BK185: 0 | BL185: 0
C186: 66170 | D186: DOSQUEBRADAS | E186: 3 | F186: 3 | G186: Natural | H186: 66 | I186: RISARALDA | J186: Aprobado con subsidio | K186: MICRO | L186: 5611 | M186: ALOJAMIENTO Y SERVICIOS DE COMIDA | N186: I | O186: Actividades de restaurantes, cafeterías y servicio móvil de comidas | P186: Actividades de restaurantes, cafeterías y servicio móvil de comidas | Q186: 3 | R186: 0 | S186: 0 | AE186: 0 | AF186: 0 | AG186: 5360 | AH186: ITAGUI | AI186: 4 | AJ186: 0 | AK186: Natural | AL186: 5 | AM186: ANTIOQUIA | AN186: Aprobado con subsidio | AO186: MICRO | AP186: 1811 | AQ186: INDUSTRIAS MANUFACTURERAS | AR186: C | AS186: Actividades de impresión y actividades de servicios relacionados con la impresión | AT186: Actividades de impresión y de producción de copias a partir de grabaciones originales | AU186: 1 | AV186: 3 | AW186: 0 | BJ186: 0 | BK186: 0 | BL186: 0
C187: 54405 | D187: LOS PATIOS | E187: 4 | F187: 6 | G187: Natural | H187: 54 | I187: NORTE DE SANTANDER | J187: Aprobado con subsidio | K187: MICRO | L187: 1040 | M187: INDUSTRIAS MANUFACTURERAS | N187: C | O187: Elaboración de productos lácteos | P187: Elaboración de productos alimenticios | Q187: 2 | R187: 2 | S187: 0 | AE187: 0 | AF187: 0 | AG187: 5360 | AH187: ITAGUI | AI187: 0 | AJ187: 0 | AK187: Natural | AL187: 5 | AM187: ANTIOQUIA | AN187: 0 | AO187: MICRO | AP187: 1394 | AQ187: INDUSTRIAS MANUFACTURERAS | AR187: C | AS187: Fabricación de otros productos textiles | AT187: Fabricación de productos textiles | AU187: 0 | AV187: 0 | AW187: 0 | BJ187: 0 | BK187: 0 | BL187: 0
C188: 63001 | D188: ARMENIA | E188: 5 | F188: 2 | G188: Natural | H188: 63 | I188: QUINDÍO | J188: Aprobado con subsidio | K188: MICRO | L188: 7020 | M188: ACTIVIDADES PROFESIONALES, CIENTÍFICAS Y TÉCNICAS | N188: M | O188: Actividades de consultoría de gestión | P188: Actividades de consultoría de gestión | Q188: 4 | R188: 1 | S188: 0 | AE188: 0 | AF188: 0 | AG188: 5001 | AH188: MEDELLÍN | AI188: 11 | AJ188: 3 | AK188: Natural | AL188: 5 | AM188: ANTIOQUIA | AN188: Aprobado con subsidio | AO188: PEQUEÑA | AP188: 1020 | AQ188: INDUSTRIAS MANUFACTURERAS | AR188: C | AS188: Procesamiento y conservación de frutas, legumbres, hortalizas y tubérculos | AT188: Elaboración de productos alimenticios | AU188: 4 | AV188: 7 | AW188: 0 | BJ188: 0 | BK188: 0 | BL188: 0
C189: 63001 | D189: ARMENIA | E189: 4 | F189: 0 | G189: Natural | H189: 63 | I189: QUINDÍO | J189: Aprobado con subsidio | K189: MICRO | L189: 4752 | M189: COMERCIO AL POR MAYOR Y AL POR MENOR; REPARACIÓN DE VEHÍCULOS AUTOMOTORES Y MOTOCICLETAS | N189: G | O189: Comercio al por menor de otros enseres domésticos en establecimientos especializados | P189: Comercio al por menor de otros enseres domésticos en establecimientos especializados | Q189: 1 | R189: 3 | S189: 0 | AE189: 0 | AF189: 0 | AG189: 5001 | AH189: MEDELLÍN | AI189: 4 | AJ189: 0 | AK189: Natural | AL189: 5 | AM189: ANTIOQUIA | AN189: Aprobado con subsidio | AO189: MICRO | AP189: 1089 | AQ189: INDUSTRIAS MANUFACTURERAS | AR189: C | AS189: Elaboración de otros productos alimenticios | AT189: Elaboración de productos alimenticios | AU189: 4 | AV189: 0 | AW189: 0 | BJ189: 0 | BK189: 0 | BL189: 0
C190: 63401 | D190: LA TEBAIDA | E190: 6 | F190: 0 | G190: Natural | H190: 63 | I190: QUINDÍO | J190: Aprobado con subsidio | K190: MICRO | L190: 5611 | M190: ALOJAMIENTO Y SERVICIOS DE COMIDA | N190: I | O190: Actividades de restaurantes, cafeterías y servicio móvil de comidas | P190: Actividades de restaurantes, cafeterías y servicio móvil de comidas | Q190: 2 | R190: 4 | S190: 0 | AE190: 0 | AF190: 0 | AG190: 5001 | AH190: MEDELLÍN | AI190: 0 | AJ190: 0 | AK190: Natural | AL190: 5 | AM190: ANTIOQUIA | AN190: 0 | AO190: MICRO | AP190: 1410 | AQ190: INDUSTRIAS MANUFACTURERAS | AR190: C | AS190: Confección de prendas de vestir, excepto prendas de piel | AT190: Confección de prendas de vestir | AU190: 0 | AV190: 0 | AW190: 0 | BJ190: 0 | BK190: 0 | BL190: 0
C191: 63001 | D191: ARMENIA | E191: 2 | F191: 0 | G191: Natural | H191: 63 | I191: QUINDÍO | J191: Aprobado con subsidio | K191: MICRO | L191: 3110 | M191: INDUSTRIAS MANUFACTURERAS | N191: C | O191: Fabricación de muebles | P191: Fabricación de muebles, colchones y somieres | Q191: 1 | R191: 1 | S191: 0 | AE191: 0 | AF191: 0 | AG191: 5001 | AH191: MEDELLÍN | AI191: 3 | AJ191: 0 | AK191: Natural | AL191: 5 | AM191: ANTIOQUIA | AN191: Aprobado con subsidio | AO191: MICRO | AP191: 1410 | AQ191: INDUSTRIAS MANUFACTURERAS | AR191: C | AS191: Confección de prendas de vestir, excepto prendas de piel | AT191: Confección de prendas de vestir | AU191: 3 | AV191: 0 | AW191: 0 | BJ191: 0 | BK191: 0 | BL191: 0
C192: 11001 | D192: BOGOTÁ, D.C. | E192: 2 | F192: 2 | G192: Natural | H192: 11 | I192: BOGOTÁ, D.C. | J192: Aprobado con subsidio | K192: MICRO | L192: 4923 | M192: TRANSPORTE Y ALMACENAMIENTO | N192: H | O192: Transporte terrestre publico automotor | P192: Transporte terrestre publico automotor | Q192: 0 | R192: 2 | S192: 0 | AE192: 0 | AF192: 0 | AG192: 5154 | AH192: CAUCASIA | AI192: 3 | AJ192: 0 | AK192: Natural | AL192: 5 | AM192: ANTIOQUIA | AN192: Aprobado con subsidio | AO192: MICRO | AP192: 2011 | AQ192: INDUSTRIAS MANUFACTURERAS | AR192: C | AS192: Fabricación de sustancias químicas básicas, abonos y compuestos inorgánicos nitrogenados, plásticos y caucho sintético en formas primarias | AT192: Fabricación de sustancias y productos químicos | AU192: 1 | AV192: 2 | AW192: 0 | BJ192: 0 | BK192: 0 | BL192: 0
C193: 68001 | D193: BUCARAMANGA | E193: 3 | F193: 0 | G193: Natural | H193: 68 | I193: SANTANDER | J193: Aprobado con subsidio | K193: MICRO | L193: 2511 | M193: INDUSTRIAS MANUFACTURERAS | N193: C | O193: Fabricación de productos metálicos para uso estructural, tanques, depósitos y generadores de vapor. | P193: Fabricación de productos elaborados de metal, excepto maquinaria y equipo | Q193: 0 | R193: 3 | S193: 0 | AE193: 0 | AF193: 0 | AG193: 5001 | AH193: MEDELLÍN | AI193: 9 | AJ193: 5 | AK193: Natural | AL193: 5 | AM193: ANTIOQUIA | AN193: Aprobado con subsidio | AO193: PEQUEÑA | AP193: 1011 | AQ193: INDUSTRIAS MANUFACTURERAS | AR193: C | AS193: Procesamiento y conservación de carne, pescado, crustáceos y moluscos | AT193: Elaboración de productos alimenticios | AU193: 5 | AV193: 4 | AW193: 0 | BJ193: 0 | BK193: 0 | BL193: 0
C194: 68081 | D194: BARRANCABERMEJA | E194: 3 | F194: 0 | G194: Natural | H194: 68 | I194: SANTANDER | J194: Aprobado con subsidio | K194: MICRO | L194: 4923 | M194: TRANSPORTE Y ALMACENAMIENTO | N194: H | O194: Transporte terrestre publico automotor | P194: Transporte terrestre publico automotor | Q194: 0 | R194: 3 | S194: 0 | AE194: 0 | AF194: 0 | AG194: 5001 | AH194: MEDELLÍN | AI194: 20 | AJ194: 1 | AK194: Natural | AL194: 5 | AM194: ANTIOQUIA | AN194: Aprobado con subsidio | AO194: PEQUEÑA | AP194: 1089 | AQ194: INDUSTRIAS MANUFACTURERAS | AR194: C | AS194: Elaboración de otros productos alimenticios | AT194: Elaboración de productos alimenticios | AU194: 6 | AV194: 14 | AW194: 0 | BJ194: =COUNTIFS($AN$2:$AN$399999,"Aprobado con subsidio",$AG$2:$AG$399999,BI194) -> 0 | BK194: 0 | BL194: 0
C195: 68081 | D195: BARRANCABERMEJA | E195: 4 | F195: 2 | G195: Natural | H195: 68 | I195: SANTANDER | J195: Aprobado con subsidio | K195: MICRO | L195: 4520 | M195: COMERCIO AL POR MAYOR Y AL POR MENOR; REPARACIÓN DE VEHÍCULOS AUTOMOTORES Y MOTOCICLETAS | N195: G | O195: Mantenimiento y reparación de vehículos automotores | P195: Mantenimiento y reparación de vehículos automotores | Q195: 1 | R195: 3 | S195: 0 | AE195: 0 | AF195: 0 | AG195: 19001 | AH195: POPAYÁN | AI195: 9 | AJ195: 0 | AK195: Natural | AL195: 19 | AM195: CAUCA | AN195: Aprobado con subsidio | AO195: MICRO | AP195: 1081 | AQ195: INDUSTRIAS MANUFACTURERAS | AR195: C | AS195: Elaboración de otros productos alimenticios | AT195: Elaboración de productos alimenticios | AU195: 5 | AV195: 4 | AW195: 0 | BJ195: 0 | BK195: 0 | BL195: 0
C196: 68081 | D196: BARRANCABERMEJA | E196: 0 | F196: 0 | G196: Jurídica | H196: 68 | I196: SANTANDER | J196: 0 | K196: MICRO | L196: 4772 | M196: COMERCIO AL POR MAYOR Y AL POR MENOR; REPARACIÓN DE VEHÍCULOS AUTOMOTORES Y MOTOCICLETAS | N196: G | O196: Comercio al por menor de otros productos en establecimientos especializados | P196: Comercio al por menor de otros productos en establecimientos especializados | Q196: 0 | R196: 0 | S196: 0 | AE196: 0 | AF196: 0 | AG196: 5001 | AH196: MEDELLÍN | AI196: 5 | AJ196: 1 | AK196: Natural | AL196: 5 | AM196: ANTIOQUIA | AN196: Aprobado con subsidio | AO196: MICRO | AP196: 1511 | AQ196: INDUSTRIAS MANUFACTURERAS | AR196: C | AS196: Curtido y recurtido de cueros; fabricación de artículos de viaje, bolsos de mano y artículos similares, y fabricación de artículos de talabartería y guarnicionería; adobo y teñido de pieles | AT196: Curtido y recurtido de cueros; fabricación de calzado; fabricación de artículos de viaje, maletas, bolsos de mano y artículos similares, y fabricación de artículos de talabartería y guarnicionería; adobo y teñido de pieles | AU196: 0 | AV196: 5 | AW196: 0 | BJ196: 0 | BK196: 0 | BL196: 0
C197: 63001 | D197: ARMENIA | E197: 0 | F197: 5 | G197: Natural | H197: 63 | I197: QUINDÍO | J197: 0 | K197: MICRO | L197: 4923 | M197: TRANSPORTE Y ALMACENAMIENTO | N197: H | O197: Transporte terrestre publico automotor | P197: Transporte terrestre publico automotor | Q197: 0 | R197: 0 | S197: 0 | AE197: 0 | AF197: 0 | AG197: 5266 | AH197: ENVIGADO | AI197: 4 | AJ197: 1 | AK197: Natural | AL197: 5 | AM197: ANTIOQUIA | AN197: Aprobado con subsidio | AO197: MICRO | AP197: 1410 | AQ197: INDUSTRIAS MANUFACTURERAS | AR197: C | AS197: Confección de prendas de vestir, excepto prendas de piel | AT197: Confección de prendas de vestir | AU197: 4 | AV197: 0 | AW197: 0 | BJ197: 0 | BK197: 0 | BL197: 0
C198: 68001 | D198: BUCARAMANGA | E198: 6 | F198: 0 | G198: Natural | H198: 68 | I198: SANTANDER | J198: Aprobado con subsidio | K198: MICRO | L198: 4922 | M198: TRANSPORTE Y ALMACENAMIENTO | N198: H | O198: Transporte terrestre publico automotor | P198: Transporte terrestre publico automotor | Q198: 0 | R198: 6 | S198: 0 | AE198: 0 | AF198: 0 | AG198: 5001 | AH198: MEDELLÍN | AI198: 3 | AJ198: 1 | AK198: Natural | AL198: 5 | AM198: ANTIOQUIA | AN198: Aprobado con subsidio | AO198: MICRO | AP198: 1690 | AQ198: INDUSTRIAS MANUFACTURERAS | AR198: C | AS198: Fabricación de otros productos de madera; fabricación de artículos de corcho, cestería y espartería | AT198: Transformación de la madera y fabricación de productos de madera y de corcho, excepto muebles; fabricación de artículos de cestería y espartería | AU198: 0 | AV198: 3 | AW198: 0 | BJ198: 0 | BK198: 0 | BL198: 0
C199: 68001 | D199: BUCARAMANGA | E199: 6 | F199: 7 | G199: Natural | H199: 68 | I199: SANTANDER | J199: Aprobado con subsidio | K199: PEQUEÑA | L199: 1410 | M199: INDUSTRIAS MANUFACTURERAS | N199: C | O199: Confección de prendas de vestir, excepto prendas de piel | P199: Confección de prendas de vestir | Q199: 4 | R199: 2 | S199: 0 | AE199: 0 | AF199: 0 | AG199: 76001 | AH199: CALI | AI199: 7 | AJ199: 0 | AK199: Natural | AL199: 76 | AM199: VALLE DEL CAUCA | AN199: Aprobado con subsidio | AO199: MICRO | AP199: 1081 | AQ199: INDUSTRIAS MANUFACTURERAS | AR199: C | AS199: Elaboración de otros productos alimenticios | AT199: Elaboración de productos alimenticios | AU199: 4 | AV199: 3 | AW199: 0 | BJ199: 0 | BK199: 0 | BL199: 0
C200: 68001 | D200: BUCARAMANGA | E200: 3 | F200: 1 | G200: Natural | H200: 68 | I200: SANTANDER | J200: Aprobado con subsidio | K200: MICRO | L200: 126 | M200: AGRICULTURA, GANADERÍA, CAZA, SILVICULTURA Y PESCA | N200: A | O200: Cultivos agrícolas permanentes | P200: Cultivos agrícolas permanentes | Q200: 0 | R200: 3 | S200: 0 | AE200: 0 | AF200: 0 | AG200: 5001 | AH200: MEDELLÍN | AI200: 11 | AJ200: 0 | AK200: Natural | AL200: 5 | AM200: ANTIOQUIA | AN200: Aprobado con subsidio | AO200: PEQUEÑA | AP200: 1081 | AQ200: INDUSTRIAS MANUFACTURERAS | AR200: C | AS200: Elaboración de otros productos alimenticios | AT200: Elaboración de productos alimenticios | AU200: 8 | AV200: 3 | AW200: 0 | BJ200: 0 | BK200: 0 | BL200: 0
... 2050 more rows

Sheet Hoja4 (hidden)
A1: Descripción Sección Rev. 4 | B1: Sección Rev. 4 | C1: Nombre | D1: Seccion | E1: Total | G1: Nombre | H1: Seccion | I1: Total empleadores | J1: Empleadores % | K1: Total empleados | L1: Empleados % | M1: Monto | N1: Hombres | O1: Mujeres | P1: no disponible | Q1: Actividad | R1: Indice | T1: cod_dpto | U1: Departamento | V1: % empleadores general | W1: ="% empleadores sección "&Visor!$N$4 -> % empleadores sección C
A2: AGRICULTURA, GANADERÍA, CAZA, SILVICULTURA Y PESCA | B2: A | C2: Agricultura, ganadería, caza, silvicultura y pesca | D2: =B2 -> A | E2: =COUNTIFS(insumos2!$N$2:$N$399999,Hoja4!D2,insumos2!$J$2:$J$399999,"Aprobado con subsidio") -> 315 | G2: =MID(VLOOKUP(H2,$B$2:$C$23,2,FALSE),1,36) -> Comercio al por mayor y al por menor | H2: =_xlfn._xlws.SORT($D$2:$E$23,2,-1) -> G | I2: 3518 | J2: =I2/$I$24 -> 0.2773573005 | K2: =SUMIFS(insumos2!$E$2:$E$399999,insumos2!$J$2:$J$399999,"Aprobado con subsidio",insumos2!$N$2:$N$399999,Hoja4!H2) -> 86207 | L2: =K2/$K$24 -> 0.1951594427 | M2: =SUMIFS(insumos1!$K$2:$K$372158,insumos1!$H$2:$H$372158,Hoja4!H2) -> 21181776000 | N2: =SUMIFS(insumos2!$R$2:$R$399999,insumos2!$J$2:$J$399999,"Aprobado con subsidio",insumos2!$N$2:$N$399999,Hoja4!H2) -> 49252 | O2: =SUMIFS(insumos2!$Q$2:$Q$399999,insumos2!$J$2:$J$399999,"Aprobado con subsidio",insumos2!$N$2:$N$399999,Hoja4!H2) -> 36940 | P2: =SUMIFS(insumos2!$S$2:$S$399999,insumos2!$J$2:$J$399999,"Aprobado con subsidio",insumos2!$N$2:$N$399999,Hoja4!H2) -> 15 | Q2: =G2 -> Comercio al por mayor y al por menor | R2: =O2/N2*100 -> 75.00203037 | T2: 11 | U2: BOGOTÁ, D.C. | V2: =(VLOOKUP(T2,_xlfn.ANCHORARRAY(insumos2!$W$2),2,0)/SUM(insumos2!$X$2:$X$34)) -> 0.3033743299 | W2: =VLOOKUP(T2,insumos2!$AY$2:$AZ$34,2,FALSE)/insumos2!$BF$30 -> 0.291913215
A3: EXPLOTACIÓN DE MINAS Y CANTERAS | B3: B | C3: Explotación de minas y canteras | D3: =B3 -> B | E3: =COUNTIFS(insumos2!$N$2:$N$399999,Hoja4!D3,insumos2!$J$2:$J$399999,"Aprobado con subsidio") -> 56 | G3: =MID(VLOOKUP(H3,$B$2:$C$23,2,FALSE),1,30) -> Industrias manufactureras | H3: C | I3: 2535 | J3: 0.1998580889 | K3: =SUMIFS(insumos2!$E$2:$E$399999,insumos2!$J$2:$J$399999,"Aprobado con subsidio",insumos2!$N$2:$N$399999,Hoja4!H3) -> 127438 | L3: =K3/$K$24 -> 0.2885001109 | M3: =SUMIFS(insumos1!$K$2:$K$372158,insumos1!$H$2:$H$372158,Hoja4!H3) -> 28151013000 | N3: =SUMIFS(insumos2!$R$2:$R$399999,insumos2!$J$2:$J$399999,"Aprobado con subsidio",insumos2!$N$2:$N$399999,Hoja4!H3) -> 80730 | O3: =SUMIFS(insumos2!$Q$2:$Q$399999,insumos2!$J$2:$J$399999,"Aprobado con subsidio",insumos2!$N$2:$N$399999,Hoja4!H3) -> 46678 | P3: =SUMIFS(insumos2!$S$2:$S$399999,insumos2!$J$2:$J$399999,"Aprobado con subsidio",insumos2!$N$2:$N$399999,Hoja4!H3) -> 30 | Q3: =G3 -> Industrias manufactureras | R3: 57.81989347 | T3: 5 | U3: ANTIOQUIA | V3: =(VLOOKUP(T3,_xlfn.ANCHORARRAY(insumos2!$W$2),2,0)/SUM(insumos2!$X$2:$X$34)) -> 0.1431725008 | W3: =VLOOKUP(T3,insumos2!$AY$2:$AZ$34,2,FALSE)/insumos2!$BF$30 -> 0.1861932939
A4: INDUSTRIAS MANUFACTURERAS | B4: C | C4: Industrias manufactureras | D4: C | E4: =COUNTIFS(insumos2!$N$2:$N$399999,Hoja4!D4,insumos2!$J$2:$J$399999,"Aprobado con subsidio") -> 2535 | G4: =MID(VLOOKUP(H4,$B$2:$C$23,2,FALSE),1,85) -> Construcción | H4: F | I4: 1165 | J4: 0.09184799748 | K4: =SUMIFS(insumos2!$E$2:$E$399999,insumos2!$J$2:$J$399999,"Aprobado con subsidio",insumos2!$N$2:$N$399999,Hoja4!H4) -> 35732 | L4: 0.08089177454 | M4: =SUMIFS(insumos1!$K$2:$K$372158,insumos1!$H$2:$H$372158,Hoja4!H4) -> 9549078000 | N4: =SUMIFS(insumos2!$R$2:$R$399999,insumos2!$J$2:$J$399999,"Aprobado con subsidio",insumos2!$N$2:$N$399999,Hoja4!H4) -> 26784 | O4: =SUMIFS(insumos2!$Q$2:$Q$399999,insumos2!$J$2:$J$399999,"Aprobado con subsidio",insumos2!$N$2:$N$399999,Hoja4!H4) -> 8940 | P4: =SUMIFS(insumos2!$S$2:$S$399999,insumos2!$J$2:$J$399999,"Aprobado con subsidio",insumos2!$N$2:$N$399999,Hoja4!H4) -> 8 | Q4: Construcción | R4: 33.3781362 | T4: 76 | U4: VALLE DEL CAUCA | V4: =(VLOOKUP(T4,_xlfn.ANCHORARRAY(insumos2!$W$2),2,0)/SUM(insumos2!$X$2:$X$34)) -> 0.2440081993 | W4: =VLOOKUP(T4,insumos2!$AY$2:$AZ$34,2,FALSE)/insumos2!$BF$30 -> 0.2631163708
A5: SUMINISTRO DE ELECTRICIDAD, GAS, VAPOR Y AIRE ACONDICIONADO | B5: D | C5: Suministro de electricidad, gas, vapor y aire acondicionado | D5: D | E5: =COUNTIFS(insumos2!$N$2:$N$399999,Hoja4!D5,insumos2!$J$2:$J$399999,"Aprobado con subsidio") -> 5 | G5: =MID(VLOOKUP(H5,$B$2:$C$23,2,FALSE),1,30) -> Actividades profesionales, cie | H5: M | I5: 962 | J5: 0.07584358247 | K5: =SUMIFS(insumos2!$E$2:$E$399999,insumos2!$J$2:$J$399999,"Aprobado con subsidio",insumos2!$N$2:$N$399999,Hoja4!H5) -> 19981 | L5: 0.04523392329 | M5: =SUMIFS(insumos1!$K$2:$K$372158,insumos1!$H$2:$H$372158,Hoja4!H5) -> 5540469000 | N5: =SUMIFS(insumos2!$R$2:$R$399999,insumos2!$J$2:$J$399999,"Aprobado con subsidio",insumos2!$N$2:$N$399999,Hoja4!H5) -> 10861 | O5: =SUMIFS(insumos2!$Q$2:$Q$399999,insumos2!$J$2:$J$399999,"Aprobado con subsidio",insumos2!$N$2:$N$399999,Hoja4!H5) -> 9104 | P5: =SUMIFS(insumos2!$S$2:$S$399999,insumos2!$J$2:$J$399999,"Aprobado con subsidio",insumos2!$N$2:$N$399999,Hoja4!H5) -> 16 | Q5: Actividades profesionales, cie | R5: 83.82285241 | T5: 8 | U5: ATLÁNTICO | V5: =(VLOOKUP(T5,_xlfn.ANCHORARRAY(insumos2!$W$2),2,0)/SUM(insumos2!$X$2:$X$34)) -> 0.02806685588 | W5: =VLOOKUP(T5,insumos2!$AY$2:$AZ$34,2,FALSE)/insumos2!$BF$30 -> 0.01735700197
A6: DISTRIBUCIÓN DE AGUA; EVACUACIÓN Y TRATAMIENTO DE AGUAS RESIDUALES, GESTIÓN DE DESECHOS Y ACTIVIDADES DE SANEAMIENTO AMBIENTAL | B6: E | C6: Distribución de agua; evacuación y tratamiento de aguas residuales, gestión de desechos y actividades de saneamiento ambiental | D6: E | E6: =COUNTIFS(insumos2!$N$2:$N$399999,Hoja4!D6,insumos2!$J$2:$J$399999,"Aprobado con subsidio") -> 52 | G6: =MID(VLOOKUP(H6,$B$2:$C$23,2,FALSE),1,35) -> Transporte y almacenamiento | H6: H | I6: 945 | J6: 0.07450331126 | K6: =SUMIFS(insumos2!$E$2:$E$399999,insumos2!$J$2:$J$399999,"Aprobado con subsidio",insumos2!$N$2:$N$399999,Hoja4!H6) -> 57848 | L6: 0.1309590108 | M6: =SUMIFS(insumos1!$K$2:$K$372158,insumos1!$H$2:$H$372158,Hoja4!H6) -> 14266626000 | N6: =SUMIFS(insumos2!$R$2:$R$399999,insumos2!$J$2:$J$399999,"Aprobado con subsidio",insumos2!$N$2:$N$399999,Hoja4!H6) -> 47279 | O6: =SUMIFS(insumos2!$Q$2:$Q$399999,insumos2!$J$2:$J$399999,"Aprobado con subsidio",insumos2!$N$2:$N$399999,Hoja4!H6) -> 10522 | P6: =SUMIFS(insumos2!$S$2:$S$399999,insumos2!$J$2:$J$399999,"Aprobado con subsidio",insumos2!$N$2:$N$399999,Hoja4!H6) -> 47 | Q6: Transporte y almacenamiento | R6: 22.25512384 | T6: 25 | U6: CUNDINAMARCA | V6: =(VLOOKUP(T6,_xlfn.ANCHORARRAY(insumos2!$W$2),2,0)/SUM(insumos2!$X$2:$X$34)) -> 0.03831598865 | W6: =VLOOKUP(T6,insumos2!$AY$2:$AZ$34,2,FALSE)/insumos2!$BF$30 -> 0.04773175542
A7: CONSTRUCCIÓN | B7: F | C7: Construcción | D7: F | E7: =COUNTIFS(insumos2!$N$2:$N$399999,Hoja4!D7,insumos2!$J$2:$J$399999,"Aprobado con subsidio") -> 1165 | G7: =MID(VLOOKUP(H7,$B$2:$C$23,2,FALSE),1,30) -> Alojamiento y servicios de com | H7: I | I7: 711 | J7: 0.05605487228 | K7: =SUMIFS(insumos2!$E$2:$E$399999,insumos2!$J$2:$J$399999,"Aprobado con subsidio",insumos2!$N$2:$N$399999,Hoja4!H7) -> 17074 | L7: 0.03865292059 | M7: =SUMIFS(insumos1!$K$2:$K$372158,insumos1!$H$2:$H$372158,Hoja4!H7) -> 3928567500 | N7: =SUMIFS(insumos2!$R$2:$R$399999,insumos2!$J$2:$J$399999,"Aprobado con subsidio",insumos2!$N$2:$N$399999,Hoja4!H7) -> 7790 | O7: =SUMIFS(insumos2!$Q$2:$Q$399999,insumos2!$J$2:$J$399999,"Aprobado con subsidio",insumos2!$N$2:$N$399999,Hoja4!H7) -> 9280 | P7: =SUMIFS(insumos2!$S$2:$S$399999,insumos2!$J$2:$J$399999,"Aprobado con subsidio",insumos2!$N$2:$N$399999,Hoja4!H7) -> 4 | Q7: Alojamiento y servicios de com | R7: 119.127086 | T7: 68 | U7: SANTANDER | V7: =(VLOOKUP(T7,_xlfn.ANCHORARRAY(insumos2!$W$2),2,0)/SUM(insumos2!$X$2:$X$34)) -> 0.03705455692 | W7: =VLOOKUP(T7,insumos2!$AY$2:$AZ$34,2,FALSE)/insumos2!$BF$30 -> 0.03629191321
A8: COMERCIO AL POR MAYOR Y AL POR MENOR; REPARACIÓN DE VEHÍCULOS AUTOMOTORES Y MOTOCICLETAS | B8: G | C8: Comercio al por mayor y al por menor; reparación de vehículos automotores y motocicletas | D8: G | E8: =COUNTIFS(insumos2!$N$2:$N$399999,Hoja4!D8,insumos2!$J$2:$J$399999,"Aprobado con subsidio") -> 3518 | G8: =MID(VLOOKUP(H8,$B$2:$C$23,2,FALSE),1,40) -> Actividades de servicios administrativos | H8: N | I8: 634 | J8: 0.0499842321 | K8: =SUMIFS(insumos2!$E$2:$E$399999,insumos2!$J$2:$J$399999,"Aprobado con subsidio",insumos2!$N$2:$N$399999,Hoja4!H8) -> 41552 | L8: 0.09406736303 | M8: =SUMIFS(insumos1!$K$2:$K$372158,insumos1!$H$2:$H$372158,Hoja4!H8) -> 10806147000 | N8: =SUMIFS(insumos2!$R$2:$R$399999,insumos2!$J$2:$J$399999,"Aprobado con subsidio",insumos2!$N$2:$N$399999,Hoja4!H8) -> 23092 | O8: =SUMIFS(insumos2!$Q$2:$Q$399999,insumos2!$J$2:$J$399999,"Aprobado con subsidio",insumos2!$N$2:$N$399999,Hoja4!H8) -> 18440 | P8: =SUMIFS(insumos2!$S$2:$S$399999,insumos2!$J$2:$J$399999,"Aprobado con subsidio",insumos2!$N$2:$N$399999,Hoja4!H8) -> 20 | Q8: Actividades de servicios administrativos | R8: 79.85449506 | T8: 13 | U8: BOLÍVAR | V8: =(VLOOKUP(T8,_xlfn.ANCHORARRAY(insumos2!$W$2),2,0)/SUM(insumos2!$X$2:$X$34)) -> 0.0133238726 | W8: =VLOOKUP(T8,insumos2!$AY$2:$AZ$34,2,FALSE)/insumos2!$BF$30 -> 0.004339250493
A9: TRANSPORTE Y ALMACENAMIENTO | B9: H | C9: Transporte y almacenamiento | D9: H | E9: =COUNTIFS(insumos2!$N$2:$N$399999,Hoja4!D9,insumos2!$J$2:$J$399999,"Aprobado con subsidio") -> 945 | G9: =MID(VLOOKUP(H9,$B$2:$C$23,2,FALSE),1,42) -> Actividades de atención de la salud humana | H9: Q | I9: 390 | J9: 0.0307473983 | K9: =SUMIFS(insumos2!$E$2:$E$399999,insumos2!$J$2:$J$399999,"Aprobado con subsidio",insumos2!$N$2:$N$399999,Hoja4!H9) -> 9896 | L9: 0.02240302812 | M9: =SUMIFS(insumos1!$K$2:$K$372158,insumos1!$H$2:$H$372158,Hoja4!H9) -> 2381098500 | N9: =SUMIFS(insumos2!$R$2:$R$399999,insumos2!$J$2:$J$399999,"Aprobado con subsidio",insumos2!$N$2:$N$399999,Hoja4!H9) -> 2312 | O9: =SUMIFS(insumos2!$Q$2:$Q$399999,insumos2!$J$2:$J$399999,"Aprobado con subsidio",insumos2!$N$2:$N$399999,Hoja4!H9) -> 7580 | P9: =SUMIFS(insumos2!$S$2:$S$399999,insumos2!$J$2:$J$399999,"Aprobado con subsidio",insumos2!$N$2:$N$399999,Hoja4!H9) -> 4 | Q9: Actividades de atención de la salud humana | R9: 327.8546713 | T9: 66 | U9: RISARALDA | V9: =(VLOOKUP(T9,_xlfn.ANCHORARRAY(insumos2!$W$2),2,0)/SUM(insumos2!$X$2:$X$34)) -> 0.03405865658 | W9: =VLOOKUP(T9,insumos2!$AY$2:$AZ$34,2,FALSE)/insumos2!$BF$30 -> 0.04339250493
A10: ALOJAMIENTO Y SERVICIOS DE COMIDA | B10: I | C10: Alojamiento y servicios de comida | D10: I | E10: =COUNTIFS(insumos2!$N$2:$N$399999,Hoja4!D10,insumos2!$J$2:$J$399999,"Aprobado con subsidio") -> 711 | G10: =MID(VLOOKUP(H10,$B$2:$C$23,2,FALSE),1,30) -> Agricultura, ganadería, caza, | H10: A | I10: 315 | J10: 0.02483443709 | K10: =SUMIFS(insumos2!$E$2:$E$399999,insumos2!$J$2:$J$399999,"Aprobado con subsidio",insumos2!$N$2:$N$399999,Hoja4!H10) -> 17721 | L10: 0.04011762948 | M10: =SUMIFS(insumos1!$K$2:$K$372158,insumos1!$H$2:$H$372158,Hoja4!H10) -> 4285033500 | N10: =SUMIFS(insumos2!$R$2:$R$399999,insumos2!$J$2:$J$399999,"Aprobado con subsidio",insumos2!$N$2:$N$399999,Hoja4!H10) -> 13559 | O10: =SUMIFS(insumos2!$Q$2:$Q$399999,insumos2!$J$2:$J$399999,"Aprobado con subsidio",insumos2!$N$2:$N$399999,Hoja4!H10) -> 4159 | P10: =SUMIFS(insumos2!$S$2:$S$399999,insumos2!$J$2:$J$399999,"Aprobado con subsidio",insumos2!$N$2:$N$399999,Hoja4!H10) -> 3 | Q10: Agricultura, ganadería, caza, | R10: 30.67335349 | T10: 54 | U10: NORTE DE SANTANDER | V10: =(VLOOKUP(T10,_xlfn.ANCHORARRAY(insumos2!$W$2),2,0)/SUM(insumos2!$X$2:$X$34)) -> 0.009618416903 | W10: =VLOOKUP(T10,insumos2!$AY$2:$AZ$34,2,FALSE)/insumos2!$BF$30 -> 0.009861932939
A11: INFORMACIÓN Y COMUNICACIONES | B11: J | C11: información y comunicaciones | D11: J | E11: =COUNTIFS(insumos2!$N$2:$N$399999,Hoja4!D11,insumos2!$J$2:$J$399999,"Aprobado con subsidio") -> 247 | G11: =MID(VLOOKUP(H11,$B$2:$C$23,2,FALSE),1,30) -> Educación | H11: P | I11: 266 | J11: 0.02097130243 | K11: =SUMIFS(insumos2!$E$2:$E$399999,insumos2!$J$2:$J$399999,"Aprobado con subsidio",insumos2!$N$2:$N$399999,Hoja4!H11) -> 6276 | L11: 0.01420790264 | M11: =SUMIFS(insumos1!$K$2:$K$372158,insumos1!$H$2:$H$372158,Hoja4!H11) -> 1614442500 | N11: =SUMIFS(insumos2!$R$2:$R$399999,insumos2!$J$2:$J$399999,"Aprobado con subsidio",insumos2!$N$2:$N$399999,Hoja4!H11) -> 2567 | O11: =SUMIFS(insumos2!$Q$2:$Q$399999,insumos2!$J$2:$J$399999,"Aprobado con subsidio",insumos2!$N$2:$N$399999,Hoja4!H11) -> 3702 | P11: =SUMIFS(insumos2!$S$2:$S$399999,insumos2!$J$2:$J$399999,"Aprobado con subsidio",insumos2!$N$2:$N$399999,Hoja4!H11) -> 7 | Q11: Educación | R11: 144.215037 | T11: 15 | U11: BOYACÁ | V11: =(VLOOKUP(T11,_xlfn.ANCHORARRAY(insumos2!$W$2),2,0)/SUM(insumos2!$X$2:$X$34)) -> 0.01182592242 | W11: =VLOOKUP(T11,insumos2!$AY$2:$AZ$34,2,FALSE)/insumos2!$BF$30 -> 0.008678500986
A12: ACTIVIDADES FINANCIERAS Y DE SEGUROS | B12: K | C12: Actividades financieras y de seguros | D12: K | E12: =COUNTIFS(insumos2!$N$2:$N$399999,Hoja4!D12,insumos2!$J$2:$J$399999,"Aprobado con subsidio") -> 185 | G12: =MID(VLOOKUP(H12,$B$2:$C$23,2,FALSE),1,30) -> información y comunicaciones | H12: J | I12: 247 | J12: 0.01947335225 | K12: =SUMIFS(insumos2!$E$2:$E$399999,insumos2!$J$2:$J$399999,"Aprobado con subsidio",insumos2!$N$2:$N$399999,Hoja4!H12) -> 4727 | L12: 0.01070120391 | M12: =SUMIFS(insumos1!$K$2:$K$372158,insumos1!$H$2:$H$372158,Hoja4!H12) -> 1208790000 | N12: =SUMIFS(insumos2!$R$2:$R$399999,insumos2!$J$2:$J$399999,"Aprobado con subsidio",insumos2!$N$2:$N$399999,Hoja4!H12) -> 2623 | O12: =SUMIFS(insumos2!$Q$2:$Q$399999,insumos2!$J$2:$J$399999,"Aprobado con subsidio",insumos2!$N$2:$N$399999,Hoja4!H12) -> 2104 | P12: =SUMIFS(insumos2!$S$2:$S$399999,insumos2!$J$2:$J$399999,"Aprobado con subsidio",insumos2!$N$2:$N$399999,Hoja4!H12) -> 0 | Q12: información y comunicaciones | R12: 80.213496 | T12: 73 | U12: TOLIMA | V12: =(VLOOKUP(T12,_xlfn.ANCHORARRAY(insumos2!$W$2),2,0)/SUM(insumos2!$X$2:$X$34)) -> 0.01064333018 | W12: =VLOOKUP(T12,insumos2!$AY$2:$AZ$34,2,FALSE)/insumos2!$BF$30 -> 0.006706114398
A13: ACTIVIDADES INMOBILIARIAS | B13: L | C13: Actividades inmobiliarias | D13: L | E13: =COUNTIFS(insumos2!$N$2:$N$399999,Hoja4!D13,insumos2!$J$2:$J$399999,"Aprobado con subsidio") -> 163 | G13: =MID(VLOOKUP(H13,$B$2:$C$23,2,FALSE),1,30) -> Otras actividades de servicios | H13: S | I13: 231 | J13: 0.01821192053 | K13: =SUMIFS(insumos2!$E$2:$E$399999,insumos2!$J$2:$J$399999,"Aprobado con subsidio",insumos2!$N$2:$N$399999,Hoja4!H13) -> 3508 | L13: 0.007941574641 | M13: =SUMIFS(insumos1!$K$2:$K$372158,insumos1!$H$2:$H$372158,Hoja4!H13) -> 965217000 | N13: =SUMIFS(insumos2!$R$2:$R$399999,insumos2!$J$2:$J$399999,"Aprobado con subsidio",insumos2!$N$2:$N$399999,Hoja4!H13) -> 1865 | O13: =SUMIFS(insumos2!$Q$2:$Q$399999,insumos2!$J$2:$J$399999,"Aprobado con subsidio",insumos2!$N$2:$N$399999,Hoja4!H13) -> 1640 | P13: =SUMIFS(insumos2!$S$2:$S$399999,insumos2!$J$2:$J$399999,"Aprobado con subsidio",insumos2!$N$2:$N$399999,Hoja4!H13) -> 3 | Q13: Otras actividades de servicios | R13: 87.93565684 | T13: 17 | U13: CALDAS | V13: =(VLOOKUP(T13,_xlfn.ANCHORARRAY(insumos2!$W$2),2,0)/SUM(insumos2!$X$2:$X$34)) -> 0.01064333018 | W13: =VLOOKUP(T13,insumos2!$AY$2:$AZ$34,2,FALSE)/insumos2!$BF$30 -> 0.01262327416
A14: ACTIVIDADES PROFESIONALES, CIENTÍFICAS Y TÉCNICAS | B14: M | C14: Actividades profesionales, científicas y técnicas | D14: M | E14: =COUNTIFS(insumos2!$N$2:$N$399999,Hoja4!D14,insumos2!$J$2:$J$399999,"Aprobado con subsidio") -> 962 | G14: =MID(VLOOKUP(H14,$B$2:$C$23,2,FALSE),1,34) -> Actividades financieras y de segur | H14: K | I14: 185 | J14: 0.01458530432 | K14: =SUMIFS(insumos2!$E$2:$E$399999,insumos2!$J$2:$J$399999,"Aprobado con subsidio",insumos2!$N$2:$N$399999,Hoja4!H14) -> 2188 | L14: 0.00495329684 | M14: =SUMIFS(insumos1!$K$2:$K$372158,insumos1!$H$2:$H$372158,Hoja4!H14) -> 617644500 | N14: =SUMIFS(insumos2!$R$2:$R$399999,insumos2!$J$2:$J$399999,"Aprobado con subsidio",insumos2!$N$2:$N$399999,Hoja4!H14) -> 803 | O14: =SUMIFS(insumos2!$Q$2:$Q$399999,insumos2!$J$2:$J$399999,"Aprobado con subsidio",insumos2!$N$2:$N$399999,Hoja4!H14) -> 1383 | P14: =SUMIFS(insumos2!$S$2:$S$399999,insumos2!$J$2:$J$399999,"Aprobado con subsidio",insumos2!$N$2:$N$399999,Hoja4!H14) -> 2 | Q14: Actividades financieras y de segur | R14: 172.2291407 | T14: 50 | U14: META | V14: =(VLOOKUP(T14,_xlfn.ANCHORARRAY(insumos2!$W$2),2,0)/SUM(insumos2!$X$2:$X$34)) -> 0.01032797225 | W14: =VLOOKUP(T14,insumos2!$AY$2:$AZ$34,2,FALSE)/insumos2!$BF$30 -> 0.004733727811
A15: ACTIVIDADES DE SERVICIOS ADMINISTRATIVOS Y DE APOYO | B15: N | C15: Actividades de servicios administrativos y de apoyo | D15: N | E15: =COUNTIFS(insumos2!$N$2:$N$399999,Hoja4!D15,insumos2!$J$2:$J$399999,"Aprobado con subsidio") -> 634 | G15: =MID(VLOOKUP(H15,$B$2:$C$23,2,FALSE),1,40) -> Otras | H15: Otras | I15: 182 | J15: 0.01434878587 | K15: =SUMIFS(insumos2!$E$2:$E$399999,insumos2!$J$2:$J$399999,"Aprobado con subsidio",insumos2!$N$2:$N$399999,Hoja4!H15) -> 2666 | L15: 0.00603541562 | M15: =SUMIFS(insumos1!$K$2:$K$372158,insumos1!$H$2:$H$372158,Hoja4!H15) -> 635976000 | N15: =SUMIFS(insumos2!$R$2:$R$399999,insumos2!$J$2:$J$399999,"Aprobado con subsidio",insumos2!$N$2:$N$399999,Hoja4!H15) -> 1834 | O15: =SUMIFS(insumos2!$Q$2:$Q$399999,insumos2!$J$2:$J$399999,"Aprobado con subsidio",insumos2!$N$2:$N$399999,Hoja4!H15) -> 831 | P15: =SUMIFS(insumos2!$S$2:$S$399999,insumos2!$J$2:$J$399999,"Aprobado con subsidio",insumos2!$N$2:$N$399999,Hoja4!H15) -> 1 | Q15: Otras | R15: 45.31079607 | T15: 41 | U15: HUILA | V15: =(VLOOKUP(T15,_xlfn.ANCHORARRAY(insumos2!$W$2),2,0)/SUM(insumos2!$X$2:$X$34)) -> 0.01356039104 | W15: =VLOOKUP(T15,insumos2!$AY$2:$AZ$34,2,FALSE)/insumos2!$BF$30 -> 0.01183431953
A16: ADMINISTRACIÓN PÚBLICA Y DEFENSA; PLANES DE SEGURIDAD SOCIAL DE AFILIACIÓN OBLIGATORIA | B16: O | C16: Administración pública y defensa; planes de seguridad social de afiliación obligatoria | D16: O | E16: =COUNTIFS(insumos2!$N$2:$N$399999,Hoja4!D16,insumos2!$J$2:$J$399999,"Aprobado con subsidio") -> 10 | G16: =MID(VLOOKUP(H16,$B$2:$C$23,2,FALSE),1,35) -> Actividades inmobiliarias | H16: L | I16: 163 | J16: 0.0128508357 | K16: =SUMIFS(insumos2!$E$2:$E$399999,insumos2!$J$2:$J$399999,"Aprobado con subsidio",insumos2!$N$2:$N$399999,Hoja4!H16) -> 1923 | L16: 0.004353377433 | M16: =SUMIFS(insumos1!$K$2:$K$372158,insumos1!$H$2:$H$372158,Hoja4!H16) -> 522720000 | N16: =SUMIFS(insumos2!$R$2:$R$399999,insumos2!$J$2:$J$399999,"Aprobado con subsidio",insumos2!$N$2:$N$399999,Hoja4!H16) -> 927 | O16: =SUMIFS(insumos2!$Q$2:$Q$399999,insumos2!$J$2:$J$399999,"Aprobado con subsidio",insumos2!$N$2:$N$399999,Hoja4!H16) -> 996 | P16: =SUMIFS(insumos2!$S$2:$S$399999,insumos2!$J$2:$J$399999,"Aprobado con subsidio",insumos2!$N$2:$N$399999,Hoja4!H16) -> 0 | Q16: Actividades inmobiliarias | R16: 107.4433657 | T16: 52 | U16: NARIÑO | V16: =(VLOOKUP(T16,_xlfn.ANCHORARRAY(insumos2!$W$2),2,0)/SUM(insumos2!$X$2:$X$34)) -> 0.02270577105 | W16: =VLOOKUP(T16,insumos2!$AY$2:$AZ$34,2,FALSE)/insumos2!$BF$30 -> 0.009861932939
A17: EDUCACIÓN | B17: P | C17: Educación | D17: P | E17: =COUNTIFS(insumos2!$N$2:$N$399999,Hoja4!D17,insumos2!$J$2:$J$399999,"Aprobado con subsidio") -> 266 | G17: =MID(VLOOKUP(H17,$B$2:$C$23,2,FALSE),1,31) -> Actividades artísticas de entre | H17: R | I17: 107 | J17: 0.008435824661 | K17: =SUMIFS(insumos2!$E$2:$E$399999,insumos2!$J$2:$J$399999,"Aprobado con subsidio",insumos2!$N$2:$N$399999,Hoja4!H17) -> 3257 | L17: 0.00737334909 | M17: =SUMIFS(insumos1!$K$2:$K$372158,insumos1!$H$2:$H$372158,Hoja4!H17) -> 753769500 | N17: =SUMIFS(insumos2!$R$2:$R$399999,insumos2!$J$2:$J$399999,"Aprobado con subsidio",insumos2!$N$2:$N$399999,Hoja4!H17) -> 1701 | O17: =SUMIFS(insumos2!$Q$2:$Q$399999,insumos2!$J$2:$J$399999,"Aprobado con subsidio",insumos2!$N$2:$N$399999,Hoja4!H17) -> 1548 | P17: =SUMIFS(insumos2!$S$2:$S$399999,insumos2!$J$2:$J$399999,"Aprobado con subsidio",insumos2!$N$2:$N$399999,Hoja4!H17) -> 8 | Q17: Actividades artísticas de entre | R17: 91.00529101 | T17: 23 | U17: CÓRDOBA | V17: =(VLOOKUP(T17,_xlfn.ANCHORARRAY(insumos2!$W$2),2,0)/SUM(insumos2!$X$2:$X$34)) -> 0.005676442763 | W17: =VLOOKUP(T17,insumos2!$AY$2:$AZ$34,2,FALSE)/insumos2!$BF$30 -> 0.003944773176
A18: ACTIVIDADES DE ATENCIÓN DE LA SALUD HUMANA Y DE ASISTENCIA SOCIAL | B18: Q | C18: Actividades de atención de la salud humana y de asistencia social | D18: Q | E18: =COUNTIFS(insumos2!$N$2:$N$399999,Hoja4!D18,insumos2!$J$2:$J$399999,"Aprobado con subsidio") -> 390 | G18: =MID(VLOOKUP(H18,$B$2:$C$23,2,FALSE),1,20) -> Explotación de minas | H18: B | I18: 56 | J18: 0.004415011038 | K18: =SUMIFS(insumos2!$E$2:$E$399999,insumos2!$J$2:$J$399999,"Aprobado con subsidio",insumos2!$N$2:$N$399999,Hoja4!H18) -> 2212 | L18: 0.005007629164 | M18: =SUMIFS(insumos1!$K$2:$K$372158,insumos1!$H$2:$H$372158,Hoja4!H18) -> 571906500 | N18: =SUMIFS(insumos2!$R$2:$R$399999,insumos2!$J$2:$J$399999,"Aprobado con subsidio",insumos2!$N$2:$N$399999,Hoja4!H18) -> 1871 | O18: =SUMIFS(insumos2!$Q$2:$Q$399999,insumos2!$J$2:$J$399999,"Aprobado con subsidio",insumos2!$N$2:$N$399999,Hoja4!H18) -> 340 | P18: =SUMIFS(insumos2!$S$2:$S$399999,insumos2!$J$2:$J$399999,"Aprobado con subsidio",insumos2!$N$2:$N$399999,Hoja4!H18) -> 1 | Q18: Explotación de minas | R18: 18.17210048 | T18: 63 | U18: QUINDÍO | V18: =(VLOOKUP(T18,_xlfn.ANCHORARRAY(insumos2!$W$2),2,0)/SUM(insumos2!$X$2:$X$34)) -> 0.01253547777 | W18: =VLOOKUP(T18,insumos2!$AY$2:$AZ$34,2,FALSE)/insumos2!$BF$30 -> 0.01420118343
A19: ACTIVIDADES ARTÍSTICAS, DE ENTRETENIMIENTO Y RECREACIÓN | B19: R | C19: Actividades artísticas de entretenimiento y recreación | D19: R | E19: =COUNTIFS(insumos2!$N$2:$N$399999,Hoja4!D19,insumos2!$J$2:$J$399999,"Aprobado con subsidio") -> 107 | G19: =MID(VLOOKUP(H19,$B$2:$C$23,2,FALSE),1,32) -> Distribución de agua; evacuación | H19: E | I19: 52 | J19: 0.004099653106 | K19: =SUMIFS(insumos2!$E$2:$E$399999,insumos2!$J$2:$J$399999,"Aprobado con subsidio",insumos2!$N$2:$N$399999,Hoja4!H19) -> 911 | L19: 0.002062364452 | M19: =SUMIFS(insumos1!$K$2:$K$372158,insumos1!$H$2:$H$372158,Hoja4!H19) -> 246477000 | N19: =SUMIFS(insumos2!$R$2:$R$399999,insumos2!$J$2:$J$399999,"Aprobado con subsidio",insumos2!$N$2:$N$399999,Hoja4!H19) -> 665 | O19: =SUMIFS(insumos2!$Q$2:$Q$399999,insumos2!$J$2:$J$399999,"Aprobado con subsidio",insumos2!$N$2:$N$399999,Hoja4!H19) -> 245 | P19: =SUMIFS(insumos2!$S$2:$S$399999,insumos2!$J$2:$J$399999,"Aprobado con subsidio",insumos2!$N$2:$N$399999,Hoja4!H19) -> 1 | Q19: Distribución de agua; evacuación | R19: 36.84210526 | T19: 47 | U19: MAGDALENA | V19: =(VLOOKUP(T19,_xlfn.ANCHORARRAY(insumos2!$W$2),2,0)/SUM(insumos2!$X$2:$X$34)) -> 0.006859035005 | W19: =VLOOKUP(T19,insumos2!$AY$2:$AZ$34,2,FALSE)/insumos2!$BF$30 -> 0.002761341223
A20: OTRAS ACTIVIDADES DE SERVICIOS | B20: S | C20: Otras actividades de servicios | D20: S | E20: =COUNTIFS(insumos2!$N$2:$N$399999,Hoja4!D20,insumos2!$J$2:$J$399999,"Aprobado con subsidio") -> 231 | G20: =MID(VLOOKUP(H20,$B$2:$C$23,2,FALSE),1,33) -> Administración pública y defensa; | H20: O | I20: 10 | J20: 0.0007883948281 | K20: =SUMIFS(insumos2!$E$2:$E$399999,insumos2!$J$2:$J$399999,"Aprobado con subsidio",insumos2!$N$2:$N$399999,Hoja4!H20) -> 320 | L20: 0.0007244309821 | M20: =SUMIFS(insumos1!$K$2:$K$372158,insumos1!$H$2:$H$372158,Hoja4!H20) -> 109263000 | N20: =SUMIFS(insumos2!$R$2:$R$399999,insumos2!$J$2:$J$399999,"Aprobado con subsidio",insumos2!$N$2:$N$399999,Hoja4!H20) -> 156 | O20: =SUMIFS(insumos2!$Q$2:$Q$399999,insumos2!$J$2:$J$399999,"Aprobado con subsidio",insumos2!$N$2:$N$399999,Hoja4!H20) -> 163 | P20: =SUMIFS(insumos2!$S$2:$S$399999,insumos2!$J$2:$J$399999,"Aprobado con subsidio",insumos2!$N$2:$N$399999,Hoja4!H20) -> 1 | Q20: Administración pública y defensa; | R20: 104.4871795 | T20: 20 | U20: CESAR | V20: =(VLOOKUP(T20,_xlfn.ANCHORARRAY(insumos2!$W$2),2,0)/SUM(insumos2!$X$2:$X$34)) -> 0.005439924314 | W20: =VLOOKUP(T20,insumos2!$AY$2:$AZ$34,2,FALSE)/insumos2!$BF$30 -> 0.001972386588
A21: ACTIVIDADES DE LOS HOGARES INDIVIDUALES EN CALIDAD DE EMPLEADORES; ACTIVIDADES NO DIFERENCIADAS DE LOS HOGARES INDIVIDUALES COMO PRODUCTORES DE BIENES Y SERVICIOS PARA USO PROPIO | B21: T | C21: Actividad de los hogares en calidad de empleadores; actividades no diferenciadas de los hogares individuales como productores de bienes y servicios para uso propio | D21: T | E21: =COUNTIFS(insumos2!$N$2:$N$399999,Hoja4!D21,insumos2!$J$2:$J$399999,"Aprobado con subsidio") -> 5 | G21: =MID(VLOOKUP(H21,$B$2:$C$23,2,FALSE),1,30) -> Suministro de electricidad, ga | H21: D | I21: 5 | J21: 0.0003941974141 | K21: =SUMIFS(insumos2!$E$2:$E$399999,insumos2!$J$2:$J$399999,"Aprobado con subsidio",insumos2!$N$2:$N$399999,Hoja4!H21) -> 231 | L21: 0.0005229486152 | M21: =SUMIFS(insumos1!$K$2:$K$372158,insumos1!$H$2:$H$372158,Hoja4!H21) -> 43015500 | N21: =SUMIFS(insumos2!$R$2:$R$399999,insumos2!$J$2:$J$399999,"Aprobado con subsidio",insumos2!$N$2:$N$399999,Hoja4!H21) -> 179 | O21: =SUMIFS(insumos2!$Q$2:$Q$399999,insumos2!$J$2:$J$399999,"Aprobado con subsidio",insumos2!$N$2:$N$399999,Hoja4!H21) -> 52 | P21: =SUMIFS(insumos2!$S$2:$S$399999,insumos2!$J$2:$J$399999,"Aprobado con subsidio",insumos2!$N$2:$N$399999,Hoja4!H21) -> 0 | Q21: Suministro de electricidad, ga | R21: 29.05027933 | T21: 19 | U21: CAUCA | V21: =(VLOOKUP(T21,_xlfn.ANCHORARRAY(insumos2!$W$2),2,0)/SUM(insumos2!$X$2:$X$34)) -> 0.02183853674 | W21: =VLOOKUP(T21,insumos2!$AY$2:$AZ$34,2,FALSE)/insumos2!$BF$30 -> 0.01617357002
A22: ACTIVIDADES DE ORGANIZACIONES Y ENTIDADES EXTRATERRITORIALES | B22: U | C22: Actividad de organizaciones y entidades extraterritoriales | D22: U | E22: =COUNTIFS(insumos2!$N$2:$N$399999,Hoja4!D22,insumos2!$J$2:$J$399999,"Aprobado con subsidio") -> 0 | G22: =MID(VLOOKUP(H22,$B$2:$C$23,2,FALSE),1,24) -> Actividad de los hogares | H22: T | I22: 5 | J22: 0.0003941974141 | K22: =SUMIFS(insumos2!$E$2:$E$399999,insumos2!$J$2:$J$399999,"Aprobado con subsidio",insumos2!$N$2:$N$399999,Hoja4!H22) -> 58 | L22: 0.0001313031155 | M22: =SUMIFS(insumos1!$K$2:$K$372158,insumos1!$H$2:$H$372158,Hoja4!H22) -> 17424000 | N22: =SUMIFS(insumos2!$R$2:$R$399999,insumos2!$J$2:$J$399999,"Aprobado con subsidio",insumos2!$N$2:$N$399999,Hoja4!H22) -> 16 | O22: =SUMIFS(insumos2!$Q$2:$Q$399999,insumos2!$J$2:$J$399999,"Aprobado con subsidio",insumos2!$N$2:$N$399999,Hoja4!H22) -> 42 | P22: =SUMIFS(insumos2!$S$2:$S$399999,insumos2!$J$2:$J$399999,"Aprobado con subsidio",insumos2!$N$2:$N$399999,Hoja4!H22) -> 0 | Q22: Actividad de los hogares | R22: 262.5 | T22: 85 | U22: CASANARE | V22: =(VLOOKUP(T22,_xlfn.ANCHORARRAY(insumos2!$W$2),2,0)/SUM(insumos2!$X$2:$X$34)) -> 0.004020813623 | W22: =VLOOKUP(T22,insumos2!$AY$2:$AZ$34,2,FALSE)/insumos2!$BF$30 -> 0.00157790927
A23: OTRAS | B23: Otras | C23: Otras | D23: Otras | E23: =COUNTIFS(insumos2!$N$2:$N$399999,Hoja4!D23,insumos2!$J$2:$J$399999,"Aprobado con subsidio") -> 182 | G23: =MID(VLOOKUP(H23,$B$2:$C$23,2,FALSE),1,45) -> Actividad de organizaciones y entidades extra | H23: U | I23: 0 | J23: 0 | K23: =SUMIFS(insumos2!$E$2:$E$399999,insumos2!$J$2:$J$399999,"Aprobado con subsidio",insumos2!$N$2:$N$399999,Hoja4!H23) -> 0 | L23: 0 | M23: =SUMIFS(insumos1!$K$2:$K$372158,insumos1!$H$2:$H$372158,Hoja4!H23) -> 0 | N23: =SUMIFS(insumos2!$R$2:$R$399999,insumos2!$J$2:$J$399999,"Aprobado con subsidio",insumos2!$N$2:$N$399999,Hoja4!H23) -> 0 | O23: =SUMIFS(insumos2!$Q$2:$Q$399999,insumos2!$J$2:$J$399999,"Aprobado con subsidio",insumos2!$N$2:$N$399999,Hoja4!H23) -> 0 | P23: =SUMIFS(insumos2!$S$2:$S$399999,insumos2!$J$2:$J$399999,"Aprobado con subsidio",insumos2!$N$2:$N$399999,Hoja4!H23) -> 0 | Q23: Actividad de organizaciones y entidades extra | T23: 70 | U23: SUCRE | V23: =(VLOOKUP(T23,_xlfn.ANCHORARRAY(insumos2!$W$2),2,0)/SUM(insumos2!$X$2:$X$34)) -> 0.001576789656 | W23: =VLOOKUP(T23,insumos2!$AY$2:$AZ$34,2,FALSE)/insumos2!$BF$30 -> 0.001183431953
E24: =SUM(E2:E23) -> 12684 | H24: General | I24: =SUM(I2:I23) -> 12684 | K24: =SUM(K2:K23) -> 441726 | M24: =SUM(M2:M23) -> 107396454000 | N24: =SUM(N2:N23) -> 276866 | O24: =SUM(O2:O23) -> 164689 | P24: =SUM(P2:P23) -> 171 | T24: 18 | U24: CAQUETÁ | V24: =(VLOOKUP(T24,_xlfn.ANCHORARRAY(insumos2!$W$2),2,0)/SUM(insumos2!$X$2:$X$34)) -> 0.004888047934 | W24: =VLOOKUP(T24,insumos2!$AY$2:$AZ$34,2,FALSE)/insumos2!$BF$30 -> 0.001183431953
T25: 44 | U25: LA GUAJIRA | V25: =(VLOOKUP(T25,_xlfn.ANCHORARRAY(insumos2!$W$2),2,0)/SUM(insumos2!$X$2:$X$34)) -> 0.001813308105 | W25: =VLOOKUP(T25,insumos2!$AY$2:$AZ$34,2,FALSE)/insumos2!$BF$30 -> 0.0003944773176
T26: 88 | U26: SAN ANDRÉS | V26: =(VLOOKUP(T26,_xlfn.ANCHORARRAY(insumos2!$W$2),2,0)/SUM(insumos2!$X$2:$X$34)) -> 0.0008672343109 | W26: =VLOOKUP(T26,insumos2!$AY$2:$AZ$34,2,FALSE)/insumos2!$BF$30 -> 0
T27: 81 | U27: ARAUCA | V27: =(VLOOKUP(T27,_xlfn.ANCHORARRAY(insumos2!$W$2),2,0)/SUM(insumos2!$X$2:$X$34)) -> 0.0008672343109 | W27: =VLOOKUP(T27,insumos2!$AY$2:$AZ$34,2,FALSE)/insumos2!$BF$30 -> 0.001183431953
A28: Código | B28: Nombre | D28: Municipio | T28: 86 | U28: PUTUMAYO | V28: =(VLOOKUP(T28,_xlfn.ANCHORARRAY(insumos2!$W$2),2,0)/SUM(insumos2!$X$2:$X$34)) -> 0.001734468622 | W28: =VLOOKUP(T28,insumos2!$AY$2:$AZ$34,2,FALSE)/insumos2!$BF$30 -> 0.0003944773176
A29: 5 | B29: Antioquia | D29: Código | E29: Nombre | T29: 27 | U29: CHOCÓ | V29: =(VLOOKUP(T29,_xlfn.ANCHORARRAY(insumos2!$W$2),2,0)/SUM(insumos2!$X$2:$X$34)) -> 0.0003941974141 | W29: =VLOOKUP(T29,insumos2!$AY$2:$AZ$34,2,FALSE)/insumos2!$BF$30 -> 0
A30: 8 | B30: Atlántico | D30: 5001 | E30: Medellín | T30: 91 | U30: AMAZONAS | V30: =(VLOOKUP(T30,_xlfn.ANCHORARRAY(insumos2!$W$2),2,0)/SUM(insumos2!$X$2:$X$34)) -> 7.883948281e-05 | W30: =VLOOKUP(T30,insumos2!$AY$2:$AZ$34,2,FALSE)/insumos2!$BF$30 -> 0
A31: 11 | B31: Bogotá | D31: 5002 | E31: Abejorral | T31: 95 | U31: GUAVIARE | V31: =(VLOOKUP(T31,_xlfn.ANCHORARRAY(insumos2!$W$2),2,0)/SUM(insumos2!$X$2:$X$34)) -> 0.0004730368969 | W31: =VLOOKUP(T31,insumos2!$AY$2:$AZ$34,2,FALSE)/insumos2!$BF$30 -> 0
A32: 13 | B32: Bolívar | D32: 5004 | E32: Abriaquí | T32: 99 | U32: VICHADA | V32: =(VLOOKUP(T32,_xlfn.ANCHORARRAY(insumos2!$W$2),2,0)/SUM(insumos2!$X$2:$X$34)) -> 0.0001576789656 | W32: =VLOOKUP(T32,insumos2!$AY$2:$AZ$34,2,FALSE)/insumos2!$BF$30 -> 0.0003944773176
A33: 15 | B33: Boyacá | D33: 5021 | E33: Alejandría | T33: 94 | U33: GUAINÍA | V33: =(VLOOKUP(T33,_xlfn.ANCHORARRAY(insumos2!$W$2),2,0)/SUM(insumos2!$X$2:$X$34)) -> 7.883948281e-05 | W33: =VLOOKUP(T33,insumos2!$AY$2:$AZ$34,2,FALSE)/insumos2!$BF$30 -> 0
A34: 17 | B34: Caldas | D34: 5030 | E34: Amagá | T34: 97 | U34: VAUPÉS | V34: =(VLOOKUP(T34,_xlfn.ANCHORARRAY(insumos2!$W$2),2,0)/SUM(insumos2!$X$2:$X$34)) -> 0 | W34: =VLOOKUP(T34,insumos2!$AY$2:$AZ$34,2,FALSE)/insumos2!$BF$30 -> 0
A35: 18 | B35: Caquetá | D35: 5031 | E35: Amalfi | U35: Total general | V35: =SUM(V2:V34) -> 1 | W35: =SUM(W2:W34) -> 1
A36: 19 | B36: Cauca | D36: 5034 | E36: Andes
A37: 20 | B37: Cesar | D37: 5036 | E37: Angelópolis
A38: 23 | B38: Córdoba | D38: 5038 | E38: Angostura
A39: 25 | B39: Cundinamarca | D39: 5040 | E39: Anorí
A40: 27 | B40: Chocó | D40: 5042 | E40: Santa fé de anti
A41: 41 | B41: Huila | D41: 5044 | E41: Anzá
A42: 44 | B42: La guajira | D42: 5045 | E42: Apartadó
A43: 47 | B43: Magdalena | D43: 5051 | E43: Arboletes
A44: 50 | B44: Meta | D44: 5055 | E44: Argelia
A45: 52 | B45: Nariño | D45: 5059 | E45: Armenia
A46: 54 | B46: Norte de stder | D46: 5079 | E46: Barbosa
A47: 63 | B47: Quindío | D47: 5086 | E47: Belmira
A48: 66 | B48: Risaralda | D48: 5088 | E48: Bello
A49: 68 | B49: Santander | D49: 5091 | E49: Betania
A50: 70 | B50: Sucre | D50: 5093 | E50: Betulia
A51: 73 | B51: Tolima | D51: 5101 | E51: Ciudad bolívar
A52: 76 | B52: Valle del cauca | D52: 5107 | E52: Briceño
A53: 81 | B53: Arauca | D53: 5113 | E53: Buriticá
A54: 85 | B54: Casanare | D54: 5120 | E54: Cáceres
A55: 86 | B55: Putumayo | D55: 5125 | E55: Caicedo
A56: 88 | B56: San Andrés | D56: 5129 | E56: Caldas
A57: 91 | B57: Amazonas | D57: 5134 | E57: Campamento
A58: 94 | B58: Guainía | D58: 5138 | E58: Cañasgordas
A59: 95 | B59: Guaviare | D59: 5142 | E59: Caracolí
A60: 97 | B60: Vaupés | D60: 5145 | E60: Caramanta
A61: 99 | B61: Vichada | D61: 5147 | E61: Carepa
D62: 5148 | E62: El carmen de vib
D63: 5150 | E63: Carolina
D64: 5154 | E64: Caucasia
D65: 5172 | E65: Chigorodó
D66: 5190 | E66: Cisneros
D67: 5197 | E67: Cocorná
D68: 5206 | E68: Concepción
D69: 5209 | E69: Concordia
D70: 5212 | E70: Copacabana
D71: 5234 | E71: Dabeiba
D72: 5237 | E72: Donmatías
D73: 5240 | E73: Ebéjico
D74: 5250 | E74: El bagre
D75: 5264 | E75: Entrerríos
D76: 5266 | E76: Envigado
D77: 5282 | E77: Fredonia
D78: 5284 | E78: Frontino
D79: 5306 | E79: Giraldo
D80: 5308 | E80: Girardota
D81: 5310 | E81: Gómez plata
D82: 5313 | E82: Granada
D83: 5315 | E83: Guadalupe
D84: 5318 | E84: Guarne
D85: 5321 | E85: Guatapé
D86: 5347 | E86: Heliconia
D87: 5353 | E87: Hispania
D88: 5360 | E88: Itagüí
D89: 5361 | E89: Ituango
D90: 5364 | E90: Jardín
D91: 5368 | E91: Jericó
D92: 5376 | E92: La ceja
D93: 5380 | E93: La estrella
D94: 5390 | E94: La pintada
D95: 5400 | E95: La unión
D96: 5411 | E96: Liborina
D97: 5425 | E97: Maceo
D98: 5440 | E98: Marinilla
D99: 5467 | E99: Montebello
D100: 5475 | E100: Murindó
D101: 5480 | E101: Mutatá
D102: 5483 | E102: Nariño
D103: 5490 | E103: Necoclí
D104: 5495 | E104: Nechí
D105: 5501 | E105: Olaya
D106: 5541 | E106: Peñol
D107: 5543 | E107: Peque
D108: 5576 | E108: Pueblorrico
D109: 5579 | E109: Puerto berrío
D110: 5585 | E110: Puerto nare
D111: 5591 | E111: Puerto triunfo
D112: 5604 | E112: Remedios
D113: 5607 | E113: Retiro
D114: 5615 | E114: Rionegro
D115: 5628 | E115: Sabanalarga
D116: 5631 | E116: Sabaneta
D117: 5642 | E117: Salgar
D118: 5647 | E118: San andrés de cu
D119: 5649 | E119: San carlos
D120: 5652 | E120: San francisco
D121: 5656 | E121: San jerónimo
D122: 5658 | E122: San josé de la m
D123: 5659 | E123: San juan de urab
D124: 5660 | E124: San luis
D125: 5664 | E125: San pedro de los
D126: 5665 | E126: San pedro de ura
D127: 5667 | E127: San rafael
D128: 5670 | E128: San roque
D129: 5674 | E129: San vicente ferr
D130: 5679 | E130: Santa bárbara
D131: 5686 | E131: Santa rosa de os
D132: 5690 | E132: Santo domingo
D133: 5697 | E133: El santuario
D134: 5736 | E134: Segovia
D135: 5756 | E135: Sonsón
D136: 5761 | E136: Sopetrán
D137: 5789 | E137: Támesis
D138: 5790 | E138: Tarazá
D139: 5792 | E139: Tarso
D140: 5809 | E140: Titiribí
D141: 5819 | E141: Toledo
D142: 5837 | E142: Turbo
D143: 5842 | E143: Uramita
D144: 5847 | E144: Urrao
D145: 5854 | E145: Valdivia
D146: 5856 | E146: Valparaíso
D147: 5858 | E147: Vegachí
D148: 5861 | E148: Venecia
D149: 5873 | E149: Vigía del fuerte
D150: 5885 | E150: Yalí
D151: 5887 | E151: Yarumal
D152: 5890 | E152: Yolombó
D153: 5893 | E153: Yondó
D154: 5895 | E154: Zaragoza
D155: 8001 | E155: Barranquilla
D156: 8078 | E156: Baranoa
D157: 8137 | E157: Campo de la cruz
D158: 8141 | E158: Candelaria
D159: 8296 | E159: Galapa
D160: 8372 | E160: Juan de acosta
D161: 8421 | E161: Luruaco
D162: 8433 | E162: Malambo
D163: 8436 | E163: Manatí
D164: 8520 | E164: Palmar de varela
D165: 8549 | E165: Piojó
D166: 8558 | E166: Polonuevo
D167: 8560 | E167: Ponedera
D168: 8573 | E168: Puerto colombia
D169: 8606 | E169: Repelón
D170: 8634 | E170: Sabanagrande
D171: 8638 | E171: Sabanalarga
D172: 8675 | E172: Santa lucía
D173: 8685 | E173: Santo tomás
D174: 8758 | E174: Soledad
D175: 8770 | E175: Suan
D176: 8832 | E176: Tubará
D177: 8849 | E177: Usiacurí
D178: 11001 | E178: Bogotá, d.c.
D179: 13001 | E179: Cartagena de ind
D180: 13006 | E180: Achí
D181: 13030 | E181: Altos del rosari
D182: 13042 | E182: Arenal
D183: 13052 | E183: Arjona
D184: 13062 | E184: Arroyohondo
D185: 13074 | E185: Barranco de loba
D186: 13140 | E186: Calamar
D187: 13160 | E187: Cantagallo
D188: 13188 | E188: Cicuco
D189: 13212 | E189: Córdoba
D190: 13222 | E190: Clemencia
D191: 13244 | E191: El carmen de bol
D192: 13248 | E192: El guamo
D193: 13268 | E193: El peñón
D194: 13300 | E194: Hatillo de loba
D195: 13430 | E195: Magangué
D196: 13433 | E196: Mahates
D197: 13440 | E197: Margarita
D198: 13442 | E198: María la baja
D199: 13458 | E199: Montecristo
D200: 13468 | E200: Santa cruz de mo
... 950 more rows
